Workbook

Sheet Provider & Athletes Page
B1: Instructions | E1: Select template type and enter athletes firmographics
E2: Enter start date, select current phase, week, and day
E3: Clear Selection: Will Clear all data entered throughout the template (DO NOT CLICK IF YOU DO NOT WANT DATA CLEARED)
E4: Please Read: General Overview of User Manual
D11: Patellar Tendinopathy Rehab Template for | H11: Weightlifters | Q11: Select Phase | R11: Program
Q12: I | R12: Weightlifters
D13: Athlete Demographics | Q13: II | R13: Crossfitters
D14: Height: | G14: Athlete Name: | Q14: III | R14: Powerlifters
D15: Bodyweight: | G15: Care Provider: | Q15: IV | R15: General Athlete
D16: Age: | G16: Location:
Q17: Select Day | R17: Select Week
Q18: 1 | R18: 1
Q19: 2 | R19: 2
D20: Start Date | F20: Phase: | H20: Week | J20: Day: | Q20: 3 | R20: 3
Q21: 4 | R21: 4
Q22: 5 | R22: 5
Q23: 6 | R23: 6
Q24: 7 | R24: 7
R25: 8
R26: 9
R27: 10
R28: 11
R29: 12
R30: 13
R31: 14
R32: 15
R33: 16
R34: 17
R35: 18
R36: 19
R37: 20
R43: 13
R44: 14
R45: 15
R71: 16
R72: 17
R73: 18
R74: 19

Sheet Phase I
A1: Phase I - Analgesia with Isometrics
A2: Week - Day | C2: Type | D2: Exercise | E2: Sets | F2: Duration | G2: Rest | H2: Objective Score | K2: Feedback | N2: Exercise Tonnage | O2: Absolute Intensity
H3: Sets | I3: Duration | J3: Weight
A4: W E E K 1 | B4: Biofeedback Test: | C4: Double-Leg | E4: 5 | F4: 30 - 45 Seconds | G4: 90 - 120 Seconds | N4: =IF(H4*I4*(J4)>0, H4*I4*(J4), "") ->  | O4: =IF(MAX(J4:J8) > 0, MAX(J4:J8), "") -> 
E5: 5 | F5: 30 - 45 Seconds | G5: 90 - 120 Seconds | N5: =IF(H5*I5*(J5)>0, H5*I5*(J5), "") -> 
E6: 5 | F6: 30 - 45 Seconds | G6: 90 - 120 Seconds
E7: 5 | F7: 30 - 45 Seconds | G7: 90 - 120 Seconds
B8: Day 1 Isometric | E8: 5 | F8: 30 - 45 Seconds | G8: 90 - 120 Seconds
C9: Single-Leg | E9: 5 | F9: 30 - 45 Seconds | G9: 90 - 120 Seconds | O9: =IF(MAX(J9:J13) > 0, MAX(J9:J13), "") -> 
E10: 5 | F10: 30 - 45 Seconds | G10: 90 - 120 Seconds
E11: 5 | F11: 30 - 45 Seconds | G11: 90 - 120 Seconds
E12: 5 | F12: 30 - 45 Seconds | G12: 90 - 120 Seconds
E13: 5 | F13: 30 - 45 Seconds | G13: 90 - 120 Seconds
C14: Session RPE: | E14: Session Duration: | I14: Session Score: | K14: =IFERROR(IF(SUBSTITUTE(D14,"RPE ","")*G14, CONCATENATE(SUBSTITUTE(D14,"RPE ","")*G14, " AU"),0),0) -> 0 | M14: Daily Totals: | N14: =IF(SUM(N4:N13)>0, SUM(N4:N13), "") ->  | O14: =IF(MAX(O4:O13), MAX(O4:O13), "") -> 
B15: Biofeedback Test: | C15: Double-Leg | E15: 5 | F15: 30 - 45 Seconds | G15: 90 - 120 Seconds | N15: =IF(H15*I15*(J15)>0, H15*I15*(J15), "") ->  | O15: =IF(MAX(J15:J19) > 0, MAX(J15:J19), "") -> 
E16: 5 | F16: 30 - 45 Seconds | G16: 90 - 120 Seconds | N16: =IF(H16*I16*(J16)>0, H16*I16*(J16), "") -> 
E17: 5 | F17: 30 - 45 Seconds | G17: 90 - 120 Seconds
E18: 5 | F18: 30 - 45 Seconds | G18: 90 - 120 Seconds
B19: Day 2 Isometric | E19: 5 | F19: 30 - 45 Seconds | G19: 90 - 120 Seconds
C20: Single-Leg | E20: 5 | F20: 30 - 45 Seconds | G20: 90 - 120 Seconds | O20: =IF(MAX(J20:J24) > 0, MAX(J20:J24), "") -> 
E21: 5 | F21: 30 - 45 Seconds | G21: 90 - 120 Seconds
E22: 5 | F22: 30 - 45 Seconds | G22: 90 - 120 Seconds
E23: 5 | F23: 30 - 45 Seconds | G23: 90 - 120 Seconds
E24: 5 | F24: 30 - 45 Seconds | G24: 90 - 120 Seconds
C25: Session RPE: | E25: Session Duration: | I25: Session Score: | K25: =IFERROR(IF(SUBSTITUTE(D25,"RPE ","")*G25, CONCATENATE(SUBSTITUTE(D25,"RPE ","")*G25, " AU"),0),0) -> 0 | M25: Daily Totals: | N25: =IF(SUM(N15:N24)>0, SUM(N15:N24), "") ->  | O25: =IF(MAX(O15:O24), MAX(O15:O24), "") -> 
B26: Biofeedback Test: | C26: Double-Leg | E26: 5 | F26: 30 - 45 Seconds | G26: 90 - 120 Seconds | N26: =IF(H26*I26*(J26)>0, H26*I26*(J26), "") ->  | O26: =IF(MAX(J26:J30) > 0, MAX(J26:J30), "") -> 
E27: 5 | F27: 30 - 45 Seconds | G27: 90 - 120 Seconds | N27: =IF(H27*I27*(J27)>0, H27*I27*(J27), "") -> 
E28: 5 | F28: 30 - 45 Seconds | G28: 90 - 120 Seconds
E29: 5 | F29: 30 - 45 Seconds | G29: 90 - 120 Seconds
B30: Day 3 Isometric | E30: 5 | F30: 30 - 45 Seconds | G30: 90 - 120 Seconds
C31: Single-Leg | E31: 5 | F31: 30 - 45 Seconds | G31: 90 - 120 Seconds | O31: =IF(MAX(J31:J35) > 0, MAX(J31:J35), "") -> 
E32: 5 | F32: 30 - 45 Seconds | G32: 90 - 120 Seconds
E33: 5 | F33: 30 - 45 Seconds | G33: 90 - 120 Seconds
E34: 5 | F34: 30 - 45 Seconds | G34: 90 - 120 Seconds
E35: 5 | F35: 30 - 45 Seconds | G35: 90 - 120 Seconds
C36: Session RPE: | E36: Session Duration: | I36: Session Score: | K36: =IFERROR(IF(SUBSTITUTE(D36,"RPE ","")*G36, CONCATENATE(SUBSTITUTE(D36,"RPE ","")*G36, " AU"),0),0) -> 0 | M36: Daily Totals: | N36: =IF(SUM(N26:N35)>0, SUM(N26:N35), "") ->  | O36: =IF(MAX(O26:O35), MAX(O26:O35), "") -> 
B37: Biofeedback Test: | C37: Double-Leg | E37: 5 | F37: 30 - 45 Seconds | G37: 90 - 120 Seconds | N37: =IF(H37*I37*(J37)>0, H37*I37*(J37), "") ->  | O37: =IF(MAX(J37:J41) > 0, MAX(J37:J41), "") -> 
E38: 5 | F38: 30 - 45 Seconds | G38: 90 - 120 Seconds | N38: =IF(H38*I38*(J38)>0, H38*I38*(J38), "") -> 
E39: 5 | F39: 30 - 45 Seconds | G39: 90 - 120 Seconds
E40: 5 | F40: 30 - 45 Seconds | G40: 90 - 120 Seconds
B41: Day 4 Isometric | E41: 5 | F41: 30 - 45 Seconds | G41: 90 - 120 Seconds
C42: Single-Leg | E42: 5 | F42: 30 - 45 Seconds | G42: 90 - 120 Seconds | O42: =IF(MAX(J42:J46) > 0, MAX(J42:J46), "") -> 
E43: 5 | F43: 30 - 45 Seconds | G43: 90 - 120 Seconds
E44: 5 | F44: 30 - 45 Seconds | G44: 90 - 120 Seconds
E45: 5 | F45: 30 - 45 Seconds | G45: 90 - 120 Seconds
E46: 5 | F46: 30 - 45 Seconds | G46: 90 - 120 Seconds
C47: Session RPE: | E47: Session Duration: | I47: Session Score: | K47: =IFERROR(IF(SUBSTITUTE(D47,"RPE ","")*G47, CONCATENATE(SUBSTITUTE(D47,"RPE ","")*G47, " AU"),0),0) -> 0 | M47: Daily Totals: | N47: =IF(SUM(N37:N46)>0, SUM(N37:N46), "") ->  | O47: =IF(MAX(O37:O46), MAX(O37:O46), "") -> 
B48: Biofeedback Test: | C48: Double-Leg | E48: 5 | F48: 30 - 45 Seconds | G48: 90 - 120 Seconds | N48: =IF(H48*I48*(J48)>0, H48*I48*(J48), "") ->  | O48: =IF(MAX(J48:J52) > 0, MAX(J48:J52), "") -> 
E49: 5 | F49: 30 - 45 Seconds | G49: 90 - 120 Seconds | N49: =IF(H49*I49*(J49)>0, H49*I49*(J49), "") -> 
E50: 5 | F50: 30 - 45 Seconds | G50: 90 - 120 Seconds
E51: 5 | F51: 30 - 45 Seconds | G51: 90 - 120 Seconds
B52: Day 5 Isometric | E52: 5 | F52: 30 - 45 Seconds | G52: 90 - 120 Seconds
C53: Single-Leg | E53: 5 | F53: 30 - 45 Seconds | G53: 90 - 120 Seconds | O53: =IF(MAX(J53:J57) > 0, MAX(J53:J57), "") -> 
E54: 5 | F54: 30 - 45 Seconds | G54: 90 - 120 Seconds
E55: 5 | F55: 30 - 45 Seconds | G55: 90 - 120 Seconds
E56: 5 | F56: 30 - 45 Seconds | G56: 90 - 120 Seconds
E57: 5 | F57: 30 - 45 Seconds | G57: 90 - 120 Seconds
C58: Session RPE: | E58: Session Duration: | I58: Session Score: | K58: =IFERROR(IF(SUBSTITUTE(D58,"RPE ","")*G58, CONCATENATE(SUBSTITUTE(D58,"RPE ","")*G58, " AU"),0),0) -> 0 | M58: Daily Totals: | N58: =IF(SUM(N48:N57)>0, SUM(N48:N57), "") ->  | O58: =IF(MAX(O48:O57), MAX(O48:O57), "") -> 
B59: Biofeedback Test: | C59: Double-Leg | E59: 5 | F59: 30 - 45 Seconds | G59: 90 - 120 Seconds | N59: =IF(H59*I59*(J59)>0, H59*I59*(J59), "") ->  | O59: =IF(MAX(J59:J63) > 0, MAX(J59:J63), "") -> 
E60: 5 | F60: 30 - 45 Seconds | G60: 90 - 120 Seconds | N60: =IF(H60*I60*(J60)>0, H60*I60*(J60), "") -> 
E61: 5 | F61: 30 - 45 Seconds | G61: 90 - 120 Seconds
E62: 5 | F62: 30 - 45 Seconds | G62: 90 - 120 Seconds
B63: Day 6 Isometric | E63: 5 | F63: 30 - 45 Seconds | G63: 90 - 120 Seconds
C64: Single-Leg | E64: 5 | F64: 30 - 45 Seconds | G64: 90 - 120 Seconds | O64: =IF(MAX(J64:J68) > 0, MAX(J64:J68), "") -> 
E65: 5 | F65: 30 - 45 Seconds | G65: 90 - 120 Seconds
E66: 5 | F66: 30 - 45 Seconds | G66: 90 - 120 Seconds
E67: 5 | F67: 30 - 45 Seconds | G67: 90 - 120 Seconds
E68: 5 | F68: 30 - 45 Seconds | G68: 90 - 120 Seconds
C69: Session RPE: | E69: Session Duration: | I69: Session Score: | K69: =IFERROR(IF(SUBSTITUTE(D69,"RPE ","")*G69, CONCATENATE(SUBSTITUTE(D69,"RPE ","")*G69, " AU"),0),0) -> 0 | M69: Daily Totals: | N69: =IF(SUM(N59:N68)>0, SUM(N59:N68), "") ->  | O69: =IF(MAX(O59:O68), MAX(O59:O68), "") -> 
B70: Biofeedback Test: | C70: Double-Leg | E70: 5 | F70: 30 - 45 Seconds | G70: 90 - 120 Seconds | N70: =IF(H70*I70*(J70)>0, H70*I70*(J70), "") ->  | O70: =IF(MAX(J70:J74) > 0, MAX(J70:J74), "") -> 
E71: 5 | F71: 30 - 45 Seconds | G71: 90 - 120 Seconds | N71: =IF(H71*I71*(J71)>0, H71*I71*(J71), "") -> 
E72: 5 | F72: 30 - 45 Seconds | G72: 90 - 120 Seconds
E73: 5 | F73: 30 - 45 Seconds | G73: 90 - 120 Seconds
B74: Day 7 Isometric | E74: 5 | F74: 30 - 45 Seconds | G74: 90 - 120 Seconds
C75: Single-Leg | E75: 5 | F75: 30 - 45 Seconds | G75: 90 - 120 Seconds | O75: =IF(MAX(J75:J79) > 0, MAX(J75:J79), "") -> 
E76: 5 | F76: 30 - 45 Seconds | G76: 90 - 120 Seconds
E77: 5 | F77: 30 - 45 Seconds | G77: 90 - 120 Seconds
E78: 5 | F78: 30 - 45 Seconds | G78: 90 - 120 Seconds
E79: 5 | F79: 30 - 45 Seconds | G79: 90 - 120 Seconds
C80: Session RPE: | E80: Session Duration: | G80: 45 | I80: Session Score: | K80: =IFERROR(IF(SUBSTITUTE(D80,"RPE ","")*G80, CONCATENATE(SUBSTITUTE(D80,"RPE ","")*G80, " AU"),0),0) -> 0 | M80: Daily Totals: | N80: =IF(SUM(N70:N79)>0, SUM(N70:N79), "") ->  | O80: =IF(MAX(O70:O79), MAX(O70:O79), "") -> 
A81: Weekly Totals: | H81: Tonnage: | J81: =IF(SUM(N14,N25,N36,N47,N58,N69,N80), SUM(N14,N25,N36,N47,N58,N69,N80),"") ->  | L81: Total AUs: | N81: =IFERROR(IF(SUM(SUBSTITUTE(K14," AU",""),SUBSTITUTE(K25," AU",""),SUBSTITUTE(K36," AU",""),SUBSTITUTE(K47," AU",""),SUBSTITUTE(K58," AU",""),SUBSTITUTE(K69," AU",""),SUBSTITUTE(K80," AU","")),CONCATENATE(SUM(SUBSTITUTE(K14," AU",""),SUBSTITUTE(K25," AU",""),SUBSTITUTE(K36," AU",""),SUBSTITUTE(K47," AU",""),SUBSTITUTE(K58," AU",""),SUBSTITUTE(K69," AU",""),SUBSTITUTE(K80," AU",""))," AU","")),"") -> FALSE

Sheet Phase II
A1: Phase II - Tempo Strength Training
A2: Week | B2: Day | C2: Type | D2: Exercise | E2: Tempo | G2: Sets | H2: Reps | I2: Subjective Intensity | J2: Rest | K2: Objective Score | N2: Feedback | Q2: Exercise Tonnage | R2: Average Intensity | S2: Absolute Intensity | T2: Week | U2: Day | V2: Type | W2: Exercise | X2: Tempo | Z2: Sets | AA2: Reps | AB2: Subjective Intensity | AC2: Rest | AD2: Objective Score | AG2: Feedback | AJ2: Exercise Tonnage | AK2: Average Intensity | AL2: Absolute Intensity | AM2: Week | AN2: Day | AO2: Type | AP2: Exercise | AQ2: Tempo | AS2: Sets | AT2: Reps | AU2: Subjective Intensity | AV2: Rest | AW2: Objective Score | AZ2: Feedback | BC2: Exercise Tonnage | BD2: Average Intensity | BE2: Absolute Intensity | BF2: Week | BG2: Day | BH2: Type | BI2: Exercise | BJ2: Tempo | BL2: Sets | BM2: Reps | BN2: Subjective Intensity | BO2: Rest | BP2: Objective Score | BS2: Feedback | BV2: Exercise Tonnage | BW2: Average Intensity | BX2: Absolute Intensity
K3: Sets | L3: Reps | M3: Weight | AD3: Sets | AE3: Reps | AF3: Weight | AW3: Sets | AX3: Reps | AY3: Weight | BP3: Sets | BQ3: Reps | BR3: Weight
A4: W E E K 2 | B4: Biofeedback Test: | C4: Double-Leg | E4: 3-0-3 | F4: Set 1 | G4: 1 - 2 | H4: 8-10 | I4: RPE 1 - 2 | J4: 2 - 3 Minutes | Q4: =IF(SUMPRODUCT(K4:K8,L4:L8,M4:M8), SUMPRODUCT(K4:K8,L4:L8,M4:M8), "") ->  | R4: =IFERROR(IF(SUM(M4:M8)/COUNT(K4:K8), ROUND(SUM(M4:M8)/COUNT(K4:K8),1), ""),"") ->  | S4: =IF(MAX(M4:M8),MAX(M4:M8),"") ->  | T4: W E E K 3 | U4: Biofeedback Test: | V4: Double-Leg | X4: 3-0-3 | Y4: Set 1 | Z4: 1 - 2 | AA4: 8-10 | AB4: RPE 1 - 2 | AC4: 2 - 3 Minutes | AJ4: =IF(SUMPRODUCT(AD4:AD8,AE4:AE8,AF4:AF8), SUMPRODUCT(AD4:AD8,AE4:AE8,AF4:AF8), "") ->  | AK4: =IFERROR(IF(SUM(AF4:AF8)/COUNT(AD4:AD8), ROUND(SUM(AF4:AF8)/COUNT(AD4:AD8),1), ""),"") ->  | AL4: =IF(MAX(AF4:AF8),MAX(AF4:AF8),"") ->  | AM4: W E E K 4 | AN4: Biofeedback Test: | AO4: Double-Leg | AQ4: 3-0-3 | AR4: Set 1 | AS4: 1 - 2 | AT4: 8-10 | AU4: RPE 1 - 2 | AV4: 2 - 3 Minutes | BC4: =IF(SUMPRODUCT(AW4:AW8,AX4:AX8,AY4:AY8), SUMPRODUCT(AW4:AW8,AX4:AX8,AY4:AY8), "") ->  | BD4: =IFERROR(IF(SUM(AY4:AY8)/COUNT(AW4:AW8), ROUND(SUM(AY4:AY8)/COUNT(AW4:AW8),1), ""),"") ->  | BE4: =IF(MAX(AY4:AY8),MAX(AY4:AY8),"") ->  | BF4: W E E K 5 | BG4: Biofeedback Test: | BH4: Double-Leg | BJ4: 3-0-3 | BK4: Set 1 | BL4: 1 - 2 | BM4: 8-10 | BN4: RPE 1 - 2 | BO4: 2 - 3 Minutes | BV4: =IF(SUMPRODUCT(BP4:BP8,BQ4:BQ8,BR4:BR8), SUMPRODUCT(BP4:BP8,BQ4:BQ8,BR4:BR8), "") ->  | BW4: =IFERROR(IF(SUM(BR4:BR8)/COUNT(BP4:BP8), ROUND(SUM(BR4:BR8)/COUNT(BP4:BP8),1), ""),"") ->  | BX4: =IF(MAX(BR4:BR8),MAX(BR4:BR8),"") -> 
E5: 3-0-3 | F5: Set 2 | G5: 1 - 2 | H5: 8-10 | I5: RPE 2 - 3 | J5: 2 - 3 Minutes | X5: 3-0-3 | Y5: Set 2 | Z5: 1 - 2 | AA5: 8-10 | AB5: RPE 2 - 3 | AC5: 2 - 3 Minutes | AQ5: 3-0-3 | AR5: Set 2 | AS5: 1 - 2 | AT5: 8-10 | AU5: RPE 2 - 3 | AV5: 2 - 3 Minutes | BJ5: 3-0-3 | BK5: Set 2 | BL5: 1 - 2 | BM5: 8-10 | BN5: RPE 2 - 3 | BO5: 2 - 3 Minutes
E6: 3-0-3 | F6: Set 3 | G6: 1 | H6: 15 | I6: RPE 4 - 6 | J6: 2 - 3 Minutes | X6: 3-0-3 | Y6: Set 3 | Z6: 1 | AA6: 15 | AB6: RPE 4 - 6 | AC6: 2 - 3 Minutes | AQ6: 3-0-3 | AR6: Set 3 | AS6: 1 | AT6: 8 | AU6: RPE 4 - 6 | AV6: 2 - 3 Minutes | BJ6: 3-0-3 | BK6: Set 3 | BL6: 1 | BM6: 6 | BN6: RPE 4 - 6 | BO6: 2 - 3 Minutes
E7: 3-0-3 | F7: Set 4 | G7: 1 | H7: 15 | I7: RPE 6 - 8 | J7: 2 - 3 Minutes | X7: 3-0-3 | Y7: Set 4 | Z7: 1 | AA7: 15 | AB7: RPE 6 - 8 | AC7: 2 - 3 Minutes | AQ7: 3-0-3 | AR7: Set 4 | AS7: 1 | AT7: 8 | AU7: RPE 6 - 8 | AV7: 2 - 3 Minutes | BJ7: 3-0-3 | BK7: Set 4 | BL7: 1 | BM7: 6 | BN7: RPE 6 - 8 | BO7: 2 - 3 Minutes
B8: Day 1 Isotonic | E8: 3-0-3 | F8: Set 5 | G8: 1 | H8: 15 | I8: RPE 9 - 10 | J8: 2 - 3 Minutes | U8: Day 1 Isotonic | X8: 3-0-3 | Y8: Set 5 | Z8: 1 | AA8: 15 | AB8: RPE 9 - 10 | AC8: 2 - 3 Minutes | AN8: Day 1 Isotonic | AQ8: 3-0-3 | AR8: Set 5 | AS8: 1 | AT8: 8 | AU8: RPE 9 - 10 | AV8: 2 - 3 Minutes | BG8: Day 1 Isotonic | BJ8: 3-0-3 | BK8: Set 5 | BL8: 1 | BM8: 6 | BN8: RPE 9 - 10 | BO8: 2 - 3 Minutes
C9: Double-Leg | E9: 3-0-3 | F9: Set 1 | G9: 1 - 2 | H9: 8-10 | I9: RPE 1 - 2 | J9: 2 - 3 Minutes | Q9: =IF(SUMPRODUCT(K9:K13,L9:L13,M9:M13), SUMPRODUCT(K9:K13,L9:L13,M9:M13), "") ->  | R9: =IFERROR(IF(SUM(M9:M13)/COUNT(K9:K13), ROUND(SUM(M9:M13)/COUNT(K9:K13),1), ""),"") ->  | S9: =IF(MAX(M9:M13),MAX(M9:M13),"") ->  | V9: Double-Leg | X9: 3-0-3 | Y9: Set 1 | Z9: 1 - 2 | AA9: 8-10 | AB9: RPE 1 - 2 | AC9: 2 - 3 Minutes | AJ9: =IF(SUMPRODUCT(AD9:AD13,AE9:AE13,AF9:AF13), SUMPRODUCT(AD9:AD13,AE9:AE13,AF9:AF13), "") ->  | AK9: =IFERROR(IF(SUM(AF9:AF13)/COUNT(AD9:AD13), ROUND(SUM(AF9:AF13)/COUNT(AD9:AD13),1), ""),"") ->  | AL9: =IF(MAX(AF9:AF13),MAX(AF9:AF13),"") ->  | AO9: Double-Leg | AQ9: 3-0-3 | AR9: Set 1 | AS9: 1 - 2 | AT9: 8-10 | AU9: RPE 1 - 2 | AV9: 2 - 3 Minutes | BC9: =IF(SUMPRODUCT(AW9:AW13,AX9:AX13,AY9:AY13), SUMPRODUCT(AW9:AW13,AX9:AX13,AY9:AY13), "") ->  | BD9: =IFERROR(IF(SUM(AY9:AY13)/COUNT(AW9:AW13), ROUND(SUM(AY9:AY13)/COUNT(AW9:AW13),1), ""),"") ->  | BE9: =IF(MAX(AY9:AY13),MAX(AY9:AY13),"") ->  | BH9: Double-Leg | BJ9: 3-0-3 | BK9: Set 1 | BL9: 1 - 2 | BM9: 8-10 | BN9: RPE 1 - 2 | BO9: 2 - 3 Minutes | BV9: =IF(SUMPRODUCT(BP9:BP13,BQ9:BQ13,BR9:BR13), SUMPRODUCT(BP9:BP13,BQ9:BQ13,BR9:BR13), "") ->  | BW9: =IFERROR(IF(SUM(BR9:BR13)/COUNT(BP9:BP13), ROUND(SUM(BR9:BR13)/COUNT(BP9:BP13),1), ""),"") ->  | BX9: =IF(MAX(BR9:BR13),MAX(BR9:BR13),"") -> 
E10: 3-0-3 | F10: Set 2 | G10: 1 - 2 | H10: 8-10 | I10: RPE 2 - 3 | J10: 2 - 3 Minutes | X10: 3-0-3 | Y10: Set 2 | Z10: 1 - 2 | AA10: 8-10 | AB10: RPE 2 - 3 | AC10: 2 - 3 Minutes | AQ10: 3-0-3 | AR10: Set 2 | AS10: 1 - 2 | AT10: 8-10 | AU10: RPE 2 - 3 | AV10: 2 - 3 Minutes | BJ10: 3-0-3 | BK10: Set 2 | BL10: 1 - 2 | BM10: 8-10 | BN10: RPE 2 - 3 | BO10: 2 - 3 Minutes
E11: 3-0-3 | F11: Set 3 | G11: 1 | H11: 15 | I11: RPE 4 - 6 | J11: 2 - 3 Minutes | X11: 3-0-3 | Y11: Set 3 | Z11: 1 | AA11: 15 | AB11: RPE 4 - 6 | AC11: 2 - 3 Minutes | AQ11: 3-0-3 | AR11: Set 3 | AS11: 1 | AT11: 8 | AU11: RPE 4 - 6 | AV11: 2 - 3 Minutes | BJ11: 3-0-3 | BK11: Set 3 | BL11: 1 | BM11: 6 | BN11: RPE 4 - 6 | BO11: 2 - 3 Minutes
E12: 3-0-3 | F12: Set 4 | G12: 1 | H12: 15 | I12: RPE 6 - 8 | J12: 2 - 3 Minutes | X12: 3-0-3 | Y12: Set 4 | Z12: 1 | AA12: 15 | AB12: RPE 6 - 8 | AC12: 2 - 3 Minutes | AQ12: 3-0-3 | AR12: Set 4 | AS12: 1 | AT12: 8 | AU12: RPE 6 - 8 | AV12: 2 - 3 Minutes | BJ12: 3-0-3 | BK12: Set 4 | BL12: 1 | BM12: 6 | BN12: RPE 6 - 8 | BO12: 2 - 3 Minutes
E13: 3-0-3 | F13: Set 5 | G13: 1 | H13: 15 | I13: RPE 9 - 10 | J13: 2 - 3 Minutes | X13: 3-0-3 | Y13: Set 5 | Z13: 1 | AA13: 15 | AB13: RPE 9 - 10 | AC13: 2 - 3 Minutes | AQ13: 3-0-3 | AR13: Set 5 | AS13: 1 | AT13: 8 | AU13: RPE 9 - 10 | AV13: 2 - 3 Minutes | BJ13: 3-0-3 | BK13: Set 5 | BL13: 1 | BM13: 6 | BN13: RPE 9 - 10 | BO13: 2 - 3 Minutes
C14: Single-Leg | E14: 3-0-3 | F14: Set 1 | G14: 1 - 2 | H14: 8-10 | I14: RPE 1 - 2 | J14: 2 - 3 Minutes | Q14: =IF(SUMPRODUCT(K14:K18,L14:L18,M14:M18), SUMPRODUCT(K14:K18,L14:L18,M14:M18), "") ->  | R14: =IFERROR(IF(SUM(M14:M18)/COUNT(K14:K18), ROUND(SUM(M14:M18)/COUNT(K14:K18),1), ""),"") ->  | S14: =IF(MAX(M14:M18),MAX(M14:M18),"") ->  | V14: Single-Leg | X14: 3-0-3 | Y14: Set 1 | Z14: 1 - 2 | AA14: 8-10 | AB14: RPE 1 - 2 | AC14: 2 - 3 Minutes | AJ14: =IF(SUMPRODUCT(AD14:AD18,AE14:AE18,AF14:AF18), SUMPRODUCT(AD14:AD18,AE14:AE18,AF14:AF18), "") ->  | AK14: =IFERROR(IF(SUM(AF14:AF18)/COUNT(AD14:AD18), ROUND(SUM(AF14:AF18)/COUNT(AD14:AD18),1), ""),"") ->  | AL14: =IF(MAX(AF14:AF18),MAX(AF14:AF18),"") ->  | AO14: Single-Leg | AQ14: 3-0-3 | AR14: Set 1 | AS14: 1 - 2 | AT14: 8-10 | AU14: RPE 1 - 2 | AV14: 2 - 3 Minutes | BC14: =IF(SUMPRODUCT(AW14:AW18,AX14:AX18,AY14:AY18), SUMPRODUCT(AW14:AW18,AX14:AX18,AY14:AY18), "") ->  | BD14: =IFERROR(IF(SUM(AY14:AY18)/COUNT(AW14:AW18), ROUND(SUM(AY14:AY18)/COUNT(AW14:AW18),1), ""),"") ->  | BE14: =IF(MAX(AY14:AY18),MAX(AY14:AY18),"") ->  | BH14: Single-Leg | BJ14: 3-0-3 | BK14: Set 1 | BL14: 1 - 2 | BM14: 8-10 | BN14: RPE 1 - 2 | BO14: 2 - 3 Minutes | BV14: =IF(SUMPRODUCT(BP14:BP18,BQ14:BQ18,BR14:BR18), SUMPRODUCT(BP14:BP18,BQ14:BQ18,BR14:BR18), "") ->  | BW14: =IFERROR(IF(SUM(BR14:BR18)/COUNT(BP14:BP18), ROUND(SUM(BR14:BR18)/COUNT(BP14:BP18),1), ""),"") ->  | BX14: =IF(MAX(BR14:BR18),MAX(BR14:BR18),"") -> 
E15: 3-0-3 | F15: Set 2 | G15: 1 - 2 | H15: 8-10 | I15: RPE 2 - 3 | J15: 2 - 3 Minutes | X15: 3-0-3 | Y15: Set 2 | Z15: 1 - 2 | AA15: 8-10 | AB15: RPE 2 - 3 | AC15: 2 - 3 Minutes | AQ15: 3-0-3 | AR15: Set 2 | AS15: 1 - 2 | AT15: 8-10 | AU15: RPE 2 - 3 | AV15: 2 - 3 Minutes | BJ15: 3-0-3 | BK15: Set 2 | BL15: 1 - 2 | BM15: 8-10 | BN15: RPE 2 - 3 | BO15: 2 - 3 Minutes
E16: 3-0-3 | F16: Set 3 | G16: 1 | H16: 15 | I16: RPE 4 - 6 | J16: 2 - 3 Minutes | X16: 3-0-3 | Y16: Set 3 | Z16: 1 | AA16: 15 | AB16: RPE 4 - 6 | AC16: 2 - 3 Minutes | AQ16: 3-0-3 | AR16: Set 3 | AS16: 1 | AT16: 8 | AU16: RPE 4 - 6 | AV16: 2 - 3 Minutes | BJ16: 3-0-3 | BK16: Set 3 | BL16: 1 | BM16: 6 | BN16: RPE 4 - 6 | BO16: 2 - 3 Minutes
E17: 3-0-3 | F17: Set 4 | G17: 1 | H17: 15 | I17: RPE 6 - 8 | J17: 2 - 3 Minutes | X17: 3-0-3 | Y17: Set 4 | Z17: 1 | AA17: 15 | AB17: RPE 6 - 8 | AC17: 2 - 3 Minutes | AQ17: 3-0-3 | AR17: Set 4 | AS17: 1 | AT17: 8 | AU17: RPE 6 - 8 | AV17: 2 - 3 Minutes | BJ17: 3-0-3 | BK17: Set 4 | BL17: 1 | BM17: 6 | BN17: RPE 6 - 8 | BO17: 2 - 3 Minutes
E18: 3-0-3 | F18: Set 5 | G18: 1 | H18: 15 | I18: RPE 9 - 10 | J18: 2 - 3 Minutes | X18: 3-0-3 | Y18: Set 5 | Z18: 1 | AA18: 15 | AB18: RPE 9 - 10 | AC18: 2 - 3 Minutes | AQ18: 3-0-3 | AR18: Set 5 | AS18: 1 | AT18: 8 | AU18: RPE 9 - 10 | AV18: 2 - 3 Minutes | BJ18: 3-0-3 | BK18: Set 5 | BL18: 1 | BM18: 6 | BN18: RPE 9 - 10 | BO18: 2 - 3 Minutes
C19: Session RPE: | E19: Session Duration: | J19: Session Score: | N19: =IFERROR(IF(SUBSTITUTE(D19,"RPE ","")*G19, CONCATENATE(SUBSTITUTE(D19,"RPE ","")*G19, " AU"),0),0) -> 0 | P19: Daily Totals: | Q19: =IF(SUM(Q4:Q18)<1,"",SUM(Q4:Q18)) ->  | R19: =IFERROR(IF(SUM(M4:M18)/COUNT(K4:K18), ROUND(SUM(M4:M18)/COUNT(K4:K18),1),""),"") ->  | S19: =IF(SUM(S4:S18)>0,SUM(S4:S18),"") ->  | V19: Session RPE: | X19: Session Duration: | AC19: Session Score: | AG19: =IFERROR(IF(SUBSTITUTE(W19,"RPE ","")*Z19, CONCATENATE(SUBSTITUTE(W19,"RPE ","")*Z19, " AU"),0),0) -> 0 | AI19: Daily Totals: | AJ19: =IF(SUM(AJ4:AJ18)<1,"",SUM(AJ4:AJ18)) ->  | AK19: =IFERROR(IF(SUM(AF4:AF18)/COUNT(AD4:AD18), ROUND(SUM(AF4:AF18)/COUNT(AD4:AD18),1),""),"") ->  | AL19: =IF(SUM(AL4:AL18)>0,SUM(AL4:AL18),"") ->  | AO19: Session RPE: | AQ19: Session Duration: | AV19: Session Score: | AZ19: =IFERROR(IF(SUBSTITUTE(AP19,"RPE ","")*AS19, CONCATENATE(SUBSTITUTE(AP19,"RPE ","")*AS19, " AU"),0),0) -> 0 | BB19: Daily Totals: | BC19: =IF(SUM(BC4:BC18)<1,"",SUM(BC4:BC18)) ->  | BD19: =IFERROR(IF(SUM(AY4:AY18)/COUNT(AW4:AW18), ROUND(SUM(AY4:AY18)/COUNT(AW4:AW18),1),""),"") ->  | BE19: =IF(SUM(BE4:BE18)>0,SUM(BE4:BE18),"") ->  | BH19: Session RPE: | BJ19: Session Duration: | BO19: Session Score: | BS19: =IFERROR(IF(SUBSTITUTE(BI19,"RPE ","")*BL19, CONCATENATE(SUBSTITUTE(BI19,"RPE ","")*BL19, " AU"),0),0) -> 0 | BU19: Daily Totals: | BV19: =IF(SUM(BV4:BV18)<1,"",SUM(BV4:BV18)) ->  | BW19: =IFERROR(IF(SUM(BR4:BR18)/COUNT(BP4:BP18), ROUND(SUM(BR4:BR18)/COUNT(BP4:BP18),1),""),"") ->  | BX19: =IF(SUM(BX4:BX18)>0,SUM(BX4:BX18),"") -> 
B20: Day | C20: Type | D20: Exercise | G20: Sets | H20: Duration | J20: Rest | K20: Objective Score | N20: Feedback | Q20: Exercise Tonnage | R20: Absolute Intensity | U20: Day | V20: Type | W20: Exercise | Z20: Sets | AA20: Duration | AC20: Rest | AD20: Objective Score | AG20: Feedback | AJ20: Exercise Tonnage | AK20: Absolute Intensity | AN20: Day | AO20: Type | AP20: Exercise | AS20: Sets | AT20: Duration | AV20: Rest | AW20: Objective Score | AZ20: Feedback | BC20: Exercise Tonnage | BD20: Absolute Intensity | BG20: Day | BH20: Type | BI20: Exercise | BL20: Sets | BM20: Duration | BO20: Rest | BP20: Objective Score | BS20: Feedback | BV20: Exercise Tonnage | BW20: Absolute Intensity
K21: Sets | L21: Duration | M21: Weight | AD21: Sets | AE21: Duration | AF21: Weight | AW21: Sets | AX21: Duration | AY21: Weight | BP21: Sets | BQ21: Duration | BR21: Weight
B22: Biofeedback Test: | C22: Double-Leg | G22: 5 | H22: 30 - 45 Seconds | J22: 90 - 120 Seconds | Q22: =IF(K22*L22*(M22)>0, K22*L22*(M22), "") ->  | R22: =IF(MAX(M22:M26) > 0, MAX(M22:M26), "") ->  | U22: Biofeedback Test: | V22: Double-Leg | Z22: 5 | AA22: 30 - 45 Seconds | AC22: 90 - 120 Seconds | AJ22: =IF(AD22*AE22*(AF22)>0, AD22*AE22*(AF22), "") ->  | AK22: =IF(MAX(AF22:AF26) > 0, MAX(AF22:AF26), "") ->  | AN22: Biofeedback Test: | AO22: Double-Leg | AS22: 5 | AT22: 30 - 45 Seconds | AV22: 90 - 120 Seconds | BC22: =IF(AW22*AX22*(AY22)>0, AW22*AX22*(AY22), "") ->  | BD22: =IF(MAX(AY22:AY26) > 0, MAX(AY22:AY26), "") ->  | BG22: Biofeedback Test: | BH22: Double-Leg | BL22: 5 | BM22: 30 - 45 Seconds | BO22: 90 - 120 Seconds | BV22: =IF(BP22*BQ22*(BR22)>0, BP22*BQ22*(BR22), "") ->  | BW22: =IF(MAX(BR22:BR26) > 0, MAX(BR22:BR26), "") -> 
G23: 5 | H23: 30 - 45 Seconds | J23: 90 - 120 Seconds | Q23: =IF(K23*L23*(M23)>0, K23*L23*(M23), "") ->  | Z23: 5 | AA23: 30 - 45 Seconds | AC23: 90 - 120 Seconds | AJ23: =IF(AD23*AE23*(AF23)>0, AD23*AE23*(AF23), "") ->  | AS23: 5 | AT23: 30 - 45 Seconds | AV23: 90 - 120 Seconds | BC23: =IF(AW23*AX23*(AY23)>0, AW23*AX23*(AY23), "") ->  | BL23: 5 | BM23: 30 - 45 Seconds | BO23: 90 - 120 Seconds | BV23: =IF(BP23*BQ23*(BR23)>0, BP23*BQ23*(BR23), "") -> 
B24: Test #1 | G24: 5 | H24: 31 - 45 Seconds | J24: 91 - 120 Seconds | Z24: 5 | AA24: 31 - 45 Seconds | AC24: 91 - 120 Seconds | AN24: Test #1 | AS24: 5 | AT24: 31 - 45 Seconds | AV24: 91 - 120 Seconds | BG24: Test #1 | BL24: 5 | BM24: 31 - 45 Seconds | BO24: 91 - 120 Seconds
B25: Test #2 | G25: 5 | H25: 32 - 45 Seconds | J25: 92 - 120 Seconds | Z25: 5 | AA25: 32 - 45 Seconds | AC25: 92 - 120 Seconds | AN25: Test #2 | AS25: 5 | AT25: 32 - 45 Seconds | AV25: 92 - 120 Seconds | BG25: Test #2 | BL25: 5 | BM25: 32 - 45 Seconds | BO25: 92 - 120 Seconds
B26: Day 2 Isometric | G26: 5 | H26: 33 - 45 Seconds | J26: 93 - 120 Seconds | U26: Day 2 Isometric | Z26: 5 | AA26: 33 - 45 Seconds | AC26: 93 - 120 Seconds | AN26: Day 2 Isometric | AS26: 5 | AT26: 33 - 45 Seconds | AV26: 93 - 120 Seconds | BG26: Day 2 Isometric | BL26: 5 | BM26: 33 - 45 Seconds | BO26: 93 - 120 Seconds
C27: Single-Leg | G27: 5 | H27: 34 - 45 Seconds | J27: 94 - 120 Seconds | R27: =IF(MAX(M27:M31) > 0, MAX(M27:M31), "") ->  | V27: Single-Leg | Z27: 5 | AA27: 34 - 45 Seconds | AC27: 94 - 120 Seconds | AK27: =IF(MAX(AF27:AF31) > 0, MAX(AF27:AF31), "") ->  | AO27: Single-Leg | AS27: 5 | AT27: 34 - 45 Seconds | AV27: 94 - 120 Seconds | BD27: =IF(MAX(AY27:AY31) > 0, MAX(AY27:AY31), "") ->  | BH27: Single-Leg | BL27: 5 | BM27: 34 - 45 Seconds | BO27: 94 - 120 Seconds | BW27: =IF(MAX(BR27:BR31) > 0, MAX(BR27:BR31), "") -> 
G28: 5 | H28: 35 - 45 Seconds | J28: 95 - 120 Seconds | Z28: 5 | AA28: 35 - 45 Seconds | AC28: 95 - 120 Seconds | AS28: 5 | AT28: 35 - 45 Seconds | AV28: 95 - 120 Seconds | BL28: 5 | BM28: 35 - 45 Seconds | BO28: 95 - 120 Seconds
G29: 5 | H29: 36 - 45 Seconds | J29: 96 - 120 Seconds | Z29: 5 | AA29: 36 - 45 Seconds | AC29: 96 - 120 Seconds | AS29: 5 | AT29: 36 - 45 Seconds | AV29: 96 - 120 Seconds | BL29: 5 | BM29: 36 - 45 Seconds | BO29: 96 - 120 Seconds
G30: 5 | H30: 37 - 45 Seconds | J30: 97 - 120 Seconds | Z30: 5 | AA30: 37 - 45 Seconds | AC30: 97 - 120 Seconds | AS30: 5 | AT30: 37 - 45 Seconds | AV30: 97 - 120 Seconds | BL30: 5 | BM30: 37 - 45 Seconds | BO30: 97 - 120 Seconds
G31: 5 | H31: 30 - 45 Seconds | J31: 90 - 120 Seconds | Z31: 5 | AA31: 30 - 45 Seconds | AC31: 90 - 120 Seconds | AS31: 5 | AT31: 30 - 45 Seconds | AV31: 90 - 120 Seconds | BL31: 5 | BM31: 30 - 45 Seconds | BO31: 90 - 120 Seconds
C32: Session RPE: | E32: Session Duration: | J32: Session Score: | N32: =IFERROR(IF(SUBSTITUTE(D32,"RPE ","")*G32, CONCATENATE(SUBSTITUTE(D32,"RPE ","")*G32, " AU"),0),0) -> 0 | P32: Daily Totals: | Q32: =IF(SUM(Q22:Q31)>0, SUM(Q22:Q31), "") ->  | R32: =IF(MAX(R22:R31), MAX(R22:R31), "") ->  | V32: Session RPE: | X32: Session Duration: | AC32: Session Score: | AG32: =IFERROR(IF(SUBSTITUTE(W32,"RPE ","")*Z32, CONCATENATE(SUBSTITUTE(W32,"RPE ","")*Z32, " AU"),""),"") ->  | AI32: Daily Totals: | AJ32: =IF(SUM(AJ22:AJ31)>0, SUM(AJ22:AJ31), "") ->  | AK32: =IF(MAX(AK22:AK31), MAX(AK22:AK31), "") ->  | AO32: Session RPE: | AQ32: Session Duration: | AV32: Session Score: | AZ32: =IFERROR(IF(SUBSTITUTE(AP32,"RPE ","")*AS32, CONCATENATE(SUBSTITUTE(AP32,"RPE ","")*AS32, " AU"),0),0) -> 0 | BB32: Daily Totals: | BC32: =IF(SUM(BC22:BC31)>0, SUM(BC22:BC31), "") ->  | BD32: =IF(MAX(BD22:BD31), MAX(BD22:BD31), "") ->  | BH32: Session RPE: | BJ32: Session Duration: | BO32: Session Score: | BS32: =IFERROR(IF(SUBSTITUTE(BI32,"RPE ","")*BL32, CONCATENATE(SUBSTITUTE(BI32,"RPE ","")*BL32, " AU"),0),0) -> 0 | BU32: Daily Totals: | BV32: =IF(SUM(BV17:BV31)<1,"",SUM(BV17:BV31)) ->  | BW32: =IFERROR(IF(SUM(BR17:BR31)/COUNT(BP17:BP31), ROUND(SUM(BR17:BR31)/COUNT(BP17:BP31),1),""),"") ->  | BX32: =IF(SUM(BX17:BX31)>0,SUM(BX17:BX31),"") -> 
B33: Day | C33: Type | D33: Exercise | E33: Tempo | G33: Sets | H33: Reps | I33: Subjective Intensity | J33: Rest | K33: Objective Score | N33: Feedback | Q33: Exercise Tonnage | R33: Average Intensity | S33: Absolute Intensity | U33: Day | V33: Type | W33: Exercise | X33: Tempo | Z33: Sets | AA33: Reps | AB33: Subjective Intensity | AC33: Rest | AD33: Objective Score | AG33: Feedback | AJ33: Exercise Tonnage | AK33: Average Intensity | AL33: Absolute Intensity | AN33: Day | AO33: Type | AP33: Exercise | AQ33: Tempo | AS33: Sets | AT33: Reps | AU33: Subjective Intensity | AV33: Rest | AW33: Objective Score | AZ33: Feedback | BC33: Exercise Tonnage | BD33: Average Intensity | BE33: Absolute Intensity | BG33: Day | BH33: Type | BI33: Exercise | BJ33: Tempo | BL33: Sets | BM33: Reps | BN33: Subjective Intensity | BO33: Rest | BP33: Objective Score | BS33: Feedback | BV33: Exercise Tonnage | BW33: Average Intensity | BX33: Absolute Intensity
K34: Sets | L34: Reps | M34: Weight | AD34: Sets | AE34: Reps | AF34: Weight | AW34: Sets | AX34: Reps | AY34: Weight | BP34: Sets | BQ34: Reps | BR34: Weight
B35: Biofeedback Test: | C35: Double-Leg | E35: 3-0-3 | F35: Set 1 | G35: 1 - 2 | H35: 8-10 | I35: RPE 1 - 2 | J35: 2 - 3 Minutes | Q35: =IF(SUMPRODUCT(K35:K39,L35:L39,M35:M39), SUMPRODUCT(K35:K39,L35:L39,M35:M39), "") ->  | R35: =IFERROR(IF(SUM(M35:M39)/COUNT(K35:K39), ROUND(SUM(M35:M39)/COUNT(K35:K39),1), ""),"") ->  | S35: =IF(MAX(M35:M39),MAX(M35:M39),"") ->  | U35: Biofeedback Test: | V35: Double-Leg | X35: 3-0-3 | Y35: Set 1 | Z35: 1 - 2 | AA35: 8-10 | AB35: RPE 1 - 2 | AC35: 2 - 3 Minutes | AJ35: =IF(SUMPRODUCT(AD35:AD39,AE35:AE39,AF35:AF39), SUMPRODUCT(AD35:AD39,AE35:AE39,AF35:AF39), "") ->  | AK35: =IFERROR(IF(SUM(AF35:AF39)/COUNT(AD35:AD39), ROUND(SUM(AF35:AF39)/COUNT(AD35:AD39),1), ""),"") ->  | AL35: =IF(MAX(AF35:AF39),MAX(AF35:AF39),"") ->  | AN35: Biofeedback Test: | AO35: Double-Leg | AQ35: 3-0-3 | AR35: Set 1 | AS35: 1 - 2 | AT35: 8-10 | AU35: RPE 1 - 2 | AV35: 2 - 3 Minutes | BC35: =IF(SUMPRODUCT(AW35:AW39,AX35:AX39,AY35:AY39), SUMPRODUCT(AW35:AW39,AX35:AX39,AY35:AY39), "") ->  | BD35: =IFERROR(IF(SUM(AY35:AY39)/COUNT(AW35:AW39), ROUND(SUM(AY35:AY39)/COUNT(AW35:AW39),1), ""),"") ->  | BE35: =IF(MAX(AY35:AY39),MAX(AY35:AY39),"") ->  | BG35: Biofeedback Test: | BH35: Double-Leg | BJ35: 3-0-3 | BK35: Set 1 | BL35: 1 - 2 | BM35: 8-10 | BN35: RPE 1 - 2 | BO35: 2 - 3 Minutes | BV35: =IF(SUMPRODUCT(BP35:BP39,BQ35:BQ39,BR35:BR39), SUMPRODUCT(BP35:BP39,BQ35:BQ39,BR35:BR39), "") ->  | BW35: =IFERROR(IF(SUM(BR35:BR39)/COUNT(BP35:BP39), ROUND(SUM(BR35:BR39)/COUNT(BP35:BP39),1), ""),"") ->  | BX35: =IF(MAX(BR35:BR39),MAX(BR35:BR39),"") -> 
E36: 3-0-3 | F36: Set 2 | G36: 1 - 2 | H36: 8-10 | I36: RPE 2 - 3 | J36: 2 - 3 Minutes | X36: 3-0-3 | Y36: Set 2 | Z36: 1 - 2 | AA36: 8-10 | AB36: RPE 2 - 3 | AC36: 2 - 3 Minutes | AQ36: 3-0-3 | AR36: Set 2 | AS36: 1 - 2 | AT36: 8-10 | AU36: RPE 2 - 3 | AV36: 2 - 3 Minutes | BJ36: 3-0-3 | BK36: Set 2 | BL36: 1 - 2 | BM36: 8-10 | BN36: RPE 2 - 3 | BO36: 2 - 3 Minutes
E37: 3-0-3 | F37: Set 3 | G37: 1 | H37: 15 | I37: RPE 4 - 6 | J37: 2 - 3 Minutes | X37: 3-0-3 | Y37: Set 3 | Z37: 1 | AA37: 15 | AB37: RPE 4 - 6 | AC37: 2 - 3 Minutes | AQ37: 3-0-3 | AR37: Set 3 | AS37: 1 | AT37: 8 | AU37: RPE 4 - 6 | AV37: 2 - 3 Minutes | BJ37: 3-0-3 | BK37: Set 3 | BL37: 1 | BM37: 6 | BN37: RPE 4 - 6 | BO37: 2 - 3 Minutes
E38: 3-0-3 | F38: Set 4 | G38: 1 | H38: 15 | I38: RPE 6 - 8 | J38: 2 - 3 Minutes | X38: 3-0-3 | Y38: Set 4 | Z38: 1 | AA38: 15 | AB38: RPE 6 - 8 | AC38: 2 - 3 Minutes | AQ38: 3-0-3 | AR38: Set 4 | AS38: 1 | AT38: 8 | AU38: RPE 6 - 8 | AV38: 2 - 3 Minutes | BJ38: 3-0-3 | BK38: Set 4 | BL38: 1 | BM38: 6 | BN38: RPE 6 - 8 | BO38: 2 - 3 Minutes
B39: Day 3 Isotonic | E39: 3-0-3 | F39: Set 5 | G39: 1 | H39: 15 | I39: RPE 9 - 10 | J39: 2 - 3 Minutes | U39: Day 3 Isotonic | X39: 3-0-3 | Y39: Set 5 | Z39: 1 | AA39: 15 | AB39: RPE 9 - 10 | AC39: 2 - 3 Minutes | AN39: Day 3 Isotonic | AQ39: 3-0-3 | AR39: Set 5 | AS39: 1 | AT39: 8 | AU39: RPE 9 - 10 | AV39: 2 - 3 Minutes | BG39: Day 3 Isotonic | BJ39: 3-0-3 | BK39: Set 5 | BL39: 1 | BM39: 6 | BN39: RPE 9 - 10 | BO39: 2 - 3 Minutes
C40: Double-Leg | E40: 3-0-3 | F40: Set 1 | G40: 1 - 2 | H40: 8-10 | I40: RPE 1 - 2 | J40: 2 - 3 Minutes | Q40: =IF(SUMPRODUCT(K40:K44,L40:L44,M40:M44), SUMPRODUCT(K40:K44,L40:L44,M40:M44), "") ->  | R40: =IFERROR(IF(SUM(M40:M44)/COUNT(K40:K44), ROUND(SUM(M40:M44)/COUNT(K40:K44),1), ""),"") ->  | S40: =IF(MAX(M40:M44),MAX(M40:M44),"") ->  | V40: Double-Leg | X40: 3-0-3 | Y40: Set 1 | Z40: 1 - 2 | AA40: 8-10 | AB40: RPE 1 - 2 | AC40: 2 - 3 Minutes | AJ40: =IF(SUMPRODUCT(AD40:AD44,AE40:AE44,AF40:AF44), SUMPRODUCT(AD40:AD44,AE40:AE44,AF40:AF44), "") ->  | AK40: =IFERROR(IF(SUM(AF40:AF44)/COUNT(AD40:AD44), ROUND(SUM(AF40:AF44)/COUNT(AD40:AD44),1), ""),"") ->  | AL40: =IF(MAX(AF40:AF44),MAX(AF40:AF44),"") ->  | AO40: Double-Leg | AQ40: 3-0-3 | AR40: Set 1 | AS40: 1 - 2 | AT40: 8-10 | AU40: RPE 1 - 2 | AV40: 2 - 3 Minutes | BC40: =IF(SUMPRODUCT(AW40:AW44,AX40:AX44,AY40:AY44), SUMPRODUCT(AW40:AW44,AX40:AX44,AY40:AY44), "") ->  | BD40: =IFERROR(IF(SUM(AY40:AY44)/COUNT(AW40:AW44), ROUND(SUM(AY40:AY44)/COUNT(AW40:AW44),1), ""),"") ->  | BE40: =IF(MAX(AY40:AY44),MAX(AY40:AY44),"") ->  | BH40: Double-Leg | BJ40: 3-0-3 | BK40: Set 1 | BL40: 1 - 2 | BM40: 8-10 | BN40: RPE 1 - 2 | BO40: 2 - 3 Minutes | BV40: =IF(SUMPRODUCT(BP40:BP44,BQ40:BQ44,BR40:BR44), SUMPRODUCT(BP40:BP44,BQ40:BQ44,BR40:BR44), "") ->  | BW40: =IFERROR(IF(SUM(BR40:BR44)/COUNT(BP40:BP44), ROUND(SUM(BR40:BR44)/COUNT(BP40:BP44),1), ""),"") ->  | BX40: =IF(MAX(BR40:BR44),MAX(BR40:BR44),"") -> 
E41: 3-0-3 | F41: Set 2 | G41: 1 - 2 | H41: 8-10 | I41: RPE 2 - 3 | J41: 2 - 3 Minutes | X41: 3-0-3 | Y41: Set 2 | Z41: 1 - 2 | AA41: 8-10 | AB41: RPE 2 - 3 | AC41: 2 - 3 Minutes | AQ41: 3-0-3 | AR41: Set 2 | AS41: 1 - 2 | AT41: 8-10 | AU41: RPE 2 - 3 | AV41: 2 - 3 Minutes | BJ41: 3-0-3 | BK41: Set 2 | BL41: 1 - 2 | BM41: 8-10 | BN41: RPE 2 - 3 | BO41: 2 - 3 Minutes
E42: 3-0-3 | F42: Set 3 | G42: 1 | H42: 15 | I42: RPE 4 - 6 | J42: 2 - 3 Minutes | X42: 3-0-3 | Y42: Set 3 | Z42: 1 | AA42: 15 | AB42: RPE 4 - 6 | AC42: 2 - 3 Minutes | AQ42: 3-0-3 | AR42: Set 3 | AS42: 1 | AT42: 8 | AU42: RPE 4 - 6 | AV42: 2 - 3 Minutes | BJ42: 3-0-3 | BK42: Set 3 | BL42: 1 | BM42: 6 | BN42: RPE 4 - 6 | BO42: 2 - 3 Minutes
E43: 3-0-3 | F43: Set 4 | G43: 1 | H43: 15 | I43: RPE 6 - 8 | J43: 2 - 3 Minutes | X43: 3-0-3 | Y43: Set 4 | Z43: 1 | AA43: 15 | AB43: RPE 6 - 8 | AC43: 2 - 3 Minutes | AQ43: 3-0-3 | AR43: Set 4 | AS43: 1 | AT43: 8 | AU43: RPE 6 - 8 | AV43: 2 - 3 Minutes | BJ43: 3-0-3 | BK43: Set 4 | BL43: 1 | BM43: 6 | BN43: RPE 6 - 8 | BO43: 2 - 3 Minutes
E44: 3-0-3 | F44: Set 5 | G44: 1 | H44: 15 | I44: RPE 9 - 10 | J44: 2 - 3 Minutes | X44: 3-0-3 | Y44: Set 5 | Z44: 1 | AA44: 15 | AB44: RPE 9 - 10 | AC44: 2 - 3 Minutes | AQ44: 3-0-3 | AR44: Set 5 | AS44: 1 | AT44: 8 | AU44: RPE 9 - 10 | AV44: 2 - 3 Minutes | BJ44: 3-0-3 | BK44: Set 5 | BL44: 1 | BM44: 6 | BN44: RPE 9 - 10 | BO44: 2 - 3 Minutes
C45: Single-Leg | E45: 3-0-3 | F45: Set 1 | G45: 1 - 2 | H45: 8-10 | I45: RPE 1 - 2 | J45: 2 - 3 Minutes | Q45: =IF(SUMPRODUCT(K45:K49,L45:L49,M45:M49), SUMPRODUCT(K45:K49,L45:L49,M45:M49), "") ->  | R45: =IFERROR(IF(SUM(M45:M49)/COUNT(K45:K49), ROUND(SUM(M45:M49)/COUNT(K45:K49),1), ""),"") ->  | S45: =IF(MAX(M45:M49),MAX(M45:M49),"") ->  | V45: Single-Leg | X45: 3-0-3 | Y45: Set 1 | Z45: 1 - 2 | AA45: 8-10 | AB45: RPE 1 - 2 | AC45: 2 - 3 Minutes | AJ45: =IF(SUMPRODUCT(AD45:AD49,AE45:AE49,AF45:AF49), SUMPRODUCT(AD45:AD49,AE45:AE49,AF45:AF49), "") ->  | AK45: =IFERROR(IF(SUM(AF45:AF49)/COUNT(AD45:AD49), ROUND(SUM(AF45:AF49)/COUNT(AD45:AD49),1), ""),"") ->  | AL45: =IF(MAX(AF45:AF49),MAX(AF45:AF49),"") ->  | AO45: Single-Leg | AQ45: 3-0-3 | AR45: Set 1 | AS45: 1 - 2 | AT45: 8-10 | AU45: RPE 1 - 2 | AV45: 2 - 3 Minutes | BC45: =IF(SUMPRODUCT(AW45:AW49,AX45:AX49,AY45:AY49), SUMPRODUCT(AW45:AW49,AX45:AX49,AY45:AY49), "") ->  | BD45: =IFERROR(IF(SUM(AY45:AY49)/COUNT(AW45:AW49), ROUND(SUM(AY45:AY49)/COUNT(AW45:AW49),1), ""),"") ->  | BE45: =IF(MAX(AY45:AY49),MAX(AY45:AY49),"") ->  | BH45: Single-Leg | BJ45: 3-0-3 | BK45: Set 1 | BL45: 1 - 2 | BM45: 8-10 | BN45: RPE 1 - 2 | BO45: 2 - 3 Minutes | BV45: =IF(SUMPRODUCT(BP45:BP49,BQ45:BQ49,BR45:BR49), SUMPRODUCT(BP45:BP49,BQ45:BQ49,BR45:BR49), "") ->  | BW45: =IFERROR(IF(SUM(BR45:BR49)/COUNT(BP45:BP49), ROUND(SUM(BR45:BR49)/COUNT(BP45:BP49),1), ""),"") ->  | BX45: =IF(MAX(BR45:BR49),MAX(BR45:BR49),"") -> 
E46: 3-0-3 | F46: Set 2 | G46: 1 - 2 | H46: 8-10 | I46: RPE 2 - 3 | J46: 2 - 3 Minutes | X46: 3-0-3 | Y46: Set 2 | Z46: 1 - 2 | AA46: 8-10 | AB46: RPE 2 - 3 | AC46: 2 - 3 Minutes | AQ46: 3-0-3 | AR46: Set 2 | AS46: 1 - 2 | AT46: 8-10 | AU46: RPE 2 - 3 | AV46: 2 - 3 Minutes | BJ46: 3-0-3 | BK46: Set 2 | BL46: 1 - 2 | BM46: 8-10 | BN46: RPE 2 - 3 | BO46: 2 - 3 Minutes
E47: 3-0-3 | F47: Set 3 | G47: 1 | H47: 15 | I47: RPE 4 - 6 | J47: 2 - 3 Minutes | X47: 3-0-3 | Y47: Set 3 | Z47: 1 | AA47: 15 | AB47: RPE 4 - 6 | AC47: 2 - 3 Minutes | AQ47: 3-0-3 | AR47: Set 3 | AS47: 1 | AT47: 8 | AU47: RPE 4 - 6 | AV47: 2 - 3 Minutes | BJ47: 3-0-3 | BK47: Set 3 | BL47: 1 | BM47: 6 | BN47: RPE 4 - 6 | BO47: 2 - 3 Minutes
E48: 3-0-3 | F48: Set 4 | G48: 1 | H48: 15 | I48: RPE 6 - 8 | J48: 2 - 3 Minutes | X48: 3-0-3 | Y48: Set 4 | Z48: 1 | AA48: 15 | AB48: RPE 6 - 8 | AC48: 2 - 3 Minutes | AQ48: 3-0-3 | AR48: Set 4 | AS48: 1 | AT48: 8 | AU48: RPE 6 - 8 | AV48: 2 - 3 Minutes | BJ48: 3-0-3 | BK48: Set 4 | BL48: 1 | BM48: 6 | BN48: RPE 6 - 8 | BO48: 2 - 3 Minutes
E49: 3-0-3 | F49: Set 5 | G49: 1 | H49: 15 | I49: RPE 9 - 10 | J49: 2 - 3 Minutes | X49: 3-0-3 | Y49: Set 5 | Z49: 1 | AA49: 15 | AB49: RPE 9 - 10 | AC49: 2 - 3 Minutes | AQ49: 3-0-3 | AR49: Set 5 | AS49: 1 | AT49: 8 | AU49: RPE 9 - 10 | AV49: 2 - 3 Minutes | BJ49: 3-0-3 | BK49: Set 5 | BL49: 1 | BM49: 6 | BN49: RPE 9 - 10 | BO49: 2 - 3 Minutes
C50: Session RPE: | E50: Session Duration: | J50: Session Score: | N50: =IFERROR(IF(SUBSTITUTE(D50,"RPE ","")*G50, CONCATENATE(SUBSTITUTE(D50,"RPE ","")*G50, " AU"),0),0) -> 0 | P50: Daily Totals: | Q50: =IF(SUM(Q35:Q49)<1,"",SUM(Q35:Q49)) ->  | R50: =IFERROR(IF(SUM(M35:M49)/COUNT(K35:K49), ROUND(SUM(M35:M49)/COUNT(K35:K49),1),""),"") ->  | S50: =IF(SUM(S35:S49)>0,SUM(S35:S49),"") ->  | V50: Session RPE: | X50: Session Duration: | AC50: Session Score: | AG50: =IFERROR(IF(SUBSTITUTE(W50,"RPE ","")*Z50, CONCATENATE(SUBSTITUTE(W50,"RPE ","")*Z50, " AU"),0),0) -> 0 | AI50: Daily Totals: | AJ50: =IF(SUM(AJ35:AJ49)<1,"",SUM(AJ35:AJ49)) ->  | AK50: =IFERROR(IF(SUM(AF35:AF49)/COUNT(AD35:AD49), ROUND(SUM(AF35:AF49)/COUNT(AD35:AD49),1),""),"") ->  | AL50: =IF(SUM(AL35:AL49)>0,SUM(AL35:AL49),"") ->  | AO50: Session RPE: | AQ50: Session Duration: | AV50: Session Score: | AZ50: =IFERROR(IF(SUBSTITUTE(AP50,"RPE ","")*AS50, CONCATENATE(SUBSTITUTE(AP50,"RPE ","")*AS50, " AU"),0),0) -> 0 | BB50: Daily Totals: | BC50: =IF(SUM(BC35:BC49)<1,"",SUM(BC35:BC49)) ->  | BD50: =IFERROR(IF(SUM(AY35:AY49)/COUNT(AW35:AW49), ROUND(SUM(AY35:AY49)/COUNT(AW35:AW49),1),""),"") ->  | BE50: =IF(SUM(BE35:BE49)>0,SUM(BE35:BE49),"") ->  | BH50: Session RPE: | BJ50: Session Duration: | BO50: Session Score: | BS50: =IFERROR(IF(SUBSTITUTE(BI50,"RPE ","")*BL50, CONCATENATE(SUBSTITUTE(BI50,"RPE ","")*BL50, " AU"),0),0) -> 0 | BU50: Daily Totals: | BV50: =IF(SUM(BV35:BV49)<1,"",SUM(BV35:BV49)) ->  | BW50: =IFERROR(IF(SUM(BR35:BR49)/COUNT(BP35:BP49), ROUND(SUM(BR35:BR49)/COUNT(BP35:BP49),1),""),"") ->  | BX50: =IF(SUM(BX35:BX49)>0,SUM(BX35:BX49),"") -> 
B51: Day | C51: Type | D51: Exercise | G51: Sets | H51: Duration | J51: Rest | K51: Objective Score | N51: Feedback | Q51: Exercise Tonnage | R51: Absolute Intensity | U51: Day | V51: Type | W51: Exercise | Z51: Sets | AA51: Duration | AC51: Rest | AD51: Objective Score | AG51: Feedback | AJ51: Exercise Tonnage | AK51: Absolute Intensity | AN51: Day | AO51: Type | AP51: Exercise | AS51: Sets | AT51: Duration | AV51: Rest | AW51: Objective Score | AZ51: Feedback | BC51: Exercise Tonnage | BD51: Absolute Intensity | BG51: Day | BH51: Type | BI51: Exercise | BL51: Sets | BM51: Duration | BO51: Rest | BP51: Objective Score | BS51: Feedback | BV51: Exercise Tonnage | BW51: Absolute Intensity
K52: Sets | L52: Duration | M52: Weight | AD52: Sets | AE52: Duration | AF52: Weight | AW52: Sets | AX52: Duration | AY52: Weight | BP52: Sets | BQ52: Duration | BR52: Weight
B53: Biofeedback Test: | C53: Double-Leg | G53: 5 | H53: 30 - 45 Seconds | J53: 90 - 120 Seconds | Q53: =IF(K53*L53*(M53)>0, K53*L53*(M53), "") ->  | R53: =IF(MAX(M53:M57) > 0, MAX(M53:M57), "") ->  | U53: Biofeedback Test: | V53: Double-Leg | Z53: 5 | AA53: 30 - 45 Seconds | AC53: 90 - 120 Seconds | AJ53: =IF(AD53*AE53*(AF53)>0, AD53*AE53*(AF53), "") ->  | AK53: =IF(MAX(AF53:AF57) > 0, MAX(AF53:AF57), "") ->  | AN53: Biofeedback Test: | AO53: Double-Leg | AS53: 5 | AT53: 30 - 45 Seconds | AV53: 90 - 120 Seconds | BC53: =IF(AW53*AX53*(AY53)>0, AW53*AX53*(AY53), "") ->  | BD53: =IF(MAX(AY53:AY57) > 0, MAX(AY53:AY57), "") ->  | BG53: Biofeedback Test: | BH53: Double-Leg | BL53: 5 | BM53: 30 - 45 Seconds | BO53: 90 - 120 Seconds | BV53: =IF(BP53*BQ53*(BR53)>0, BP53*BQ53*(BR53), "") ->  | BW53: =IF(MAX(BR53:BR57) > 0, MAX(BR53:BR57), "") -> 
G54: 5 | H54: 30 - 45 Seconds | J54: 90 - 120 Seconds | Q54: =IF(K54*L54*(M54)>0, K54*L54*(M54), "") ->  | Z54: 5 | AA54: 30 - 45 Seconds | AC54: 90 - 120 Seconds | AJ54: =IF(AD54*AE54*(AF54)>0, AD54*AE54*(AF54), "") ->  | AS54: 5 | AT54: 30 - 45 Seconds | AV54: 90 - 120 Seconds | BC54: =IF(AW54*AX54*(AY54)>0, AW54*AX54*(AY54), "") ->  | BL54: 5 | BM54: 30 - 45 Seconds | BO54: 90 - 120 Seconds | BV54: =IF(BP54*BQ54*(BR54)>0, BP54*BQ54*(BR54), "") -> 
G55: 5 | H55: 31 - 45 Seconds | J55: 91 - 120 Seconds | Z55: 5 | AA55: 31 - 45 Seconds | AC55: 91 - 120 Seconds | AS55: 5 | AT55: 31 - 45 Seconds | AV55: 91 - 120 Seconds | BL55: 5 | BM55: 31 - 45 Seconds | BO55: 91 - 120 Seconds
G56: 5 | H56: 32 - 45 Seconds | J56: 92 - 120 Seconds | Z56: 5 | AA56: 32 - 45 Seconds | AC56: 92 - 120 Seconds | AS56: 5 | AT56: 32 - 45 Seconds | AV56: 92 - 120 Seconds | BL56: 5 | BM56: 32 - 45 Seconds | BO56: 92 - 120 Seconds
B57: Day 4 Isometric | G57: 5 | H57: 33 - 45 Seconds | J57: 93 - 120 Seconds | U57: Day 4 Isometric | Z57: 5 | AA57: 33 - 45 Seconds | AC57: 93 - 120 Seconds | AN57: Day 4 Isometric | AS57: 5 | AT57: 33 - 45 Seconds | AV57: 93 - 120 Seconds | BG57: Day 4 Isometric | BL57: 5 | BM57: 33 - 45 Seconds | BO57: 93 - 120 Seconds
C58: Single-Leg | G58: 5 | H58: 34 - 45 Seconds | J58: 94 - 120 Seconds | R58: =IF(MAX(M58:M62) > 0, MAX(M58:M62), "") ->  | V58: Single-Leg | Z58: 5 | AA58: 34 - 45 Seconds | AC58: 94 - 120 Seconds | AK58: =IF(MAX(AF58:AF62) > 0, MAX(AF58:AF62), "") ->  | AO58: Single-Leg | AS58: 5 | AT58: 34 - 45 Seconds | AV58: 94 - 120 Seconds | BD58: =IF(MAX(AY58:AY62) > 0, MAX(AY58:AY62), "") ->  | BH58: Single-Leg | BL58: 5 | BM58: 34 - 45 Seconds | BO58: 94 - 120 Seconds | BW58: =IF(MAX(BR58:BR62) > 0, MAX(BR58:BR62), "") -> 
G59: 5 | H59: 35 - 45 Seconds | J59: 95 - 120 Seconds | Z59: 5 | AA59: 35 - 45 Seconds | AC59: 95 - 120 Seconds | AS59: 5 | AT59: 35 - 45 Seconds | AV59: 95 - 120 Seconds | BL59: 5 | BM59: 35 - 45 Seconds | BO59: 95 - 120 Seconds
G60: 5 | H60: 36 - 45 Seconds | J60: 96 - 120 Seconds | Z60: 5 | AA60: 36 - 45 Seconds | AC60: 96 - 120 Seconds | AS60: 5 | AT60: 36 - 45 Seconds | AV60: 96 - 120 Seconds | BL60: 5 | BM60: 36 - 45 Seconds | BO60: 96 - 120 Seconds
G61: 5 | H61: 37 - 45 Seconds | J61: 97 - 120 Seconds | Z61: 5 | AA61: 37 - 45 Seconds | AC61: 97 - 120 Seconds | AS61: 5 | AT61: 37 - 45 Seconds | AV61: 97 - 120 Seconds | BL61: 5 | BM61: 37 - 45 Seconds | BO61: 97 - 120 Seconds
G62: 5 | H62: 30 - 45 Seconds | J62: 90 - 120 Seconds | Z62: 5 | AA62: 30 - 45 Seconds | AC62: 90 - 120 Seconds | AS62: 5 | AT62: 30 - 45 Seconds | AV62: 90 - 120 Seconds | BL62: 5 | BM62: 30 - 45 Seconds | BO62: 90 - 120 Seconds
C63: Session RPE: | E63: Session Duration: | J63: Session Score: | N63: =IFERROR(IF(SUBSTITUTE(D63,"RPE ","")*G63, CONCATENATE(SUBSTITUTE(D63,"RPE ","")*G63, " AU"),0),0) -> 0 | P63: Daily Totals: | Q63: =IF(SUM(Q53:Q62)>0, SUM(Q53:Q62), "") ->  | R63: =IF(MAX(R53:R62), MAX(R53:R62), "") ->  | V63: Session RPE: | X63: Session Duration: | AC63: Session Score: | AG63: =IFERROR(IF(SUBSTITUTE(W63,"RPE ","")*Z63, CONCATENATE(SUBSTITUTE(W63,"RPE ","")*Z63, " AU"),0),0) -> 0 | AI63: Daily Totals: | AJ63: =IF(SUM(AJ53:AJ62)>0, SUM(AJ53:AJ62), "") ->  | AK63: =IF(MAX(AK53:AK62), MAX(AK53:AK62), "") ->  | AO63: Session RPE: | AQ63: Session Duration: | AV63: Session Score: | AZ63: =IFERROR(IF(SUBSTITUTE(AP63,"RPE ","")*AS63, CONCATENATE(SUBSTITUTE(AP63,"RPE ","")*AS63, " AU"),0),0) -> 0 | BB63: Daily Totals: | BC63: =IF(SUM(BC53:BC62)>0, SUM(BC53:BC62), "") ->  | BD63: =IF(MAX(BD53:BD62), MAX(BD53:BD62), "") ->  | BH63: Session RPE: | BJ63: Session Duration: | BO63: Session Score: | BS63: =IFERROR(IF(SUBSTITUTE(BI63,"RPE ","")*BL63, CONCATENATE(SUBSTITUTE(BI63,"RPE ","")*BL63, " AU"),0),0) -> 0 | BU63: Daily Totals: | BV63: =IF(SUM(BV53:BV62)>0, SUM(BV53:BV62), "") ->  | BW63: =IF(MAX(BW53:BW62), MAX(BW53:BW62), "") -> 
B64: Day | C64: Type | D64: Exercise | E64: Tempo | G64: Sets | H64: Reps | I64: Subjective Intensity | J64: Rest | K64: Objective Score | N64: Feedback | Q64: Exercise Tonnage | R64: Average Intensity | S64: Absolute Intensity | U64: Day | V64: Type | W64: Exercise | X64: Tempo | Z64: Sets | AA64: Reps | AB64: Subjective Intensity | AC64: Rest | AD64: Objective Score | AG64: Feedback | AJ64: Exercise Tonnage | AK64: Average Intensity | AL64: Absolute Intensity | AN64: Day | AO64: Type | AP64: Exercise | AQ64: Tempo | AS64: Sets | AT64: Reps | AU64: Subjective Intensity | AV64: Rest | AW64: Objective Score | AZ64: Feedback | BC64: Exercise Tonnage | BD64: Average Intensity | BE64: Absolute Intensity | BG64: Day | BH64: Type | BI64: Exercise | BJ64: Tempo | BL64: Sets | BM64: Reps | BN64: Subjective Intensity | BO64: Rest | BP64: Objective Score | BS64: Feedback | BV64: Exercise Tonnage | BW64: Average Intensity | BX64: Absolute Intensity
K65: Sets | L65: Reps | M65: Weight | AD65: Sets | AE65: Reps | AF65: Weight | AW65: Sets | AX65: Reps | AY65: Weight | BP65: Sets | BQ65: Reps | BR65: Weight
B66: Biofeedback Test: | C66: Double-Leg | E66: 3-0-3 | F66: Set 1 | G66: 1 - 2 | H66: 8-10 | I66: RPE 1 - 2 | J66: 2 - 3 Minutes | Q66: =IF(SUMPRODUCT(K66:K70,L66:L70,M66:M70), SUMPRODUCT(K66:K70,L66:L70,M66:M70), "") ->  | R66: =IFERROR(IF(SUM(M66:M70)/COUNT(K66:K70), ROUND(SUM(M66:M70)/COUNT(K66:K70),1), ""),"") ->  | S66: =IF(MAX(M66:M70),MAX(M66:M70),"") ->  | U66: Biofeedback Test: | V66: Double-Leg | X66: 3-0-3 | Y66: Set 1 | Z66: 1 - 2 | AA66: 8-10 | AB66: RPE 1 - 2 | AC66: 2 - 3 Minutes | AJ66: =IF(SUMPRODUCT(AD66:AD70,AE66:AE70,AF66:AF70), SUMPRODUCT(AD66:AD70,AE66:AE70,AF66:AF70), "") ->  | AK66: =IFERROR(IF(SUM(AF66:AF70)/COUNT(AD66:AD70), ROUND(SUM(AF66:AF70)/COUNT(AD66:AD70),1), ""),"") ->  | AL66: =IF(MAX(AF66:AF70),MAX(AF66:AF70),"") ->  | AN66: Biofeedback Test: | AO66: Double-Leg | AQ66: 3-0-3 | AR66: Set 1 | AS66: 1 - 2 | AT66: 8-10 | AU66: RPE 1 - 2 | AV66: 2 - 3 Minutes | BC66: =IF(SUMPRODUCT(AW66:AW70,AX66:AX70,AY66:AY70), SUMPRODUCT(AW66:AW70,AX66:AX70,AY66:AY70), "") ->  | BD66: =IFERROR(IF(SUM(AY66:AY70)/COUNT(AW66:AW70), ROUND(SUM(AY66:AY70)/COUNT(AW66:AW70),1), ""),"") ->  | BE66: =IF(MAX(AY66:AY70),MAX(AY66:AY70),"") ->  | BG66: Biofeedback Test: | BH66: Double-Leg | BJ66: 3-0-3 | BK66: Set 1 | BL66: 1 - 2 | BM66: 8-10 | BN66: RPE 1 - 2 | BO66: 2 - 3 Minutes | BV66: =IF(SUMPRODUCT(BP66:BP70,BQ66:BQ70,BR66:BR70), SUMPRODUCT(BP66:BP70,BQ66:BQ70,BR66:BR70), "") ->  | BW66: =IFERROR(IF(SUM(BR66:BR70)/COUNT(BP66:BP70), ROUND(SUM(BR66:BR70)/COUNT(BP66:BP70),1), ""),"") ->  | BX66: =IF(MAX(BR66:BR70),MAX(BR66:BR70),"") -> 
E67: 3-0-3 | F67: Set 2 | G67: 1 - 2 | H67: 8-10 | I67: RPE 2 - 3 | J67: 2 - 3 Minutes | X67: 3-0-3 | Y67: Set 2 | Z67: 1 - 2 | AA67: 8-10 | AB67: RPE 2 - 3 | AC67: 2 - 3 Minutes | AQ67: 3-0-3 | AR67: Set 2 | AS67: 1 - 2 | AT67: 8-10 | AU67: RPE 2 - 3 | AV67: 2 - 3 Minutes | BJ67: 3-0-3 | BK67: Set 2 | BL67: 1 - 2 | BM67: 8-10 | BN67: RPE 2 - 3 | BO67: 2 - 3 Minutes
E68: 3-0-3 | F68: Set 3 | G68: 1 | H68: 15 | I68: RPE 4 - 6 | J68: 2 - 3 Minutes | X68: 3-0-3 | Y68: Set 3 | Z68: 1 | AA68: 15 | AB68: RPE 4 - 6 | AC68: 2 - 3 Minutes | AQ68: 3-0-3 | AR68: Set 3 | AS68: 1 | AT68: 8 | AU68: RPE 4 - 6 | AV68: 2 - 3 Minutes | BJ68: 3-0-3 | BK68: Set 3 | BL68: 1 | BM68: 6 | BN68: RPE 4 - 6 | BO68: 2 - 3 Minutes
E69: 3-0-3 | F69: Set 4 | G69: 1 | H69: 15 | I69: RPE 6 - 8 | J69: 2 - 3 Minutes | X69: 3-0-3 | Y69: Set 4 | Z69: 1 | AA69: 15 | AB69: RPE 6 - 8 | AC69: 2 - 3 Minutes | AQ69: 3-0-3 | AR69: Set 4 | AS69: 1 | AT69: 8 | AU69: RPE 6 - 8 | AV69: 2 - 3 Minutes | BJ69: 3-0-3 | BK69: Set 4 | BL69: 1 | BM69: 6 | BN69: RPE 6 - 8 | BO69: 2 - 3 Minutes
B70: Day 5 Isotonic | E70: 3-0-3 | F70: Set 5 | G70: 1 | H70: 15 | I70: RPE 9 - 10 | J70: 2 - 3 Minutes | U70: Day 5 Isotonic | X70: 3-0-3 | Y70: Set 5 | Z70: 1 | AA70: 15 | AB70: RPE 9 - 10 | AC70: 2 - 3 Minutes | AN70: Day 5 Isotonic | AQ70: 3-0-3 | AR70: Set 5 | AS70: 1 | AT70: 8 | AU70: RPE 9 - 10 | AV70: 2 - 3 Minutes | BG70: Day 5 Isotonic | BJ70: 3-0-3 | BK70: Set 5 | BL70: 1 | BM70: 6 | BN70: RPE 9 - 10 | BO70: 2 - 3 Minutes
C71: Double-Leg | E71: 3-0-3 | F71: Set 1 | G71: 1 - 2 | H71: 8-10 | I71: RPE 1 - 2 | J71: 2 - 3 Minutes | Q71: =IF(SUMPRODUCT(K71:K75,L71:L75,M71:M75), SUMPRODUCT(K71:K75,L71:L75,M71:M75), "") ->  | R71: =IFERROR(IF(SUM(M71:M75)/COUNT(K71:K75), ROUND(SUM(M71:M75)/COUNT(K71:K75),1), ""),"") ->  | S71: =IF(MAX(M71:M75),MAX(M71:M75),"") ->  | V71: Double-Leg | X71: 3-0-3 | Y71: Set 1 | Z71: 1 - 2 | AA71: 8-10 | AB71: RPE 1 - 2 | AC71: 2 - 3 Minutes | AJ71: =IF(SUMPRODUCT(AD71:AD75,AE71:AE75,AF71:AF75), SUMPRODUCT(AD71:AD75,AE71:AE75,AF71:AF75), "") ->  | AK71: =IFERROR(IF(SUM(AF71:AF75)/COUNT(AD71:AD75), ROUND(SUM(AF71:AF75)/COUNT(AD71:AD75),1), ""),"") ->  | AL71: =IF(MAX(AF71:AF75),MAX(AF71:AF75),"") ->  | AO71: Double-Leg | AQ71: 3-0-3 | AR71: Set 1 | AS71: 1 - 2 | AT71: 8-10 | AU71: RPE 1 - 2 | AV71: 2 - 3 Minutes | BC71: =IF(SUMPRODUCT(AW71:AW75,AX71:AX75,AY71:AY75), SUMPRODUCT(AW71:AW75,AX71:AX75,AY71:AY75), "") ->  | BD71: =IFERROR(IF(SUM(AY71:AY75)/COUNT(AW71:AW75), ROUND(SUM(AY71:AY75)/COUNT(AW71:AW75),1), ""),"") ->  | BE71: =IF(MAX(AY71:AY75),MAX(AY71:AY75),"") ->  | BH71: Double-Leg | BJ71: 3-0-3 | BK71: Set 1 | BL71: 1 - 2 | BM71: 8-10 | BN71: RPE 1 - 2 | BO71: 2 - 3 Minutes | BV71: =IF(SUMPRODUCT(BP71:BP75,BQ71:BQ75,BR71:BR75), SUMPRODUCT(BP71:BP75,BQ71:BQ75,BR71:BR75), "") ->  | BW71: =IFERROR(IF(SUM(BR71:BR75)/COUNT(BP71:BP75), ROUND(SUM(BR71:BR75)/COUNT(BP71:BP75),1), ""),"") ->  | BX71: =IF(MAX(BR71:BR75),MAX(BR71:BR75),"") -> 
E72: 3-0-3 | F72: Set 2 | G72: 1 - 2 | H72: 8-10 | I72: RPE 2 - 3 | J72: 2 - 3 Minutes | X72: 3-0-3 | Y72: Set 2 | Z72: 1 - 2 | AA72: 8-10 | AB72: RPE 2 - 3 | AC72: 2 - 3 Minutes | AQ72: 3-0-3 | AR72: Set 2 | AS72: 1 - 2 | AT72: 8-10 | AU72: RPE 2 - 3 | AV72: 2 - 3 Minutes | BJ72: 3-0-3 | BK72: Set 2 | BL72: 1 - 2 | BM72: 8-10 | BN72: RPE 2 - 3 | BO72: 2 - 3 Minutes
E73: 3-0-3 | F73: Set 3 | G73: 1 | H73: 15 | I73: RPE 4 - 6 | J73: 2 - 3 Minutes | X73: 3-0-3 | Y73: Set 3 | Z73: 1 | AA73: 15 | AB73: RPE 4 - 6 | AC73: 2 - 3 Minutes | AQ73: 3-0-3 | AR73: Set 3 | AS73: 1 | AT73: 8 | AU73: RPE 4 - 6 | AV73: 2 - 3 Minutes | BJ73: 3-0-3 | BK73: Set 3 | BL73: 1 | BM73: 6 | BN73: RPE 4 - 6 | BO73: 2 - 3 Minutes
E74: 3-0-3 | F74: Set 4 | G74: 1 | H74: 15 | I74: RPE 6 - 8 | J74: 2 - 3 Minutes | X74: 3-0-3 | Y74: Set 4 | Z74: 1 | AA74: 15 | AB74: RPE 6 - 8 | AC74: 2 - 3 Minutes | AQ74: 3-0-3 | AR74: Set 4 | AS74: 1 | AT74: 8 | AU74: RPE 6 - 8 | AV74: 2 - 3 Minutes | BJ74: 3-0-3 | BK74: Set 4 | BL74: 1 | BM74: 6 | BN74: RPE 6 - 8 | BO74: 2 - 3 Minutes
E75: 3-0-3 | F75: Set 5 | G75: 1 | H75: 15 | I75: RPE 9 - 10 | J75: 2 - 3 Minutes | X75: 3-0-3 | Y75: Set 5 | Z75: 1 | AA75: 15 | AB75: RPE 9 - 10 | AC75: 2 - 3 Minutes | AQ75: 3-0-3 | AR75: Set 5 | AS75: 1 | AT75: 8 | AU75: RPE 9 - 10 | AV75: 2 - 3 Minutes | BJ75: 3-0-3 | BK75: Set 5 | BL75: 1 | BM75: 6 | BN75: RPE 9 - 10 | BO75: 2 - 3 Minutes
C76: Single-Leg | E76: 3-0-3 | F76: Set 1 | G76: 1 - 2 | H76: 8-10 | I76: RPE 1 - 2 | J76: 2 - 3 Minutes | Q76: =IF(SUMPRODUCT(K76:K80,L76:L80,M76:M80), SUMPRODUCT(K76:K80,L76:L80,M76:M80), "") ->  | R76: =IFERROR(IF(SUM(M76:M80)/COUNT(K76:K80), ROUND(SUM(M76:M80)/COUNT(K76:K80),1), ""),"") ->  | S76: =IF(MAX(M76:M80),MAX(M76:M80),"") ->  | V76: Single-Leg | X76: 3-0-3 | Y76: Set 1 | Z76: 1 - 2 | AA76: 8-10 | AB76: RPE 1 - 2 | AC76: 2 - 3 Minutes | AJ76: =IF(SUMPRODUCT(AD76:AD80,AE76:AE80,AF76:AF80), SUMPRODUCT(AD76:AD80,AE76:AE80,AF76:AF80), "") ->  | AK76: =IFERROR(IF(SUM(AF76:AF80)/COUNT(AD76:AD80), ROUND(SUM(AF76:AF80)/COUNT(AD76:AD80),1), ""),"") ->  | AL76: =IF(MAX(AF76:AF80),MAX(AF76:AF80),"") ->  | AO76: Single-Leg | AQ76: 3-0-3 | AR76: Set 1 | AS76: 1 - 2 | AT76: 8-10 | AU76: RPE 1 - 2 | AV76: 2 - 3 Minutes | BC76: =IF(SUMPRODUCT(AW76:AW80,AX76:AX80,AY76:AY80), SUMPRODUCT(AW76:AW80,AX76:AX80,AY76:AY80), "") ->  | BD76: =IFERROR(IF(SUM(AY76:AY80)/COUNT(AW76:AW80), ROUND(SUM(AY76:AY80)/COUNT(AW76:AW80),1), ""),"") ->  | BE76: =IF(MAX(AY76:AY80),MAX(AY76:AY80),"") ->  | BH76: Single-Leg | BJ76: 3-0-3 | BK76: Set 1 | BL76: 1 - 2 | BM76: 8-10 | BN76: RPE 1 - 2 | BO76: 2 - 3 Minutes | BV76: =IF(SUMPRODUCT(BP76:BP80,BQ76:BQ80,BR76:BR80), SUMPRODUCT(BP76:BP80,BQ76:BQ80,BR76:BR80), "") ->  | BW76: =IFERROR(IF(SUM(BR76:BR80)/COUNT(BP76:BP80), ROUND(SUM(BR76:BR80)/COUNT(BP76:BP80),1), ""),"") ->  | BX76: =IF(MAX(BR76:BR80),MAX(BR76:BR80),"") -> 
E77: 3-0-3 | F77: Set 2 | G77: 1 - 2 | H77: 8-10 | I77: RPE 2 - 3 | J77: 2 - 3 Minutes | X77: 3-0-3 | Y77: Set 2 | Z77: 1 - 2 | AA77: 8-10 | AB77: RPE 2 - 3 | AC77: 2 - 3 Minutes | AQ77: 3-0-3 | AR77: Set 2 | AS77: 1 - 2 | AT77: 8-10 | AU77: RPE 2 - 3 | AV77: 2 - 3 Minutes | BJ77: 3-0-3 | BK77: Set 2 | BL77: 1 - 2 | BM77: 8-10 | BN77: RPE 2 - 3 | BO77: 2 - 3 Minutes
E78: 3-0-3 | F78: Set 3 | G78: 1 | H78: 15 | I78: RPE 4 - 6 | J78: 2 - 3 Minutes | X78: 3-0-3 | Y78: Set 3 | Z78: 1 | AA78: 15 | AB78: RPE 4 - 6 | AC78: 2 - 3 Minutes | AQ78: 3-0-3 | AR78: Set 3 | AS78: 1 | AT78: 8 | AU78: RPE 4 - 6 | AV78: 2 - 3 Minutes | BJ78: 3-0-3 | BK78: Set 3 | BL78: 1 | BM78: 6 | BN78: RPE 4 - 6 | BO78: 2 - 3 Minutes
E79: 3-0-3 | F79: Set 4 | G79: 1 | H79: 15 | I79: RPE 6 - 8 | J79: 2 - 3 Minutes | X79: 3-0-3 | Y79: Set 4 | Z79: 1 | AA79: 15 | AB79: RPE 6 - 8 | AC79: 2 - 3 Minutes | AQ79: 3-0-3 | AR79: Set 4 | AS79: 1 | AT79: 8 | AU79: RPE 6 - 8 | AV79: 2 - 3 Minutes | BJ79: 3-0-3 | BK79: Set 4 | BL79: 1 | BM79: 6 | BN79: RPE 6 - 8 | BO79: 2 - 3 Minutes
E80: 3-0-3 | F80: Set 5 | G80: 1 | H80: 15 | I80: RPE 9 - 10 | J80: 2 - 3 Minutes | X80: 3-0-3 | Y80: Set 5 | Z80: 1 | AA80: 15 | AB80: RPE 9 - 10 | AC80: 2 - 3 Minutes | AQ80: 3-0-3 | AR80: Set 5 | AS80: 1 | AT80: 8 | AU80: RPE 9 - 10 | AV80: 2 - 3 Minutes | BJ80: 3-0-3 | BK80: Set 5 | BL80: 1 | BM80: 6 | BN80: RPE 9 - 10 | BO80: 2 - 3 Minutes
C81: Session RPE: | E81: Session Duration: | J81: Session Score: | N81: =IFERROR(IF(SUBSTITUTE(D81,"RPE ","")*G81, CONCATENATE(SUBSTITUTE(D81,"RPE ","")*G81, " AU"),0),0) -> 0 | P81: Daily Totals: | Q81: =IF(SUM(Q66:Q80)<1,"",SUM(Q66:Q80)) ->  | R81: =IFERROR(IF(SUM(M66:M80)/COUNT(K66:K80), ROUND(SUM(M66:M80)/COUNT(K66:K80),1),""),"") ->  | S81: =IF(SUM(S66:S80)>0,SUM(S66:S80),"") ->  | V81: Session RPE: | X81: Session Duration: | AC81: Session Score: | AG81: =IFERROR(IF(SUBSTITUTE(W81,"RPE ","")*Z81, CONCATENATE(SUBSTITUTE(W81,"RPE ","")*Z81, " AU"),0),0) -> 0 | AI81: Daily Totals: | AJ81: =IF(SUM(AJ66:AJ80)<1,"",SUM(AJ66:AJ80)) ->  | AK81: =IFERROR(IF(SUM(AF66:AF80)/COUNT(AD66:AD80), ROUND(SUM(AF66:AF80)/COUNT(AD66:AD80),1),""),"") ->  | AL81: =IF(SUM(AL66:AL80)>0,SUM(AL66:AL80),"") ->  | AO81: Session RPE: | AQ81: Session Duration: | AV81: Session Score: | AZ81: =IFERROR(IF(SUBSTITUTE(AP81,"RPE ","")*AS81, CONCATENATE(SUBSTITUTE(AP81,"RPE ","")*AS81, " AU"),0),0) -> 0 | BB81: Daily Totals: | BC81: =IF(SUM(BC66:BC80)<1,"",SUM(BC66:BC80)) ->  | BD81: =IFERROR(IF(SUM(AY66:AY80)/COUNT(AW66:AW80), ROUND(SUM(AY66:AY80)/COUNT(AW66:AW80),1),""),"") ->  | BE81: =IF(SUM(BE66:BE80)>0,SUM(BE66:BE80),"") ->  | BH81: Session RPE: | BJ81: Session Duration: | BO81: Session Score: | BS81: =IFERROR(IF(SUBSTITUTE(BI81,"RPE ","")*BL81, CONCATENATE(SUBSTITUTE(BI81,"RPE ","")*BL81, " AU"),0),0) -> 0 | BU81: Daily Totals: | BV81: =IF(SUM(BV66:BV80)<1,"",SUM(BV66:BV80)) ->  | BW81: =IFERROR(IF(SUM(BR66:BR80)/COUNT(BP66:BP80), ROUND(SUM(BR66:BR80)/COUNT(BP66:BP80),1),""),"") ->  | BX81: =IF(SUM(BX66:BX80)>0,SUM(BX66:BX80),"") -> 
B82: Day | C82: Type | D82: Exercise | G82: Sets | H82: Duration | J82: Rest | K82: Objective Score | N82: Feedback | Q82: Exercise Tonnage | R82: Absolute Intensity | U82: Day | V82: Type | W82: Exercise | Z82: Sets | AA82: Duration | AC82: Rest | AD82: Objective Score | AG82: Feedback | AJ82: Exercise Tonnage | AK82: Absolute Intensity | AN82: Day | AO82: Type | AP82: Exercise | AS82: Sets | AT82: Duration | AV82: Rest | AW82: Objective Score | AZ82: Feedback | BC82: Exercise Tonnage | BD82: Absolute Intensity | BG82: Day | BH82: Type | BI82: Exercise | BL82: Sets | BM82: Duration | BO82: Rest | BP82: Objective Score | BS82: Feedback | BV82: Exercise Tonnage | BW82: Absolute Intensity
K83: Sets | L83: Duration | M83: Weight | AD83: Sets | AE83: Duration | AF83: Weight | AW83: Sets | AX83: Duration | AY83: Weight | BP83: Sets | BQ83: Duration | BR83: Weight
B84: Biofeedback Test: | C84: Double-Leg | G84: 5 | H84: 30 - 45 Seconds | J84: 90 - 120 Seconds | Q84: =IF(K84*L84*(M84)>0, K84*L84*(M84), "") ->  | R84: =IF(MAX(M84:M88) > 0, MAX(M84:M88), "") ->  | U84: Biofeedback Test: | V84: Double-Leg | Z84: 5 | AA84: 30 - 45 Seconds | AC84: 90 - 120 Seconds | AJ84: =IF(AD84*AE84*(AF84)>0, AD84*AE84*(AF84), "") ->  | AK84: =IF(MAX(AF84:AF88) > 0, MAX(AF84:AF88), "") ->  | AN84: Biofeedback Test: | AO84: Double-Leg | AS84: 5 | AT84: 30 - 45 Seconds | AV84: 90 - 120 Seconds | BC84: =IF(AW84*AX84*(AY84)>0, AW84*AX84*(AY84), "") ->  | BD84: =IF(MAX(AY84:AY88) > 0, MAX(AY84:AY88), "") ->  | BG84: Biofeedback Test: | BH84: Double-Leg | BL84: 5 | BM84: 30 - 45 Seconds | BO84: 90 - 120 Seconds | BV84: =IF(BP84*BQ84*(BR84)>0, BP84*BQ84*(BR84), "") ->  | BW84: =IF(MAX(BR84:BR88) > 0, MAX(BR84:BR88), "") -> 
G85: 5 | H85: 30 - 45 Seconds | J85: 90 - 120 Seconds | Q85: =IF(K85*L85*(M85)>0, K85*L85*(M85), "") ->  | Z85: 5 | AA85: 30 - 45 Seconds | AC85: 90 - 120 Seconds | AJ85: =IF(AD85*AE85*(AF85)>0, AD85*AE85*(AF85), "") ->  | AS85: 5 | AT85: 30 - 45 Seconds | AV85: 90 - 120 Seconds | BC85: =IF(AW85*AX85*(AY85)>0, AW85*AX85*(AY85), "") ->  | BL85: 5 | BM85: 30 - 45 Seconds | BO85: 90 - 120 Seconds | BV85: =IF(BP85*BQ85*(BR85)>0, BP85*BQ85*(BR85), "") -> 
G86: 5 | H86: 31 - 45 Seconds | J86: 91 - 120 Seconds | Z86: 5 | AA86: 31 - 45 Seconds | AC86: 91 - 120 Seconds | AS86: 5 | AT86: 31 - 45 Seconds | AV86: 91 - 120 Seconds | BL86: 5 | BM86: 31 - 45 Seconds | BO86: 91 - 120 Seconds
G87: 5 | H87: 32 - 45 Seconds | J87: 92 - 120 Seconds | Z87: 5 | AA87: 32 - 45 Seconds | AC87: 92 - 120 Seconds | AS87: 5 | AT87: 32 - 45 Seconds | AV87: 92 - 120 Seconds | BL87: 5 | BM87: 32 - 45 Seconds | BO87: 92 - 120 Seconds
B88: Day 6 Isometric | G88: 5 | H88: 33 - 45 Seconds | J88: 93 - 120 Seconds | U88: Day 6 Isometric | Z88: 5 | AA88: 33 - 45 Seconds | AC88: 93 - 120 Seconds | AN88: Day 6 Isometric | AS88: 5 | AT88: 33 - 45 Seconds | AV88: 93 - 120 Seconds | BG88: Day 6 Isometric | BL88: 5 | BM88: 33 - 45 Seconds | BO88: 93 - 120 Seconds
C89: Single-Leg | G89: 5 | H89: 34 - 45 Seconds | J89: 94 - 120 Seconds | R89: =IF(MAX(M89:M93) > 0, MAX(M89:M93), "") ->  | V89: Single-Leg | Z89: 5 | AA89: 34 - 45 Seconds | AC89: 94 - 120 Seconds | AK89: =IF(MAX(AF89:AF93) > 0, MAX(AF89:AF93), "") ->  | AO89: Single-Leg | AS89: 5 | AT89: 34 - 45 Seconds | AV89: 94 - 120 Seconds | BD89: =IF(MAX(AY89:AY93) > 0, MAX(AY89:AY93), "") ->  | BH89: Single-Leg | BL89: 5 | BM89: 34 - 45 Seconds | BO89: 94 - 120 Seconds | BW89: =IF(MAX(BR89:BR93) > 0, MAX(BR89:BR93), "") -> 
G90: 5 | H90: 35 - 45 Seconds | J90: 95 - 120 Seconds | Z90: 5 | AA90: 35 - 45 Seconds | AC90: 95 - 120 Seconds | AS90: 5 | AT90: 35 - 45 Seconds | AV90: 95 - 120 Seconds | BL90: 5 | BM90: 35 - 45 Seconds | BO90: 95 - 120 Seconds
G91: 5 | H91: 36 - 45 Seconds | J91: 96 - 120 Seconds | Z91: 5 | AA91: 36 - 45 Seconds | AC91: 96 - 120 Seconds | AS91: 5 | AT91: 36 - 45 Seconds | AV91: 96 - 120 Seconds | BL91: 5 | BM91: 36 - 45 Seconds | BO91: 96 - 120 Seconds
G92: 5 | H92: 37 - 45 Seconds | J92: 97 - 120 Seconds | Z92: 5 | AA92: 37 - 45 Seconds | AC92: 97 - 120 Seconds | AS92: 5 | AT92: 37 - 45 Seconds | AV92: 97 - 120 Seconds | BL92: 5 | BM92: 37 - 45 Seconds | BO92: 97 - 120 Seconds
G93: 5 | H93: 30 - 45 Seconds | J93: 90 - 120 Seconds | Z93: 5 | AA93: 30 - 45 Seconds | AC93: 90 - 120 Seconds | AS93: 5 | AT93: 30 - 45 Seconds | AV93: 90 - 120 Seconds | BL93: 5 | BM93: 30 - 45 Seconds | BO93: 90 - 120 Seconds
C94: Session RPE: | E94: Session Duration: | J94: Session Score: | N94: =IFERROR(IF(SUBSTITUTE(D94,"RPE ","")*G94, CONCATENATE(SUBSTITUTE(D94,"RPE ","")*G94, " AU"),0),0) -> 0 | P94: Daily Totals: | Q94: =IF(SUM(Q84:Q93)>0, SUM(Q84:Q93), "") ->  | R94: =IF(MAX(R84:R93), MAX(R84:R93), "") ->  | V94: Session RPE: | X94: Session Duration: | AC94: Session Score: | AG94: =IFERROR(IF(SUBSTITUTE(W94,"RPE ","")*Z94, CONCATENATE(SUBSTITUTE(W94,"RPE ","")*Z94, " AU"),0),0) -> 0 | AI94: Daily Totals: | AJ94: =IF(SUM(AJ84:AJ93)>0, SUM(AJ84:AJ93), "") ->  | AK94: =IF(MAX(AK84:AK93), MAX(AK84:AK93), "") ->  | AO94: Session RPE: | AQ94: Session Duration: | AV94: Session Score: | AZ94: =IFERROR(IF(SUBSTITUTE(AP94,"RPE ","")*AS94, CONCATENATE(SUBSTITUTE(AP94,"RPE ","")*AS94, " AU"),0),0) -> 0 | BB94: Daily Totals: | BC94: =IF(SUM(BC84:BC93)>0, SUM(BC84:BC93), "") ->  | BD94: =IF(MAX(BD84:BD93), MAX(BD84:BD93), "") ->  | BH94: Session RPE: | BJ94: Session Duration: | BO94: Session Score: | BS94: =IFERROR(IF(SUBSTITUTE(BI94,"RPE ","")*BL94, CONCATENATE(SUBSTITUTE(BI94,"RPE ","")*BL94, " AU"),0),0) -> 0 | BU94: Daily Totals: | BV94: =IF(SUM(BV84:BV93)>0, SUM(BV84:BV93), "") ->  | BW94: =IF(MAX(BW84:BW93), MAX(BW84:BW93), "") -> 
A95: WEEKLY TOTALS | B95: Tonnage: | D95: =IF(SUM(Q4:Q18,Q35:Q49,Q66:Q80)>0, SUM(Q4:Q18,Q35:Q49,Q66:Q80),"") ->  | E95: Average Intensity: | H95: =IFERROR(IF(SUM(M4:M18,M35:M49,M66:M80)/COUNT(K4:K18,K35:K49,K66:K80)>0,ROUND(SUM(M4:M18,M35:M49,M66:M80)/COUNT(K4:K18,K35:K49,K66:K80),1),""),"") ->  | K95: Absolute Intensity: | N95: =IF(SUM(S4:S18,S35:S49,S66:S80) > 0, SUM(S4:S18,S35:S49,S66:S80),"") ->  | P95: Total AUs: | R95: =IFERROR(IF(SUBSTITUTE(N19, " AU", "") + SUBSTITUTE(N32, " AU", "") + SUBSTITUTE(N50, " AU", "") + SUBSTITUTE(N63, " AU", "") + SUBSTITUTE(N81, " AU", "") + SUBSTITUTE(N94, " AU", "") > 0, CONCATENATE(SUBSTITUTE(N19, " AU", "") + SUBSTITUTE(N32, " AU", "") + SUBSTITUTE(N50, " AU", "") + SUBSTITUTE(N63, " AU", "") + SUBSTITUTE(N81, " AU", "") + SUBSTITUTE(N94, " AU", ""), " AU"), ""),"") ->  | U95: Tonnage: | W95: =IF(SUM(AJ4:AJ18,AJ35:AJ49,AJ66:AJ80)>0, SUM(AJ4:AJ18,AJ35:AJ49,AJ66:AJ80),"") ->  | X95: Average Intensity: | AA95: =IFERROR(IF(SUM(AF4:AF18,AF35:AF49,AF66:AF80)/COUNT(AD4:AD18,AD35:AD49,AD66:AD80)>0,ROUND(SUM(AF4:AF18,AF35:AF49,AF66:AF80)/COUNT(AD4:AD18,AD35:AD49,AD66:AD80),1),""),"") ->  | AD95: Absolute Intensity: | AG95: =IF(SUM(AL4:AL18,AL35:AL49,AL66:AL80) > 0, SUM(AL4:AL18,AL35:AL49,AL66:AL80),"") ->  | AI95: Total AUs: | AK95: =IFERROR(IF(SUBSTITUTE(AG19, " AU", "") + SUBSTITUTE(AG32, " AU", "") + SUBSTITUTE(AG50, " AU", "") + SUBSTITUTE(AG63, " AU", "") + SUBSTITUTE(AG81, " AU", "") + SUBSTITUTE(AG94, " AU", "") > 0, CONCATENATE(SUBSTITUTE(AG19, " AU", "") + SUBSTITUTE(AG32, " AU", "") + SUBSTITUTE(AG50, " AU", "") + SUBSTITUTE(AG63, " AU", "") + SUBSTITUTE(AG81, " AU", "") + SUBSTITUTE(AG94, " AU", ""), " AU"), ""),"") ->  | AN95: Tonnage: | AP95: =IF(SUM(BC4:BC18,BC35:BC49,BC66:BC80)>0, SUM(BC4:BC18,BC35:BC49,BC66:BC80),"") ->  | AQ95: Average Intensity: | AT95: =IFERROR(IF(SUM(AY4:AY18,AY35:AY49,AY66:AY80)/COUNT(AW4:AW18,AW35:AW49,AW66:AW80)>0,ROUND(SUM(AY4:AY18,AY35:AY49,AY66:AY80)/COUNT(AW4:AW18,AW35:AW49,AW66:AW80),1),""),"") ->  | AW95: Absolute Intensity: | AZ95: =IF(SUM(BE4:BE18,BE35:BE49,BE66:BE80) > 0, SUM(BE4:BE18,BE35:BE49,BE66:BE80),"") ->  | BB95: Total AUs: | BD95: =IFERROR(IF(SUBSTITUTE(AZ19, " AU", "") + SUBSTITUTE(AZ32, " AU", "") + SUBSTITUTE(AZ50, " AU", "") + SUBSTITUTE(AZ63, " AU", "") + SUBSTITUTE(AZ81, " AU", "") + SUBSTITUTE(AZ94, " AU", "") > 0, CONCATENATE(SUBSTITUTE(AZ19, " AU", "") + SUBSTITUTE(AZ32, " AU", "") + SUBSTITUTE(AZ50, " AU", "") + SUBSTITUTE(AZ63, " AU", "") + SUBSTITUTE(AZ81, " AU", "") + SUBSTITUTE(AZ94, " AU", ""), " AU"), ""),"") ->  | BG95: Tonnage: | BI95: =IF(SUM(BV4:BV18,BV35:BV49,BV66:BV80)>0, SUM(BV4:BV18,BV35:BV49,BV66:BV80),"") ->  | BJ95: Average Intensity: | BM95: =IFERROR(IF(SUM(BR4:BR18,BR35:BR49,BR66:BR80)/COUNT(BP4:BP18,BP35:BP49,BP66:BP80)>0,ROUND(SUM(BR4:BR18,BR35:BR49,BR66:BR80)/COUNT(BP4:BP18,BP35:BP49,BP66:BP80),1),""),"") ->  | BP95: Absolute Intensity: | BS95: =IF(MAX(BX4:BX18,BX35:BX49,BX66:BX80) > 0, MAX(BX4:BX18,BX35:BX49,BX66:BX80),"") ->  | BU95: Total AUs: | BW95: =IFERROR(IF(SUBSTITUTE(BS19, " AU", "") + SUBSTITUTE(BS32, " AU", "") + SUBSTITUTE(BS50, " AU", "") + SUBSTITUTE(BS63, " AU", "") + SUBSTITUTE(BS81, " AU", "") + SUBSTITUTE(BS94, " AU", "") > 0, CONCATENATE(SUBSTITUTE(BS19, " AU", "") + SUBSTITUTE(BS32, " AU", "") + SUBSTITUTE(BS50, " AU", "") + SUBSTITUTE(BS63, " AU", "") + SUBSTITUTE(BS81, " AU", "") + SUBSTITUTE(BS94, " AU", ""), " AU"), ""),"") -> 
U96: Weekly % Difference | W96: =IF( W95 <> "", (IF(W95<>"",W95, 0) - IF(D95<>"",D95, 0))/IF(D95<>"",D95, 1), "") ->  | AA96: =IF( AA95 <> "", (IF(AA95<>"",AA95, 0) - IF(H95<>"",H95, 0))/IF(H95<>"",H95, 1), "") ->  | AG96: =IF(AG95 <> "", (IF(AG95<>"",AG95, 0) - IF(N95<>"",N95, 0))/IF(N95<>"",N95,1), "") ->  | AK96: =IF(AK95 <> "", (IF(AK95<>"",SUBSTITUTE(AK95," AU",""), 0) - IF(R95<>"",SUBSTITUTE(R95," AU",""), 0))/IF(R95<>"",SUBSTITUTE(R95," AU",""), 1), "") ->  | AN96: Weekly % Difference | AP96: =IF( AP95 <> "", (IF(AP95<>"",AP95, 0) - IF(W95<>"",W95, 0))/IF(W95<>"",W95, 1), "") ->  | AT96: =IF( AT95 <> "", (IF(AT95<>"",AT95, 0) - IF(AA95<>"",AA95, 0))/IF(AA95<>"",AA95, 1), "") ->  | AZ96: =IF(AZ95 <> "", (IF(AZ95<>"",AZ95, 0) - IF(AG95<>"",AG95, 0))/IF(AG95<>"",AG95,1), "") ->  | BD96: =IF(BD95 <> "", (IF(BD95<>"",SUBSTITUTE(BD95," AU",""), 0) - IF(AK95<>"",SUBSTITUTE(AK95," AU",""), 0))/IF(AK95<>"",SUBSTITUTE(AK95," AU",""), 1), "") ->  | BG96: Weekly % Difference | BI96: =IF( BI95 <> "", (IF(BI95<>"",BI95, 0) - IF(AP95<>"",AP95, 0))/IF(AP95<>"",AP95, 1), "") ->  | BM96: =IF( BM95 <> "", (IF(BM95<>"",BM95, 0) - IF(AT95<>"",AT95, 0))/IF(AT95<>"",AT95, 1), "") ->  | BS96: =IF(BS95 <> "", (IF(BS95<>"",BS95, 0) - IF(AZ95<>"",AZ95, 0))/IF(AZ95<>"",AZ95,1), "") ->  | BW96: =IF(BW95 <> "", (IF(BW95<>"",SUBSTITUTE(BW95," AU",""), 0) - IF(BD95<>"",SUBSTITUTE(BD95," AU",""), 0))/IF(BD95<>"",SUBSTITUTE(BD95," AU",""), 1), "") -> 

Sheet Phase III
A1: Phase III - Dynamic Loading
A2: Week | B2: Day | C2: Weightlifting Movement | D2: Cluster Type | E2: Exercise | F2: Tempo | G2: Sets | H2: Reps | I2: Weight | J2: Rest | K2: Score | N2: Feedback | Q2: Exercise Tonnage | R2: Average Intensity | S2: Absolute Intensity | T2: Week | U2: Day | V2: Weightlifting Movement | W2: Cluster Type | X2: Exercise | Y2: Tempo | Z2: Sets | AA2: Reps | AB2: Weight | AC2: Rest | AD2: Score | AG2: Feedback | AJ2: Exercise Tonnage | AK2: Average Intensity | AL2: Absolute Intensity | AM2: Week | AN2: Day | AO2: Weightlifting Movement | AP2: Cluster Type | AQ2: Exercise | AR2: Tempo | AS2: Sets | AT2: Reps | AU2: Weight | AV2: Rest | AW2: Score | AZ2: Feedback | BC2: Exercise Tonnage | BD2: Average Intensity | BE2: Absolute Intensity | BF2: Week | BG2: Day | BH2: Weightlifting Movement | BI2: Cluster Type | BJ2: Exercise | BK2: Tempo | BL2: Sets | BM2: Reps | BN2: Weight | BO2: Rest | BP2: Score | BS2: Feedback | BV2: Exercise Tonnage | BW2: Average Intensity | BX2: Absolute Intensity | BY2: Week | BZ2: Day | CA2: Weightlifting Movement | CB2: Cluster Type | CC2: Exercise | CD2: Tempo | CE2: Sets | CF2: Reps | CG2: Weight | CH2: Rest | CI2: Score | CL2: Feedback | CO2: Exercise Tonnage | CP2: Average Intensity | CQ2: Absolute Intensity | CR2: Week | CS2: Day | CT2: Weightlifting Movement | CU2: Cluster Type | CV2: Exercise | CW2: Tempo | CX2: Sets | CY2: Reps | CZ2: Weight | DA2: Rest | DB2: Score | DE2: Feedback | DH2: Exercise Tonnage | DI2: Average Intensity | DJ2: Absolute Intensity | DK2: Week | DL2: Day | DM2: Weightlifting Movement | DN2: Cluster Type | DO2: Exercise | DP2: Tempo | DQ2: Sets | DR2: Reps | DS2: Weight | DT2: Rest | DU2: Score | DX2: Feedback | EA2: Exercise Tonnage | EB2: Average Intensity | EC2: Absolute Intensity | ED2: Week | EE2: Day | EF2: Weightlifting Movement | EG2: Cluster Type | EH2: Exercise | EI2: Tempo | EJ2: Sets | EK2: Reps | EL2: Weight | EM2: Rest | EN2: Score | EQ2: Feedback | ET2: Exercise Tonnage | EU2: Average Intensity | EV2: Absolute Intensity | EW2: Week | EX2: Day | EY2: Weightlifting Movement | EZ2: Cluster Type | FA2: Exercise | FB2: Tempo | FC2: Sets | FD2: Reps | FE2: Weight | FF2: Rest | FG2: Score | FJ2: Feedback | FM2: Exercise Tonnage | FN2: Average Intensity | FO2: Absolute Intensity | FP2: Week | FQ2: Day | FR2: Weightlifting Movement | FS2: Cluster Type | FT2: Exercise | FU2: Tempo | FV2: Sets | FW2: Reps | FX2: Weight | FY2: Rest | FZ2: Score | GC2: Feedback | GF2: Exercise Tonnage | GG2: Average Intensity | GH2: Absolute Intensity | GI2: Week | GJ2: Day | GK2: Weightlifting Movement | GL2: Cluster Type | GM2: Exercise | GN2: Tempo | GO2: Sets | GP2: Reps | GQ2: Weight | GR2: Rest | GS2: Score | GV2: Feedback | GY2: Exercise Tonnage | GZ2: Average Intensity | HA2: Absolute Intensity
K3: Sets | L3: Reps | M3: Weight | AD3: Sets | AE3: Reps | AF3: Weight | AW3: Sets | AX3: Reps | AY3: Weight | BP3: Sets | BQ3: Reps | BR3: Weight | CI3: Sets | CJ3: Reps | CK3: Weight | DB3: Sets | DC3: Reps | DD3: Weight | DU3: Sets | DV3: Reps | DW3: Weight | EN3: Sets | EO3: Reps | EP3: Weight | FG3: Sets | FH3: Reps | FI3: Weight | FZ3: Sets | GA3: Reps | GB3: Weight | GS3: Sets | GT3: Reps | GU3: Weight
A4: W E E K 6 | B4: Biofeedback Test: | Q4: =IF(K4*L4*M4<1, "", K4*L4*M4) ->  | R4: =IFERROR(IF(SUM(M4:M13)/COUNT(K4:K13), ROUND(SUM(M4:M13)/COUNT(K4:K13),1), ""),"") ->  | S4: =IF(MAX(M4:M13),MAX(M4:M13),"") ->  | T4: W E E K 7 | U4: Biofeedback Test: | AJ4: =IF(AD4*AE4*AF4<1, "", AD4*AE4*AF4) ->  | AK4: =IFERROR(IF(SUM(AF4:AF13)/COUNT(AD4:AD13), ROUND(SUM(AF4:AF13)/COUNT(AD4:AD13),1), ""),"") ->  | AL4: =IF(MAX(AF4:AF13),MAX(AF4:AF13),"") ->  | AM4: W E E K 8 | AN4: Biofeedback Test: | BC4: =IF(AW4*AX4*AY4<1, "", AW4*AX4*AY4) ->  | BD4: =IFERROR(IF(SUM(AY4:AY13)/COUNT(AW4:AW13), ROUND(SUM(AY4:AY13)/COUNT(AW4:AW13),1), ""),"") ->  | BE4: =IF(MAX(AY4:AY13),MAX(AY4:AY13),"") ->  | BF4: W E E K 9 | BG4: Biofeedback Test: | BV4: =IF(BP4*BQ4*BR4<1, "", BP4*BQ4*BR4) ->  | BW4: =IFERROR(IF(SUM(BR4:BR13)/COUNT(BP4:BP13), ROUND(SUM(BR4:BR13)/COUNT(BP4:BP13),1), ""),"") ->  | BX4: =IF(MAX(BR4:BR13),MAX(BR4:BR13),"") ->  | BY4: W E E K 10 | BZ4: Biofeedback Test: | CO4: =IF(CI4*CJ4*CK4<1, "", CI4*CJ4*CK4) ->  | CP4: =IFERROR(IF(SUM(CK4:CK13)/COUNT(CI4:CI13), ROUND(SUM(CK4:CK13)/COUNT(CI4:CI13),1), ""),"") ->  | CQ4: =IF(MAX(CK4:CK13),MAX(CK4:CK13),"") ->  | CR4: W E E K 11 | CS4: Biofeedback Test: | DH4: =IF(DB4*DC4*DD4<1, "", DB4*DC4*DD4) ->  | DI4: =IFERROR(IF(SUM(DD4:DD13)/COUNT(DB4:DB13), ROUND(SUM(DD4:DD13)/COUNT(DB4:DB13),1), ""),"") ->  | DJ4: =IF(MAX(DD4:DD13),MAX(DD4:DD13),"") ->  | DK4: W E E K 12 | DL4: Biofeedback Test: | EA4: =IF(DU4*DV4*DW4<1, "", DU4*DV4*DW4) ->  | EB4: =IFERROR(IF(SUM(DW4:DW13)/COUNT(DU4:DU13), ROUND(SUM(DW4:DW13)/COUNT(DU4:DU13),1), ""),"") ->  | EC4: =IF(MAX(DW4:DW13),MAX(DW4:DW13),"") ->  | ED4: W E E K 13 | EE4: Biofeedback Test: | ET4: =IF(EN4*EO4*EP4<1, "", EN4*EO4*EP4) ->  | EU4: =IFERROR(IF(SUM(EP4:EP13)/COUNT(EN4:EN13), ROUND(SUM(EP4:EP13)/COUNT(EN4:EN13),1), ""),"") ->  | EV4: =IF(MAX(EP4:EP13),MAX(EP4:EP13),"") ->  | EW4: W E E K 14 | EX4: Biofeedback Test: | FM4: =IF(FG4*FH4*FI4<1, "", FG4*FH4*FI4) ->  | FN4: =IFERROR(IF(SUM(FI4:FI13)/COUNT(FG4:FG13), ROUND(SUM(FI4:FI13)/COUNT(FG4:FG13),1), ""),"") ->  | FO4: =IF(MAX(FI4:FI13),MAX(FI4:FI13),"") ->  | FP4: W E E K 15 | FQ4: Biofeedback Test: | GF4: =IF(FZ4*GA4*GB4<1, "", FZ4*GA4*GB4) ->  | GG4: =IFERROR(IF(SUM(GB4:GB13)/COUNT(FZ4:FZ13), ROUND(SUM(GB4:GB13)/COUNT(FZ4:FZ13),1), ""),"") ->  | GH4: =IF(MAX(GB4:GB13),MAX(GB4:GB13),"") ->  | GI4: W E E K 16 | GJ4: Biofeedback Test: | GY4: =IF(GS4*GT4*GU4<1, "", GS4*GT4*GU4) ->  | GZ4: =IFERROR(IF(SUM(GU4:GU13)/COUNT(GS4:GS13), ROUND(SUM(GU4:GU13)/COUNT(GS4:GS13),1), ""),"") ->  | HA4: =IF(MAX(GU4:GU13),MAX(GU4:GU13),"") -> 
Q5: =IF(K5*L5*M5<1, "", K5*L5*M5) ->  | AJ5: =IF(AD5*AE5*AF5<1, "", AD5*AE5*AF5) ->  | BC5: =IF(AW5*AX5*AY5<1, "", AW5*AX5*AY5) ->  | BV5: =IF(BP5*BQ5*BR5<1, "", BP5*BQ5*BR5) ->  | CO5: =IF(CI5*CJ5*CK5<1, "", CI5*CJ5*CK5) ->  | DH5: =IF(DB5*DC5*DD5<1, "", DB5*DC5*DD5) ->  | EA5: =IF(DU5*DV5*DW5<1, "", DU5*DV5*DW5) ->  | ET5: =IF(EN5*EO5*EP5<1, "", EN5*EO5*EP5) ->  | FM5: =IF(FG5*FH5*FI5<1, "", FG5*FH5*FI5) ->  | GF5: =IF(FZ5*GA5*GB5<1, "", FZ5*GA5*GB5) ->  | GY5: =IF(GS5*GT5*GU5<1, "", GS5*GT5*GU5) -> 
B9: Day 1 Dynamic + Isotonic | U9: Day 1 Dynamic + Isotonic | AN9: Day 1 Dynamic + Isotonic | BG9: Day 1 Dynamic + Isotonic | BZ9: Day 1 Dynamic + Isotonic | CS9: Day 1 Dynamic + Isotonic | DL9: Day 1 Dynamic + Isotonic | EE9: Day 1 Dynamic + Isotonic | EX9: Day 1 Dynamic + Isotonic | FQ9: Day 1 Dynamic + Isotonic | GJ9: Day 1 Dynamic + Isotonic
D14: Isotonic Type | E14: Isotonic Exercise | F14: Tempo | G14: Sets | H14: Reps | I14: Weight | J14: Rest | K14: Sets | L14: Reps | M14: Weight | N14: Feedback | Q14: Exercise Tonnage | R14: Average Intensity | S14: Absolute Intensity | W14: Isotonic Type | X14: Isotonic Exercise | Y14: Tempo | Z14: Sets | AA14: Reps | AB14: Weight | AC14: Rest | AD14: Sets | AE14: Reps | AF14: Weight | AG14: Feedback | AJ14: Exercise Tonnage | AK14: Average Intensity | AL14: Absolute Intensity | AP14: Isotonic Type | AQ14: Isotonic Exercise | AR14: Tempo | AS14: Sets | AT14: Reps | AU14: Weight | AV14: Rest | AW14: Sets | AX14: Reps | AY14: Weight | AZ14: Feedback | BC14: Exercise Tonnage | BD14: Average Intensity | BE14: Absolute Intensity | BI14: Isotonic Type | BJ14: Isotonic Exercise | BK14: Tempo | BL14: Sets | BM14: Reps | BN14: Weight | BO14: Rest | BP14: Sets | BQ14: Reps | BR14: Weight | BS14: Feedback | BV14: Exercise Tonnage | BW14: Average Intensity | BX14: Absolute Intensity | CB14: Isotonic Type | CC14: Isotonic Exercise | CD14: Tempo | CE14: Sets | CF14: Reps | CG14: Weight | CH14: Rest | CI14: Sets | CJ14: Reps | CK14: Weight | CL14: Feedback | CO14: Exercise Tonnage | CP14: Average Intensity | CQ14: Absolute Intensity | CU14: Isotonic Type | CV14: Isotonic Exercise | CW14: Tempo | CX14: Sets | CY14: Reps | CZ14: Weight | DA14: Rest | DB14: Sets | DC14: Reps | DD14: Weight | DE14: Feedback | DH14: Exercise Tonnage | DI14: Average Intensity | DJ14: Absolute Intensity | DN14: Isotonic Type | DO14: Isotonic Exercise | DP14: Tempo | DQ14: Sets | DR14: Reps | DS14: Weight | DT14: Rest | DU14: Sets | DV14: Reps | DW14: Weight | DX14: Feedback | EA14: Exercise Tonnage | EB14: Average Intensity | EC14: Absolute Intensity | EG14: Isotonic Type | EH14: Isotonic Exercise | EI14: Tempo | EJ14: Sets | EK14: Reps | EL14: Weight | EM14: Rest | EN14: Sets | EO14: Reps | EP14: Weight | EQ14: Feedback | ET14: Exercise Tonnage | EU14: Average Intensity | EV14: Absolute Intensity | EZ14: Isotonic Type | FA14: Isotonic Exercise | FB14: Tempo | FC14: Sets | FD14: Reps | FE14: Weight | FF14: Rest | FG14: Sets | FH14: Reps | FI14: Weight | FJ14: Feedback | FM14: Exercise Tonnage | FN14: Average Intensity | FO14: Absolute Intensity | FR14: Type | FS14: Isotonic Type | FT14: Isotonic Exercise | FU14: Tempo | FV14: Sets | FW14: Reps | FX14: Weight | FY14: Rest | FZ14: Sets | GA14: Reps | GB14: Weight | GC14: Feedback | GF14: Exercise Tonnage | GG14: Average Intensity | GH14: Absolute Intensity | GK14: Type | GL14: Isotonic Type | GM14: Isotonic Exercise | GN14: Tempo | GO14: Sets | GP14: Reps | GQ14: Weight | GR14: Rest | GS14: Sets | GT14: Reps | GU14: Weight | GV14: Feedback | GY14: Exercise Tonnage | GZ14: Average Intensity | HA14: Absolute Intensity
C15: Isotonic | Q15: =IF(SUMPRODUCT(K15:K19,L15:L19,M15:M19), SUMPRODUCT(K15:K19,L15:L19,M15:M19), "") ->  | R15: =IFERROR(IF(SUM(M15:M19)/COUNT(K15:K19), ROUND(SUM(M15:M19)/COUNT(K15:K19),1), ""),"") ->  | S15: =IF(MAX(M15:M19),MAX(M15:M19),"") ->  | V15: Isotonic | AJ15: =IF(SUMPRODUCT(AD15:AD19,AE15:AE19,AF15:AF19), SUMPRODUCT(AD15:AD19,AE15:AE19,AF15:AF19), "") ->  | AK15: =IFERROR(IF(SUM(AF15:AF19)/COUNT(AD15:AD19), ROUND(SUM(AF15:AF19)/COUNT(AD15:AD19),1), ""),"") ->  | AL15: =IF(MAX(AF15:AF19),MAX(AF15:AF19),"") ->  | AO15: Isotonic | BC15: =IF(SUMPRODUCT(AW15:AW19,AX15:AX19,AY15:AY19), SUMPRODUCT(AW15:AW19,AX15:AX19,AY15:AY19), "") ->  | BD15: =IFERROR(IF(SUM(AY15:AY19)/COUNT(AW15:AW19), ROUND(SUM(AY15:AY19)/COUNT(AW15:AW19),1), ""),"") ->  | BE15: =IF(MAX(AY15:AY19),MAX(AY15:AY19),"") ->  | BH15: Isotonic | BV15: =IF(SUMPRODUCT(BP15:BP19,BQ15:BQ19,BR15:BR19), SUMPRODUCT(BP15:BP19,BQ15:BQ19,BR15:BR19), "") ->  | BW15: =IFERROR(IF(SUM(BR15:BR19)/COUNT(BP15:BP19), ROUND(SUM(BR15:BR19)/COUNT(BP15:BP19),1), ""),"") ->  | BX15: =IF(MAX(BR15:BR19),MAX(BR15:BR19),"") ->  | CA15: Isotonic | CO15: =IF(SUMPRODUCT(CI15:CI19,CJ15:CJ19,CK15:CK19), SUMPRODUCT(CI15:CI19,CJ15:CJ19,CK15:CK19), "") ->  | CP15: =IFERROR(IF(SUM(CK15:CK19)/COUNT(CI15:CI19), ROUND(SUM(CK15:CK19)/COUNT(CI15:CI19),1), ""),"") ->  | CQ15: =IF(MAX(CK15:CK19),MAX(CK15:CK19),"") ->  | CT15: Isotonic | DH15: =IF(SUMPRODUCT(DB15:DB19,DC15:DC19,DD15:DD19), SUMPRODUCT(DB15:DB19,DC15:DC19,DD15:DD19), "") ->  | DI15: =IFERROR(IF(SUM(DD15:DD19)/COUNT(DB15:DB19), ROUND(SUM(DD15:DD19)/COUNT(DB15:DB19),1), ""),"") ->  | DJ15: =IF(MAX(DD15:DD19),MAX(DD15:DD19),"") ->  | DM15: Isotonic | EA15: =IF(SUMPRODUCT(DU15:DU19,DV15:DV19,DW15:DW19), SUMPRODUCT(DU15:DU19,DV15:DV19,DW15:DW19), "") ->  | EB15: =IFERROR(IF(SUM(DW15:DW19)/COUNT(DU15:DU19), ROUND(SUM(DW15:DW19)/COUNT(DU15:DU19),1), ""),"") ->  | EC15: =IF(MAX(DW15:DW19),MAX(DW15:DW19),"") ->  | EF15: Isotonic | ET15: =IF(SUMPRODUCT(EN15:EN19,EO15:EO19,EP15:EP19), SUMPRODUCT(EN15:EN19,EO15:EO19,EP15:EP19), "") ->  | EU15: =IFERROR(IF(SUM(EP15:EP19)/COUNT(EN15:EN19), ROUND(SUM(EP15:EP19)/COUNT(EN15:EN19),1), ""),"") ->  | EV15: =IF(MAX(EP15:EP19),MAX(EP15:EP19),"") ->  | EY15: Isotonic | FM15: =IF(SUMPRODUCT(FG15:FG19,FH15:FH19,FI15:FI19), SUMPRODUCT(FG15:FG19,FH15:FH19,FI15:FI19), "") ->  | FN15: =IFERROR(IF(SUM(FI15:FI19)/COUNT(FG15:FG19), ROUND(SUM(FI15:FI19)/COUNT(FG15:FG19),1), ""),"") ->  | FO15: =IF(MAX(FI15:FI19),MAX(FI15:FI19),"") ->  | FR15: Isotonic | GF15: =IF(SUMPRODUCT(FZ15:FZ19,GA15:GA19,GB15:GB19), SUMPRODUCT(FZ15:FZ19,GA15:GA19,GB15:GB19), "") ->  | GG15: =IFERROR(IF(SUM(GB15:GB19)/COUNT(FZ15:FZ19), ROUND(SUM(GB15:GB19)/COUNT(FZ15:FZ19),1), ""),"") ->  | GH15: =IF(MAX(GB15:GB19),MAX(GB15:GB19),"") ->  | GK15: Isotonic | GY15: =IF(SUMPRODUCT(GS15:GS19,GT15:GT19,GU15:GU19), SUMPRODUCT(GS15:GS19,GT15:GT19,GU15:GU19), "") ->  | GZ15: =IFERROR(IF(SUM(GU15:GU19)/COUNT(GS15:GS19), ROUND(SUM(GU15:GU19)/COUNT(GS15:GS19),1), ""),"") ->  | HA15: =IF(MAX(GU15:GU19),MAX(GU15:GU19),"") -> 
Q20: =IF(SUMPRODUCT(K20:K24,L20:L24,M20:M24), SUMPRODUCT(K20:K24,L20:L24,M20:M24), "") ->  | R20: =IFERROR(IF(SUM(M20:M24)/COUNT(K20:K24), ROUND(SUM(M20:M24)/COUNT(K20:K24),1), ""),"") ->  | S20: =IF(MAX(M20:M24),MAX(M20:M24),"") ->  | AJ20: =IF(SUMPRODUCT(AD20:AD24,AE20:AE24,AF20:AF24), SUMPRODUCT(AD20:AD24,AE20:AE24,AF20:AF24), "") ->  | AK20: =IFERROR(IF(SUM(AF20:AF24)/COUNT(AD20:AD24), ROUND(SUM(AF20:AF24)/COUNT(AD20:AD24),1), ""),"") ->  | AL20: =IF(MAX(AF20:AF24),MAX(AF20:AF24),"") ->  | BC20: =IF(SUMPRODUCT(AW20:AW24,AX20:AX24,AY20:AY24), SUMPRODUCT(AW20:AW24,AX20:AX24,AY20:AY24), "") ->  | BD20: =IFERROR(IF(SUM(AY20:AY24)/COUNT(AW20:AW24), ROUND(SUM(AY20:AY24)/COUNT(AW20:AW24),1), ""),"") ->  | BE20: =IF(MAX(AY20:AY24),MAX(AY20:AY24),"") ->  | BV20: =IF(SUMPRODUCT(BP20:BP24,BQ20:BQ24,BR20:BR24), SUMPRODUCT(BP20:BP24,BQ20:BQ24,BR20:BR24), "") ->  | BW20: =IFERROR(IF(SUM(BR20:BR24)/COUNT(BP20:BP24), ROUND(SUM(BR20:BR24)/COUNT(BP20:BP24),1), ""),"") ->  | BX20: =IF(MAX(BR20:BR24),MAX(BR20:BR24),"") ->  | CO20: =IF(SUMPRODUCT(CI20:CI24,CJ20:CJ24,CK20:CK24), SUMPRODUCT(CI20:CI24,CJ20:CJ24,CK20:CK24), "") ->  | CP20: =IFERROR(IF(SUM(CK20:CK24)/COUNT(CI20:CI24), ROUND(SUM(CK20:CK24)/COUNT(CI20:CI24),1), ""),"") ->  | CQ20: =IF(MAX(CK20:CK24),MAX(CK20:CK24),"") ->  | DH20: =IF(SUMPRODUCT(DB20:DB24,DC20:DC24,DD20:DD24), SUMPRODUCT(DB20:DB24,DC20:DC24,DD20:DD24), "") ->  | DI20: =IFERROR(IF(SUM(DD20:DD24)/COUNT(DB20:DB24), ROUND(SUM(DD20:DD24)/COUNT(DB20:DB24),1), ""),"") ->  | DJ20: =IF(MAX(DD20:DD24),MAX(DD20:DD24),"") ->  | EA20: =IF(SUMPRODUCT(DU20:DU24,DV20:DV24,DW20:DW24), SUMPRODUCT(DU20:DU24,DV20:DV24,DW20:DW24), "") ->  | EB20: =IFERROR(IF(SUM(DW20:DW24)/COUNT(DU20:DU24), ROUND(SUM(DW20:DW24)/COUNT(DU20:DU24),1), ""),"") ->  | EC20: =IF(MAX(DW20:DW24),MAX(DW20:DW24),"") ->  | ET20: =IF(SUMPRODUCT(EN20:EN24,EO20:EO24,EP20:EP24), SUMPRODUCT(EN20:EN24,EO20:EO24,EP20:EP24), "") ->  | EU20: =IFERROR(IF(SUM(EP20:EP24)/COUNT(EN20:EN24), ROUND(SUM(EP20:EP24)/COUNT(EN20:EN24),1), ""),"") ->  | EV20: =IF(MAX(EP20:EP24),MAX(EP20:EP24),"") ->  | FM20: =IF(SUMPRODUCT(FG20:FG24,FH20:FH24,FI20:FI24), SUMPRODUCT(FG20:FG24,FH20:FH24,FI20:FI24), "") ->  | FN20: =IFERROR(IF(SUM(FI20:FI24)/COUNT(FG20:FG24), ROUND(SUM(FI20:FI24)/COUNT(FG20:FG24),1), ""),"") ->  | FO20: =IF(MAX(FI20:FI24),MAX(FI20:FI24),"") ->  | GF20: =IF(SUMPRODUCT(FZ20:FZ24,GA20:GA24,GB20:GB24), SUMPRODUCT(FZ20:FZ24,GA20:GA24,GB20:GB24), "") ->  | GG20: =IFERROR(IF(SUM(GB20:GB24)/COUNT(FZ20:FZ24), ROUND(SUM(GB20:GB24)/COUNT(FZ20:FZ24),1), ""),"") ->  | GH20: =IF(MAX(GB20:GB24),MAX(GB20:GB24),"") ->  | GY20: =IF(SUMPRODUCT(GS20:GS24,GT20:GT24,GU20:GU24), SUMPRODUCT(GS20:GS24,GT20:GT24,GU20:GU24), "") ->  | GZ20: =IFERROR(IF(SUM(GU20:GU24)/COUNT(GS20:GS24), ROUND(SUM(GU20:GU24)/COUNT(GS20:GS24),1), ""),"") ->  | HA20: =IF(MAX(GU20:GU24),MAX(GU20:GU24),"") -> 
Q25: =IF(SUMPRODUCT(K25:K29,L25:L29,M25:M29), SUMPRODUCT(K25:K29,L25:L29,M25:M29), "") ->  | R25: =IFERROR(IF(SUM(M25:M29)/COUNT(K25:K29), ROUND(SUM(M25:M29)/COUNT(K25:K29),1), ""),"") ->  | S25: =IF(MAX(M25:M29),MAX(M25:M29),"") ->  | AJ25: =IF(SUMPRODUCT(AD25:AD29,AE25:AE29,AF25:AF29), SUMPRODUCT(AD25:AD29,AE25:AE29,AF25:AF29), "") ->  | AK25: =IFERROR(IF(SUM(AF25:AF29)/COUNT(AD25:AD29), ROUND(SUM(AF25:AF29)/COUNT(AD25:AD29),1), ""),"") ->  | AL25: =IF(MAX(AF25:AF29),MAX(AF25:AF29),"") ->  | BC25: =IF(SUMPRODUCT(AW25:AW29,AX25:AX29,AY25:AY29), SUMPRODUCT(AW25:AW29,AX25:AX29,AY25:AY29), "") ->  | BD25: =IFERROR(IF(SUM(AY25:AY29)/COUNT(AW25:AW29), ROUND(SUM(AY25:AY29)/COUNT(AW25:AW29),1), ""),"") ->  | BE25: =IF(MAX(AY25:AY29),MAX(AY25:AY29),"") ->  | BV25: =IF(SUMPRODUCT(BP25:BP29,BQ25:BQ29,BR25:BR29), SUMPRODUCT(BP25:BP29,BQ25:BQ29,BR25:BR29), "") ->  | BW25: =IFERROR(IF(SUM(BR25:BR29)/COUNT(BP25:BP29), ROUND(SUM(BR25:BR29)/COUNT(BP25:BP29),1), ""),"") ->  | BX25: =IF(MAX(BR25:BR29),MAX(BR25:BR29),"") ->  | CO25: =IF(SUMPRODUCT(CI25:CI29,CJ25:CJ29,CK25:CK29), SUMPRODUCT(CI25:CI29,CJ25:CJ29,CK25:CK29), "") ->  | CP25: =IFERROR(IF(SUM(CK25:CK29)/COUNT(CI25:CI29), ROUND(SUM(CK25:CK29)/COUNT(CI25:CI29),1), ""),"") ->  | CQ25: =IF(MAX(CK25:CK29),MAX(CK25:CK29),"") ->  | DH25: =IF(SUMPRODUCT(DB25:DB29,DC25:DC29,DD25:DD29), SUMPRODUCT(DB25:DB29,DC25:DC29,DD25:DD29), "") ->  | DI25: =IFERROR(IF(SUM(DD25:DD29)/COUNT(DB25:DB29), ROUND(SUM(DD25:DD29)/COUNT(DB25:DB29),1), ""),"") ->  | DJ25: =IF(MAX(DD25:DD29),MAX(DD25:DD29),"") ->  | EA25: =IF(SUMPRODUCT(DU25:DU29,DV25:DV29,DW25:DW29), SUMPRODUCT(DU25:DU29,DV25:DV29,DW25:DW29), "") ->  | EB25: =IFERROR(IF(SUM(DW25:DW29)/COUNT(DU25:DU29), ROUND(SUM(DW25:DW29)/COUNT(DU25:DU29),1), ""),"") ->  | EC25: =IF(MAX(DW25:DW29),MAX(DW25:DW29),"") ->  | ET25: =IF(SUMPRODUCT(EN25:EN29,EO25:EO29,EP25:EP29), SUMPRODUCT(EN25:EN29,EO25:EO29,EP25:EP29), "") ->  | EU25: =IFERROR(IF(SUM(EP25:EP29)/COUNT(EN25:EN29), ROUND(SUM(EP25:EP29)/COUNT(EN25:EN29),1), ""),"") ->  | EV25: =IF(MAX(EP25:EP29),MAX(EP25:EP29),"") ->  | FM25: =IF(SUMPRODUCT(FG25:FG29,FH25:FH29,FI25:FI29), SUMPRODUCT(FG25:FG29,FH25:FH29,FI25:FI29), "") ->  | FN25: =IFERROR(IF(SUM(FI25:FI29)/COUNT(FG25:FG29), ROUND(SUM(FI25:FI29)/COUNT(FG25:FG29),1), ""),"") ->  | FO25: =IF(MAX(FI25:FI29),MAX(FI25:FI29),"") ->  | GF25: =IF(SUMPRODUCT(FZ25:FZ29,GA25:GA29,GB25:GB29), SUMPRODUCT(FZ25:FZ29,GA25:GA29,GB25:GB29), "") ->  | GG25: =IFERROR(IF(SUM(GB25:GB29)/COUNT(FZ25:FZ29), ROUND(SUM(GB25:GB29)/COUNT(FZ25:FZ29),1), ""),"") ->  | GH25: =IF(MAX(GB25:GB29),MAX(GB25:GB29),"") ->  | GY25: =IF(SUMPRODUCT(GS25:GS29,GT25:GT29,GU25:GU29), SUMPRODUCT(GS25:GS29,GT25:GT29,GU25:GU29), "") ->  | GZ25: =IFERROR(IF(SUM(GU25:GU29)/COUNT(GS25:GS29), ROUND(SUM(GU25:GU29)/COUNT(GS25:GS29),1), ""),"") ->  | HA25: =IF(MAX(GU25:GU29),MAX(GU25:GU29),"") -> 
C30: Session RPE: | E30: Session Duration: | J30: Session Score: | N30: =IFERROR(IF(SUBSTITUTE(D30,"RPE ","")*G30, CONCATENATE(SUBSTITUTE(D30,"RPE ","")*G30, " AU"),0),0) -> 0 | P30: Daily Totals: | Q30: =IF(SUM(Q15:Q29)<1,"",SUM(Q15:Q29)) ->  | R30: =IFERROR(IF(SUM(M15:M29)/COUNT(K15:K29), ROUND(SUM(M15:M29)/COUNT(K15:K29),1),""),"") ->  | S30: =IF(SUM(S15:S29)>0,SUM(S15:S29),"") ->  | V30: Session RPE: | X30: Session Duration: | AC30: Session Score: | AG30: =IFERROR(IF(SUBSTITUTE(W30,"RPE ","")*Z30, CONCATENATE(SUBSTITUTE(W30,"RPE ","")*Z30, " AU"),0),0) -> 0 | AI30: Daily Totals: | AJ30: =IF(SUM(AJ15:AJ29)<1,"",SUM(AJ15:AJ29)) ->  | AK30: =IFERROR(IF(SUM(AF15:AF29)/COUNT(AD15:AD29), ROUND(SUM(AF15:AF29)/COUNT(AD15:AD29),1),""),"") ->  | AL30: =IF(SUM(AL15:AL29)>0,SUM(AL15:AL29),"") ->  | AO30: Session RPE: | AQ30: Session Duration: | AV30: Session Score: | AZ30: =IFERROR(IF(SUBSTITUTE(AP30,"RPE ","")*AS30, CONCATENATE(SUBSTITUTE(AP30,"RPE ","")*AS30, " AU"),0),0) -> 0 | BB30: Daily Totals: | BC30: =IF(SUM(BC15:BC29)<1,"",SUM(BC15:BC29)) ->  | BD30: =IFERROR(IF(SUM(AY15:AY29)/COUNT(AW15:AW29), ROUND(SUM(AY15:AY29)/COUNT(AW15:AW29),1),""),"") ->  | BE30: =IF(SUM(BE15:BE29)>0,SUM(BE15:BE29),"") ->  | BH30: Session RPE: | BJ30: Session Duration: | BO30: Session Score: | BS30: =IFERROR(IF(SUBSTITUTE(BI30,"RPE ","")*BL30, CONCATENATE(SUBSTITUTE(BI30,"RPE ","")*BL30, " AU"),0),0) -> 0 | BU30: Daily Totals: | BV30: =IF(SUM(BV15:BV29)<1,"",SUM(BV15:BV29)) ->  | BW30: =IFERROR(IF(SUM(BR15:BR29)/COUNT(BP15:BP29), ROUND(SUM(BR15:BR29)/COUNT(BP15:BP29),1),""),"") ->  | BX30: =IF(SUM(BX15:BX29)>0,SUM(BX15:BX29),"") ->  | CA30: Session RPE: | CC30: Session Duration: | CH30: Session Score: | CL30: =IFERROR(IF(SUBSTITUTE(CB30,"RPE ","")*CE30, CONCATENATE(SUBSTITUTE(CB30,"RPE ","")*CE30, " AU"),0),0) -> 0 | CN30: Daily Totals: | CO30: =IF(SUM(CO15:CO29)<1,"",SUM(CO15:CO29)) ->  | CP30: =IFERROR(IF(SUM(CK15:CK29)/COUNT(CI15:CI29), ROUND(SUM(CK15:CK29)/COUNT(CI15:CI29),1),""),"") ->  | CQ30: =IF(SUM(CQ15:CQ29)>0,SUM(CQ15:CQ29),"") ->  | CT30: Session RPE: | CV30: Session Duration: | DA30: Session Score: | DE30: =IFERROR(IF(SUBSTITUTE(CU30,"RPE ","")*CX30, CONCATENATE(SUBSTITUTE(CU30,"RPE ","")*CX30, " AU"),0),0) -> 0 | DG30: Daily Totals: | DH30: =IF(SUM(DH15:DH29)<1,"",SUM(DH15:DH29)) ->  | DI30: =IFERROR(IF(SUM(DD15:DD29)/COUNT(DB15:DB29), ROUND(SUM(DD15:DD29)/COUNT(DB15:DB29),1),""),"") ->  | DJ30: =IF(SUM(DJ15:DJ29)>0,SUM(DJ15:DJ29),"") ->  | DM30: Session RPE: | DO30: Session Duration: | DT30: Session Score: | DX30: =IFERROR(IF(SUBSTITUTE(DN30,"RPE ","")*DQ30, CONCATENATE(SUBSTITUTE(DN30,"RPE ","")*DQ30, " AU"),0),0) -> 0 | DZ30: Daily Totals: | EA30: =IF(SUM(EA15:EA29)<1,"",SUM(EA15:EA29)) ->  | EB30: =IFERROR(IF(SUM(DW15:DW29)/COUNT(DU15:DU29), ROUND(SUM(DW15:DW29)/COUNT(DU15:DU29),1),""),"") ->  | EC30: =IF(SUM(EC15:EC29)>0,SUM(EC15:EC29),"") ->  | EF30: Session RPE: | EH30: Session Duration: | EM30: Session Score: | EQ30: =IFERROR(IF(SUBSTITUTE(EG30,"RPE ","")*EJ30, CONCATENATE(SUBSTITUTE(EG30,"RPE ","")*EJ30, " AU"),0),0) -> 0 | ES30: Daily Totals: | ET30: =IF(SUM(ET15:ET29)<1,"",SUM(ET15:ET29)) ->  | EU30: =IFERROR(IF(SUM(EP15:EP29)/COUNT(EN15:EN29), ROUND(SUM(EP15:EP29)/COUNT(EN15:EN29),1),""),"") ->  | EV30: =IF(SUM(EV15:EV29)>0,SUM(EV15:EV29),"") ->  | EY30: Session RPE: | FA30: Session Duration: | FF30: Session Score: | FJ30: =IFERROR(IF(SUBSTITUTE(EZ30,"RPE ","")*FC30, CONCATENATE(SUBSTITUTE(EZ30,"RPE ","")*FC30, " AU"),0),0) -> 0 | FL30: Daily Totals: | FM30: =IF(SUM(FM15:FM29)<1,"",SUM(FM15:FM29)) ->  | FN30: =IFERROR(IF(SUM(FI15:FI29)/COUNT(FG15:FG29), ROUND(SUM(FI15:FI29)/COUNT(FG15:FG29),1),""),"") ->  | FO30: =IF(SUM(FO15:FO29)>0,SUM(FO15:FO29),"") ->  | FR30: Session RPE: | FT30: Session Duration: | FY30: Session Score: | GC30: =IFERROR(IF(SUBSTITUTE(FS30,"RPE ","")*FV30, CONCATENATE(SUBSTITUTE(FS30,"RPE ","")*FV30, " AU"),0),0) -> 0 | GE30: Daily Totals: | GF30: =IF(SUM(GF15:GF29)<1,"",SUM(GF15:GF29)) ->  | GG30: =IFERROR(IF(SUM(GB15:GB29)/COUNT(FZ15:FZ29), ROUND(SUM(GB15:GB29)/COUNT(FZ15:FZ29),1),""),"") ->  | GH30: =IF(SUM(GH15:GH29)>0,SUM(GH15:GH29),"") ->  | GK30: Session RPE: | GM30: Session Duration: | GR30: Session Score: | GV30: =IFERROR(IF(SUBSTITUTE(GL30,"RPE ","")*GO30, CONCATENATE(SUBSTITUTE(GL30,"RPE ","")*GO30, " AU"),0),0) -> 0 | GX30: Daily Totals: | GY30: =IF(SUM(GY15:GY29)<1,"",SUM(GY15:GY29)) ->  | GZ30: =IFERROR(IF(SUM(GU15:GU29)/COUNT(GS15:GS29), ROUND(SUM(GU15:GU29)/COUNT(GS15:GS29),1),""),"") ->  | HA30: =IF(SUM(HA15:HA29)>0,SUM(HA15:HA29),"") -> 
B31: Day | C31: Type | D31: Exercise | G31: Sets | H31: Duration | J31: Rest | K31: Objective Score | N31: Feedback | Q31: Exercise Tonnage | R31: Absolute Intensity | U31: Day | V31: Type | W31: Exercise | Z31: Sets | AA31: Duration | AC31: Rest | AD31: Objective Score | AG31: Feedback | AJ31: Exercise Tonnage | AK31: Absolute Intensity | AN31: Day | AO31: Type | AP31: Exercise | AS31: Sets | AT31: Duration | AV31: Rest | AW31: Objective Score | AZ31: Feedback | BC31: Exercise Tonnage | BD31: Absolute Intensity | BG31: Day | BH31: Type | BI31: Exercise | BL31: Sets | BM31: Duration | BO31: Rest | BP31: Objective Score | BS31: Feedback | BV31: Exercise Tonnage | BW31: Absolute Intensity | BZ31: Day | CA31: Type | CB31: Exercise | CE31: Sets | CF31: Duration | CH31: Rest | CI31: Objective Score | CL31: Feedback | CO31: Exercise Tonnage | CP31: Absolute Intensity | CS31: Day | CT31: Type | CU31: Exercise | CX31: Sets | CY31: Duration | DA31: Rest | DB31: Objective Score | DE31: Feedback | DH31: Exercise Tonnage | DI31: Absolute Intensity | DL31: Day | DM31: Type | DN31: Exercise | DQ31: Sets | DR31: Duration | DT31: Rest | DU31: Objective Score | DX31: Feedback | EA31: Exercise Tonnage | EB31: Absolute Intensity | EE31: Day | EF31: Weightlifting Movement | EG31: Cluster Type | EH31: Exercise | EI31: Tempo | EJ31: Sets | EK31: Reps | EL31: Weight | EM31: Rest | EN31: Score | EQ31: Feedback | ET31: Exercise Tonnage | EX31: Day | EY31: Weightlifting Movement | EZ31: Cluster Type | FA31: Exercise | FB31: Tempo | FC31: Sets | FD31: Reps | FE31: Weight | FF31: Rest | FG31: Score | FJ31: Feedback | FM31: Exercise Tonnage | FQ31: Day | FR31: Weightlifting Movement | FS31: Cluster Type | FT31: Exercise | FU31: Tempo | FV31: Sets | FW31: Reps | FX31: Weight | FY31: Rest | FZ31: Score | GC31: Feedback | GF31: Exercise Tonnage | GG31: Average Intensity | GH31: Absolute Intensity | GJ31: Day | GK31: Weightlifting Movement | GL31: Cluster Type | GM31: Exercise | GN31: Tempo | GO31: Sets | GP31: Reps | GQ31: Weight | GR31: Rest | GS31: Score | GV31: Feedback | GY31: Exercise Tonnage | GZ31: Average Intensity | HA31: Absolute Intensity
K32: Sets | L32: Duration | M32: Weight | AD32: Sets | AE32: Duration | AF32: Weight | AW32: Sets | AX32: Duration | AY32: Weight | BP32: Sets | BQ32: Duration | BR32: Weight | CI32: Sets | CJ32: Duration | CK32: Weight | DB32: Sets | DC32: Duration | DD32: Weight | DU32: Sets | DV32: Duration | DW32: Weight | EN32: Sets | EO32: Reps | EP32: Weight | FG32: Sets | FH32: Reps | FI32: Weight | FZ32: Sets | GA32: Reps | GB32: Weight | GS32: Sets | GT32: Reps | GU32: Weight
B33: Biofeedback Test: | C33: Double-Leg | G33: 5 | H33: 30 - 45 Seconds | J33: 90 - 120 Seconds | Q33: =IF(K33*L33*(M33)>0, K33*L33*(M33), "") ->  | R33: =IF(MAX(M33:M37) > 0, MAX(M33:M37), "") ->  | U33: Biofeedback Test: | V33: Double-Leg | Z33: 5 | AA33: 30 - 45 Seconds | AC33: 90 - 120 Seconds | AJ33: =IF(AD33*AE33*(AF33)>0, AD33*AE33*(AF33), "") ->  | AK33: =IF(MAX(AF33:AF37) > 0, MAX(AF33:AF37), "") ->  | AN33: Biofeedback Test: | AO33: Double-Leg | AS33: 5 | AT33: 30 - 45 Seconds | AV33: 90 - 120 Seconds | BC33: =IF(AW33*AX33*(AY33)>0, AW33*AX33*(AY33), "") ->  | BD33: =IF(MAX(AY33:AY37) > 0, MAX(AY33:AY37), "") ->  | BG33: Biofeedback Test: | BH33: Double-Leg | BL33: 5 | BM33: 30 - 45 Seconds | BO33: 90 - 120 Seconds | BV33: =IF(BP33*BQ33*(BR33+'Phase I'!$D$81)>0, BP33*BQ33*(BR33+'Phase I'!$D$81), "") ->  | BW33: =IF(MAX(BR33:BR37) > 0, MAX(BR33:BR37), "") ->  | BZ33: Biofeedback Test: | CA33: Double-Leg | CE33: 5 | CF33: 30 - 45 Seconds | CH33: 90 - 120 Seconds | CO33: =IF(CI33*CJ33*(CK33)>0, CI33*CJ33*(CK33), "") ->  | CP33: =IF(MAX(CK33:CK37) > 0, MAX(CK33:CK37), "") ->  | CS33: Biofeedback Test: | CT33: Double-Leg | CX33: 5 | CY33: 30 - 45 Seconds | DA33: 90 - 120 Seconds | DH33: =IF(DB33*DC33*(DD33)>0, DB33*DC33*(DD33), "") ->  | DI33: =IF(MAX(DD33:DD37) > 0, MAX(DD33:DD37), "") ->  | DL33: Biofeedback Test: | DM33: Double-Leg | DQ33: 5 | DR33: 30 - 45 Seconds | DT33: 90 - 120 Seconds | EA33: =IF(DU33*DV33*(DW33)>0, DU33*DV33*(DW33), "") ->  | EB33: =IF(MAX(DW33:DW37) > 0, MAX(DW33:DW37), "") ->  | EE33: Biofeedback Test: | EF33: Snatch | ET33: =IF(EN33*EO33*EP33<1, "", EN33*EO33*EP33) ->  | EU33: =IFERROR(IF(SUM(EP33:EP37)/COUNT(EN33:EN37), ROUND(SUM(EP33:EP37)/COUNT(EN33:EN37),1), ""),"") ->  | EV33: =IF(MAX(EP33:EP37),MAX(EP33:EP37),"") ->  | EX33: Biofeedback Test: | EY33: Snatch | FM33: =IF(FG33*FH33*FI33<1, "", FG33*FH33*FI33) ->  | FN33: =IFERROR(IF(SUM(FI33:FI37)/COUNT(FG33:FG37), ROUND(SUM(FI33:FI37)/COUNT(FG33:FG37),1), ""),"") ->  | FO33: =IF(MAX(FI33:FI37),MAX(FI33:FI37),"") ->  | FQ33: Biofeedback Test: | FR33: Jerk | GF33: =IF(FZ33*GA33*GB33<1, "", FZ33*GA33*GB33) ->  | GG33: =IFERROR(IF(SUM(GB33:GB37)/COUNT(FZ33:FZ37), ROUND(SUM(GB33:GB37)/COUNT(FZ33:FZ37),1), ""),"") ->  | GH33: =IF(MAX(GB33:GB37),MAX(GB33:GB37),"") ->  | GJ33: Biofeedback Test: | GK33: Jerk | GY33: =IF(GS33*GT33*GU33<1, "", GS33*GT33*GU33) ->  | GZ33: =IFERROR(IF(SUM(GU33:GU37)/COUNT(GS33:GS37), ROUND(SUM(GU33:GU37)/COUNT(GS33:GS37),1), ""),"") ->  | HA33: =IF(MAX(GU33:GU37),MAX(GU33:GU37),"") -> 
G34: 5 | H34: 30 - 45 Seconds | J34: 90 - 120 Seconds | Q34: =IF(K34*L34*(M34)>0, K34*L34*(M34), "") ->  | Z34: 5 | AA34: 30 - 45 Seconds | AC34: 90 - 120 Seconds | AJ34: =IF(AD34*AE34*(AF34)>0, AD34*AE34*(AF34), "") ->  | AS34: 5 | AT34: 30 - 45 Seconds | AV34: 90 - 120 Seconds | BC34: =IF(AW34*AX34*(AY34)>0, AW34*AX34*(AY34), "") ->  | BL34: 5 | BM34: 30 - 45 Seconds | BO34: 90 - 120 Seconds | BV34: =IF(BP34*BQ34*(BR34+'Phase I'!$D$81)>0, BP34*BQ34*(BR34+'Phase I'!$D$81), "") ->  | CE34: 5 | CF34: 30 - 45 Seconds | CH34: 90 - 120 Seconds | CO34: =IF(CI34*CJ34*(CK34)>0, CI34*CJ34*(CK34), "") ->  | CX34: 5 | CY34: 30 - 45 Seconds | DA34: 90 - 120 Seconds | DH34: =IF(DB34*DC34*(DD34)>0, DB34*DC34*(DD34), "") ->  | DQ34: 5 | DR34: 30 - 45 Seconds | DT34: 90 - 120 Seconds | EA34: =IF(DU34*DV34*(DW34)>0, DU34*DV34*(DW34), "") ->  | ET34: =IF(EN34*EO34*EP34<1, "", EN34*EO34*EP34) ->  | FM34: =IF(FG34*FH34*FI34<1, "", FG34*FH34*FI34) ->  | GF34: =IF(FZ34*GA34*GB34<1, "", FZ34*GA34*GB34) ->  | GY34: =IF(GS34*GT34*GU34<1, "", GS34*GT34*GU34) -> 
G35: 5 | H35: 31 - 45 Seconds | J35: 91 - 120 Seconds | Z35: 5 | AA35: 31 - 45 Seconds | AC35: 91 - 120 Seconds | AS35: 5 | AT35: 31 - 45 Seconds | AV35: 91 - 120 Seconds | BL35: 5 | BM35: 31 - 45 Seconds | BO35: 91 - 120 Seconds | BV35: =IF(BP35*BQ35*(BR35+'Phase I'!$D$81)>0, BP35*BQ35*(BR35+'Phase I'!$D$81), "") ->  | CE35: 5 | CF35: 31 - 45 Seconds | CH35: 91 - 120 Seconds | CX35: 5 | CY35: 31 - 45 Seconds | DA35: 91 - 120 Seconds | DQ35: 5 | DR35: 31 - 45 Seconds | DT35: 91 - 120 Seconds
G36: 5 | H36: 32 - 45 Seconds | J36: 92 - 120 Seconds | Z36: 5 | AA36: 32 - 45 Seconds | AC36: 92 - 120 Seconds | AS36: 5 | AT36: 32 - 45 Seconds | AV36: 92 - 120 Seconds | BL36: 5 | BM36: 32 - 45 Seconds | BO36: 92 - 120 Seconds | BV36: =IF(BP36*BQ36*(BR36+'Phase I'!$D$81)>0, BP36*BQ36*(BR36+'Phase I'!$D$81), "") ->  | CE36: 5 | CF36: 32 - 45 Seconds | CH36: 92 - 120 Seconds | CX36: 5 | CY36: 32 - 45 Seconds | DA36: 92 - 120 Seconds | DQ36: 5 | DR36: 32 - 45 Seconds | DT36: 92 - 120 Seconds
G37: 5 | H37: 33 - 45 Seconds | J37: 93 - 120 Seconds | Z37: 5 | AA37: 33 - 45 Seconds | AC37: 93 - 120 Seconds | AS37: 5 | AT37: 33 - 45 Seconds | AV37: 93 - 120 Seconds | BL37: 5 | BM37: 33 - 45 Seconds | BO37: 93 - 120 Seconds | BV37: =IF(BP37*BQ37*(BR37+'Phase I'!$D$81)>0, BP37*BQ37*(BR37+'Phase I'!$D$81), "") ->  | CE37: 5 | CF37: 33 - 45 Seconds | CH37: 93 - 120 Seconds | CX37: 5 | CY37: 33 - 45 Seconds | DA37: 93 - 120 Seconds | DQ37: 5 | DR37: 33 - 45 Seconds | DT37: 93 - 120 Seconds
B38: Day 2 Optional Rest | C38: Single-Leg | G38: 5 | H38: 34 - 45 Seconds | J38: 94 - 120 Seconds | R38: =IF(MAX(M38:M42) > 0, MAX(M38:M42), "") ->  | U38: Day 2 Optional Rest | V38: Single-Leg | Z38: 5 | AA38: 34 - 45 Seconds | AC38: 94 - 120 Seconds | AK38: =IF(MAX(AF38:AF42) > 0, MAX(AF38:AF42), "") ->  | AN38: Day 2 Optional Rest | AO38: Single-Leg | AS38: 5 | AT38: 34 - 45 Seconds | AV38: 94 - 120 Seconds | BD38: =IF(MAX(AY38:AY42) > 0, MAX(AY38:AY42), "") ->  | BG38: Day 2 Optional Rest | BH38: Single-Leg | BL38: 5 | BM38: 34 - 45 Seconds | BO38: 94 - 120 Seconds | BV38: =IF(BI38 = "Knee Extension (60º Degrees)", IF(BP38*BQ38*BR38>0,BP38*BQ38*BR38,""), IF(BP38*BQ38*BR38>0,BP38*BQ38*('Phase I'!$D$81 + BR38),"")) ->  | BW38: =IF(MAX(BR38:BR42) > 0, MAX(BR38:BR42), "") ->  | BZ38: Day 2 Optional Rest | CA38: Single-Leg | CE38: 5 | CF38: 34 - 45 Seconds | CH38: 94 - 120 Seconds | CP38: =IF(MAX(CK38:CK42) > 0, MAX(CK38:CK42), "") ->  | CS38: Day 2 Optional Rest | CT38: Single-Leg | CX38: 5 | CY38: 34 - 45 Seconds | DA38: 94 - 120 Seconds | DI38: =IF(MAX(DD38:DD42) > 0, MAX(DD38:DD42), "") ->  | DL38: Day 2 Optional Rest | DM38: Single-Leg | DQ38: 5 | DR38: 34 - 45 Seconds | DT38: 94 - 120 Seconds | EB38: =IF(MAX(DW38:DW42) > 0, MAX(DW38:DW42), "") ->  | EE38: Day 2 Dynamics | EF38: Jerk | EU38: =IFERROR(IF(SUM(EP38:EP42)/COUNT(EN38:EN42), ROUND(SUM(EP38:EP42)/COUNT(EN38:EN42),1), ""),"") ->  | EV38: =IF(MAX(EP38:EP42),MAX(EP38:EP42),"") ->  | EX38: Day 2 Dynamics | EY38: Clean | FN38: =IFERROR(IF(SUM(FI38:FI42)/COUNT(FG38:FG42), ROUND(SUM(FI38:FI42)/COUNT(FG38:FG42),1), ""),"") ->  | FO38: =IF(MAX(FI38:FI42),MAX(FI38:FI42),"") ->  | FQ38: Day 2 Dynamics | FR38: Jerk | GG38: =IFERROR(IF(SUM(GB38:GB42)/COUNT(FZ38:FZ42), ROUND(SUM(GB38:GB42)/COUNT(FZ38:FZ42),1), ""),"") ->  | GH38: =IF(MAX(GB38:GB42),MAX(GB38:GB42),"") ->  | GJ38: Day 2 Dynamics | GK38: Jerk | GZ38: =IFERROR(IF(SUM(GU38:GU42)/COUNT(GS38:GS42), ROUND(SUM(GU38:GU42)/COUNT(GS38:GS42),1), ""),"") ->  | HA38: =IF(MAX(GU38:GU42),MAX(GU38:GU42),"") -> 
G39: 5 | H39: 35 - 45 Seconds | J39: 95 - 120 Seconds | Z39: 5 | AA39: 35 - 45 Seconds | AC39: 95 - 120 Seconds | AS39: 5 | AT39: 35 - 45 Seconds | AV39: 95 - 120 Seconds | BL39: 5 | BM39: 35 - 45 Seconds | BO39: 95 - 120 Seconds | BV39: =IF(BI39 = "Knee Extension (60º Degrees)", IF(BP39*BQ39*BR39>0,BP39*BQ39*BR39,""), IF(BP39*BQ39*BR39>0,BP39*BQ39*('Phase I'!$D$81 + BR39),"")) ->  | CE39: 5 | CF39: 35 - 45 Seconds | CH39: 95 - 120 Seconds | CX39: 5 | CY39: 35 - 45 Seconds | DA39: 95 - 120 Seconds | DQ39: 5 | DR39: 35 - 45 Seconds | DT39: 95 - 120 Seconds
G40: 5 | H40: 36 - 45 Seconds | J40: 96 - 120 Seconds | Z40: 5 | AA40: 36 - 45 Seconds | AC40: 96 - 120 Seconds | AS40: 5 | AT40: 36 - 45 Seconds | AV40: 96 - 120 Seconds | BL40: 5 | BM40: 36 - 45 Seconds | BO40: 96 - 120 Seconds | BV40: =IF(BI40 = "Knee Extension (60º Degrees)", IF(BP40*BQ40*BR40>0,BP40*BQ40*BR40,""), IF(BP40*BQ40*BR40>0,BP40*BQ40*('Phase I'!$D$81 + BR40),"")) ->  | CE40: 5 | CF40: 36 - 45 Seconds | CH40: 96 - 120 Seconds | CX40: 5 | CY40: 36 - 45 Seconds | DA40: 96 - 120 Seconds | DQ40: 5 | DR40: 36 - 45 Seconds | DT40: 96 - 120 Seconds
G41: 5 | H41: 37 - 45 Seconds | J41: 97 - 120 Seconds | Z41: 5 | AA41: 37 - 45 Seconds | AC41: 97 - 120 Seconds | AS41: 5 | AT41: 37 - 45 Seconds | AV41: 97 - 120 Seconds | BL41: 5 | BM41: 37 - 45 Seconds | BO41: 97 - 120 Seconds | BV41: =IF(BI41 = "Knee Extension (60º Degrees)", IF(BP41*BQ41*BR41>0,BP41*BQ41*BR41,""), IF(BP41*BQ41*BR41>0,BP41*BQ41*('Phase I'!$D$81 + BR41),"")) ->  | CE41: 5 | CF41: 37 - 45 Seconds | CH41: 97 - 120 Seconds | CX41: 5 | CY41: 37 - 45 Seconds | DA41: 97 - 120 Seconds | DQ41: 5 | DR41: 37 - 45 Seconds | DT41: 97 - 120 Seconds
G42: 5 | H42: 30 - 45 Seconds | J42: 90 - 120 Seconds | Z42: 5 | AA42: 30 - 45 Seconds | AC42: 90 - 120 Seconds | AS42: 5 | AT42: 30 - 45 Seconds | AV42: 90 - 120 Seconds | BL42: 5 | BM42: 30 - 45 Seconds | BO42: 90 - 120 Seconds | BV42: =IF(BI42 = "Knee Extension (60º Degrees)", IF(BP42*BQ42*BR42>0,BP42*BQ42*BR42,""), IF(BP42*BQ42*BR42>0,BP42*BQ42*('Phase I'!$D$81 + BR42),"")) ->  | CE42: 5 | CF42: 30 - 45 Seconds | CH42: 90 - 120 Seconds | CX42: 5 | CY42: 30 - 45 Seconds | DA42: 90 - 120 Seconds | DQ42: 5 | DR42: 30 - 45 Seconds | DT42: 90 - 120 Seconds
C43: Single-Leg | G43: 5 | H43: 34 - 45 Seconds | J43: 94 - 120 Seconds | R43: =IF(MAX(M43:M47) > 0, MAX(M43:M47), "") ->  | V43: Single-Leg | Z43: 5 | AA43: 34 - 45 Seconds | AC43: 94 - 120 Seconds | AK43: =IF(MAX(AF43:AF47) > 0, MAX(AF43:AF47), "") ->  | AO43: Single-Leg | AS43: 5 | AT43: 34 - 45 Seconds | AV43: 94 - 120 Seconds | BD43: =IF(MAX(AY43:AY47) > 0, MAX(AY43:AY47), "") ->  | BH43: Single-Leg | BL43: 5 | BM43: 34 - 45 Seconds | BO43: 94 - 120 Seconds | BV43: =IF(BI43 = "Knee Extension (60º Degrees)", IF(BP43*BQ43*BR43>0,BP43*BQ43*BR43,""), IF(BP43*BQ43*BR43>0,BP43*BQ43*('Phase I'!$D$81 + BR43),"")) ->  | BW43: =IF(MAX(BR43:BR47) > 0, MAX(BR43:BR47), "") ->  | CA43: Single-Leg | CE43: 5 | CF43: 34 - 45 Seconds | CH43: 94 - 120 Seconds | CP43: =IF(MAX(CK43:CK47) > 0, MAX(CK43:CK47), "") ->  | CT43: Single-Leg | CX43: 5 | CY43: 34 - 45 Seconds | DA43: 94 - 120 Seconds | DI43: =IF(MAX(DD43:DD47) > 0, MAX(DD43:DD47), "") ->  | DM43: Single-Leg | DQ43: 5 | DR43: 34 - 45 Seconds | DT43: 94 - 120 Seconds | EB43: =IF(MAX(DW43:DW47) > 0, MAX(DW43:DW47), "") ->  | EF43: Clean | EU43: =IFERROR(IF(SUM(EP43:EP47)/COUNT(EN43:EN47), ROUND(SUM(EP43:EP47)/COUNT(EN43:EN47),1), ""),"") ->  | EV43: =IF(MAX(EP43:EP47),MAX(EP43:EP47),"") ->  | EY43: Clean | FN43: =IFERROR(IF(SUM(FI43:FI47)/COUNT(FG43:FG47), ROUND(SUM(FI43:FI47)/COUNT(FG43:FG47),1), ""),"") ->  | FO43: =IF(MAX(FI43:FI47),MAX(FI43:FI47),"") ->  | FR43: Clean | GG43: =IFERROR(IF(SUM(GB43:GB47)/COUNT(FZ43:FZ47), ROUND(SUM(GB43:GB47)/COUNT(FZ43:FZ47),1), ""),"") ->  | GH43: =IF(MAX(GB43:GB47),MAX(GB43:GB47),"") ->  | GK43: Clean | GZ43: =IFERROR(IF(SUM(GU43:GU47)/COUNT(GS43:GS47), ROUND(SUM(GU43:GU47)/COUNT(GS43:GS47),1), ""),"") ->  | HA43: =IF(MAX(GU43:GU47),MAX(GU43:GU47),"") -> 
G44: 5 | H44: 35 - 45 Seconds | J44: 95 - 120 Seconds | Z44: 5 | AA44: 35 - 45 Seconds | AC44: 95 - 120 Seconds | AS44: 5 | AT44: 35 - 45 Seconds | AV44: 95 - 120 Seconds | BL44: 5 | BM44: 35 - 45 Seconds | BO44: 95 - 120 Seconds | BV44: =IF(BI44 = "Knee Extension (60º Degrees)", IF(BP44*BQ44*BR44>0,BP44*BQ44*BR44,""), IF(BP44*BQ44*BR44>0,BP44*BQ44*('Phase I'!$D$81 + BR44),"")) ->  | CE44: 5 | CF44: 35 - 45 Seconds | CH44: 95 - 120 Seconds | CX44: 5 | CY44: 35 - 45 Seconds | DA44: 95 - 120 Seconds | DQ44: 5 | DR44: 35 - 45 Seconds | DT44: 95 - 120 Seconds
G45: 5 | H45: 36 - 45 Seconds | J45: 96 - 120 Seconds | Z45: 5 | AA45: 36 - 45 Seconds | AC45: 96 - 120 Seconds | AS45: 5 | AT45: 36 - 45 Seconds | AV45: 96 - 120 Seconds | BL45: 5 | BM45: 36 - 45 Seconds | BO45: 96 - 120 Seconds | BV45: =IF(BI45 = "Knee Extension (60º Degrees)", IF(BP45*BQ45*BR45>0,BP45*BQ45*BR45,""), IF(BP45*BQ45*BR45>0,BP45*BQ45*('Phase I'!$D$81 + BR45),"")) ->  | CE45: 5 | CF45: 36 - 45 Seconds | CH45: 96 - 120 Seconds | CX45: 5 | CY45: 36 - 45 Seconds | DA45: 96 - 120 Seconds | DQ45: 5 | DR45: 36 - 45 Seconds | DT45: 96 - 120 Seconds
G46: 5 | H46: 37 - 45 Seconds | J46: 97 - 120 Seconds | Z46: 5 | AA46: 37 - 45 Seconds | AC46: 97 - 120 Seconds | AS46: 5 | AT46: 37 - 45 Seconds | AV46: 97 - 120 Seconds | BL46: 5 | BM46: 37 - 45 Seconds | BO46: 97 - 120 Seconds | BV46: =IF(BI46 = "Knee Extension (60º Degrees)", IF(BP46*BQ46*BR46>0,BP46*BQ46*BR46,""), IF(BP46*BQ46*BR46>0,BP46*BQ46*('Phase I'!$D$81 + BR46),"")) ->  | CE46: 5 | CF46: 37 - 45 Seconds | CH46: 97 - 120 Seconds | CX46: 5 | CY46: 37 - 45 Seconds | DA46: 97 - 120 Seconds | DQ46: 5 | DR46: 37 - 45 Seconds | DT46: 97 - 120 Seconds
G47: 5 | H47: 30 - 45 Seconds | J47: 90 - 120 Seconds | Z47: 5 | AA47: 30 - 45 Seconds | AC47: 90 - 120 Seconds | AS47: 5 | AT47: 30 - 45 Seconds | AV47: 90 - 120 Seconds | BL47: 5 | BM47: 30 - 45 Seconds | BO47: 90 - 120 Seconds | BV47: =IF(BI47 = "Knee Extension (60º Degrees)", IF(BP47*BQ47*BR47>0,BP47*BQ47*BR47,""), IF(BP47*BQ47*BR47>0,BP47*BQ47*('Phase I'!$D$81 + BR47),"")) ->  | CE47: 5 | CF47: 30 - 45 Seconds | CH47: 90 - 120 Seconds | CX47: 5 | CY47: 30 - 45 Seconds | DA47: 90 - 120 Seconds | DQ47: 5 | DR47: 30 - 45 Seconds | DT47: 90 - 120 Seconds
C48: Session RPE: | E48: Session Duration: | J48: Session Score: | N48: =IFERROR(IF(SUBSTITUTE(D48,"RPE ","")*G48, CONCATENATE(SUBSTITUTE(D48,"RPE ","")*G48, " AU"),0),0) -> 0 | P48: Daily Totals: | Q48: =IF(SUM(Q33:Q47)>0, SUM(Q33:Q47), "") ->  | R48: =IF(MAX(R33:R47), MAX(R33:R47), "") ->  | V48: Session RPE: | X48: Session Duration: | AC48: Session Score: | AG48: =IFERROR(IF(SUBSTITUTE(W48,"RPE ","")*Z48, CONCATENATE(SUBSTITUTE(W48,"RPE ","")*Z48, " AU"),0),0) -> 0 | AI48: Daily Totals: | AJ48: =IF(SUM(AJ33:AJ47)>0, SUM(AJ33:AJ47), "") ->  | AK48: =IF(MAX(AK33:AK47), MAX(AK33:AK47), "") ->  | AO48: Session RPE: | AQ48: Session Duration: | AV48: Session Score: | AZ48: =IFERROR(IF(SUBSTITUTE(AP48,"RPE ","")*AS48, CONCATENATE(SUBSTITUTE(AP48,"RPE ","")*AS48, " AU"),0),0) -> 0 | BB48: Daily Totals: | BC48: =IF(SUM(BC33:BC47)>0, SUM(BC33:BC47), "") ->  | BD48: =IF(MAX(BD33:BD47), MAX(BD33:BD47), "") ->  | BH48: Session RPE: | BJ48: Session Duration: | BO48: Session Score: | BS48: =IFERROR(IF(SUBSTITUTE(BI48,"RPE ","")*BL48, CONCATENATE(SUBSTITUTE(BI48,"RPE ","")*BL48, " AU"),0),0) -> 0 | BU48: Daily Totals: | BV48: =IF(SUM(BV33:BV47)>0, SUM(BV33:BV47), "") ->  | BW48: =IF(MAX(BW33:BW47), MAX(BW33:BW47), "") ->  | CA48: Session RPE: | CC48: Session Duration: | CH48: Session Score: | CL48: =IFERROR(IF(SUBSTITUTE(CB48,"RPE ","")*CE48, CONCATENATE(SUBSTITUTE(CB48,"RPE ","")*CE48, " AU"),0),0) -> 0 | CN48: Daily Totals: | CO48: =IF(SUM(CO33:CO47)>0, SUM(CO33:CO47), "") ->  | CP48: =IF(MAX(CP33:CP47), MAX(CP33:CP47), "") ->  | CT48: Session RPE: | CV48: Session Duration: | DA48: Session Score: | DE48: =IFERROR(IF(SUBSTITUTE(CU48,"RPE ","")*CX48, CONCATENATE(SUBSTITUTE(CU48,"RPE ","")*CX48, " AU"),0),0) -> 0 | DG48: Daily Totals: | DH48: =IF(SUM(DH33:DH47)>0, SUM(DH33:DH47), "") ->  | DI48: =IF(MAX(DI33:DI47), MAX(DI33:DI47), "") ->  | DM48: Session RPE: | DO48: Session Duration: | DT48: Session Score: | DX48: =IFERROR(IF(SUBSTITUTE(DN48,"RPE ","")*DQ48, CONCATENATE(SUBSTITUTE(DN48,"RPE ","")*DQ48, " AU"),0),0) -> 0 | DZ48: Daily Totals: | EA48: =IF(SUM(EA33:EA47)>0, SUM(EA33:EA47), "") ->  | EB48: =IF(MAX(EB33:EB47), MAX(EB33:EB47), "") ->  | EF48: Session RPE: | EH48: Session Duration: | EI48: 60 | EM48: Session Score: | EQ48: =IFERROR(IF(SUBSTITUTE(EG48,"RPE ","")*EJ48, CONCATENATE(SUBSTITUTE(EG48,"RPE ","")*EJ48, " AU"),0),0) -> 0 | ES48: Daily Totals: | ET48: =IF(SUM(ET33:ET47)<1,"",CONCATENATE(SUM(ET33:ET47)," Pounds")) ->  | EU48: =IFERROR(IF(SUM(EN33:EN47), CONCATENATE(ROUND(SUM(EP33:EP47)/SUM(EN33:EN47),1), " Pounds/Set"),""),"") ->  | EV48: =IF(MAX(EV33:EV47)>0,CONCATENATE(MAX(EV33:EV47)," Pounds"),"") ->  | EY48: Session RPE: | FA48: Session Duration: | FF48: Session Score: | FJ48: =IFERROR(IF(SUBSTITUTE(EZ48,"RPE ","")*FC48, CONCATENATE(SUBSTITUTE(EZ48,"RPE ","")*FC48, " AU"),0),0) -> 0 | FL48: Daily Totals: | FM48: =IF(SUM(FM33:FM47)<1,"",SUM(FM33:FM47)) ->  | FN48: =IFERROR(IF(SUM(FI33:FI47)/COUNT(FG33:FG47), ROUND(SUM(FI33:FI47)/COUNT(FG33:FG47),1),""),"") ->  | FO48: =IF(MAX(FO33:FO47)>0,MAX(FO33:FO47),"") ->  | FR48: Session RPE: | FT48: Session Duration: | FY48: Session Score: | GC48: =IFERROR(IF(SUBSTITUTE(FS48,"RPE ","")*FV48, CONCATENATE(SUBSTITUTE(FS48,"RPE ","")*FV48, " AU"),0),0) -> 0 | GE48: Daily Totals: | GF48: =IF(SUM(GF33:GF47)<1,"",SUM(GF33:GF47)) ->  | GG48: =IFERROR(IF(SUM(GB33:GB47)/COUNT(FZ33:FZ47), ROUND(SUM(GB33:GB47)/COUNT(FZ33:FZ47),1),""),"") ->  | GH48: =IF(MAX(GH33:GH47)>0,MAX(GH33:GH47),"") ->  | GK48: Session RPE: | GM48: Session Duration: | GR48: Session Score: | GV48: =IFERROR(IF(SUBSTITUTE(GL48,"RPE ","")*GO48, CONCATENATE(SUBSTITUTE(GL48,"RPE ","")*GO48, " AU"),0),0) -> 0 | GX48: Daily Totals: | GY48: =IF(SUM(GY33:GY47)<1,"",SUM(GY33:GY47)) ->  | GZ48: =IFERROR(IF(SUM(GU33:GU47)/COUNT(GS33:GS47), ROUND(SUM(GU33:GU47)/COUNT(GS33:GS47),1),""),"") ->  | HA48: =IF(MAX(HA33:HA47)>0,MAX(HA33:HA47),"") -> 
B49: Day | C49: Type | D49: Isotonic Type | E49: Exercise | F49: Tempo | G49: Sets | H49: Reps | I49: Weight | J49: Rest | K49: Score | N49: Feedback | Q49: Exercise Tonnage | R49: Average Intensity | S49: Absolute Intensity | U49: Day | V49: Type | W49: Isotonic Type | X49: Exercise | Y49: Tempo | Z49: Sets | AA49: Reps | AB49: Weight | AC49: Rest | AD49: Score | AG49: Feedback | AJ49: Exercise Tonnage | AK49: Average Intensity | AL49: Absolute Intensity | AN49: Day | AO49: Type | AP49: Isotonic Type | AQ49: Exercise | AR49: Tempo | AS49: Sets | AT49: Reps | AU49: Weight | AV49: Rest | AW49: Score | AZ49: Feedback | BC49: Exercise Tonnage | BD49: Average Intensity | BE49: Absolute Intensity | BG49: Day | BH49: Type | BI49: Isotonic Type | BJ49: Exercise | BK49: Tempo | BL49: Sets | BM49: Reps | BN49: Weight | BO49: Rest | BP49: Score | BS49: Feedback | BV49: Exercise Tonnage | BW49: Average Intensity | BX49: Absolute Intensity | BZ49: Day | CA49: Type | CB49: Isotonic Type | CC49: Exercise | CD49: Tempo | CE49: Sets | CF49: Reps | CG49: Weight | CH49: Rest | CI49: Score | CL49: Feedback | CO49: Exercise Tonnage | CP49: Average Intensity | CQ49: Absolute Intensity | CS49: Day | CT49: Type | CU49: Isotonic Type | CV49: Exercise | CW49: Tempo | CX49: Sets | CY49: Reps | CZ49: Weight | DA49: Rest | DB49: Score | DE49: Feedback | DH49: Exercise Tonnage | DI49: Average Intensity | DJ49: Absolute Intensity | DL49: Day | DM49: Type | DN49: Isotonic Type | DO49: Exercise | DP49: Tempo | DQ49: Sets | DR49: Reps | DS49: Weight | DT49: Rest | DU49: Score | DX49: Feedback | EA49: Exercise Tonnage | EB49: Average Intensity | EC49: Absolute Intensity | EE49: Day | EF49: Type | EG49: Isotonic Type | EH49: Exercise | EI49: Tempo | EJ49: Sets | EK49: Reps | EL49: Weight | EM49: Rest | EN49: Score | EQ49: Feedback | ET49: Exercise Tonnage | EU49: Average Intensity | EV49: Absolute Intensity | EX49: Day | EY49: Type | EZ49: Isotonic Type | FA49: Exercise | FB49: Tempo | FC49: Sets | FD49: Reps | FE49: Weight | FF49: Rest | FG49: Score | FJ49: Feedback | FM49: Exercise Tonnage | FN49: Average Intensity | FO49: Absolute Intensity | FQ49: Day | FR49: Type | FS49: Isotonic Type | FT49: Exercise | FU49: Tempo | FV49: Sets | FW49: Reps | FX49: Weight | FY49: Rest | FZ49: Score | GC49: Feedback | GF49: Exercise Tonnage | GG49: Average Intensity | GH49: Absolute Intensity | GJ49: Day | GK49: Type | GL49: Isotonic Type | GM49: Exercise | GN49: Tempo | GO49: Sets | GP49: Reps | GQ49: Weight | GR49: Rest | GS49: Score | GV49: Feedback | GY49: Exercise Tonnage | GZ49: Average Intensity | HA49: Absolute Intensity
K50: Sets | L50: Reps | M50: Weight | AD50: Sets | AE50: Reps | AF50: Weight | AW50: Sets | AX50: Reps | AY50: Weight | BP50: Sets | BQ50: Reps | BR50: Weight | CI50: Sets | CJ50: Reps | CK50: Weight | DB50: Sets | DC50: Reps | DD50: Weight | DU50: Sets | DV50: Reps | DW50: Weight | EN50: Sets | EO50: Reps | EP50: Weight | FG50: Sets | FH50: Reps | FI50: Weight | FZ50: Sets | GA50: Reps | GB50: Weight | GS50: Sets | GT50: Reps | GU50: Weight
B51: Biofeedback Test: | C51: Isotonic | Q51: =IF(SUMPRODUCT(K51:K55,L51:L55,M51:M55), SUMPRODUCT(K51:K55,L51:L55,M51:M55), "") ->  | R51: =IFERROR(IF(SUM(M51:M55)/COUNT(K51:K55), ROUND(SUM(M51:M55)/COUNT(K51:K55),1), ""),"") ->  | S51: =IF(MAX(M51:M55),MAX(M51:M55),"") ->  | U51: Biofeedback Test: | V51: Isotonic | AJ51: =IF(SUMPRODUCT(AD51:AD55,AE51:AE55,AF51:AF55), SUMPRODUCT(AD51:AD55,AE51:AE55,AF51:AF55), "") ->  | AK51: =IFERROR(IF(SUM(AF51:AF55)/COUNT(AD51:AD55), ROUND(SUM(AF51:AF55)/COUNT(AD51:AD55),1), ""),"") ->  | AL51: =IF(MAX(AF51:AF55),MAX(AF51:AF55),"") ->  | AN51: Biofeedback Test: | AO51: Isotonic | BC51: =IF(SUMPRODUCT(AW51:AW55,AX51:AX55,AY51:AY55), SUMPRODUCT(AW51:AW55,AX51:AX55,AY51:AY55), "") ->  | BD51: =IFERROR(IF(SUM(AY51:AY55)/COUNT(AW51:AW55), ROUND(SUM(AY51:AY55)/COUNT(AW51:AW55),1), ""),"") ->  | BE51: =IF(MAX(AY51:AY55),MAX(AY51:AY55),"") ->  | BG51: Biofeedback Test: | BH51: Isotonic | BV51: =IF(SUMPRODUCT(BP51:BP55,BQ51:BQ55,BR51:BR55), SUMPRODUCT(BP51:BP55,BQ51:BQ55,BR51:BR55), "") ->  | BW51: =IFERROR(IF(SUM(BR51:BR55)/COUNT(BP51:BP55), ROUND(SUM(BR51:BR55)/COUNT(BP51:BP55),1), ""),"") ->  | BX51: =IF(MAX(BR51:BR55),MAX(BR51:BR55),"") ->  | BZ51: Biofeedback Test: | CA51: Isotonic | CO51: =IF(SUMPRODUCT(CI51:CI55,CJ51:CJ55,CK51:CK55), SUMPRODUCT(CI51:CI55,CJ51:CJ55,CK51:CK55), "") ->  | CP51: =IFERROR(IF(SUM(CK51:CK55)/COUNT(CI51:CI55), ROUND(SUM(CK51:CK55)/COUNT(CI51:CI55),1), ""),"") ->  | CQ51: =IF(MAX(CK51:CK55),MAX(CK51:CK55),"") ->  | CS51: Biofeedback Test: | CT51: Isotonic | DH51: =IF(SUMPRODUCT(DB51:DB55,DC51:DC55,DD51:DD55), SUMPRODUCT(DB51:DB55,DC51:DC55,DD51:DD55), "") ->  | DI51: =IFERROR(IF(SUM(DD51:DD55)/COUNT(DB51:DB55), ROUND(SUM(DD51:DD55)/COUNT(DB51:DB55),1), ""),"") ->  | DJ51: =IF(MAX(DD51:DD55),MAX(DD51:DD55),"") ->  | DL51: Biofeedback Test: | DM51: Isotonic | EA51: =IF(SUMPRODUCT(DU51:DU55,DV51:DV55,DW51:DW55), SUMPRODUCT(DU51:DU55,DV51:DV55,DW51:DW55), "") ->  | EB51: =IFERROR(IF(SUM(DW51:DW55)/COUNT(DU51:DU55), ROUND(SUM(DW51:DW55)/COUNT(DU51:DU55),1), ""),"") ->  | EC51: =IF(MAX(DW51:DW55),MAX(DW51:DW55),"") ->  | EE51: Biofeedback Test: | EF51: Isotonic | ET51: =IF(SUMPRODUCT(EN51:EN55,EO51:EO55,EP51:EP55), SUMPRODUCT(EN51:EN55,EO51:EO55,EP51:EP55), "") ->  | EU51: =IFERROR(IF(SUM(EP51:EP55)/COUNT(EN51:EN55), ROUND(SUM(EP51:EP55)/COUNT(EN51:EN55),1), ""),"") ->  | EV51: =IF(MAX(EP51:EP55),MAX(EP51:EP55),"") ->  | EX51: Biofeedback Test: | EY51: Isotonic | FM51: =IF(SUMPRODUCT(FG51:FG55,FH51:FH55,FI51:FI55), SUMPRODUCT(FG51:FG55,FH51:FH55,FI51:FI55), "") ->  | FN51: =IFERROR(IF(SUM(FI51:FI55)/COUNT(FG51:FG55), ROUND(SUM(FI51:FI55)/COUNT(FG51:FG55),1), ""),"") ->  | FO51: =IF(MAX(FI51:FI55),MAX(FI51:FI55),"") ->  | FQ51: Biofeedback Test: | FR51: Isotonic | GF51: =IF(SUMPRODUCT(FZ51:FZ55,GA51:GA55,GB51:GB55), SUMPRODUCT(FZ51:FZ55,GA51:GA55,GB51:GB55), "") ->  | GG51: =IFERROR(IF(SUM(GB51:GB55)/COUNT(FZ51:FZ55), ROUND(SUM(GB51:GB55)/COUNT(FZ51:FZ55),1), ""),"") ->  | GH51: =IF(MAX(GB51:GB55),MAX(GB51:GB55),"") ->  | GJ51: Biofeedback Test: | GK51: Isotonic | GY51: =IF(SUMPRODUCT(GS51:GS55,GT51:GT55,GU51:GU55), SUMPRODUCT(GS51:GS55,GT51:GT55,GU51:GU55), "") ->  | GZ51: =IFERROR(IF(SUM(GU51:GU55)/COUNT(GS51:GS55), ROUND(SUM(GU51:GU55)/COUNT(GS51:GS55),1), ""),"") ->  | HA51: =IF(MAX(GU51:GU55),MAX(GU51:GU55),"") -> 
B56: Day 3 Isotonic | Q56: =IF(SUMPRODUCT(K56:K60,L56:L60,M56:M60), SUMPRODUCT(K56:K60,L56:L60,M56:M60), "") ->  | R56: =IFERROR(IF(SUM(M56:M60)/COUNT(K56:K60), ROUND(SUM(M56:M60)/COUNT(K56:K60),1), ""),"") ->  | S56: =IF(MAX(M56:M60),MAX(M56:M60),"") ->  | U56: Day 3 Isotonic | AJ56: =IF(SUMPRODUCT(AD56:AD60,AE56:AE60,AF56:AF60), SUMPRODUCT(AD56:AD60,AE56:AE60,AF56:AF60), "") ->  | AK56: =IFERROR(IF(SUM(AF56:AF60)/COUNT(AD56:AD60), ROUND(SUM(AF56:AF60)/COUNT(AD56:AD60),1), ""),"") ->  | AL56: =IF(MAX(AF56:AF60),MAX(AF56:AF60),"") ->  | AN56: Day 3 Isotonic | BC56: =IF(SUMPRODUCT(AW56:AW60,AX56:AX60,AY56:AY60), SUMPRODUCT(AW56:AW60,AX56:AX60,AY56:AY60), "") ->  | BD56: =IFERROR(IF(SUM(AY56:AY60)/COUNT(AW56:AW60), ROUND(SUM(AY56:AY60)/COUNT(AW56:AW60),1), ""),"") ->  | BE56: =IF(MAX(AY56:AY60),MAX(AY56:AY60),"") ->  | BG56: Day 3 Isotonic | BV56: =IF(SUMPRODUCT(BP56:BP60,BQ56:BQ60,BR56:BR60), SUMPRODUCT(BP56:BP60,BQ56:BQ60,BR56:BR60), "") ->  | BW56: =IFERROR(IF(SUM(BR56:BR60)/COUNT(BP56:BP60), ROUND(SUM(BR56:BR60)/COUNT(BP56:BP60),1), ""),"") ->  | BX56: =IF(MAX(BR56:BR60),MAX(BR56:BR60),"") ->  | BZ56: Day 3 Isotonic | CO56: =IF(SUMPRODUCT(CI56:CI60,CJ56:CJ60,CK56:CK60), SUMPRODUCT(CI56:CI60,CJ56:CJ60,CK56:CK60), "") ->  | CP56: =IFERROR(IF(SUM(CK56:CK60)/COUNT(CI56:CI60), ROUND(SUM(CK56:CK60)/COUNT(CI56:CI60),1), ""),"") ->  | CQ56: =IF(MAX(CK56:CK60),MAX(CK56:CK60),"") ->  | CS56: Day 3 Isotonic | DH56: =IF(SUMPRODUCT(DB56:DB60,DC56:DC60,DD56:DD60), SUMPRODUCT(DB56:DB60,DC56:DC60,DD56:DD60), "") ->  | DI56: =IFERROR(IF(SUM(DD56:DD60)/COUNT(DB56:DB60), ROUND(SUM(DD56:DD60)/COUNT(DB56:DB60),1), ""),"") ->  | DJ56: =IF(MAX(DD56:DD60),MAX(DD56:DD60),"") ->  | DL56: Day 3 Isotonic | EA56: =IF(SUMPRODUCT(DU56:DU60,DV56:DV60,DW56:DW60), SUMPRODUCT(DU56:DU60,DV56:DV60,DW56:DW60), "") ->  | EB56: =IFERROR(IF(SUM(DW56:DW60)/COUNT(DU56:DU60), ROUND(SUM(DW56:DW60)/COUNT(DU56:DU60),1), ""),"") ->  | EC56: =IF(MAX(DW56:DW60),MAX(DW56:DW60),"") ->  | EE56: Day 3 Isotonic | ET56: =IF(SUMPRODUCT(EN56:EN60,EO56:EO60,EP56:EP60), SUMPRODUCT(EN56:EN60,EO56:EO60,EP56:EP60), "") ->  | EU56: =IFERROR(IF(SUM(EP56:EP60)/COUNT(EN56:EN60), ROUND(SUM(EP56:EP60)/COUNT(EN56:EN60),1), ""),"") ->  | EV56: =IF(MAX(EP56:EP60),MAX(EP56:EP60),"") ->  | EX56: Day 3 Isotonic | FM56: =IF(SUMPRODUCT(FG56:FG60,FH56:FH60,FI56:FI60), SUMPRODUCT(FG56:FG60,FH56:FH60,FI56:FI60), "") ->  | FN56: =IFERROR(IF(SUM(FI56:FI60)/COUNT(FG56:FG60), ROUND(SUM(FI56:FI60)/COUNT(FG56:FG60),1), ""),"") ->  | FO56: =IF(MAX(FI56:FI60),MAX(FI56:FI60),"") ->  | FQ56: Day 3 Isotonic | GF56: =IF(SUMPRODUCT(FZ56:FZ60,GA56:GA60,GB56:GB60), SUMPRODUCT(FZ56:FZ60,GA56:GA60,GB56:GB60), "") ->  | GG56: =IFERROR(IF(SUM(GB56:GB60)/COUNT(FZ56:FZ60), ROUND(SUM(GB56:GB60)/COUNT(FZ56:FZ60),1), ""),"") ->  | GH56: =IF(MAX(GB56:GB60),MAX(GB56:GB60),"") ->  | GJ56: Day 3 Isotonic | GY56: =IF(SUMPRODUCT(GS56:GS60,GT56:GT60,GU56:GU60), SUMPRODUCT(GS56:GS60,GT56:GT60,GU56:GU60), "") ->  | GZ56: =IFERROR(IF(SUM(GU56:GU60)/COUNT(GS56:GS60), ROUND(SUM(GU56:GU60)/COUNT(GS56:GS60),1), ""),"") ->  | HA56: =IF(MAX(GU56:GU60),MAX(GU56:GU60),"") -> 
Q61: =IF(SUMPRODUCT(K61:K65,L61:L65,M61:M65), SUMPRODUCT(K61:K65,L61:L65,M61:M65), "") ->  | R61: =IFERROR(IF(SUM(M61:M65)/COUNT(K61:K65), ROUND(SUM(M61:M65)/COUNT(K61:K65),1), ""),"") ->  | S61: =IF(MAX(M61:M65),MAX(M61:M65),"") ->  | AJ61: =IF(SUMPRODUCT(AD61:AD65,AE61:AE65,AF61:AF65), SUMPRODUCT(AD61:AD65,AE61:AE65,AF61:AF65), "") ->  | AK61: =IFERROR(IF(SUM(AF61:AF65)/COUNT(AD61:AD65), ROUND(SUM(AF61:AF65)/COUNT(AD61:AD65),1), ""),"") ->  | AL61: =IF(MAX(AF61:AF65),MAX(AF61:AF65),"") ->  | BC61: =IF(SUMPRODUCT(AW61:AW65,AX61:AX65,AY61:AY65), SUMPRODUCT(AW61:AW65,AX61:AX65,AY61:AY65), "") ->  | BD61: =IFERROR(IF(SUM(AY61:AY65)/COUNT(AW61:AW65), ROUND(SUM(AY61:AY65)/COUNT(AW61:AW65),1), ""),"") ->  | BE61: =IF(MAX(AY61:AY65),MAX(AY61:AY65),"") ->  | BV61: =IF(SUMPRODUCT(BP61:BP65,BQ61:BQ65,BR61:BR65), SUMPRODUCT(BP61:BP65,BQ61:BQ65,BR61:BR65), "") ->  | BW61: =IFERROR(IF(SUM(BR61:BR65)/COUNT(BP61:BP65), ROUND(SUM(BR61:BR65)/COUNT(BP61:BP65),1), ""),"") ->  | BX61: =IF(MAX(BR61:BR65),MAX(BR61:BR65),"") ->  | CO61: =IF(SUMPRODUCT(CI61:CI65,CJ61:CJ65,CK61:CK65), SUMPRODUCT(CI61:CI65,CJ61:CJ65,CK61:CK65), "") ->  | CP61: =IFERROR(IF(SUM(CK61:CK65)/COUNT(CI61:CI65), ROUND(SUM(CK61:CK65)/COUNT(CI61:CI65),1), ""),"") ->  | CQ61: =IF(MAX(CK61:CK65),MAX(CK61:CK65),"") ->  | DH61: =IF(SUMPRODUCT(DB61:DB65,DC61:DC65,DD61:DD65), SUMPRODUCT(DB61:DB65,DC61:DC65,DD61:DD65), "") ->  | DI61: =IFERROR(IF(SUM(DD61:DD65)/COUNT(DB61:DB65), ROUND(SUM(DD61:DD65)/COUNT(DB61:DB65),1), ""),"") ->  | DJ61: =IF(MAX(DD61:DD65),MAX(DD61:DD65),"") ->  | EA61: =IF(SUMPRODUCT(DU61:DU65,DV61:DV65,DW61:DW65), SUMPRODUCT(DU61:DU65,DV61:DV65,DW61:DW65), "") ->  | EB61: =IFERROR(IF(SUM(DW61:DW65)/COUNT(DU61:DU65), ROUND(SUM(DW61:DW65)/COUNT(DU61:DU65),1), ""),"") ->  | EC61: =IF(MAX(DW61:DW65),MAX(DW61:DW65),"") ->  | ET61: =IF(SUMPRODUCT(EN61:EN65,EO61:EO65,EP61:EP65), SUMPRODUCT(EN61:EN65,EO61:EO65,EP61:EP65), "") ->  | EU61: =IFERROR(IF(SUM(EP61:EP65)/COUNT(EN61:EN65), ROUND(SUM(EP61:EP65)/COUNT(EN61:EN65),1), ""),"") ->  | EV61: =IF(MAX(EP61:EP65),MAX(EP61:EP65),"") ->  | FM61: =IF(SUMPRODUCT(FG61:FG65,FH61:FH65,FI61:FI65), SUMPRODUCT(FG61:FG65,FH61:FH65,FI61:FI65), "") ->  | FN61: =IFERROR(IF(SUM(FI61:FI65)/COUNT(FG61:FG65), ROUND(SUM(FI61:FI65)/COUNT(FG61:FG65),1), ""),"") ->  | FO61: =IF(MAX(FI61:FI65),MAX(FI61:FI65),"") ->  | GF61: =IF(SUMPRODUCT(FZ61:FZ65,GA61:GA65,GB61:GB65), SUMPRODUCT(FZ61:FZ65,GA61:GA65,GB61:GB65), "") ->  | GG61: =IFERROR(IF(SUM(GB61:GB65)/COUNT(FZ61:FZ65), ROUND(SUM(GB61:GB65)/COUNT(FZ61:FZ65),1), ""),"") ->  | GH61: =IF(MAX(GB61:GB65),MAX(GB61:GB65),"") ->  | GY61: =IF(SUMPRODUCT(GS61:GS65,GT61:GT65,GU61:GU65), SUMPRODUCT(GS61:GS65,GT61:GT65,GU61:GU65), "") ->  | GZ61: =IFERROR(IF(SUM(GU61:GU65)/COUNT(GS61:GS65), ROUND(SUM(GU61:GU65)/COUNT(GS61:GS65),1), ""),"") ->  | HA61: =IF(MAX(GU61:GU65),MAX(GU61:GU65),"") -> 
C66: Session RPE: | E66: Session Duration: | J66: Session Score: | N66: =IFERROR(IF(SUBSTITUTE(D66,"RPE ","")*G66, CONCATENATE(SUBSTITUTE(D66,"RPE ","")*G66, " AU"),0),0) -> 0 | P66: Daily Totals: | Q66: =IF(SUM(Q51:Q65)<1,"",SUM(Q51:Q65)) ->  | R66: =IFERROR(IF(SUM(M51:M65)/COUNT(K51:K65), ROUND(SUM(M51:M65)/COUNT(K51:K65),1),""),"") ->  | S66: =IF(SUM(S51:S65)>0,SUM(S51:S65),"") ->  | V66: Session RPE: | X66: Session Duration: | AC66: Session Score: | AG66: =IFERROR(IF(SUBSTITUTE(W66,"RPE ","")*Z66, CONCATENATE(SUBSTITUTE(W66,"RPE ","")*Z66, " AU"),0),0) -> 0 | AI66: Daily Totals: | AJ66: =IF(SUM(AJ51:AJ65)<1,"",SUM(AJ51:AJ65)) ->  | AK66: =IFERROR(IF(SUM(AF51:AF65)/COUNT(AD51:AD65), ROUND(SUM(AF51:AF65)/COUNT(AD51:AD65),1),""),"") ->  | AL66: =IF(SUM(AL51:AL65)>0,SUM(AL51:AL65),"") ->  | AO66: Session RPE: | AQ66: Session Duration: | AV66: Session Score: | AZ66: =IFERROR(IF(SUBSTITUTE(AP66,"RPE ","")*AS66, CONCATENATE(SUBSTITUTE(AP66,"RPE ","")*AS66, " AU"),0),0) -> 0 | BB66: Daily Totals: | BC66: =IF(SUM(BC51:BC65)<1,"",SUM(BC51:BC65)) ->  | BD66: =IFERROR(IF(SUM(AY51:AY65)/COUNT(AW51:AW65), ROUND(SUM(AY51:AY65)/COUNT(AW51:AW65),1),""),"") ->  | BE66: =IF(SUM(BE51:BE65)>0,SUM(BE51:BE65),"") ->  | BH66: Session RPE: | BJ66: Session Duration: | BO66: Session Score: | BS66: =IFERROR(IF(SUBSTITUTE(BI66,"RPE ","")*BL66, CONCATENATE(SUBSTITUTE(BI66,"RPE ","")*BL66, " AU"),0),0) -> 0 | BU66: Daily Totals: | BV66: =IF(SUM(BV51:BV65)<1,"",SUM(BV51:BV65)) ->  | BW66: =IFERROR(IF(SUM(BR51:BR65)/COUNT(BP51:BP65), ROUND(SUM(BR51:BR65)/COUNT(BP51:BP65),1),""),"") ->  | BX66: =IF(SUM(BX51:BX65)>0,SUM(BX51:BX65),"") ->  | CA66: Session RPE: | CC66: Session Duration: | CH66: Session Score: | CL66: =IFERROR(IF(SUBSTITUTE(CB66,"RPE ","")*CE66, CONCATENATE(SUBSTITUTE(CB66,"RPE ","")*CE66, " AU"),0),0) -> 0 | CN66: Daily Totals: | CO66: =IF(SUM(CO51:CO65)<1,"",SUM(CO51:CO65)) ->  | CP66: =IFERROR(IF(SUM(CK51:CK65)/COUNT(CI51:CI65), ROUND(SUM(CK51:CK65)/COUNT(CI51:CI65),1),""),"") ->  | CQ66: =IF(SUM(CQ51:CQ65)>0,SUM(CQ51:CQ65),"") ->  | CT66: Session RPE: | CV66: Session Duration: | DA66: Session Score: | DE66: =IFERROR(IF(SUBSTITUTE(CU66,"RPE ","")*CX66, CONCATENATE(SUBSTITUTE(CU66,"RPE ","")*CX66, " AU"),0),0) -> 0 | DG66: Daily Totals: | DH66: =IF(SUM(DH51:DH65)<1,"",SUM(DH51:DH65)) ->  | DI66: =IFERROR(IF(SUM(DD51:DD65)/COUNT(DB51:DB65), ROUND(SUM(DD51:DD65)/COUNT(DB51:DB65),1),""),"") ->  | DJ66: =IF(SUM(DJ51:DJ65)>0,SUM(DJ51:DJ65),"") ->  | DM66: Session RPE: | DO66: Session Duration: | DT66: Session Score: | DX66: =IFERROR(IF(SUBSTITUTE(DN66,"RPE ","")*DQ66, CONCATENATE(SUBSTITUTE(DN66,"RPE ","")*DQ66, " AU"),0),0) -> 0 | DZ66: Daily Totals: | EA66: =IF(SUM(EA51:EA65)<1,"",SUM(EA51:EA65)) ->  | EB66: =IFERROR(IF(SUM(DW51:DW65)/COUNT(DU51:DU65), ROUND(SUM(DW51:DW65)/COUNT(DU51:DU65),1),""),"") ->  | EC66: =IF(SUM(EC51:EC65)>0,SUM(EC51:EC65),"") ->  | EF66: Session RPE: | EH66: Session Duration: | EM66: Session Score: | EQ66: =IFERROR(IF(SUBSTITUTE(EG66,"RPE ","")*EJ66, CONCATENATE(SUBSTITUTE(EG66,"RPE ","")*EJ66, " AU"),0),0) -> 0 | ES66: Daily Totals: | ET66: =IF(SUM(ET51:ET65)<1,"",SUM(ET51:ET65)) ->  | EU66: =IFERROR(IF(SUM(EP51:EP65)/COUNT(EN51:EN65), ROUND(SUM(EP51:EP65)/COUNT(EN51:EN65),1),""),"") ->  | EV66: =IF(SUM(EV51:EV65)>0,SUM(EV51:EV65),"") ->  | EY66: Session RPE: | FA66: Session Duration: | FF66: Session Score: | FJ66: =IFERROR(IF(SUBSTITUTE(EZ66,"RPE ","")*FC66, CONCATENATE(SUBSTITUTE(EZ66,"RPE ","")*FC66, " AU"),0),0) -> 0 | FL66: Daily Totals: | FM66: =IF(SUM(FM51:FM65)<1,"",SUM(FM51:FM65)) ->  | FN66: =IFERROR(IF(SUM(FI51:FI65)/COUNT(FG51:FG65), ROUND(SUM(FI51:FI65)/COUNT(FG51:FG65),1),""),"") ->  | FO66: =IF(SUM(FO51:FO65)>0,SUM(FO51:FO65),"") ->  | FR66: Session RPE: | FT66: Session Duration: | FY66: Session Score: | GC66: =IFERROR(IF(SUBSTITUTE(FS66,"RPE ","")*FV66, CONCATENATE(SUBSTITUTE(FS66,"RPE ","")*FV66, " AU"),0),0) -> 0 | GE66: Daily Totals: | GF66: =IF(SUM(GF51:GF65)<1,"",SUM(GF51:GF65)) ->  | GG66: =IFERROR(IF(SUM(GB51:GB65)/COUNT(FZ51:FZ65), ROUND(SUM(GB51:GB65)/COUNT(FZ51:FZ65),1),""),"") ->  | GH66: =IF(SUM(GH51:GH65)>0,SUM(GH51:GH65),"") ->  | GK66: Session RPE: | GM66: Session Duration: | GR66: Session Score: | GV66: =IFERROR(IF(SUBSTITUTE(GL66,"RPE ","")*GO66, CONCATENATE(SUBSTITUTE(GL66,"RPE ","")*GO66, " AU"),0),0) -> 0 | GX66: Daily Totals: | GY66: =IF(SUM(GY51:GY65)<1,"",SUM(GY51:GY65)) ->  | GZ66: =IFERROR(IF(SUM(GU51:GU65)/COUNT(GS51:GS65), ROUND(SUM(GU51:GU65)/COUNT(GS51:GS65),1),""),"") ->  | HA66: =IF(SUM(HA51:HA65)>0,SUM(HA51:HA65),"") -> 
B67: Day | C67: Type | D67: Exercise | G67: Sets | H67: Duration | J67: Rest | K67: Objective Score | N67: Feedback | Q67: Exercise Tonnage | R67: Absolute Intensity | U67: Day | V67: Type | W67: Exercise | Z67: Sets | AA67: Duration | AC67: Rest | AD67: Objective Score | AG67: Feedback | AJ67: Exercise Tonnage | AK67: Absolute Intensity | AN67: Day | AO67: Weightlifting Movement | AP67: Cluster Type | AQ67: Exercise | AR67: Tempo | AS67: Sets | AT67: Reps | AU67: Weight | AV67: Rest | AW67: Score | AZ67: Feedback | BC67: Exercise Tonnage | BD67: Average Intensity | BE67: Absolute Intensity | BG67: Day | BH67: Weightlifting Movement | BI67: Cluster Type | BJ67: Exercise | BK67: Tempo | BL67: Sets | BM67: Reps | BN67: Weight | BO67: Rest | BP67: Score | BS67: Feedback | BV67: Exercise Tonnage | BW67: Average Intensity | BX67: Absolute Intensity | BZ67: Day | CA67: Weightlifting Movement | CB67: Cluster Type | CC67: Exercise | CD67: Tempo | CE67: Sets | CF67: Reps | CG67: Weight | CH67: Rest | CI67: Score | CL67: Feedback | CO67: Exercise Tonnage | CP67: Average Intensity | CQ67: Absolute Intensity | CS67: Day | CT67: Weightlifting Movement | CU67: Cluster Type | CV67: Exercise | CW67: Tempo | CX67: Sets | CY67: Reps | CZ67: Weight | DA67: Rest | DB67: Score | DE67: Feedback | DH67: Exercise Tonnage | DI67: Average Intensity | DJ67: Absolute Intensity | DL67: Day | DM67: Weightlifting Movement | DN67: Cluster Type | DO67: Exercise | DP67: Tempo | DQ67: Sets | DR67: Reps | DS67: Weight | DT67: Rest | DU67: Score | DX67: Feedback | EA67: Exercise Tonnage | EB67: Average Intensity | EC67: Absolute Intensity | EE67: Day | EF67: Type | EG67: Exercise | EJ67: Sets | EK67: Duration | EM67: Rest | EN67: Objective Score | EQ67: Feedback | ET67: Exercise Tonnage | EU67: Absolute Intensity | EX67: Day | EY67: Type | EZ67: Exercise | FC67: Sets | FD67: Duration | FF67: Rest | FG67: Objective Score | FJ67: Feedback | FM67: Exercise Tonnage | FN67: Absolute Intensity | FQ67: Day | FR67: Type | FS67: Exercise | FV67: Sets | FW67: Duration | FY67: Rest | FZ67: Objective Score | GC67: Feedback | GF67: Exercise Tonnage | GG67: Absolute Intensity | GJ67: Day | GK67: Type | GL67: Exercise | GO67: Sets | GP67: Duration | GR67: Rest | GS67: Objective Score | GV67: Feedback | GY67: Exercise Tonnage | GZ67: Absolute Intensity
K68: Sets | L68: Duration | M68: Weight | AD68: Sets | AE68: Duration | AF68: Weight | AW68: Sets | AX68: Reps | AY68: Weight | BP68: Sets | BQ68: Reps | BR68: Weight | CI68: Sets | CJ68: Reps | CK68: Weight | DB68: Sets | DC68: Reps | DD68: Weight | DU68: Sets | DV68: Reps | DW68: Weight | EN68: Sets | EO68: Duration | EP68: Weight | FG68: Sets | FH68: Duration | FI68: Weight | FZ68: Sets | GA68: Duration | GB68: Weight | GS68: Sets | GT68: Duration | GU68: Weight
B69: Biofeedback Test: | C69: Double-Leg | G69: 5 | H69: 30 - 45 Seconds | J69: 90 - 120 Seconds | Q69: =IF(K69*L69*(M69)>0, K69*L69*(M69), "") ->  | R69: =IF(MAX(M69:M73) > 0, MAX(M69:M73), "") ->  | U69: Biofeedback Test: | V69: Double-Leg | Z69: 5 | AA69: 30 - 45 Seconds | AC69: 90 - 120 Seconds | AJ69: =IF(AD69*AE69*(AF69)>0, AD69*AE69*(AF69), "") ->  | AK69: =IF(MAX(AF69:AF73) > 0, MAX(AF69:AF73), "") ->  | AN69: Biofeedback Test: | AO69: Snatch | AP69: Snatch Cluster 3 | AQ69: Power-Snatch (No Feet, w/ Pause at Catch) | BC69: =IF(AW69*AX69*AY69<1, "", AW69*AX69*AY69) ->  | BD69: =IFERROR(IF(SUM(AY69:AY73)/COUNT(AW69:AW73), ROUND(SUM(AY69:AY73)/COUNT(AW69:AW73),1), ""),"") ->  | BE69: =IF(MAX(AY69:AY73),MAX(AY69:AY73),"") ->  | BG69: Biofeedback Test: | BH69: Snatch | BI69: Snatch Cluster 4 | BV69: =IF(BP69*BQ69*BR69<1, "", BP69*BQ69*BR69) ->  | BW69: =IFERROR(IF(SUM(BR69:BR73)/COUNT(BP69:BP73), ROUND(SUM(BR69:BR73)/COUNT(BP69:BP73),1), ""),"") ->  | BX69: =IF(MAX(BR69:BR73),MAX(BR69:BR73),"") ->  | BZ69: Biofeedback Test: | CA69: Snatch | CB69: Snatch Cluster 5 | CO69: =IF(CI69*CJ69*CK69<1, "", CI69*CJ69*CK69) ->  | CP69: =IFERROR(IF(SUM(CK69:CK73)/COUNT(CI69:CI73), ROUND(SUM(CK69:CK73)/COUNT(CI69:CI73),1), ""),"") ->  | CQ69: =IF(MAX(CK69:CK73),MAX(CK69:CK73),"") ->  | CS69: Biofeedback Test: | CT69: Snatch | DH69: =IF(DB69*DC69*DD69<1, "", DB69*DC69*DD69) ->  | DI69: =IFERROR(IF(SUM(DD69:DD73)/COUNT(DB69:DB73), ROUND(SUM(DD69:DD73)/COUNT(DB69:DB73),1), ""),"") ->  | DJ69: =IF(MAX(DD69:DD73),MAX(DD69:DD73),"") ->  | DL69: Biofeedback Test: | DM69: Snatch | EA69: =IF(DU69*DV69*DW69<1, "", DU69*DV69*DW69) ->  | EB69: =IFERROR(IF(SUM(DW69:DW73)/COUNT(DU69:DU73), ROUND(SUM(DW69:DW73)/COUNT(DU69:DU73),1), ""),"") ->  | EC69: =IF(MAX(DW69:DW73),MAX(DW69:DW73),"") ->  | EE69: Biofeedback Test: | EF69: Double-Leg | EJ69: 5 | EK69: 30 - 45 Seconds | EM69: 90 - 120 Seconds | ET69: =IF(EN69*EO69*(EP69)>0, EN69*EO69*(EP69), "") ->  | EU69: =IF(MAX(EP69:EP73) > 0, MAX(EP69:EP73), "") ->  | EX69: Biofeedback Test: | EY69: Double-Leg | FC69: 5 | FD69: 30 - 45 Seconds | FF69: 90 - 120 Seconds | FM69: =IF(FG69*FH69*(FI69)>0, FG69*FH69*(FI69), "") ->  | FN69: =IF(MAX(FI69:FI73) > 0, MAX(FI69:FI73), "") ->  | FQ69: Biofeedback Test: | FR69: Double-Leg | FV69: 5 | FW69: 30 - 45 Seconds | FY69: 90 - 120 Seconds | GF69: =IF(FZ69*GA69*(GB69)>0, FZ69*GA69*(GB69), "") ->  | GG69: =IF(MAX(GB69:GB73) > 0, MAX(GB69:GB73), "") ->  | GJ69: Biofeedback Test: | GK69: Double-Leg | GO69: 5 | GP69: 30 - 45 Seconds | GR69: 90 - 120 Seconds | GY69: =IF(GS69*GT69*(GU69)>0, GS69*GT69*(GU69), "") ->  | GZ69: =IF(MAX(GU69:GU73) > 0, MAX(GU69:GU73), "") -> 
G70: 5 | H70: 30 - 45 Seconds | J70: 90 - 120 Seconds | Q70: =IF(K70*L70*(M70)>0, K70*L70*(M70), "") ->  | Z70: 5 | AA70: 30 - 45 Seconds | AC70: 90 - 120 Seconds | AJ70: =IF(AD70*AE70*(AF70)>0, AD70*AE70*(AF70), "") ->  | BC70: =IF(AW70*AX70*AY70<1, "", AW70*AX70*AY70) ->  | BV70: =IF(BP70*BQ70*BR70<1, "", BP70*BQ70*BR70) ->  | CO70: =IF(CI70*CJ70*CK70<1, "", CI70*CJ70*CK70) ->  | DH70: =IF(DB70*DC70*DD70<1, "", DB70*DC70*DD70) ->  | EA70: =IF(DU70*DV70*DW70<1, "", DU70*DV70*DW70) ->  | EJ70: 5 | EK70: 30 - 45 Seconds | EM70: 90 - 120 Seconds | ET70: =IF(EN70*EO70*(EP70)>0, EN70*EO70*(EP70), "") ->  | FC70: 5 | FD70: 30 - 45 Seconds | FF70: 90 - 120 Seconds | FM70: =IF(FG70*FH70*(FI70)>0, FG70*FH70*(FI70), "") ->  | FV70: 5 | FW70: 30 - 45 Seconds | FY70: 90 - 120 Seconds | GF70: =IF(FZ70*GA70*(GB70)>0, FZ70*GA70*(GB70), "") ->  | GO70: 5 | GP70: 30 - 45 Seconds | GR70: 90 - 120 Seconds | GY70: =IF(GS70*GT70*(GU70)>0, GS70*GT70*(GU70), "") -> 
G71: 5 | H71: 31 - 45 Seconds | J71: 91 - 120 Seconds | Z71: 5 | AA71: 31 - 45 Seconds | AC71: 91 - 120 Seconds | EJ71: 5 | EK71: 31 - 45 Seconds | EM71: 91 - 120 Seconds | FC71: 5 | FD71: 31 - 45 Seconds | FF71: 91 - 120 Seconds | FV71: 5 | FW71: 31 - 45 Seconds | FY71: 91 - 120 Seconds | GO71: 5 | GP71: 31 - 45 Seconds | GR71: 91 - 120 Seconds
G72: 5 | H72: 32 - 45 Seconds | J72: 92 - 120 Seconds | Z72: 5 | AA72: 32 - 45 Seconds | AC72: 92 - 120 Seconds | EJ72: 5 | EK72: 32 - 45 Seconds | EM72: 92 - 120 Seconds | FC72: 5 | FD72: 32 - 45 Seconds | FF72: 92 - 120 Seconds | FV72: 5 | FW72: 32 - 45 Seconds | FY72: 92 - 120 Seconds | GO72: 5 | GP72: 32 - 45 Seconds | GR72: 92 - 120 Seconds
G73: 5 | H73: 33 - 45 Seconds | J73: 93 - 120 Seconds | Z73: 5 | AA73: 33 - 45 Seconds | AC73: 93 - 120 Seconds | EJ73: 5 | EK73: 33 - 45 Seconds | EM73: 93 - 120 Seconds | FC73: 5 | FD73: 33 - 45 Seconds | FF73: 93 - 120 Seconds | FV73: 5 | FW73: 33 - 45 Seconds | FY73: 93 - 120 Seconds | GO73: 5 | GP73: 33 - 45 Seconds | GR73: 93 - 120 Seconds
B74: Day 4 Optional Rest | C74: Single-Leg | G74: 5 | H74: 34 - 45 Seconds | J74: 94 - 120 Seconds | R74: =IF(MAX(M74:M78) > 0, MAX(M74:M78), "") ->  | U74: Day 4 Optional Rest | V74: Single-Leg | Z74: 5 | AA74: 34 - 45 Seconds | AC74: 94 - 120 Seconds | AK74: =IF(MAX(AF74:AF78) > 0, MAX(AF74:AF78), "") ->  | AN74: Day 4 Dynamics | AO74: Jerk | BD74: =IFERROR(IF(SUM(AY74:AY78)/COUNT(AW74:AW78), ROUND(SUM(AY74:AY78)/COUNT(AW74:AW78),1), ""),"") ->  | BE74: =IF(MAX(AY74:AY78),MAX(AY74:AY78),"") ->  | BG74: Day 4 Dynamics | BH74: Jerk | BW74: =IFERROR(IF(SUM(BR74:BR78)/COUNT(BP74:BP78), ROUND(SUM(BR74:BR78)/COUNT(BP74:BP78),1), ""),"") ->  | BX74: =IF(MAX(BR74:BR78),MAX(BR74:BR78),"") ->  | BZ74: Day 4 Dynamics | CA74: Jerk | CP74: =IFERROR(IF(SUM(CK74:CK78)/COUNT(CI74:CI78), ROUND(SUM(CK74:CK78)/COUNT(CI74:CI78),1), ""),"") ->  | CQ74: =IF(MAX(CK74:CK78),MAX(CK74:CK78),"") ->  | CS74: Day 4 Dynamics | CT74: Jerk | DI74: =IFERROR(IF(SUM(DD74:DD78)/COUNT(DB74:DB78), ROUND(SUM(DD74:DD78)/COUNT(DB74:DB78),1), ""),"") ->  | DJ74: =IF(MAX(DD74:DD78),MAX(DD74:DD78),"") ->  | DL74: Day 4 Dynamics | DM74: Jerk | EB74: =IFERROR(IF(SUM(DW74:DW78)/COUNT(DU74:DU78), ROUND(SUM(DW74:DW78)/COUNT(DU74:DU78),1), ""),"") ->  | EC74: =IF(MAX(DW74:DW78),MAX(DW74:DW78),"") ->  | EE74: Day 4 Optional Rest | EF74: Single-Leg | EJ74: 5 | EK74: 34 - 45 Seconds | EM74: 94 - 120 Seconds | EU74: =IF(MAX(EP74:EP78) > 0, MAX(EP74:EP78), "") ->  | EX74: Day 4 Optional Rest | EY74: Single-Leg | FC74: 5 | FD74: 34 - 45 Seconds | FF74: 94 - 120 Seconds | FN74: =IF(MAX(FI74:FI78) > 0, MAX(FI74:FI78), "") ->  | FQ74: Day 4 Optional Rest | FR74: Single-Leg | FV74: 5 | FW74: 34 - 45 Seconds | FY74: 94 - 120 Seconds | GG74: =IF(MAX(GB74:GB78) > 0, MAX(GB74:GB78), "") ->  | GJ74: Day 4 Optional Rest | GK74: Single-Leg | GO74: 5 | GP74: 34 - 45 Seconds | GR74: 94 - 120 Seconds | GZ74: =IF(MAX(GU74:GU78) > 0, MAX(GU74:GU78), "") -> 
G75: 5 | H75: 35 - 45 Seconds | J75: 95 - 120 Seconds | Z75: 5 | AA75: 35 - 45 Seconds | AC75: 95 - 120 Seconds | EJ75: 5 | EK75: 35 - 45 Seconds | EM75: 95 - 120 Seconds | FC75: 5 | FD75: 35 - 45 Seconds | FF75: 95 - 120 Seconds | FV75: 5 | FW75: 35 - 45 Seconds | FY75: 95 - 120 Seconds | GO75: 5 | GP75: 35 - 45 Seconds | GR75: 95 - 120 Seconds
G76: 5 | H76: 36 - 45 Seconds | J76: 96 - 120 Seconds | Z76: 5 | AA76: 36 - 45 Seconds | AC76: 96 - 120 Seconds | EJ76: 5 | EK76: 36 - 45 Seconds | EM76: 96 - 120 Seconds | FC76: 5 | FD76: 36 - 45 Seconds | FF76: 96 - 120 Seconds | FV76: 5 | FW76: 36 - 45 Seconds | FY76: 96 - 120 Seconds | GO76: 5 | GP76: 36 - 45 Seconds | GR76: 96 - 120 Seconds
G77: 5 | H77: 37 - 45 Seconds | J77: 97 - 120 Seconds | Z77: 5 | AA77: 37 - 45 Seconds | AC77: 97 - 120 Seconds | EJ77: 5 | EK77: 37 - 45 Seconds | EM77: 97 - 120 Seconds | FC77: 5 | FD77: 37 - 45 Seconds | FF77: 97 - 120 Seconds | FV77: 5 | FW77: 37 - 45 Seconds | FY77: 97 - 120 Seconds | GO77: 5 | GP77: 37 - 45 Seconds | GR77: 97 - 120 Seconds
G78: 5 | H78: 30 - 45 Seconds | J78: 90 - 120 Seconds | Z78: 5 | AA78: 30 - 45 Seconds | AC78: 90 - 120 Seconds | EJ78: 5 | EK78: 30 - 45 Seconds | EM78: 90 - 120 Seconds | FC78: 5 | FD78: 30 - 45 Seconds | FF78: 90 - 120 Seconds | FV78: 5 | FW78: 30 - 45 Seconds | FY78: 90 - 120 Seconds | GO78: 5 | GP78: 30 - 45 Seconds | GR78: 90 - 120 Seconds
C79: Single-Leg | G79: 5 | H79: 34 - 45 Seconds | J79: 94 - 120 Seconds | R79: =IF(MAX(M79:M83) > 0, MAX(M79:M83), "") ->  | V79: Single-Leg | Z79: 5 | AA79: 34 - 45 Seconds | AC79: 94 - 120 Seconds | AK79: =IF(MAX(AF79:AF83) > 0, MAX(AF79:AF83), "") ->  | AO79: Clean | BD79: =IFERROR(IF(SUM(AY79:AY83)/COUNT(AW79:AW83), ROUND(SUM(AY79:AY83)/COUNT(AW79:AW83),1), ""),"") ->  | BE79: =IF(MAX(AY79:AY83),MAX(AY79:AY83),"") ->  | BH79: Clean | BW79: =IFERROR(IF(SUM(BR79:BR83)/COUNT(BP79:BP83), ROUND(SUM(BR79:BR83)/COUNT(BP79:BP83),1), ""),"") ->  | BX79: =IF(MAX(BR79:BR83),MAX(BR79:BR83),"") ->  | CA79: Clean | CP79: =IFERROR(IF(SUM(CK79:CK83)/COUNT(CI79:CI83), ROUND(SUM(CK79:CK83)/COUNT(CI79:CI83),1), ""),"") ->  | CQ79: =IF(MAX(CK79:CK83),MAX(CK79:CK83),"") ->  | CT79: Clean | DI79: =IFERROR(IF(SUM(DD79:DD83)/COUNT(DB79:DB83), ROUND(SUM(DD79:DD83)/COUNT(DB79:DB83),1), ""),"") ->  | DJ79: =IF(MAX(DD79:DD83),MAX(DD79:DD83),"") ->  | DM79: Clean | EB79: =IFERROR(IF(SUM(DW79:DW83)/COUNT(DU79:DU83), ROUND(SUM(DW79:DW83)/COUNT(DU79:DU83),1), ""),"") ->  | EC79: =IF(MAX(DW79:DW83),MAX(DW79:DW83),"") ->  | EF79: Single-Leg | EJ79: 5 | EK79: 34 - 45 Seconds | EM79: 94 - 120 Seconds | EU79: =IF(MAX(EP79:EP83) > 0, MAX(EP79:EP83), "") ->  | EY79: Single-Leg | FC79: 5 | FD79: 34 - 45 Seconds | FF79: 94 - 120 Seconds | FN79: =IF(MAX(FI79:FI83) > 0, MAX(FI79:FI83), "") ->  | FR79: Single-Leg | FV79: 5 | FW79: 34 - 45 Seconds | FY79: 94 - 120 Seconds | GG79: =IF(MAX(GB79:GB83) > 0, MAX(GB79:GB83), "") ->  | GK79: Single-Leg | GO79: 5 | GP79: 34 - 45 Seconds | GR79: 94 - 120 Seconds | GZ79: =IF(MAX(GU79:GU83) > 0, MAX(GU79:GU83), "") -> 
G80: 5 | H80: 35 - 45 Seconds | J80: 95 - 120 Seconds | Z80: 5 | AA80: 35 - 45 Seconds | AC80: 95 - 120 Seconds | EJ80: 5 | EK80: 35 - 45 Seconds | EM80: 95 - 120 Seconds | FC80: 5 | FD80: 35 - 45 Seconds | FF80: 95 - 120 Seconds | FV80: 5 | FW80: 35 - 45 Seconds | FY80: 95 - 120 Seconds | GO80: 5 | GP80: 35 - 45 Seconds | GR80: 95 - 120 Seconds
G81: 5 | H81: 36 - 45 Seconds | J81: 96 - 120 Seconds | Z81: 5 | AA81: 36 - 45 Seconds | AC81: 96 - 120 Seconds | EJ81: 5 | EK81: 36 - 45 Seconds | EM81: 96 - 120 Seconds | FC81: 5 | FD81: 36 - 45 Seconds | FF81: 96 - 120 Seconds | FV81: 5 | FW81: 36 - 45 Seconds | FY81: 96 - 120 Seconds | GO81: 5 | GP81: 36 - 45 Seconds | GR81: 96 - 120 Seconds
G82: 5 | H82: 37 - 45 Seconds | J82: 97 - 120 Seconds | Z82: 5 | AA82: 37 - 45 Seconds | AC82: 97 - 120 Seconds | EJ82: 5 | EK82: 37 - 45 Seconds | EM82: 97 - 120 Seconds | FC82: 5 | FD82: 37 - 45 Seconds | FF82: 97 - 120 Seconds | FV82: 5 | FW82: 37 - 45 Seconds | FY82: 97 - 120 Seconds | GO82: 5 | GP82: 37 - 45 Seconds | GR82: 97 - 120 Seconds
G83: 5 | H83: 30 - 45 Seconds | J83: 90 - 120 Seconds | Z83: 5 | AA83: 30 - 45 Seconds | AC83: 90 - 120 Seconds | EJ83: 5 | EK83: 30 - 45 Seconds | EM83: 90 - 120 Seconds | FC83: 5 | FD83: 30 - 45 Seconds | FF83: 90 - 120 Seconds | FV83: 5 | FW83: 30 - 45 Seconds | FY83: 90 - 120 Seconds | GO83: 5 | GP83: 30 - 45 Seconds | GR83: 90 - 120 Seconds
C84: Session RPE: | E84: Session Duration: | J84: Session Score: | N84: =IFERROR(IF(SUBSTITUTE(D84,"RPE ","")*G84, CONCATENATE(SUBSTITUTE(D84,"RPE ","")*G84, " AU"),0),0) -> 0 | P84: Daily Totals: | Q84: =IF(SUM(Q69:Q83)>0, SUM(Q69:Q83), "") ->  | R84: =IF(MAX(R69:R83), MAX(R69:R83), "") ->  | V84: Session RPE: | X84: Session Duration: | AC84: Session Score: | AG84: =IFERROR(IF(SUBSTITUTE(W84,"RPE ","")*Z84, CONCATENATE(SUBSTITUTE(W84,"RPE ","")*Z84, " AU"),0),0) -> 0 | AI84: Daily Totals: | AJ84: =IF(SUM(AJ69:AJ83)>0, SUM(AJ69:AJ83), "") ->  | AK84: =IF(MAX(AK69:AK83), MAX(AK69:AK83), "") ->  | AO84: Session RPE: | AQ84: Session Duration: | AR84: 60 | AV84: Session Score: | AZ84: =IFERROR(IF(SUBSTITUTE(AP84,"RPE ","")*AS84, CONCATENATE(SUBSTITUTE(AP84,"RPE ","")*AS84, " AU"),0),0) -> 0 | BB84: Daily Totals: | BC84: =IF(SUM(BC69:BC83)<1,"",CONCATENATE(SUM(BC69:BC83)," Pounds")) ->  | BD84: =IFERROR(IF(SUM(AW69:AW83), CONCATENATE(ROUND(SUM(AY69:AY83)/SUM(AW69:AW83),1), " Pounds/Set"),""),"") ->  | BE84: =IF(MAX(BE69:BE83)>0,CONCATENATE(MAX(BE69:BE83)," Pounds"),"") ->  | BH84: Session RPE: | BJ84: Session Duration: | BO84: Session Score: | BS84: =IFERROR(IF(SUBSTITUTE(BI84,"RPE ","")*BL84, CONCATENATE(SUBSTITUTE(BI84,"RPE ","")*BL84, " AU"),0),0) -> 0 | BU84: Daily Totals: | BV84: =IF(SUM(BV69:BV83)<1,"",SUM(BV69:BV83)) ->  | BW84: =IFERROR(IF(SUM(BR69:BR83)/COUNT(BP69:BP83), ROUND(SUM(BR69:BR83)/COUNT(BP69:BP83),1),""),"") ->  | BX84: =IF(MAX(BX69:BX83)>0,MAX(BX69:BX83),"") ->  | CA84: Session RPE: | CC84: Session Duration: | CH84: Session Score: | CL84: =IFERROR(IF(SUBSTITUTE(CB84,"RPE ","")*CE84, CONCATENATE(SUBSTITUTE(CB84,"RPE ","")*CE84, " AU"),0),0) -> 0 | CN84: Daily Totals: | CO84: =IF(SUM(CO69:CO83)<1,"",SUM(CO69:CO83)) ->  | CP84: =IFERROR(IF(SUM(CK69:CK83)/COUNT(CI69:CI83), ROUND(SUM(CK69:CK83)/COUNT(CI69:CI83),1),""),"") ->  | CQ84: =IF(MAX(CQ69:CQ83)>0,MAX(CQ69:CQ83),"") ->  | CT84: Session RPE: | CV84: Session Duration: | DA84: Session Score: | DE84: =IFERROR(IF(SUBSTITUTE(CU84,"RPE ","")*CX84, CONCATENATE(SUBSTITUTE(CU84,"RPE ","")*CX84, " AU"),0),0) -> 0 | DG84: Daily Totals: | DH84: =IF(SUM(DH69:DH83)<1,"",SUM(DH69:DH83)) ->  | DI84: =IFERROR(IF(SUM(DD69:DD83)/COUNT(DB69:DB83), ROUND(SUM(DD69:DD83)/COUNT(DB69:DB83),1),""),"") ->  | DJ84: =IF(MAX(DJ69:DJ83)>0,MAX(DJ69:DJ83),"") ->  | DM84: Session RPE: | DO84: Session Duration: | DT84: Session Score: | DX84: =IFERROR(IF(SUBSTITUTE(DN84,"RPE ","")*DQ84, CONCATENATE(SUBSTITUTE(DN84,"RPE ","")*DQ84, " AU"),0),0) -> 0 | DZ84: Daily Totals: | EA84: =IF(SUM(EA69:EA83)<1,"",SUM(EA69:EA83)) ->  | EB84: =IFERROR(IF(SUM(DW69:DW83)/COUNT(DU69:DU83), ROUND(SUM(DW69:DW83)/COUNT(DU69:DU83),1),""),"") ->  | EC84: =IF(MAX(EC69:EC83)>0,MAX(EC69:EC83),"") ->  | EF84: Session RPE: | EH84: Session Duration: | EM84: Session Score: | EQ84: =IFERROR(IF(SUBSTITUTE(EG84,"RPE ","")*EJ84, CONCATENATE(SUBSTITUTE(EG84,"RPE ","")*EJ84, " AU"),0),0) -> 0 | ES84: Daily Totals: | ET84: =IF(SUM(ET69:ET83)>0, SUM(ET69:ET83), "") ->  | EU84: =IF(MAX(EU69:EU83), MAX(EU69:EU83), "") ->  | EY84: Session RPE: | FA84: Session Duration: | FF84: Session Score: | FJ84: =IFERROR(IF(SUBSTITUTE(EZ84,"RPE ","")*FC84, CONCATENATE(SUBSTITUTE(EZ84,"RPE ","")*FC84, " AU"),0),0) -> 0 | FL84: Daily Totals: | FM84: =IF(SUM(FM69:FM83)>0, SUM(FM69:FM83), "") ->  | FN84: =IF(MAX(FN69:FN83), MAX(FN69:FN83), "") ->  | FR84: Session RPE: | FT84: Session Duration: | FY84: Session Score: | GC84: =IFERROR(IF(SUBSTITUTE(FS84,"RPE ","")*FV84, CONCATENATE(SUBSTITUTE(FS84,"RPE ","")*FV84, " AU"),0),0) -> 0 | GE84: Daily Totals: | GF84: =IF(SUM(GF69:GF83)>0, SUM(GF69:GF83), "") ->  | GG84: =IF(MAX(GG69:GG83), MAX(GG69:GG83), "") ->  | GK84: Session RPE: | GM84: Session Duration: | GR84: Session Score: | GV84: =IFERROR(IF(SUBSTITUTE(GL84,"RPE ","")*GO84, CONCATENATE(SUBSTITUTE(GL84,"RPE ","")*GO84, " AU"),0),0) -> 0 | GX84: Daily Totals: | GY84: =IF(SUM(GY69:GY83)>0, SUM(GY69:GY83), "") ->  | GZ84: =IF(MAX(GZ69:GZ83), MAX(GZ69:GZ83), "") -> 
B85: Day | C85: Weightlifting Movement | D85: Cluster Type | E85: Exercise | F85: Tempo | G85: Sets | H85: Reps | I85: Weight | J85: Rest | K85: Score | N85: Feedback | Q85: Exercise Tonnage | R85: Average Intensity | S85: Absolute Intensity | U85: Day | V85: Weightlifting Movement | W85: Cluster Type | X85: Exercise | Y85: Tempo | Z85: Sets | AA85: Reps | AB85: Weight | AC85: Rest | AD85: Score | AG85: Feedback | AJ85: Exercise Tonnage | AK85: Average Intensity | AL85: Absolute Intensity | AN85: Day | AO85: Type | AP85: Isotonic Type | AQ85: Exercise | AR85: Tempo | AS85: Sets | AT85: Reps | AU85: Weight | AV85: Rest | AW85: Score | AZ85: Feedback | BC85: Exercise Tonnage | BD85: Average Intensity | BE85: Absolute Intensity | BG85: Day | BH85: Type | BI85: Isotonic Type | BJ85: Exercise | BK85: Tempo | BL85: Sets | BM85: Reps | BN85: Weight | BO85: Rest | BP85: Score | BS85: Feedback | BV85: Exercise Tonnage | BW85: Average Intensity | BX85: Absolute Intensity | BZ85: Day | CA85: Type | CB85: Isotonic Type | CC85: Exercise | CD85: Tempo | CE85: Sets | CF85: Reps | CG85: Weight | CH85: Rest | CI85: Score | CL85: Feedback | CO85: Exercise Tonnage | CP85: Average Intensity | CQ85: Absolute Intensity | CS85: Day | CT85: Type | CU85: Isotonic Type | CV85: Exercise | CW85: Tempo | CX85: Sets | CY85: Reps | CZ85: Weight | DA85: Rest | DB85: Score | DE85: Feedback | DH85: Exercise Tonnage | DI85: Average Intensity | DJ85: Absolute Intensity | DL85: Day | DM85: Type | DN85: Isotonic Type | DO85: Exercise | DP85: Tempo | DQ85: Sets | DR85: Reps | DS85: Weight | DT85: Rest | DU85: Score | DX85: Feedback | EA85: Exercise Tonnage | EB85: Average Intensity | EC85: Absolute Intensity | EE85: Day | EF85: Weightlifting Movement | EG85: Cluster Type | EH85: Exercise | EI85: Tempo | EJ85: Sets | EK85: Reps | EL85: Weight | EM85: Rest | EN85: Score | EQ85: Feedback | ET85: Exercise Tonnage | EU85: Average Intensity | EV85: Absolute Intensity | EX85: Day | EY85: Weightlifting Movement | EZ85: Cluster Type | FA85: Exercise | FB85: Tempo | FC85: Sets | FD85: Reps | FE85: Weight | FF85: Rest | FG85: Score | FJ85: Feedback | FM85: Exercise Tonnage | FN85: Average Intensity | FO85: Absolute Intensity | FQ85: Day | FR85: Weightlifting Movement | FS85: Cluster Type | FT85: Exercise | FU85: Tempo | FV85: Sets | FW85: Reps | FX85: Weight | FY85: Rest | FZ85: Score | GC85: Feedback | GF85: Exercise Tonnage | GG85: Average Intensity | GH85: Absolute Intensity | GJ85: Day | GK85: Weightlifting Movement | GL85: Cluster Type | GM85: Exercise | GN85: Tempo | GO85: Sets | GP85: Reps | GQ85: Weight | GR85: Rest | GS85: Score | GV85: Feedback | GY85: Exercise Tonnage | GZ85: Average Intensity | HA85: Absolute Intensity
K86: Sets | L86: Reps | M86: Weight | AD86: Sets | AE86: Reps | AF86: Weight | AW86: Sets | AX86: Reps | AY86: Weight | BP86: Sets | BQ86: Reps | BR86: Weight | CI86: Sets | CJ86: Reps | CK86: Weight | DB86: Sets | DC86: Reps | DD86: Weight | DU86: Sets | DV86: Reps | DW86: Weight | EN86: Sets | EO86: Reps | EP86: Weight | FG86: Sets | FH86: Reps | FI86: Weight | FZ86: Sets | GA86: Reps | GB86: Weight | GS86: Sets | GT86: Reps | GU86: Weight
B87: Biofeedback Test: | Q87: =IF(K87*L87*M87<1, "", K87*L87*M87) ->  | R87: =IFERROR(IF(SUM(M87:M96)/COUNT(K87:K96), ROUND(SUM(M87:M96)/COUNT(K87:K96),1), ""),"") ->  | S87: =IF(MAX(M87:M96),MAX(M87:M96),"") ->  | U87: Biofeedback Test: | AJ87: =IF(AD87*AE87*AF87<1, "", AD87*AE87*AF87) ->  | AK87: =IFERROR(IF(SUM(AF87:AF96)/COUNT(AD87:AD96), ROUND(SUM(AF87:AF96)/COUNT(AD87:AD96),1), ""),"") ->  | AL87: =IF(MAX(AF87:AF96),MAX(AF87:AF96),"") ->  | AN87: Biofeedback Test: | BC87: =IF(AW87*AX87*AY87<1, "", AW87*AX87*AY87) ->  | BD87: =IFERROR(IF(SUM(AY87:AY96)/COUNT(AW87:AW96), ROUND(SUM(AY87:AY96)/COUNT(AW87:AW96),1), ""),"") ->  | BE87: =IF(MAX(AY87:AY96),MAX(AY87:AY96),"") ->  | BG87: Biofeedback Test: | BV87: =IF(BP87*BQ87*BR87<1, "", BP87*BQ87*BR87) ->  | BW87: =IFERROR(IF(SUM(BR87:BR96)/COUNT(BP87:BP96), ROUND(SUM(BR87:BR96)/COUNT(BP87:BP96),1), ""),"") ->  | BX87: =IF(MAX(BR87:BR96),MAX(BR87:BR96),"") ->  | BZ87: Biofeedback Test: | CO87: =IF(CI87*CJ87*CK87<1, "", CI87*CJ87*CK87) ->  | CP87: =IFERROR(IF(SUM(CK87:CK96)/COUNT(CI87:CI96), ROUND(SUM(CK87:CK96)/COUNT(CI87:CI96),1), ""),"") ->  | CQ87: =IF(MAX(CK87:CK96),MAX(CK87:CK96),"") ->  | CS87: Biofeedback Test: | DH87: =IF(DB87*DC87*DD87<1, "", DB87*DC87*DD87) ->  | DI87: =IFERROR(IF(SUM(DD87:DD96)/COUNT(DB87:DB96), ROUND(SUM(DD87:DD96)/COUNT(DB87:DB96),1), ""),"") ->  | DJ87: =IF(MAX(DD87:DD96),MAX(DD87:DD96),"") ->  | DL87: Biofeedback Test: | EA87: =IF(DU87*DV87*DW87<1, "", DU87*DV87*DW87) ->  | EB87: =IFERROR(IF(SUM(DW87:DW96)/COUNT(DU87:DU96), ROUND(SUM(DW87:DW96)/COUNT(DU87:DU96),1), ""),"") ->  | EC87: =IF(MAX(DW87:DW96),MAX(DW87:DW96),"") ->  | EE87: Biofeedback Test: | ET87: =IF(EN87*EO87*EP87<1, "", EN87*EO87*EP87) ->  | EU87: =IFERROR(IF(SUM(EP87:EP96)/COUNT(EN87:EN96), ROUND(SUM(EP87:EP96)/COUNT(EN87:EN96),1), ""),"") ->  | EV87: =IF(MAX(EP87:EP96),MAX(EP87:EP96),"") ->  | EX87: Biofeedback Test: | FM87: =IF(FG87*FH87*FI87<1, "", FG87*FH87*FI87) ->  | FN87: =IFERROR(IF(SUM(FI87:FI96)/COUNT(FG87:FG96), ROUND(SUM(FI87:FI96)/COUNT(FG87:FG96),1), ""),"") ->  | FO87: =IF(MAX(FI87:FI96),MAX(FI87:FI96),"") ->  | FQ87: Biofeedback Test: | GF87: =IF(FZ87*GA87*GB87<1, "", FZ87*GA87*GB87) ->  | GG87: =IFERROR(IF(SUM(GB87:GB96)/COUNT(FZ87:FZ96), ROUND(SUM(GB87:GB96)/COUNT(FZ87:FZ96),1), ""),"") ->  | GH87: =IF(MAX(GB87:GB96),MAX(GB87:GB96),"") ->  | GJ87: Biofeedback Test: | GY87: =IF(GS87*GT87*GU87<1, "", GS87*GT87*GU87) ->  | GZ87: =IFERROR(IF(SUM(GU87:GU96)/COUNT(GS87:GS96), ROUND(SUM(GU87:GU96)/COUNT(GS87:GS96),1), ""),"") ->  | HA87: =IF(MAX(GU87:GU96),MAX(GU87:GU96),"") -> 
Q88: =IF(K88*L88*M88<1, "", K88*L88*M88) ->  | AJ88: =IF(AD88*AE88*AF88<1, "", AD88*AE88*AF88) ->  | BC88: =IF(AW88*AX88*AY88<1, "", AW88*AX88*AY88) ->  | BV88: =IF(BP88*BQ88*BR88<1, "", BP88*BQ88*BR88) ->  | CO88: =IF(CI88*CJ88*CK88<1, "", CI88*CJ88*CK88) ->  | DH88: =IF(DB88*DC88*DD88<1, "", DB88*DC88*DD88) ->  | EA88: =IF(DU88*DV88*DW88<1, "", DU88*DV88*DW88) ->  | ET88: =IF(EN88*EO88*EP88<1, "", EN88*EO88*EP88) ->  | FM88: =IF(FG88*FH88*FI88<1, "", FG88*FH88*FI88) ->  | GF88: =IF(FZ88*GA88*GB88<1, "", FZ88*GA88*GB88) ->  | GY88: =IF(GS88*GT88*GU88<1, "", GS88*GT88*GU88) -> 
B94: Day 5 Dynamic (Optional) + Isotonic | U94: Day 5 Dynamic (Optional) + Isotonic | AN94: Day 5 Dynamic (Optional) + Isotonic | BG94: Day 5 Dynamic (Optional) + Isotonic | BZ94: Day 5 Dynamic (Optional) + Isotonic | CS94: Day 5 Dynamic (Optional) + Isotonic | DL94: Day 5 Dynamic (Optional) + Isotonic | EE94: Day 5 Dynamic (Optional) + Isotonic | EX94: Day 5 Dynamic (Optional) + Isotonic | FQ94: Day 5 Dynamic (Optional) + Isotonic | GJ94: Day 5 Dynamic (Optional) + Isotonic
C97: Type | E97: Isotonic Exercise | F97: Tempo | G97: Sets | H97: Reps | I97: Weight | J97: Rest | Q97: Exercise Tonnage | R97: Average Intensity | S97: Absolute Intensity | V97: Type | X97: Isotonic Exercise | Y97: Tempo | Z97: Sets | AA97: Reps | AB97: Weight | AC97: Rest | AJ97: Exercise Tonnage | AK97: Average Intensity | AL97: Absolute Intensity | AO97: Type | AQ97: Isotonic Exercise | AR97: Tempo | AS97: Sets | AT97: Reps | AU97: Weight | AV97: Rest | BC97: Exercise Tonnage | BD97: Average Intensity | BE97: Absolute Intensity | BH97: Type | BJ97: Isotonic Exercise | BK97: Tempo | BL97: Sets | BM97: Reps | BN97: Weight | BO97: Rest | BV97: Exercise Tonnage | BW97: Average Intensity | BX97: Absolute Intensity | CA97: Type | CC97: Isotonic Exercise | CD97: Tempo | CE97: Sets | CF97: Reps | CG97: Weight | CH97: Rest | CO97: Exercise Tonnage | CP97: Average Intensity | CQ97: Absolute Intensity | CT97: Type | CV97: Isotonic Exercise | CW97: Tempo | CX97: Sets | CY97: Reps | CZ97: Weight | DA97: Rest | DH97: Exercise Tonnage | DI97: Average Intensity | DJ97: Absolute Intensity | DM97: Type | DO97: Isotonic Exercise | DP97: Tempo | DQ97: Sets | DR97: Reps | DS97: Weight | DT97: Rest | EA97: Exercise Tonnage | EB97: Average Intensity | EC97: Absolute Intensity | EF97: Type | EH97: Isotonic Exercise | EI97: Tempo | EJ97: Sets | EK97: Reps | EL97: Weight | EM97: Rest | ET97: Exercise Tonnage | EU97: Average Intensity | EV97: Absolute Intensity | EY97: Type | FA97: Isotonic Exercise | FB97: Tempo | FC97: Sets | FD97: Reps | FE97: Weight | FF97: Rest | FM97: Exercise Tonnage | FN97: Average Intensity | FO97: Absolute Intensity | FR97: Type | FT97: Isotonic Exercise | FU97: Tempo | FV97: Sets | FW97: Reps | FX97: Weight | FY97: Rest | GF97: Exercise Tonnage | GG97: Average Intensity | GH97: Absolute Intensity | GK97: Type | GM97: Isotonic Exercise | GN97: Tempo | GO97: Sets | GP97: Reps | GQ97: Weight | GR97: Rest | GY97: Exercise Tonnage | GZ97: Average Intensity | HA97: Absolute Intensity
C98: Isotonic | Q98: =IF(SUMPRODUCT(K98:K102,L98:L102,M98:M102), SUMPRODUCT(K98:K102,L98:L102,M98:M102), "") ->  | R98: =IFERROR(IF(SUM(M98:M102)/COUNT(K98:K102), ROUND(SUM(M98:M102)/COUNT(K98:K102),1), ""),"") ->  | S98: =IF(MAX(M98:M102),MAX(M98:M102),"") ->  | V98: Isotonic | AJ98: =IF(SUMPRODUCT(AD98:AD102,AE98:AE102,AF98:AF102), SUMPRODUCT(AD98:AD102,AE98:AE102,AF98:AF102), "") ->  | AK98: =IFERROR(IF(SUM(AF98:AF102)/COUNT(AD98:AD102), ROUND(SUM(AF98:AF102)/COUNT(AD98:AD102),1), ""),"") ->  | AL98: =IF(MAX(AF98:AF102),MAX(AF98:AF102),"") ->  | AO98: Isotonic | BC98: =IF(SUMPRODUCT(AW98:AW102,AX98:AX102,AY98:AY102), SUMPRODUCT(AW98:AW102,AX98:AX102,AY98:AY102), "") ->  | BD98: =IFERROR(IF(SUM(AY98:AY102)/COUNT(AW98:AW102), ROUND(SUM(AY98:AY102)/COUNT(AW98:AW102),1), ""),"") ->  | BE98: =IF(MAX(AY98:AY102),MAX(AY98:AY102),"") ->  | BH98: Isotonic | BV98: =IF(SUMPRODUCT(BP98:BP102,BQ98:BQ102,BR98:BR102), SUMPRODUCT(BP98:BP102,BQ98:BQ102,BR98:BR102), "") ->  | BW98: =IFERROR(IF(SUM(BR98:BR102)/COUNT(BP98:BP102), ROUND(SUM(BR98:BR102)/COUNT(BP98:BP102),1), ""),"") ->  | BX98: =IF(MAX(BR98:BR102),MAX(BR98:BR102),"") ->  | CA98: Isotonic | CO98: =IF(SUMPRODUCT(CI98:CI102,CJ98:CJ102,CK98:CK102), SUMPRODUCT(CI98:CI102,CJ98:CJ102,CK98:CK102), "") ->  | CP98: =IFERROR(IF(SUM(CK98:CK102)/COUNT(CI98:CI102), ROUND(SUM(CK98:CK102)/COUNT(CI98:CI102),1), ""),"") ->  | CQ98: =IF(MAX(CK98:CK102),MAX(CK98:CK102),"") ->  | CT98: Isotonic | DH98: =IF(SUMPRODUCT(DB98:DB102,DC98:DC102,DD98:DD102), SUMPRODUCT(DB98:DB102,DC98:DC102,DD98:DD102), "") ->  | DI98: =IFERROR(IF(SUM(DD98:DD102)/COUNT(DB98:DB102), ROUND(SUM(DD98:DD102)/COUNT(DB98:DB102),1), ""),"") ->  | DJ98: =IF(MAX(DD98:DD102),MAX(DD98:DD102),"") ->  | DM98: Isotonic | EA98: =IF(SUMPRODUCT(DU98:DU102,DV98:DV102,DW98:DW102), SUMPRODUCT(DU98:DU102,DV98:DV102,DW98:DW102), "") ->  | EB98: =IFERROR(IF(SUM(DW98:DW102)/COUNT(DU98:DU102), ROUND(SUM(DW98:DW102)/COUNT(DU98:DU102),1), ""),"") ->  | EC98: =IF(MAX(DW98:DW102),MAX(DW98:DW102),"") ->  | EF98: Isotonic | ET98: =IF(SUMPRODUCT(EN98:EN102,EO98:EO102,EP98:EP102), SUMPRODUCT(EN98:EN102,EO98:EO102,EP98:EP102), "") ->  | EU98: =IFERROR(IF(SUM(EP98:EP102)/COUNT(EN98:EN102), ROUND(SUM(EP98:EP102)/COUNT(EN98:EN102),1), ""),"") ->  | EV98: =IF(MAX(EP98:EP102),MAX(EP98:EP102),"") ->  | EY98: Isotonic | FM98: =IF(SUMPRODUCT(FG98:FG102,FH98:FH102,FI98:FI102), SUMPRODUCT(FG98:FG102,FH98:FH102,FI98:FI102), "") ->  | FN98: =IFERROR(IF(SUM(FI98:FI102)/COUNT(FG98:FG102), ROUND(SUM(FI98:FI102)/COUNT(FG98:FG102),1), ""),"") ->  | FO98: =IF(MAX(FI98:FI102),MAX(FI98:FI102),"") ->  | FR98: Isotonic | GF98: =IF(SUMPRODUCT(FZ98:FZ102,GA98:GA102,GB98:GB102), SUMPRODUCT(FZ98:FZ102,GA98:GA102,GB98:GB102), "") ->  | GG98: =IFERROR(IF(SUM(GB98:GB102)/COUNT(FZ98:FZ102), ROUND(SUM(GB98:GB102)/COUNT(FZ98:FZ102),1), ""),"") ->  | GH98: =IF(MAX(GB98:GB102),MAX(GB98:GB102),"") ->  | GK98: Isotonic | GY98: =IF(SUMPRODUCT(GS98:GS102,GT98:GT102,GU98:GU102), SUMPRODUCT(GS98:GS102,GT98:GT102,GU98:GU102), "") ->  | GZ98: =IFERROR(IF(SUM(GU98:GU102)/COUNT(GS98:GS102), ROUND(SUM(GU98:GU102)/COUNT(GS98:GS102),1), ""),"") ->  | HA98: =IF(MAX(GU98:GU102),MAX(GU98:GU102),"") -> 
Q103: =IF(SUMPRODUCT(K103:K107,L103:L107,M103:M107), SUMPRODUCT(K103:K107,L103:L107,M103:M107), "") ->  | R103: =IFERROR(IF(SUM(M103:M107)/COUNT(K103:K107), ROUND(SUM(M103:M107)/COUNT(K103:K107),1), ""),"") ->  | S103: =IF(MAX(M103:M107),MAX(M103:M107),"") ->  | AJ103: =IF(SUMPRODUCT(AD103:AD107,AE103:AE107,AF103:AF107), SUMPRODUCT(AD103:AD107,AE103:AE107,AF103:AF107), "") ->  | AK103: =IFERROR(IF(SUM(AF103:AF107)/COUNT(AD103:AD107), ROUND(SUM(AF103:AF107)/COUNT(AD103:AD107),1), ""),"") ->  | AL103: =IF(MAX(AF103:AF107),MAX(AF103:AF107),"") ->  | BC103: =IF(SUMPRODUCT(AW103:AW107,AX103:AX107,AY103:AY107), SUMPRODUCT(AW103:AW107,AX103:AX107,AY103:AY107), "") ->  | BD103: =IFERROR(IF(SUM(AY103:AY107)/COUNT(AW103:AW107), ROUND(SUM(AY103:AY107)/COUNT(AW103:AW107),1), ""),"") ->  | BE103: =IF(MAX(AY103:AY107),MAX(AY103:AY107),"") ->  | BV103: =IF(SUMPRODUCT(BP103:BP107,BQ103:BQ107,BR103:BR107), SUMPRODUCT(BP103:BP107,BQ103:BQ107,BR103:BR107), "") ->  | BW103: =IFERROR(IF(SUM(BR103:BR107)/COUNT(BP103:BP107), ROUND(SUM(BR103:BR107)/COUNT(BP103:BP107),1), ""),"") ->  | BX103: =IF(MAX(BR103:BR107),MAX(BR103:BR107),"") ->  | CO103: =IF(SUMPRODUCT(CI103:CI107,CJ103:CJ107,CK103:CK107), SUMPRODUCT(CI103:CI107,CJ103:CJ107,CK103:CK107), "") ->  | CP103: =IFERROR(IF(SUM(CK103:CK107)/COUNT(CI103:CI107), ROUND(SUM(CK103:CK107)/COUNT(CI103:CI107),1), ""),"") ->  | CQ103: =IF(MAX(CK103:CK107),MAX(CK103:CK107),"") ->  | DH103: =IF(SUMPRODUCT(DB103:DB107,DC103:DC107,DD103:DD107), SUMPRODUCT(DB103:DB107,DC103:DC107,DD103:DD107), "") ->  | DI103: =IFERROR(IF(SUM(DD103:DD107)/COUNT(DB103:DB107), ROUND(SUM(DD103:DD107)/COUNT(DB103:DB107),1), ""),"") ->  | DJ103: =IF(MAX(DD103:DD107),MAX(DD103:DD107),"") ->  | EA103: =IF(SUMPRODUCT(DU103:DU107,DV103:DV107,DW103:DW107), SUMPRODUCT(DU103:DU107,DV103:DV107,DW103:DW107), "") ->  | EB103: =IFERROR(IF(SUM(DW103:DW107)/COUNT(DU103:DU107), ROUND(SUM(DW103:DW107)/COUNT(DU103:DU107),1), ""),"") ->  | EC103: =IF(MAX(DW103:DW107),MAX(DW103:DW107),"") ->  | ET103: =IF(SUMPRODUCT(EN103:EN107,EO103:EO107,EP103:EP107), SUMPRODUCT(EN103:EN107,EO103:EO107,EP103:EP107), "") ->  | EU103: =IFERROR(IF(SUM(EP103:EP107)/COUNT(EN103:EN107), ROUND(SUM(EP103:EP107)/COUNT(EN103:EN107),1), ""),"") ->  | EV103: =IF(MAX(EP103:EP107),MAX(EP103:EP107),"") ->  | FM103: =IF(SUMPRODUCT(FG103:FG107,FH103:FH107,FI103:FI107), SUMPRODUCT(FG103:FG107,FH103:FH107,FI103:FI107), "") ->  | FN103: =IFERROR(IF(SUM(FI103:FI107)/COUNT(FG103:FG107), ROUND(SUM(FI103:FI107)/COUNT(FG103:FG107),1), ""),"") ->  | FO103: =IF(MAX(FI103:FI107),MAX(FI103:FI107),"") ->  | GF103: =IF(SUMPRODUCT(FZ103:FZ107,GA103:GA107,GB103:GB107), SUMPRODUCT(FZ103:FZ107,GA103:GA107,GB103:GB107), "") ->  | GG103: =IFERROR(IF(SUM(GB103:GB107)/COUNT(FZ103:FZ107), ROUND(SUM(GB103:GB107)/COUNT(FZ103:FZ107),1), ""),"") ->  | GH103: =IF(MAX(GB103:GB107),MAX(GB103:GB107),"") ->  | GY103: =IF(SUMPRODUCT(GS103:GS107,GT103:GT107,GU103:GU107), SUMPRODUCT(GS103:GS107,GT103:GT107,GU103:GU107), "") ->  | GZ103: =IFERROR(IF(SUM(GU103:GU107)/COUNT(GS103:GS107), ROUND(SUM(GU103:GU107)/COUNT(GS103:GS107),1), ""),"") ->  | HA103: =IF(MAX(GU103:GU107),MAX(GU103:GU107),"") -> 
Q108: =IF(SUMPRODUCT(K108:K112,L108:L112,M108:M112), SUMPRODUCT(K108:K112,L108:L112,M108:M112), "") ->  | R108: =IFERROR(IF(SUM(M108:M112)/COUNT(K108:K112), ROUND(SUM(M108:M112)/COUNT(K108:K112),1), ""),"") ->  | S108: =IF(MAX(M108:M112),MAX(M108:M112),"") ->  | AJ108: =IF(SUMPRODUCT(AD108:AD112,AE108:AE112,AF108:AF112), SUMPRODUCT(AD108:AD112,AE108:AE112,AF108:AF112), "") ->  | AK108: =IFERROR(IF(SUM(AF108:AF112)/COUNT(AD108:AD112), ROUND(SUM(AF108:AF112)/COUNT(AD108:AD112),1), ""),"") ->  | AL108: =IF(MAX(AF108:AF112),MAX(AF108:AF112),"") ->  | BC108: =IF(SUMPRODUCT(AW108:AW112,AX108:AX112,AY108:AY112), SUMPRODUCT(AW108:AW112,AX108:AX112,AY108:AY112), "") ->  | BD108: =IFERROR(IF(SUM(AY108:AY112)/COUNT(AW108:AW112), ROUND(SUM(AY108:AY112)/COUNT(AW108:AW112),1), ""),"") ->  | BE108: =IF(MAX(AY108:AY112),MAX(AY108:AY112),"") ->  | BV108: =IF(SUMPRODUCT(BP108:BP112,BQ108:BQ112,BR108:BR112), SUMPRODUCT(BP108:BP112,BQ108:BQ112,BR108:BR112), "") ->  | BW108: =IFERROR(IF(SUM(BR108:BR112)/COUNT(BP108:BP112), ROUND(SUM(BR108:BR112)/COUNT(BP108:BP112),1), ""),"") ->  | BX108: =IF(MAX(BR108:BR112),MAX(BR108:BR112),"") ->  | CO108: =IF(SUMPRODUCT(CI108:CI112,CJ108:CJ112,CK108:CK112), SUMPRODUCT(CI108:CI112,CJ108:CJ112,CK108:CK112), "") ->  | CP108: =IFERROR(IF(SUM(CK108:CK112)/COUNT(CI108:CI112), ROUND(SUM(CK108:CK112)/COUNT(CI108:CI112),1), ""),"") ->  | CQ108: =IF(MAX(CK108:CK112),MAX(CK108:CK112),"") ->  | DH108: =IF(SUMPRODUCT(DB108:DB112,DC108:DC112,DD108:DD112), SUMPRODUCT(DB108:DB112,DC108:DC112,DD108:DD112), "") ->  | DI108: =IFERROR(IF(SUM(DD108:DD112)/COUNT(DB108:DB112), ROUND(SUM(DD108:DD112)/COUNT(DB108:DB112),1), ""),"") ->  | DJ108: =IF(MAX(DD108:DD112),MAX(DD108:DD112),"") ->  | EA108: =IF(SUMPRODUCT(DU108:DU112,DV108:DV112,DW108:DW112), SUMPRODUCT(DU108:DU112,DV108:DV112,DW108:DW112), "") ->  | EB108: =IFERROR(IF(SUM(DW108:DW112)/COUNT(DU108:DU112), ROUND(SUM(DW108:DW112)/COUNT(DU108:DU112),1), ""),"") ->  | EC108: =IF(MAX(DW108:DW112),MAX(DW108:DW112),"") ->  | ET108: =IF(SUMPRODUCT(EN108:EN112,EO108:EO112,EP108:EP112), SUMPRODUCT(EN108:EN112,EO108:EO112,EP108:EP112), "") ->  | EU108: =IFERROR(IF(SUM(EP108:EP112)/COUNT(EN108:EN112), ROUND(SUM(EP108:EP112)/COUNT(EN108:EN112),1), ""),"") ->  | EV108: =IF(MAX(EP108:EP112),MAX(EP108:EP112),"") ->  | FM108: =IF(SUMPRODUCT(FG108:FG112,FH108:FH112,FI108:FI112), SUMPRODUCT(FG108:FG112,FH108:FH112,FI108:FI112), "") ->  | FN108: =IFERROR(IF(SUM(FI108:FI112)/COUNT(FG108:FG112), ROUND(SUM(FI108:FI112)/COUNT(FG108:FG112),1), ""),"") ->  | FO108: =IF(MAX(FI108:FI112),MAX(FI108:FI112),"") ->  | GF108: =IF(SUMPRODUCT(FZ108:FZ112,GA108:GA112,GB108:GB112), SUMPRODUCT(FZ108:FZ112,GA108:GA112,GB108:GB112), "") ->  | GG108: =IFERROR(IF(SUM(GB108:GB112)/COUNT(FZ108:FZ112), ROUND(SUM(GB108:GB112)/COUNT(FZ108:FZ112),1), ""),"") ->  | GH108: =IF(MAX(GB108:GB112),MAX(GB108:GB112),"") ->  | GY108: =IF(SUMPRODUCT(GS108:GS112,GT108:GT112,GU108:GU112), SUMPRODUCT(GS108:GS112,GT108:GT112,GU108:GU112), "") ->  | GZ108: =IFERROR(IF(SUM(GU108:GU112)/COUNT(GS108:GS112), ROUND(SUM(GU108:GU112)/COUNT(GS108:GS112),1), ""),"") ->  | HA108: =IF(MAX(GU108:GU112),MAX(GU108:GU112),"") -> 
C113: Session RPE: | E113: Session Duration: | J113: Session Score: | N113: =IFERROR(IF(SUBSTITUTE(D113,"RPE ","")*G113, CONCATENATE(SUBSTITUTE(D113,"RPE ","")*G113, " AU"),0),0) -> 0 | P113: Daily Totals: | Q113: =IF(SUM(Q98:Q112)<1,"",SUM(Q98:Q112)) ->  | R113: =IFERROR(IF(SUM(M98:M112)/COUNT(K98:K112), ROUND(SUM(M98:M112)/COUNT(K98:K112),1),""),"") ->  | S113: =IF(SUM(S98:S112)>0,SUM(S98:S112),"") ->  | V113: Session RPE: | X113: Session Duration: | AC113: Session Score: | AG113: =IFERROR(IF(SUBSTITUTE(W113,"RPE ","")*Z113, CONCATENATE(SUBSTITUTE(W113,"RPE ","")*Z113, " AU"),0),0) -> 0 | AI113: Daily Totals: | AJ113: =IF(SUM(AJ98:AJ112)<1,"",SUM(AJ98:AJ112)) ->  | AK113: =IFERROR(IF(SUM(AF98:AF112)/COUNT(AD98:AD112), ROUND(SUM(AF98:AF112)/COUNT(AD98:AD112),1),""),"") ->  | AL113: =IF(SUM(AL98:AL112)>0,SUM(AL98:AL112),"") ->  | AO113: Session RPE: | AQ113: Session Duration: | AV113: Session Score: | AZ113: =IFERROR(IF(SUBSTITUTE(AP113,"RPE ","")*AS113, CONCATENATE(SUBSTITUTE(AP113,"RPE ","")*AS113, " AU"),0),0) -> 0 | BB113: Daily Totals: | BC113: =IF(SUM(BC98:BC112)<1,"",SUM(BC98:BC112)) ->  | BD113: =IFERROR(IF(SUM(AY98:AY112)/COUNT(AW98:AW112), ROUND(SUM(AY98:AY112)/COUNT(AW98:AW112),1),""),"") ->  | BE113: =IF(SUM(BE98:BE112)>0,SUM(BE98:BE112),"") ->  | BH113: Session RPE: | BJ113: Session Duration: | BO113: Session Score: | BS113: =IFERROR(IF(SUBSTITUTE(BI113,"RPE ","")*BL113, CONCATENATE(SUBSTITUTE(BI113,"RPE ","")*BL113, " AU"),0),0) -> 0 | BU113: Daily Totals: | BV113: =IF(SUM(BV98:BV112)<1,"",SUM(BV98:BV112)) ->  | BW113: =IFERROR(IF(SUM(BR98:BR112)/COUNT(BP98:BP112), ROUND(SUM(BR98:BR112)/COUNT(BP98:BP112),1),""),"") ->  | BX113: =IF(SUM(BX98:BX112)>0,SUM(BX98:BX112),"") ->  | CA113: Session RPE: | CC113: Session Duration: | CH113: Session Score: | CL113: =IFERROR(IF(SUBSTITUTE(CB113,"RPE ","")*CE113, CONCATENATE(SUBSTITUTE(CB113,"RPE ","")*CE113, " AU"),0),0) -> 0 | CN113: Daily Totals: | CO113: =IF(SUM(CO98:CO112)<1,"",SUM(CO98:CO112)) ->  | CP113: =IFERROR(IF(SUM(CK98:CK112)/COUNT(CI98:CI112), ROUND(SUM(CK98:CK112)/COUNT(CI98:CI112),1),""),"") ->  | CQ113: =IF(SUM(CQ98:CQ112)>0,SUM(CQ98:CQ112),"") ->  | CT113: Session RPE: | CV113: Session Duration: | DA113: Session Score: | DE113: =IFERROR(IF(SUBSTITUTE(CU113,"RPE ","")*CX113, CONCATENATE(SUBSTITUTE(CU113,"RPE ","")*CX113, " AU"),0),0) -> 0 | DG113: Daily Totals: | DH113: =IF(SUM(DH98:DH112)<1,"",SUM(DH98:DH112)) ->  | DI113: =IFERROR(IF(SUM(DD98:DD112)/COUNT(DB98:DB112), ROUND(SUM(DD98:DD112)/COUNT(DB98:DB112),1),""),"") ->  | DJ113: =IF(SUM(DJ98:DJ112)>0,SUM(DJ98:DJ112),"") ->  | DM113: Session RPE: | DO113: Session Duration: | DT113: Session Score: | DX113: =IFERROR(IF(SUBSTITUTE(DN113,"RPE ","")*DQ113, CONCATENATE(SUBSTITUTE(DN113,"RPE ","")*DQ113, " AU"),0),0) -> 0 | DZ113: Daily Totals: | EA113: =IF(SUM(EA98:EA112)<1,"",SUM(EA98:EA112)) ->  | EB113: =IFERROR(IF(SUM(DW98:DW112)/COUNT(DU98:DU112), ROUND(SUM(DW98:DW112)/COUNT(DU98:DU112),1),""),"") ->  | EC113: =IF(SUM(EC98:EC112)>0,SUM(EC98:EC112),"") ->  | EF113: Session RPE: | EH113: Session Duration: | EM113: Session Score: | EQ113: =IFERROR(IF(SUBSTITUTE(EG113,"RPE ","")*EJ113, CONCATENATE(SUBSTITUTE(EG113,"RPE ","")*EJ113, " AU"),0),0) -> 0 | ES113: Daily Totals: | ET113: =IF(SUM(ET98:ET112)<1,"",SUM(ET98:ET112)) ->  | EU113: =IFERROR(IF(SUM(EP98:EP112)/COUNT(EN98:EN112), ROUND(SUM(EP98:EP112)/COUNT(EN98:EN112),1),""),"") ->  | EV113: =IF(SUM(EV98:EV112)>0,SUM(EV98:EV112),"") ->  | EY113: Session RPE: | FA113: Session Duration: | FF113: Session Score: | FJ113: =IFERROR(IF(SUBSTITUTE(EZ113,"RPE ","")*FC113, CONCATENATE(SUBSTITUTE(EZ113,"RPE ","")*FC113, " AU"),0),0) -> 0 | FL113: Daily Totals: | FM113: =IF(SUM(FM98:FM112)<1,"",SUM(FM98:FM112)) ->  | FN113: =IFERROR(IF(SUM(FI98:FI112)/COUNT(FG98:FG112), ROUND(SUM(FI98:FI112)/COUNT(FG98:FG112),1),""),"") ->  | FO113: =IF(SUM(FO98:FO112)>0,SUM(FO98:FO112),"") ->  | FR113: Session RPE: | FT113: Session Duration: | FY113: Session Score: | GC113: =IFERROR(IF(SUBSTITUTE(FS113,"RPE ","")*FV113, CONCATENATE(SUBSTITUTE(FS113,"RPE ","")*FV113, " AU"),0),0) -> 0 | GE113: Daily Totals: | GF113: =IF(SUM(GF98:GF112)<1,"",SUM(GF98:GF112)) ->  | GG113: =IFERROR(IF(SUM(GB98:GB112)/COUNT(FZ98:FZ112), ROUND(SUM(GB98:GB112)/COUNT(FZ98:FZ112),1),""),"") ->  | GH113: =IF(SUM(GH98:GH112)>0,SUM(GH98:GH112),"") ->  | GK113: Session RPE: | GM113: Session Duration: | GR113: Session Score: | GV113: =IFERROR(IF(SUBSTITUTE(GL113,"RPE ","")*GO113, CONCATENATE(SUBSTITUTE(GL113,"RPE ","")*GO113, " AU"),0),0) -> 0 | GX113: Daily Totals: | GY113: =IF(SUM(GY98:GY112)<1,"",SUM(GY98:GY112)) ->  | GZ113: =IFERROR(IF(SUM(GU98:GU112)/COUNT(GS98:GS112), ROUND(SUM(GU98:GU112)/COUNT(GS98:GS112),1),""),"") ->  | HA113: =IF(SUM(HA98:HA112)>0,SUM(HA98:HA112),"") -> 
B114: Day | C114: Type | D114: Exercise | G114: Sets | H114: Duration | J114: Rest | K114: Objective Score | N114: Feedback | Q114: Exercise Tonnage | R114: Absolute Intensity | U114: Day | V114: Type | W114: Exercise | Z114: Sets | AA114: Duration | AC114: Rest | AD114: Objective Score | AG114: Feedback | AJ114: Exercise Tonnage | AK114: Absolute Intensity | AN114: Day | AO114: Type | AP114: Exercise | AS114: Sets | AT114: Duration | AV114: Rest | AW114: Objective Score | AZ114: Feedback | BC114: Exercise Tonnage | BD114: Absolute Intensity | BG114: Day | BH114: Type | BI114: Exercise | BL114: Sets | BM114: Duration | BO114: Rest | BP114: Objective Score | BS114: Feedback | BV114: Exercise Tonnage | BW114: Absolute Intensity | BZ114: Day | CA114: Type | CB114: Exercise | CE114: Sets | CF114: Duration | CH114: Rest | CI114: Objective Score | CL114: Feedback | CO114: Exercise Tonnage | CP114: Absolute Intensity | CS114: Day | CT114: Weightlifting Movement | CU114: Cluster Type | CV114: Exercise | CW114: Tempo | CX114: Sets | CY114: Reps | CZ114: Weight | DA114: Rest | DB114: Score | DE114: Feedback | DH114: Exercise Tonnage | DI114: Average Intensity | DJ114: Absolute Intensity | DL114: Day | DM114: Weightlifting Movement | DN114: Cluster Type | DO114: Exercise | DP114: Tempo | DQ114: Sets | DR114: Reps | DS114: Weight | DT114: Rest | DU114: Score | DX114: Feedback | EA114: Exercise Tonnage | EB114: Average Intensity | EC114: Absolute Intensity | EE114: Day | EF114: Weightlifting Movement | EG114: Cluster Type | EH114: Exercise | EI114: Tempo | EJ114: Sets | EK114: Reps | EL114: Weight | EM114: Rest | EN114: Score | EQ114: Feedback | ET114: Exercise Tonnage | EU114: Average Intensity | EV114: Absolute Intensity | EX114: Day | EY114: Weightlifting Movement | EZ114: Cluster Type | FA114: Exercise | FB114: Tempo | FC114: Sets | FD114: Reps | FE114: Weight | FF114: Rest | FG114: Score | FJ114: Feedback | FM114: Exercise Tonnage | FN114: Average Intensity | FO114: Absolute Intensity | FQ114: Day | FR114: Weightlifting Movement | FS114: Cluster Type | FT114: Exercise | FU114: Tempo | FV114: Sets | FW114: Reps | FX114: Weight | FY114: Rest | FZ114: Score | GC114: Feedback | GF114: Exercise Tonnage | GG114: Average Intensity | GH114: Absolute Intensity | GJ114: Day | GK114: Weightlifting Movement | GL114: Cluster Type | GM114: Exercise | GN114: Tempo | GO114: Sets | GP114: Reps | GQ114: Weight | GR114: Rest | GS114: Score | GV114: Feedback | GY114: Exercise Tonnage | GZ114: Average Intensity | HA114: Absolute Intensity
K115: Sets | L115: Duration | M115: Weight | AD115: Sets | AE115: Duration | AF115: Weight | AW115: Sets | AX115: Duration | AY115: Weight | BP115: Sets | BQ115: Duration | BR115: Weight | CI115: Sets | CJ115: Duration | CK115: Weight | DB115: Sets | DC115: Reps | DD115: Weight | DU115: Sets | DV115: Reps | DW115: Weight | EN115: Sets | EO115: Reps | EP115: Weight | FG115: Sets | FH115: Reps | FI115: Weight | FZ115: Sets | GA115: Reps | GB115: Weight | GS115: Sets | GT115: Reps | GU115: Weight
B116: Biofeedback Test: | C116: Double-Leg | G116: 5 | H116: 30 - 45 Seconds | J116: 90 - 120 Seconds | Q116: =IF(K116*L116*(M116)>0, K116*L116*(M116), "") ->  | R116: =IF(MAX(M116:M120) > 0, MAX(M116:M120), "") ->  | U116: Biofeedback Test: | V116: Double-Leg | AJ116: =IF(AD116*AE116*(AF116)>0, AD116*AE116*(AF116), "") ->  | AK116: =IF(MAX(AF116:AF120) > 0, MAX(AF116:AF120), "") ->  | AN116: Biofeedback Test: | AO116: Double-Leg | AS116: 5 | AT116: 30 - 45 Seconds | AV116: 90 - 120 Seconds | BC116: =IF(AW116*AX116*(AY116)>0, AW116*AX116*(AY116), "") ->  | BD116: =IF(MAX(AY116:AY120) > 0, MAX(AY116:AY120), "") ->  | BG116: Biofeedback Test: | BH116: Double-Leg | BL116: 5 | BM116: 30 - 45 Seconds | BO116: 90 - 120 Seconds | BV116: =IF(BP116*BQ116*(BR116)>0, BP116*BQ116*(BR116), "") ->  | BW116: =IF(MAX(BR116:BR120) > 0, MAX(BR116:BR120), "") ->  | BZ116: Biofeedback Test: | CA116: Double-Leg | CE116: 5 | CF116: 30 - 45 Seconds | CH116: 90 - 120 Seconds | CO116: =IF(CI116*CJ116*(CK116)>0, CI116*CJ116*(CK116), "") ->  | CP116: =IF(MAX(CK116:CK120) > 0, MAX(CK116:CK120), "") ->  | CS116: Biofeedback Test: | CT116: Snatch | DH116: =IF(DB116*DC116*DD116<1, "", DB116*DC116*DD116) ->  | DI116: =IFERROR(IF(SUM(DD116:DD120)/COUNT(DB116:DB120), ROUND(SUM(DD116:DD120)/COUNT(DB116:DB120),1), ""),"") ->  | DJ116: =IF(MAX(DD116:DD120),MAX(DD116:DD120),"") ->  | DL116: Biofeedback Test: | DM116: Jerk | EA116: =IF(DU116*DV116*DW116<1, "", DU116*DV116*DW116) ->  | EB116: =IFERROR(IF(SUM(DU116:DU120),ROUND(SUM(DW116:DW120)/SUM(DU116:DU120),0), ""), "") ->  | EC116: =IF(MAX(DW116:DW120),MAX(DW116:DW120),"") ->  | EE116: Biofeedback Test: | EF116: Snatch | ET116: =IF(EN116*EO116*EP116<1, "", EN116*EO116*EP116) ->  | EU116: =IFERROR(IF(SUM(EP116:EP120)/COUNT(EN116:EN120), ROUND(SUM(EP116:EP120)/COUNT(EN116:EN120),1), ""),"") ->  | EV116: =IF(MAX(EP116:EP120),MAX(EP116:EP120),"") ->  | EX116: Biofeedback Test: | EY116: Snatch | FM116: =IF(FG116*FH116*FI116<1, "", FG116*FH116*FI116) ->  | FN116: =IFERROR(IF(SUM(FI116:FI120)/COUNT(FG116:FG120), ROUND(SUM(FI116:FI120)/COUNT(FG116:FG120),1), ""),"") ->  | FO116: =IF(MAX(FI116:FI120),MAX(FI116:FI120),"") ->  | FQ116: Biofeedback Test: | FR116: Jerk | GF116: =IF(FZ116*GA116*GB116<1, "", FZ116*GA116*GB116) ->  | GG116: =IFERROR(IF(SUM(GB116:GB120)/COUNT(FZ116:FZ120), ROUND(SUM(GB116:GB120)/COUNT(FZ116:FZ120),1), ""),"") ->  | GH116: =IF(MAX(GB116:GB120),MAX(GB116:GB120),"") ->  | GJ116: Biofeedback Test: | GK116: Jerk | GY116: =IF(GS116*GT116*GU116<1, "", GS116*GT116*GU116) ->  | GZ116: =IFERROR(IF(SUM(GU116:GU120)/COUNT(GS116:GS120), ROUND(SUM(GU116:GU120)/COUNT(GS116:GS120),1), ""),"") ->  | HA116: =IF(MAX(GU116:GU120),MAX(GU116:GU120),"") -> 
G117: 5 | H117: 30 - 45 Seconds | J117: 90 - 120 Seconds | Q117: =IF(K117*L117*(M117)>0, K117*L117*(M117), "") ->  | AJ117: =IF(AD117*AE117*(AF117)>0, AD117*AE117*(AF117), "") ->  | AS117: 5 | AT117: 30 - 45 Seconds | AV117: 90 - 120 Seconds | BC117: =IF(AW117*AX117*(AY117)>0, AW117*AX117*(AY117), "") ->  | BL117: 5 | BM117: 30 - 45 Seconds | BO117: 90 - 120 Seconds | BV117: =IF(BP117*BQ117*(BR117)>0, BP117*BQ117*(BR117), "") ->  | CE117: 5 | CF117: 30 - 45 Seconds | CH117: 90 - 120 Seconds | CO117: =IF(CI117*CJ117*(CK117)>0, CI117*CJ117*(CK117), "") ->  | DH117: =IF(DB117*DC117*DD117<1, "", DB117*DC117*DD117) ->  | EA117: =IF(DU117*DV117*DW117<1, "", DU117*DV117*DW117) ->  | ET117: =IF(EN117*EO117*EP117<1, "", EN117*EO117*EP117) ->  | FM117: =IF(FG117*FH117*FI117<1, "", FG117*FH117*FI117) ->  | GF117: =IF(FZ117*GA117*GB117<1, "", FZ117*GA117*GB117) ->  | GY117: =IF(GS117*GT117*GU117<1, "", GS117*GT117*GU117) -> 
G118: 5 | H118: 31 - 45 Seconds | J118: 91 - 120 Seconds | AS118: 5 | AT118: 31 - 45 Seconds | AV118: 91 - 120 Seconds | BL118: 5 | BM118: 31 - 45 Seconds | BO118: 91 - 120 Seconds | CE118: 5 | CF118: 31 - 45 Seconds | CH118: 91 - 120 Seconds
G119: 5 | H119: 32 - 45 Seconds | J119: 92 - 120 Seconds | AS119: 5 | AT119: 32 - 45 Seconds | AV119: 92 - 120 Seconds | BL119: 5 | BM119: 32 - 45 Seconds | BO119: 92 - 120 Seconds | CE119: 5 | CF119: 32 - 45 Seconds | CH119: 92 - 120 Seconds
G120: 5 | H120: 33 - 45 Seconds | J120: 93 - 120 Seconds | AS120: 5 | AT120: 33 - 45 Seconds | AV120: 93 - 120 Seconds | BL120: 5 | BM120: 33 - 45 Seconds | BO120: 93 - 120 Seconds | CE120: 5 | CF120: 33 - 45 Seconds | CH120: 93 - 120 Seconds
B121: Day 6 Optional Rest | C121: Single-Leg | G121: 5 | H121: 34 - 45 Seconds | J121: 94 - 120 Seconds | R121: =IF(MAX(M121:M125) > 0, MAX(M121:M125), "") ->  | U121: Day 6 Optional Rest | V121: Single-Leg | AK121: =IF(MAX(AF121:AF125) > 0, MAX(AF121:AF125), "") ->  | AN121: Day 6 Optional Rest | AO121: Single-Leg | AS121: 5 | AT121: 34 - 45 Seconds | AV121: 94 - 120 Seconds | BD121: =IF(MAX(AY121:AY125) > 0, MAX(AY121:AY125), "") ->  | BG121: Day 6 Optional Rest | BH121: Single-Leg | BL121: 5 | BM121: 34 - 45 Seconds | BO121: 94 - 120 Seconds | BW121: =IF(MAX(BR121:BR125) > 0, MAX(BR121:BR125), "") ->  | BZ121: Day 6 Optional Rest | CA121: Single-Leg | CE121: 5 | CF121: 34 - 45 Seconds | CH121: 94 - 120 Seconds | CP121: =IF(MAX(CK121:CK125) > 0, MAX(CK121:CK125), "") ->  | CS121: Day 6 Dynamics | CT121: Clean | DI121: =IFERROR(IF(SUM(DD121:DD125)/COUNT(DB121:DB125), ROUND(SUM(DD121:DD125)/COUNT(DB121:DB125),1), ""),"") ->  | DJ121: =IF(MAX(DD121:DD125),MAX(DD121:DD125),"") ->  | DL121: Day 6 Dynamics | DM121: Jerk | EB121: =IFERROR(IF(SUM(DU121:DU125),ROUND(SUM(DW121:DW125)/SUM(DU121:DU125),0), ""), "") ->  | EC121: =IF(MAX(DW121:DW125),MAX(DW121:DW125),"") ->  | EE121: Day 6 Dynamics | EF121: Jerk | EU121: =IFERROR(IF(SUM(EP121:EP125)/COUNT(EN121:EN125), ROUND(SUM(EP121:EP125)/COUNT(EN121:EN125),1), ""),"") ->  | EV121: =IF(MAX(EP121:EP125),MAX(EP121:EP125),"") ->  | EX121: Day 6 Dynamics | EY121: Clean | FN121: =IFERROR(IF(SUM(FI121:FI125)/COUNT(FG121:FG125), ROUND(SUM(FI121:FI125)/COUNT(FG121:FG125),1), ""),"") ->  | FO121: =IF(MAX(FI121:FI125),MAX(FI121:FI125),"") ->  | FQ121: Day 6 Dynamics | FR121: Jerk | GG121: =IFERROR(IF(SUM(GB121:GB125)/COUNT(FZ121:FZ125), ROUND(SUM(GB121:GB125)/COUNT(FZ121:FZ125),1), ""),"") ->  | GH121: =IF(MAX(GB121:GB125),MAX(GB121:GB125),"") ->  | GJ121: Day 6 Dynamics | GK121: Jerk | GZ121: =IFERROR(IF(SUM(GU121:GU125)/COUNT(GS121:GS125), ROUND(SUM(GU121:GU125)/COUNT(GS121:GS125),1), ""),"") ->  | HA121: =IF(MAX(GU121:GU125),MAX(GU121:GU125),"") -> 
G122: 5 | H122: 35 - 45 Seconds | J122: 95 - 120 Seconds | AS122: 5 | AT122: 35 - 45 Seconds | AV122: 95 - 120 Seconds | BL122: 5 | BM122: 35 - 45 Seconds | BO122: 95 - 120 Seconds | CE122: 5 | CF122: 35 - 45 Seconds | CH122: 95 - 120 Seconds
G123: 5 | H123: 36 - 45 Seconds | J123: 96 - 120 Seconds | AS123: 5 | AT123: 36 - 45 Seconds | AV123: 96 - 120 Seconds | BL123: 5 | BM123: 36 - 45 Seconds | BO123: 96 - 120 Seconds | CE123: 5 | CF123: 36 - 45 Seconds | CH123: 96 - 120 Seconds
G124: 5 | H124: 37 - 45 Seconds | J124: 97 - 120 Seconds | AS124: 5 | AT124: 37 - 45 Seconds | AV124: 97 - 120 Seconds | BL124: 5 | BM124: 37 - 45 Seconds | BO124: 97 - 120 Seconds | CE124: 5 | CF124: 37 - 45 Seconds | CH124: 97 - 120 Seconds
G125: 5 | H125: 30 - 45 Seconds | J125: 90 - 120 Seconds | AS125: 5 | AT125: 30 - 45 Seconds | AV125: 90 - 120 Seconds | BL125: 5 | BM125: 30 - 45 Seconds | BO125: 90 - 120 Seconds | CE125: 5 | CF125: 30 - 45 Seconds | CH125: 90 - 120 Seconds
C126: Single-Leg | G126: 5 | H126: 34 - 45 Seconds | J126: 94 - 120 Seconds | R126: =IF(MAX(M126:M130) > 0, MAX(M126:M130), "") ->  | V126: Single-Leg | AK126: =IF(MAX(AF126:AF130) > 0, MAX(AF126:AF130), "") ->  | AO126: Single-Leg | AS126: 5 | AT126: 34 - 45 Seconds | AV126: 94 - 120 Seconds | BD126: =IF(MAX(AY126:AY130) > 0, MAX(AY126:AY130), "") ->  | BH126: Single-Leg | BL126: 5 | BM126: 34 - 45 Seconds | BO126: 94 - 120 Seconds | BW126: =IF(MAX(BR126:BR130) > 0, MAX(BR126:BR130), "") ->  | CA126: Single-Leg | CE126: 5 | CF126: 34 - 45 Seconds | CH126: 94 - 120 Seconds | CP126: =IF(MAX(CK126:CK130) > 0, MAX(CK126:CK130), "") ->  | CT126: Snatch | DI126: =IFERROR(IF(SUM(DD126:DD130)/COUNT(DB126:DB130), ROUND(SUM(DD126:DD130)/COUNT(DB126:DB130),1), ""),"") ->  | DJ126: =IF(MAX(DD126:DD130),MAX(DD126:DD130),"") ->  | DM126: Snatch | EB126: =IFERROR(IF(SUM(DU126:DU130),ROUND(SUM(DW126:DW130)/SUM(DU126:DU130),0), ""), "") ->  | EC126: =IF(MAX(DW126:DW130),MAX(DW126:DW130),"") ->  | EF126: Snatch | EU126: =IFERROR(IF(SUM(EP126:EP130)/COUNT(EN126:EN130), ROUND(SUM(EP126:EP130)/COUNT(EN126:EN130),1), ""),"") ->  | EV126: =IF(MAX(EP126:EP130),MAX(EP126:EP130),"") ->  | EY126: Clean | FN126: =IFERROR(IF(SUM(FI126:FI130)/COUNT(FG126:FG130), ROUND(SUM(FI126:FI130)/COUNT(FG126:FG130),1), ""),"") ->  | FO126: =IF(MAX(FI126:FI130),MAX(FI126:FI130),"") ->  | FR126: Snatch | GG126: =IFERROR(IF(SUM(GB126:GB130)/COUNT(FZ126:FZ130), ROUND(SUM(GB126:GB130)/COUNT(FZ126:FZ130),1), ""),"") ->  | GH126: =IF(MAX(GB126:GB130),MAX(GB126:GB130),"") ->  | GK126: Snatch | GZ126: =IFERROR(IF(SUM(GU126:GU130)/COUNT(GS126:GS130), ROUND(SUM(GU126:GU130)/COUNT(GS126:GS130),1), ""),"") ->  | HA126: =IF(MAX(GU126:GU130),MAX(GU126:GU130),"") -> 
G127: 5 | H127: 35 - 45 Seconds | J127: 95 - 120 Seconds | AS127: 5 | AT127: 35 - 45 Seconds | AV127: 95 - 120 Seconds | BL127: 5 | BM127: 35 - 45 Seconds | BO127: 95 - 120 Seconds | CE127: 5 | CF127: 35 - 45 Seconds | CH127: 95 - 120 Seconds
G128: 5 | H128: 36 - 45 Seconds | J128: 96 - 120 Seconds | AS128: 5 | AT128: 36 - 45 Seconds | AV128: 96 - 120 Seconds | BL128: 5 | BM128: 36 - 45 Seconds | BO128: 96 - 120 Seconds | CE128: 5 | CF128: 36 - 45 Seconds | CH128: 96 - 120 Seconds
G129: 5 | H129: 37 - 45 Seconds | J129: 97 - 120 Seconds | AS129: 5 | AT129: 37 - 45 Seconds | AV129: 97 - 120 Seconds | BL129: 5 | BM129: 37 - 45 Seconds | BO129: 97 - 120 Seconds | CE129: 5 | CF129: 37 - 45 Seconds | CH129: 97 - 120 Seconds
G130: 5 | H130: 30 - 45 Seconds | J130: 90 - 120 Seconds | AS130: 5 | AT130: 30 - 45 Seconds | AV130: 90 - 120 Seconds | BL130: 5 | BM130: 30 - 45 Seconds | BO130: 90 - 120 Seconds | CE130: 5 | CF130: 30 - 45 Seconds | CH130: 90 - 120 Seconds
C131: Session RPE: | E131: Session Duration: | J131: Session Score: | N131: =IFERROR(IF(SUBSTITUTE(D131,"RPE ","")*G131, CONCATENATE(SUBSTITUTE(D131,"RPE ","")*G131, " AU"),0),0) -> 0 | P131: Daily Totals: | Q131: =IF(SUM(Q116:Q130)>0, SUM(Q116:Q130), "") ->  | R131: =IF(MAX(R116:R130), MAX(R116:R130), "") ->  | V131: Session RPE: | X131: Session Duration: | AC131: Session Score: | AG131: =IFERROR(IF(SUBSTITUTE(W131,"RPE ","")*Z131, CONCATENATE(SUBSTITUTE(W131,"RPE ","")*Z131, " AU"),0),0) -> 0 | AI131: Daily Totals: | AJ131: =IF(SUM(AJ116:AJ130)>0, SUM(AJ116:AJ130), "") ->  | AK131: =IF(MAX(AK116:AK130), MAX(AK116:AK130), "") ->  | AO131: Session RPE: | AQ131: Session Duration: | AV131: Session Score: | AZ131: =IFERROR(IF(SUBSTITUTE(AP131,"RPE ","")*AS131, CONCATENATE(SUBSTITUTE(AP131,"RPE ","")*AS131, " AU"),0),0) -> 0 | BB131: Daily Totals: | BC131: =IF(SUM(BC116:BC130)>0, SUM(BC116:BC130), "") ->  | BD131: =IF(MAX(BD116:BD130), MAX(BD116:BD130), "") ->  | BH131: Session RPE: | BJ131: Session Duration: | BO131: Session Score: | BS131: =IFERROR(IF(SUBSTITUTE(BI131,"RPE ","")*BL131, CONCATENATE(SUBSTITUTE(BI131,"RPE ","")*BL131, " AU"),0),0) -> 0 | BU131: Daily Totals: | BV131: =IF(SUM(BV116:BV130)>0, SUM(BV116:BV130), "") ->  | BW131: =IF(MAX(BW116:BW130), MAX(BW116:BW130), "") ->  | CA131: Session RPE: | CC131: Session Duration: | CH131: Session Score: | CL131: =IFERROR(IF(SUBSTITUTE(CB131,"RPE ","")*CE131, CONCATENATE(SUBSTITUTE(CB131,"RPE ","")*CE131, " AU"),0),0) -> 0 | CN131: Daily Totals: | CO131: =IF(SUM(CO116:CO130)>0, SUM(CO116:CO130), "") ->  | CP131: =IF(MAX(CP116:CP130), MAX(CP116:CP130), "") ->  | CT131: Session RPE: | CV131: Session Duration: | DA131: Session Score: | DE131: =IFERROR(IF(SUBSTITUTE(CU131,"RPE ","")*CX131, CONCATENATE(SUBSTITUTE(CU131,"RPE ","")*CX131, " AU"),0),0) -> 0 | DG131: Daily Totals: | DH131: =IF(SUM(DH116:DH130)<1,"",SUM(DH116:DH130)) ->  | DI131: =IFERROR(IF(SUM(DD116:DD130)/COUNT(DB116:DB130), ROUND(SUM(DD116:DD130)/COUNT(DB116:DB130),1),""),"") ->  | DJ131: =IF(MAX(DJ116:DJ130)>0,MAX(DJ116:DJ130),"") ->  | DM131: Session RPE: | DO131: Session Duration: | DT131: Session Score: | DX131: =IFERROR(IF(SUBSTITUTE(DN131,"RPE ","")*DQ131, CONCATENATE(SUBSTITUTE(DN131,"RPE ","")*DQ131, " AU"),0),0) -> 0 | DZ131: Daily Totals: | EA131: =IF(SUM(EA116:EA130)<1,"",SUM(EA116:EA130)) ->  | EB131: =IFERROR(IF(SUM(DW116:DW130)/COUNT(DU116:DU130), ROUND(SUM(DW116:DW130)/COUNT(DU116:DU130),1),""),"") ->  | EC131: =IF(MAX(EC116:EC130)>0,MAX(EC116:EC130),"") ->  | EF131: Session RPE: | EH131: Session Duration: | EI131: 60 | EM131: Session Score: | EQ131: =IFERROR(IF(SUBSTITUTE(EG131,"RPE ","")*EJ131, CONCATENATE(SUBSTITUTE(EG131,"RPE ","")*EJ131, " AU"),0),0) -> 0 | ES131: Daily Totals: | ET131: =IF(SUM(ET116:ET130)<1,"",CONCATENATE(SUM(ET116:ET130)," Pounds")) ->  | EU131: =IFERROR(IF(SUM(EN116:EN130), CONCATENATE(ROUND(SUM(EP116:EP130)/SUM(EN116:EN130),1), " Pounds/Set"),""),"") ->  | EV131: =IF(MAX(EV116:EV130)>0,CONCATENATE(MAX(EV116:EV130)," Pounds"),"") ->  | EY131: Session RPE: | FA131: Session Duration: | FF131: Session Score: | FJ131: =IFERROR(IF(SUBSTITUTE(EZ131,"RPE ","")*FC131, CONCATENATE(SUBSTITUTE(EZ131,"RPE ","")*FC131, " AU"),0),0) -> 0 | FL131: Daily Totals: | FM131: =IF(SUM(FM116:FM130)<1,"",SUM(FM116:FM130)) ->  | FN131: =IFERROR(IF(SUM(FI116:FI130)/COUNT(FG116:FG130), ROUND(SUM(FI116:FI130)/COUNT(FG116:FG130),1),""),"") ->  | FO131: =IF(MAX(FO116:FO130)>0,MAX(FO116:FO130),"") ->  | FR131: Session RPE: | FT131: Session Duration: | FY131: Session Score: | GC131: =IFERROR(IF(SUBSTITUTE(FS131,"RPE ","")*FV131, CONCATENATE(SUBSTITUTE(FS131,"RPE ","")*FV131, " AU"),0),0) -> 0 | GE131: Daily Totals: | GF131: =IF(SUM(GF116:GF130)<1,"",SUM(GF116:GF130)) ->  | GG131: =IFERROR(IF(SUM(GB116:GB130)/COUNT(FZ116:FZ130), ROUND(SUM(GB116:GB130)/COUNT(FZ116:FZ130),1),""),"") ->  | GH131: =IF(MAX(GH116:GH130)>0,MAX(GH116:GH130),"") ->  | GK131: Session RPE: | GM131: Session Duration: | GR131: Session Score: | GV131: =IFERROR(IF(SUBSTITUTE(GL131,"RPE ","")*GO131, CONCATENATE(SUBSTITUTE(GL131,"RPE ","")*GO131, " AU"),0),0) -> 0 | GX131: Daily Totals: | GY131: =IF(SUM(GY116:GY130)<1,"",SUM(GY116:GY130)) ->  | GZ131: =IFERROR(IF(SUM(GU116:GU130)/COUNT(GS116:GS130), ROUND(SUM(GU116:GU130)/COUNT(GS116:GS130),1),""),"") ->  | HA131: =IF(MAX(HA116:HA130)>0,MAX(HA116:HA130),"") -> 
A132: WEEKLY TOTALS | B132: Tonnage: | D132: =IF(SUM(Q15:Q29,Q51:Q65,Q98:Q112)>0, SUM(Q15:Q29,Q51:Q65,Q98:Q112),"") ->  | E132: Average Intensity: | H132: =IFERROR(IF(SUM(M15:M29,M51:M65,M98:M112)/COUNT(K15:K29,K51:K65,K98:K112)>0,ROUND(SUM(M15:M29,M51:M65,M98:M112)/COUNT(K15:K29,K51:K65,K98:K112),1),""),"") ->  | K132: Absolute Intensity: | N132: =IF(SUM(S15:S29,S51:S65,S98:S112) > 0, SUM(S15:S29,S51:S65,S98:S112),"") ->  | P132: Total AUs: | R132: =IFERROR(IF(SUBSTITUTE(N30, " AU", "") + SUBSTITUTE(N66, " AU", "") + SUBSTITUTE(N113, " AU", "") > 0, CONCATENATE(SUBSTITUTE(N30, " AU", "") + SUBSTITUTE(N66, " AU", "") + SUBSTITUTE(N113, " AU", ""), " AU"), ""),"") ->  | U132: Tonnage: | W132: =IF(SUM(AJ15:AJ29,AJ51:AJ65,AJ98:AJ112)>0, SUM(AJ15:AJ29,AJ51:AJ65,AJ98:AJ112),"") ->  | X132: Average Intensity: | AA132: =IFERROR(IF(SUM(AF15:AF29,AF51:AF65,AF98:AF112)/COUNT(AD15:AD29,AD51:AD65,AD98:AD112)>0,ROUND(SUM(AF15:AF29,AF51:AF65,AF98:AF112)/COUNT(AD15:AD29,AD51:AD65,AD98:AD112),1),""),"") ->  | AD132: Absolute Intensity: | AG132: =IF(SUM(AL15:AL29,AL51:AL65,AL98:AL112) > 0, SUM(AL15:AL29,AL51:AL65,AL98:AL112),"") ->  | AI132: Total AUs: | AK132: =IFERROR(IF(SUBSTITUTE(AG30, " AU", "") + SUBSTITUTE(AG66, " AU", "") + SUBSTITUTE(AG113, " AU", "") > 0, CONCATENATE(SUBSTITUTE(AG30, " AU", "") + SUBSTITUTE(AG66, " AU", "") + SUBSTITUTE(AG113, " AU", ""), " AU"), ""),"") ->  | AN132: Tonnage: | AP132: =IF(SUM(BC15:BC29,BC51:BC65,BC98:BC112)>0, SUM(BC15:BC29,BC51:BC65,BC98:BC112),"") ->  | AQ132: Average Intensity: | AT132: =IFERROR(IF(SUM(AY15:AY29,AY51:AY65,AY98:AY112)/COUNT(AW15:AW29,AW51:AW65,AW98:AW112)>0,ROUND(SUM(AY15:AY29,AY51:AY65,AY98:AY112)/COUNT(AW15:AW29,AW51:AW65,AW98:AW112),1),""),"") ->  | AW132: Absolute Intensity: | AZ132: =IF(SUM(BE15:BE29,BE51:BE65,BE98:BE112) > 0, SUM(BE15:BE29,BE51:BE65,BE98:BE112),"") ->  | BB132: Total AUs: | BD132: =IFERROR(IF(SUBSTITUTE(AZ30, " AU", "") + SUBSTITUTE(AZ66, " AU", "") + SUBSTITUTE(AZ113, " AU", "") > 0, CONCATENATE(SUBSTITUTE(AZ30, " AU", "") + SUBSTITUTE(AZ66, " AU", "") + SUBSTITUTE(AZ113, " AU", ""), " AU"), ""),"") ->  | BG132: Tonnage: | BI132: =IF(SUM(BV15:BV29,BV51:BV65,BV98:BV112)>0, SUM(BV15:BV29,BV51:BV65,BV98:BV112),"") ->  | BJ132: Average Intensity: | BM132: =IFERROR(IF(SUM(BR15:BR29,BR51:BR65,BR98:BR112)/COUNT(BP15:BP29,BP51:BP65,BP98:BP112)>0,ROUND(SUM(BR15:BR29,BR51:BR65,BR98:BR112)/COUNT(BP15:BP29,BP51:BP65,BP98:BP112),1),""),"") ->  | BP132: Absolute Intensity: | BS132: =IF(SUM(BX15:BX29,BX51:BX65,BX98:BX112) > 0, SUM(BX15:BX29,BX51:BX65,BX98:BX112),"") ->  | BU132: Total AUs: | BW132: =IFERROR(IF(SUBSTITUTE(BS30, " AU", "") + SUBSTITUTE(BS66, " AU", "") + SUBSTITUTE(BS113, " AU", "") > 0, CONCATENATE(SUBSTITUTE(BS30, " AU", "") + SUBSTITUTE(BS66, " AU", "") + SUBSTITUTE(BS113, " AU", ""), " AU"), ""),"") ->  | BZ132: Tonnage: | CB132: =IF(SUM(CO15:CO29,CO51:CO65,CO98:CO112)>0, SUM(CO15:CO29,CO51:CO65,CO98:CO112),"") ->  | CC132: Average Intensity: | CF132: =IFERROR(IF(SUM(CK15:CK29,CK51:CK65,CK98:CK112)/COUNT(CI15:CI29,CI51:CI65,CI98:CI112)>0,ROUND(SUM(CK15:CK29,CK51:CK65,CK98:CK112)/COUNT(CI15:CI29,CI51:CI65,CI98:CI112),1),""),"") ->  | CI132: Absolute Intensity: | CL132: =IF(SUM(CQ15:CQ29,CQ51:CQ65,CQ98:CQ112) > 0, SUM(CQ15:CQ29,CQ51:CQ65,CQ98:CQ112),"") ->  | CN132: Total AUs: | CP132: =IFERROR(IF(SUBSTITUTE(CL30, " AU", "") + SUBSTITUTE(CL66, " AU", "") + SUBSTITUTE(CL113, " AU", "") > 0, CONCATENATE(SUBSTITUTE(CL30, " AU", "") + SUBSTITUTE(CL66, " AU", "") + SUBSTITUTE(CL113, " AU", ""), " AU"), ""),"") ->  | CS132: Tonnage: | CU132: =IF(SUM(DH15:DH29,DH51:DH65,DH98:DH112)>0, SUM(DH15:DH29,DH51:DH65,DH98:DH112),"") ->  | CV132: Average Intensity: | CY132: =IFERROR(IF(SUM(DD15:DD29,DD51:DD65,DD98:DD112)/COUNT(DB15:DB29,DB51:DB65,DB98:DB112)>0,ROUND(SUM(DD15:DD29,DD51:DD65,DD98:DD112)/COUNT(DB15:DB29,DB51:DB65,DB98:DB112),1),""),"") ->  | DB132: Absolute Intensity: | DE132: =IF(SUM(DJ15:DJ29,DJ51:DJ65,DJ98:DJ112) > 0, SUM(DJ15:DJ29,DJ51:DJ65,DJ98:DJ112),"") ->  | DG132: Total AUs: | DI132: =IFERROR(IF(SUBSTITUTE(DE30, " AU", "") + SUBSTITUTE(DE66, " AU", "") + SUBSTITUTE(DE113, " AU", "") > 0, CONCATENATE(SUBSTITUTE(DE30, " AU", "") + SUBSTITUTE(DE66, " AU", "") + SUBSTITUTE(DE113, " AU", ""), " AU"), ""),"") ->  | DL132: Tonnage: | DN132: =IF(SUM(EA15:EA29,EA51:EA65,EA98:EA112)>0, SUM(EA15:EA29,EA51:EA65,EA98:EA112),"") ->  | DO132: Average Intensity: | DR132: =IFERROR(IF(SUM(DW15:DW29,DW51:DW65,DW98:DW112)/COUNT(DU15:DU29,DU51:DU65,DU98:DU112)>0,ROUND(SUM(DW15:DW29,DW51:DW65,DW98:DW112)/COUNT(DU15:DU29,DU51:DU65,DU98:DU112),1),""),"") ->  | DU132: Absolute Intensity: | DX132: =IF(SUM(EC15:EC29,EC51:EC65,EC98:EC112) > 0, SUM(EC15:EC29,EC51:EC65,EC98:EC112),"") ->  | DZ132: Total AUs: | EB132: =IFERROR(IF(SUBSTITUTE(DX30, " AU", "") + SUBSTITUTE(DX66, " AU", "") + SUBSTITUTE(DX113, " AU", "") > 0, CONCATENATE(SUBSTITUTE(DX30, " AU", "") + SUBSTITUTE(DX66, " AU", "") + SUBSTITUTE(DX113, " AU", ""), " AU"), ""),"") ->  | EE132: Tonnage: | EG132: =IF(SUM(ET15:ET29,ET51:ET65,ET98:ET112)>0, SUM(ET15:ET29,ET51:ET65,ET98:ET112),"") ->  | EH132: Average Intensity: | EK132: =IFERROR(IF(SUM(EP15:EP29,EP51:EP65,EP98:EP112)/COUNT(EN15:EN29,EN51:EN65,EN98:EN112)>0,ROUND(SUM(EP15:EP29,EP51:EP65,EP98:EP112)/COUNT(EN15:EN29,EN51:EN65,EN98:EN112),1),""),"") ->  | EN132: Absolute Intensity: | EQ132: =IF(SUM(EV15:EV29,EV51:EV65,EV98:EV112) > 0, SUM(EV15:EV29,EV51:EV65,EV98:EV112),"") ->  | ES132: Total AUs: | EU132: =IFERROR(IF(SUBSTITUTE(EQ30, " AU", "") + SUBSTITUTE(EQ66, " AU", "") + SUBSTITUTE(EQ113, " AU", "") > 0, CONCATENATE(SUBSTITUTE(EQ30, " AU", "") + SUBSTITUTE(EQ66, " AU", "") + SUBSTITUTE(EQ113, " AU", ""), " AU"), ""),"") ->  | EX132: Tonnage: | EZ132: =IF(SUM(FM15:FM29,FM51:FM65,FM98:FM112)>0, SUM(FM15:FM29,FM51:FM65,FM98:FM112),"") ->  | FA132: Average Intensity: | FD132: =IFERROR(IF(SUM(FI15:FI29,FI51:FI65,FI98:FI112)/COUNT(FG15:FG29,FG51:FG65,FG98:FG112)>0,ROUND(SUM(FI15:FI29,FI51:FI65,FI98:FI112)/COUNT(FG15:FG29,FG51:FG65,FG98:FG112),1),""),"") ->  | FG132: Absolute Intensity: | FJ132: =IF(SUM(FO15:FO29,FO51:FO65,FO98:FO112) > 0, SUM(FO15:FO29,FO51:FO65,FO98:FO112),"") ->  | FL132: Total AUs: | FN132: =IFERROR(IF(SUBSTITUTE(FJ30, " AU", "") + SUBSTITUTE(FJ66, " AU", "") + SUBSTITUTE(FJ113, " AU", "") > 0, CONCATENATE(SUBSTITUTE(FJ30, " AU", "") + SUBSTITUTE(FJ66, " AU", "") + SUBSTITUTE(FJ113, " AU", ""), " AU"), ""),"") ->  | FQ132: Tonnage: | FS132: =IF(SUM(GF15:GF29,GF51:GF65,GF98:GF112)>0, SUM(GF15:GF29,GF51:GF65,GF98:GF112),"") ->  | FT132: Average Intensity: | FW132: =IFERROR(IF(SUM(GB15:GB29,GB51:GB65,GB98:GB112)/COUNT(FZ15:FZ29,FZ51:FZ65,FZ98:FZ112)>0,ROUND(SUM(GB15:GB29,GB51:GB65,GB98:GB112)/COUNT(FZ15:FZ29,FZ51:FZ65,FZ98:FZ112),1),""),"") ->  | FZ132: Absolute Intensity: | GC132: =IF(SUM(GH15:GH29,GH51:GH65,GH98:GH112) > 0, SUM(GH15:GH29,GH51:GH65,GH98:GH112),"") ->  | GE132: Total AUs: | GG132: =IFERROR(IF(SUBSTITUTE(GC30, " AU", "") + SUBSTITUTE(GC66, " AU", "") + SUBSTITUTE(GC113, " AU", "") > 0, CONCATENATE(SUBSTITUTE(GC30, " AU", "") + SUBSTITUTE(GC66, " AU", "") + SUBSTITUTE(GC113, " AU", ""), " AU"), ""),"") ->  | GJ132: Tonnage: | GL132: =IF(SUM(GY15:GY29,GY51:GY65,GY98:GY112)>0, SUM(GY15:GY29,GY51:GY65,GY98:GY112),"") ->  | GM132: Average Intensity: | GP132: =IFERROR(IF(SUM(GU15:GU29,GU51:GU65,GU98:GU112)/COUNT(GS15:GS29,GS51:GS65,GS98:GS112)>0,ROUND(SUM(GU15:GU29,GU51:GU65,GU98:GU112)/COUNT(GS15:GS29,GS51:GS65,GS98:GS112),1),""),"") ->  | GS132: Absolute Intensity: | GV132: =IF(SUM(HA15:HA29,HA51:HA65,HA98:HA112) > 0, SUM(HA15:HA29,HA51:HA65,HA98:HA112),"") ->  | GX132: Total AUs: | GZ132: =IFERROR(IF(SUBSTITUTE(GV30, " AU", "") + SUBSTITUTE(GV66, " AU", "") + SUBSTITUTE(GV113, " AU", "") > 0, CONCATENATE(SUBSTITUTE(GV30, " AU", "") + SUBSTITUTE(GV66, " AU", "") + SUBSTITUTE(GV113, " AU", ""), " AU"), ""),"") -> 
B133: Weekly % Difference | D133: =IF( D132 <> "", (IF(D132<>"",D132, 0) - IF('Phase II '!BI95<>"",'Phase II '!BI95, 0))/IF('Phase II '!BI95<>"",'Phase II '!BI95, 1), "") ->  | H133: =IF( H132 <> "", (IF(H132<>"",H132, 0) - IF('Phase II '!BM95<>"",'Phase II '!BM95, 0))/IF('Phase II '!BM95<>"",'Phase II '!BM95, 1), "") ->  | N133: =IF(N132 <> "", (IF(N132<>"",N132, 0) - IF('Phase II '!BS95<>"",'Phase II '!BS95, 0))/IF('Phase II '!BS95<>"",'Phase II '!BS95,1), "") ->  | R133: =IF(R132 <> "", (IF(R132<>"",SUBSTITUTE(R132," AU",""), 0) - IF('Phase II '!BW95<>"",SUBSTITUTE('Phase II '!BW95," AU",""), 0))/IF('Phase II '!BW95<>"",SUBSTITUTE('Phase II '!BW95," AU",""), 1), "") ->  | U133: Weekly % Difference | W133: =IF( W132 <> "", (IF(W132<>"",W132, 0) - IF(D132<>"",D132, 0))/IF(D132<>"",D132, 1), "") ->  | AA133: =IF( AA132 <> "", (IF(AA132<>"",AA132, 0) - IF(H132<>"",H132, 0))/IF(H132<>"",H132, 1), "") ->  | AG133: =IF(AG132 <> "", (IF(AG132<>"",AG132, 0) - IF(N132<>"",N132, 0))/IF(N132<>"",N132,1), "") ->  | AK133: =IF(AK132 <> "", (IF(AK132<>"",SUBSTITUTE(AK132," AU",""), 0) - IF(R132<>"",SUBSTITUTE(R132," AU",""), 0))/IF(R132<>"",SUBSTITUTE(R132," AU",""), 1), "") ->  | AN133: Weekly % Difference | AP133: =IF( AP132 <> "", (IF(AP132<>"",AP132, 0) - IF(W132<>"",W132, 0))/IF(W132<>"",W132, 1), "") ->  | AT133: =IF( AT132 <> "", (IF(AT132<>"",AT132, 0) - IF(AA132<>"",AA132, 0))/IF(AA132<>"",AA132, 1), "") ->  | AZ133: =IF(AZ132 <> "", (IF(AZ132<>"",AZ132, 0) - IF(AG132<>"",AG132, 0))/IF(AG132<>"",AG132,1), "") ->  | BD133: =IF(BD132 <> "", (IF(BD132<>"",SUBSTITUTE(BD132," AU",""), 0) - IF(AK132<>"",SUBSTITUTE(AK132," AU",""), 0))/IF(AK132<>"",SUBSTITUTE(AK132," AU",""), 1), "") ->  | BG133: Weekly % Difference | BI133: =IF( BI132 <> "", (IF(BI132<>"",BI132, 0) - IF(AP132<>"",AP132, 0))/IF(AP132<>"",AP132, 1), "") ->  | BM133: =IF( BM132 <> "", (IF(BM132<>"",BM132, 0) - IF(AT132<>"",AT132, 0))/IF(AT132<>"",AT132, 1), "") ->  | BS133: =IF(BS132 <> "", (IF(BS132<>"",BS132, 0) - IF(AZ132<>"",AZ132, 0))/IF(AZ132<>"",AZ132,1), "") ->  | BW133: =IF(BW132 <> "", (IF(BW132<>"",SUBSTITUTE(BW132," AU",""), 0) - IF(BD132<>"",SUBSTITUTE(BD132," AU",""), 0))/IF(BD132<>"",SUBSTITUTE(BD132," AU",""), 1), "") ->  | BZ133: Weekly % Difference | CB133: =IF( CB132 <> "", (IF(CB132<>"",CB132, 0) - IF(BI132<>"",BI132, 0))/IF(BI132<>"",BI132, 1), "") ->  | CF133: =IF( CF132 <> "", (IF(CF132<>"",CF132, 0) - IF(BM132<>"",BM132, 0))/IF(BM132<>"",BM132, 1), "") ->  | CL133: =IF(CL132 <> "", (IF(CL132<>"",CL132, 0) - IF(BS132<>"",BS132, 0))/IF(BS132<>"",BS132,1), "") ->  | CP133: =IF(CP132 <> "", (IF(CP132<>"",SUBSTITUTE(CP132," AU",""), 0) - IF(BW132<>"",SUBSTITUTE(BW132," AU",""), 0))/IF(BW132<>"",SUBSTITUTE(BW132," AU",""), 1), "") ->  | CS133: Weekly % Difference | CU133: =IF( CU132 <> "", (IF(CU132<>"",CU132, 0) - IF(CB132<>"",CB132, 0))/IF(CB132<>"",CB132, 1), "") ->  | CY133: =IF( CY132 <> "", (IF(CY132<>"",CY132, 0) - IF(CF132<>"",CF132, 0))/IF(CF132<>"",CF132, 1), "") ->  | DE133: =IF(DE132 <> "", (IF(DE132<>"",DE132, 0) - IF(CL132<>"",CL132, 0))/IF(CL132<>"",CL132,1), "") ->  | DI133: =IF(DI132 <> "", (IF(DI132<>"",SUBSTITUTE(DI132," AU",""), 0) - IF(CP132<>"",SUBSTITUTE(CP132," AU",""), 0))/IF(CP132<>"",SUBSTITUTE(CP132," AU",""), 1), "") ->  | DL133: Weekly % Difference | DN133: =IF( DN132 <> "", (IF(DN132<>"",DN132, 0) - IF(CU132<>"",CU132, 0))/IF(CU132<>"",CU132, 1), "") ->  | DR133: =IF( DR132 <> "", (IF(DR132<>"",DR132, 0) - IF(CY132<>"",CY132, 0))/IF(CY132<>"",CY132, 1), "") ->  | DX133: =IF(DX132 <> "", (IF(DX132<>"",DX132, 0) - IF(DE132<>"",DE132, 0))/IF(DE132<>"",DE132,1), "") ->  | EB133: =IF(EB132 <> "", (IF(EB132<>"",SUBSTITUTE(EB132," AU",""), 0) - IF(DI132<>"",SUBSTITUTE(DI132," AU",""), 0))/IF(DI132<>"",SUBSTITUTE(DI132," AU",""), 1), "") ->  | EE133: Weekly % Difference | EG133: =IF( EG132 <> "", (IF(EG132<>"",EG132, 0) - IF(DN132<>"",DN132, 0))/IF(DN132<>"",DN132, 1), "") ->  | EK133: =IF( EK132 <> "", (IF(EK132<>"",EK132, 0) - IF(DR132<>"",DR132, 0))/IF(DR132<>"",DR132, 1), "") ->  | EQ133: =IF(EQ132 <> "", (IF(EQ132<>"",EQ132, 0) - IF(DX132<>"",DX132, 0))/IF(DX132<>"",DX132,1), "") ->  | EU133: =IF(EU132 <> "", (IF(EU132<>"",SUBSTITUTE(EU132," AU",""), 0) - IF(EB132<>"",SUBSTITUTE(EB132," AU",""), 0))/IF(EB132<>"",SUBSTITUTE(EB132," AU",""), 1), "") ->  | EX133: Weekly % Difference | EZ133: =IF( EZ132 <> "", (IF(EZ132<>"",EZ132, 0) - IF(EG132<>"",EG132, 0))/IF(EG132<>"",EG132, 1), "") ->  | FD133: =IF( FD132 <> "", (IF(FD132<>"",FD132, 0) - IF(EK132<>"",EK132, 0))/IF(EK132<>"",EK132, 1), "") ->  | FJ133: =IF(FJ132 <> "", (IF(FJ132<>"",FJ132, 0) - IF(EQ132<>"",EQ132, 0))/IF(EQ132<>"",EQ132,1), "") ->  | FN133: =IF(FN132 <> "", (IF(FN132<>"",SUBSTITUTE(FN132," AU",""), 0) - IF(EU132<>"",SUBSTITUTE(EU132," AU",""), 0))/IF(EU132<>"",SUBSTITUTE(EU132," AU",""), 1), "") ->  | FQ133: Weekly % Difference | FS133: =IF( FS132 <> "", (IF(FS132<>"",FS132, 0) - IF(EZ132<>"",EZ132, 0))/IF(EZ132<>"",EZ132, 1), "") ->  | FW133: =IF( FW132 <> "", (IF(FW132<>"",FW132, 0) - IF(FD132<>"",FD132, 0))/IF(FD132<>"",FD132, 1), "") ->  | GC133: =IF(GC132 <> "", (IF(GC132<>"",GC132, 0) - IF(FJ132<>"",FJ132, 0))/IF(FJ132<>"",FJ132,1), "") ->  | GG133: =IF(GG132 <> "", (IF(GG132<>"",SUBSTITUTE(GG132," AU",""), 0) - IF(FN132<>"",SUBSTITUTE(FN132," AU",""), 0))/IF(FN132<>"",SUBSTITUTE(FN132," AU",""), 1), "") ->  | GJ133: Weekly % Difference | GL133: =IF( GL132 <> "", (IF(GL132<>"",GL132, 0) - IF(FS132<>"",FS132, 0))/IF(FS132<>"",FS132, 1), "") ->  | GP133: =IF( GP132 <> "", (IF(GP132<>"",GP132, 0) - IF(FW132<>"",FW132, 0))/IF(FW132<>"",FW132, 1), "") ->  | GV133: =IF(GV132 <> "", (IF(GV132<>"",GV132, 0) - IF(GC132<>"",GC132, 0))/IF(GC132<>"",GC132,1), "") ->  | GZ133: =IF(GZ132 <> "", (IF(GZ132<>"",SUBSTITUTE(GZ132," AU",""), 0) - IF(GG132<>"",SUBSTITUTE(GG132," AU",""), 0))/IF(GG132<>"",SUBSTITUTE(GG132," AU",""), 1), "") -> 

Sheet Phase IV
A1: Phase IV - Return to Sport
A2: Week | B2: Day | C2: Weightlifting Movement | D2: Tempo | E2: Sets | F2: Reps | G2: RPE | H2: Rest | I2: Score | L2: Feedback | O2: Exercise Tonnage | P2: Average Intensity | Q2: Absolute Intensity | R2: Week | S2: Day | T2: Weightlifting Movement | U2: Tempo | V2: Sets | W2: Reps | X2: RPE | Y2: Rest | Z2: Score | AC2: Feedback | AF2: Exercise Tonnage | AG2: Average Intensity | AH2: Absolute Intensity | AI2: Week | AJ2: Day | AK2: Weightlifting Movement | AL2: Tempo | AM2: Sets | AN2: Reps | AO2: RPE | AP2: Rest | AQ2: Score | AT2: Feedback | AW2: Exercise Tonnage | AX2: Average Intensity | AY2: Absolute Intensity | AZ2: Week | BA2: Day | BB2: Weightlifting Movement | BC2: Tempo | BD2: Sets | BE2: Reps | BF2: RPE | BG2: Rest | BH2: Score | BK2: Feedback | BN2: Exercise Tonnage | BO2: Average Intensity | BP2: Absolute Intensity
I3: Sets | J3: Reps | K3: Weight | Z3: Sets | AA3: Reps | AB3: Weight | AQ3: Sets | AR3: Reps | AS3: Weight | BH3: Sets | BI3: Reps | BJ3: Weight
A4: W E E K 17 | B4: Day 1 | C4: Snatch-Pull + Snatch | D4: Normal | E4: 1 | F4: 2+1 | G4: 7 | O4: =IF(SUMPRODUCT(I4:I6,J4:J6,K4:K6), SUMPRODUCT(I4:I6,J4:J6,K4:K6), "") ->  | P4: =IFERROR(IF(SUM(K4:K6)/COUNT(I4:I6), ROUND(SUM(K4:K6)/COUNT(I4:I6),1), ""),"") ->  | Q4: =IF(MAX(K4:K6),MAX(K4:K6),"") ->  | R4: W E E K 18 | S4: Day 1 | T4: Snatch-Pull + Snatch | U4: Normal | V4: 1 | W4: 1+1 | X4: 7.5-8 | AF4: =IF(SUMPRODUCT(Z4:Z6,AA4:AA6,AB4:AB6), SUMPRODUCT(Z4:Z6,AA4:AA6,AB4:AB6), "") ->  | AG4: =IFERROR(IF(SUM(AB4:AB6)/COUNT(Z4:Z6), ROUND(SUM(AB4:AB6)/COUNT(Z4:Z6),1), ""),"") ->  | AH4: =IF(MAX(AB4:AB6),MAX(AB4:AB6),"") ->  | AI4: W E E K 19 | AJ4: Day 1 | AK4: Snatch-Pull + Snatch | AL4: Normal | AM4: 1 | AN4: 1+1 | AO4: 8 | AW4: =IF(SUMPRODUCT(AQ4:AQ6,AR4:AR6,AS4:AS6), SUMPRODUCT(AQ4:AQ6,AR4:AR6,AS4:AS6), "") ->  | AX4: =IFERROR(IF(SUM(AS4:AS6)/COUNT(AQ4:AQ6), ROUND(SUM(AS4:AS6)/COUNT(AQ4:AQ6),1), ""),"") ->  | AY4: =IF(MAX(AS4:AS6),MAX(AS4:AS6),"") ->  | AZ4: W E E K 20 | BA4: Day 1 | BB4: Snatch-Pull + Snatch | BC4: Normal | BD4: 1 | BE4: 2+1 | BF4: 7 | BN4: =IF(SUMPRODUCT(BH4:BH6,BI4:BI6,BJ4:BJ6), SUMPRODUCT(BH4:BH6,BI4:BI6,BJ4:BJ6), "") ->  | BO4: =IFERROR(IF(SUM(BJ4:BJ6)/COUNT(BH4:BH6), ROUND(SUM(BJ4:BJ6)/COUNT(BH4:BH6),1), ""),"") ->  | BP4: =IF(MAX(BJ4:BJ6),MAX(BJ4:BJ6),"") -> 
C5: Snatch-Pull + Snatch | D5: Normal | E5: 1 | F5: 2+1 | G5: 7 | T5: Snatch-Pull + Snatch | U5: Normal | V5: 1 | W5: 1+1 | X5: 7.5-8 | AK5: Snatch-Pull + Snatch | AL5: Normal | AM5: 1 | AN5: 1+1 | AO5: 8 | BB5: Snatch-Pull + Snatch | BC5: Normal | BD5: 1 | BE5: 2+1 | BF5: 7
C6: Snatch-Pull + Snatch | D6: Normal | E6: 1 | F6: 2+1 | G6: 7 | T6: Snatch-Pull + Snatch | U6: Normal | V6: 1 | W6: 1+1 | X6: 7.5-8 | AK6: Snatch-Pull + Snatch | AL6: Normal | AM6: 1 | AN6: 1+1 | AO6: 8 | BB6: Snatch-Pull + Snatch | BC6: Normal | BD6: 1 | BE6: 2+1 | BF6: 7
C7: Clean & Jerk | D7: Normal | E7: 3 | F7: 1+2 | G7: 7 | O7: =IF(SUMPRODUCT(I7:I9,J7:J9,K7:K9), SUMPRODUCT(I7:I9,J7:J9,K7:K9), "") ->  | P7: =IFERROR(IF(SUM(K7:K9)/COUNT(I7:I9), ROUND(SUM(K7:K9)/COUNT(I7:I9),1), ""),"") ->  | Q7: =IF(MAX(K7:K9),MAX(K7:K9),"") ->  | T7: Clean & Jerk | U7: Normal | V7: 3 | W7: 1+2 | X7: 7.5-8 | AF7: =IF(SUMPRODUCT(Z7:Z9,AA7:AA9,AB7:AB9), SUMPRODUCT(Z7:Z9,AA7:AA9,AB7:AB9), "") ->  | AG7: =IFERROR(IF(SUM(AB7:AB9)/COUNT(Z7:Z9), ROUND(SUM(AB7:AB9)/COUNT(Z7:Z9),1), ""),"") ->  | AH7: =IF(MAX(AB7:AB9),MAX(AB7:AB9),"") ->  | AK7: Clean & Jerk | AL7: Normal | AM7: 4 | AN7: 1+2 | AO7: 8 | AW7: =IF(SUMPRODUCT(AQ7:AQ9,AR7:AR9,AS7:AS9), SUMPRODUCT(AQ7:AQ9,AR7:AR9,AS7:AS9), "") ->  | AX7: =IFERROR(IF(SUM(AS7:AS9)/COUNT(AQ7:AQ9), ROUND(SUM(AS7:AS9)/COUNT(AQ7:AQ9),1), ""),"") ->  | AY7: =IF(MAX(AS7:AS9),MAX(AS7:AS9),"") ->  | BB7: Clean & Jerk | BC7: Normal | BD7: 3 | BE7: 1+2 | BF7: 7 | BN7: =IF(SUMPRODUCT(BH7:BH9,BI7:BI9,BJ7:BJ9), SUMPRODUCT(BH7:BH9,BI7:BI9,BJ7:BJ9), "") ->  | BO7: =IFERROR(IF(SUM(BJ7:BJ9)/COUNT(BH7:BH9), ROUND(SUM(BJ7:BJ9)/COUNT(BH7:BH9),1), ""),"") ->  | BP7: =IF(MAX(BJ7:BJ9),MAX(BJ7:BJ9),"") -> 
C8: Clean & Jerk | D8: Normal | E8: 3 | F8: 1+2 | G8: 7 | T8: Clean & Jerk | U8: Normal | V8: 3 | W8: 1+2 | X8: 7.5-8 | AK8: Clean & Jerk | AL8: Normal | AM8: 4 | AN8: 1+2 | AO8: 8 | BB8: Clean & Jerk | BC8: Normal | BD8: 3 | BE8: 1+2 | BF8: 7
C9: Clean & Jerk | D9: Normal | E9: 3 | F9: 1+2 | G9: 7 | T9: Clean & Jerk | U9: Normal | V9: 3 | W9: 1+2 | X9: 7.5-8 | AK9: Clean & Jerk | AL9: Normal | AM9: 4 | AN9: 1+2 | AO9: 8 | BB9: Clean & Jerk | BC9: Normal | BD9: 3 | BE9: 1+2 | BF9: 7
C10: Overhead-Squat | D10: 2-0-1 | E10: 5 | F10: 4 | G10: 7 | O10: =IF(SUMPRODUCT(I10:I12,J10:J12,K10:K12), SUMPRODUCT(I10:I12,J10:J12,K10:K12), "") ->  | P10: =IFERROR(IF(SUM(K10:K12)/COUNT(I10:I12), ROUND(SUM(K10:K12)/COUNT(I10:I12),1), ""),"") ->  | Q10: =IF(MAX(K10:K12),MAX(K10:K12),"") ->  | T10: Overhead-Squat | U10: 2-0-1 | V10: 5 | W10: 4 | X10: 7.5-8 | AF10: =IF(SUMPRODUCT(Z10:Z12,AA10:AA12,AB10:AB12), SUMPRODUCT(Z10:Z12,AA10:AA12,AB10:AB12), "") ->  | AG10: =IFERROR(IF(SUM(AB10:AB12)/COUNT(Z10:Z12), ROUND(SUM(AB10:AB12)/COUNT(Z10:Z12),1), ""),"") ->  | AH10: =IF(MAX(AB10:AB12),MAX(AB10:AB12),"") ->  | AK10: Overhead-Squat | AL10: 2-0-1 | AM10: 5 | AN10: 4 | AO10: 8-8.5 | AW10: =IF(SUMPRODUCT(AQ10:AQ12,AR10:AR12,AS10:AS12), SUMPRODUCT(AQ10:AQ12,AR10:AR12,AS10:AS12), "") ->  | AX10: =IFERROR(IF(SUM(AS10:AS12)/COUNT(AQ10:AQ12), ROUND(SUM(AS10:AS12)/COUNT(AQ10:AQ12),1), ""),"") ->  | AY10: =IF(MAX(AS10:AS12),MAX(AS10:AS12),"") ->  | BB10: Overhead-Squat | BC10: 2-0-1 | BD10: 5 | BE10: 4 | BF10: 7 | BN10: =IF(SUMPRODUCT(BH10:BH12,BI10:BI12,BJ10:BJ12), SUMPRODUCT(BH10:BH12,BI10:BI12,BJ10:BJ12), "") ->  | BO10: =IFERROR(IF(SUM(BJ10:BJ12)/COUNT(BH10:BH12), ROUND(SUM(BJ10:BJ12)/COUNT(BH10:BH12),1), ""),"") ->  | BP10: =IF(MAX(BJ10:BJ12),MAX(BJ10:BJ12),"") -> 
C11: Overhead-Squat | D11: 2-0-1 | E11: 5 | F11: 4 | G11: 7 | T11: Overhead-Squat | U11: 2-0-1 | V11: 5 | W11: 4 | X11: 7.5-8 | AK11: Overhead-Squat | AL11: 2-0-1 | AM11: 5 | AN11: 4 | AO11: 8-8.5 | BB11: Overhead-Squat | BC11: 2-0-1 | BD11: 5 | BE11: 4 | BF11: 7
C12: Overhead-Squat | D12: 2-0-1 | E12: 5 | F12: 4 | G12: 7 | T12: Overhead-Squat | U12: 2-0-1 | V12: 5 | W12: 4 | X12: 7.5-8 | AK12: Overhead-Squat | AL12: 2-0-1 | AM12: 5 | AN12: 4 | AO12: 8-8.5 | BB12: Overhead-Squat | BC12: 2-0-1 | BD12: 5 | BE12: 4 | BF12: 7
B13: Session RPE: | D13: Session Duration: | F13: Session Score: | J13: =IFERROR(IF(SUBSTITUTE(C13,"RPE ","")*E13, CONCATENATE(SUBSTITUTE(C13,"RPE ","")*E13, " AU"),0),0) -> 0 | N13: Daily Totals: | O13: =IF(SUM(O4:O11)<1,"",SUM(O4:O11)) ->  | P13: =IFERROR(IF(SUM(K4:K12)/COUNT(I4:I12), ROUND(SUM(K4:K12)/COUNT(I4:I12),1),""),"") ->  | Q13: =IF(MAX(Q4:Q12)>0,MAX(Q4:Q12),"") ->  | S13: Session RPE: | U13: Session Duration: | W13: Session Score: | AA13: =IFERROR(IF(SUBSTITUTE(T13,"RPE ","")*V13, CONCATENATE(SUBSTITUTE(T13,"RPE ","")*V13, " AU"),0),0) -> 0 | AE13: Daily Totals: | AF13: =IF(SUM(AF4:AF11)<1,"",SUM(AF4:AF11)) ->  | AG13: =IFERROR(IF(SUM(AB4:AB12)/COUNT(Z4:Z12), ROUND(SUM(AB4:AB12)/COUNT(Z4:Z12),1),""),"") ->  | AH13: =IF(MAX(AH4:AH12)>0,MAX(AH4:AH12),"") ->  | AJ13: Session RPE: | AL13: Session Duration: | AN13: Session Score: | AR13: =IFERROR(IF(SUBSTITUTE(AK13,"RPE ","")*AM13, CONCATENATE(SUBSTITUTE(AK13,"RPE ","")*AM13, " AU"),0),0) -> 0 | AV13: Daily Totals: | AW13: =IF(SUM(AW4:AW11)<1,"",SUM(AW4:AW11)) ->  | AX13: =IFERROR(IF(SUM(AS4:AS12)/COUNT(AQ4:AQ12), ROUND(SUM(AS4:AS12)/COUNT(AQ4:AQ12),1),""),"") ->  | AY13: =IF(MAX(AY4:AY12)>0,MAX(AY4:AY12),"") ->  | BA13: Session RPE: | BC13: Session Duration: | BE13: Session Score: | BI13: =IFERROR(IF(SUBSTITUTE(BB13,"RPE ","")*BD13, CONCATENATE(SUBSTITUTE(BB13,"RPE ","")*BD13, " AU"),0),0) -> 0 | BM13: Daily Totals: | BN13: =IF(SUM(BN4:BN11)<1,"",SUM(BN4:BN11)) ->  | BO13: =IFERROR(IF(SUM(BJ4:BJ12)/COUNT(BH4:BH12), ROUND(SUM(BJ4:BJ12)/COUNT(BH4:BH12),1),""),"") ->  | BP13: =IF(MAX(BP4:BP12)>0,MAX(BP4:BP12),"") -> 
B14: Day | C14: Weightlifting Movement | D14: Tempo | E14: Sets | F14: Reps | G14: RPE | H14: Rest | I14: Score | L14: Feedback | O14: Exercise Tonnage | P14: Average Intensity | Q14: Absolute Intensity | S14: Day | T14: Weightlifting Movement | U14: Tempo | V14: Sets | W14: Reps | X14: RPE | Y14: Rest | Z14: Score | AC14: Feedback | AF14: Exercise Tonnage | AG14: Average Intensity | AH14: Absolute Intensity | AJ14: Day | AK14: Weightlifting Movement | AL14: Tempo | AM14: Sets | AN14: Reps | AO14: RPE | AP14: Rest | AQ14: Score | AT14: Feedback | AW14: Exercise Tonnage | AX14: Average Intensity | AY14: Absolute Intensity | BA14: Day | BB14: Weightlifting Movement | BC14: Tempo | BD14: Sets | BE14: Reps | BF14: RPE | BG14: Rest | BH14: Score | BK14: Feedback | BN14: Exercise Tonnage | BO14: Average Intensity | BP14: Absolute Intensity
I15: Sets | J15: Reps | K15: Weight | Z15: Sets | AA15: Reps | AB15: Weight | AQ15: Sets | AR15: Reps | AS15: Weight | BH15: Sets | BI15: Reps | BJ15: Weight
B16: Day 2 | C16: Power-Snatch | D16: Normal | E16: 2 | F16: 4 | G16: 7 | O16: =IF(SUMPRODUCT(I16:I18,J16:J18,K16:K18), SUMPRODUCT(I16:I18,J16:J18,K16:K18), "") ->  | P16: =IFERROR(IF(SUM(K16:K18)/COUNT(I16:I18), ROUND(SUM(K16:K18)/COUNT(I16:I18),1), ""),"") ->  | Q16: =IF(MAX(K16:K18),MAX(K16:K18),"") ->  | S16: Day 2 | T16: Power-Snatch | U16: Normal | V16: 2 | W16: 4 | X16: 7.5-8 | AF16: =IF(SUMPRODUCT(Z16:Z18,AA16:AA18,AB16:AB18), SUMPRODUCT(Z16:Z18,AA16:AA18,AB16:AB18), "") ->  | AG16: =IFERROR(IF(SUM(AB16:AB18)/COUNT(Z16:Z18), ROUND(SUM(AB16:AB18)/COUNT(Z16:Z18),1), ""),"") ->  | AH16: =IF(MAX(AB16:AB18),MAX(AB16:AB18),"") ->  | AJ16: Day 2 | AK16: Power-Snatch | AL16: Normal | AM16: 2 | AN16: 5 | AO16: 8 | AW16: =IF(SUMPRODUCT(AQ16:AQ18,AR16:AR18,AS16:AS18), SUMPRODUCT(AQ16:AQ18,AR16:AR18,AS16:AS18), "") ->  | AX16: =IFERROR(IF(SUM(AS16:AS18)/COUNT(AQ16:AQ18), ROUND(SUM(AS16:AS18)/COUNT(AQ16:AQ18),1), ""),"") ->  | AY16: =IF(MAX(AS16:AS18),MAX(AS16:AS18),"") ->  | BA16: Day 2 | BB16: Power-Snatch | BC16: Normal | BD16: 2 | BE16: 4 | BF16: 7 | BN16: =IF(SUMPRODUCT(BH16:BH18,BI16:BI18,BJ16:BJ18), SUMPRODUCT(BH16:BH18,BI16:BI18,BJ16:BJ18), "") ->  | BO16: =IFERROR(IF(SUM(BJ16:BJ18)/COUNT(BH16:BH18), ROUND(SUM(BJ16:BJ18)/COUNT(BH16:BH18),1), ""),"") ->  | BP16: =IF(MAX(BJ16:BJ18),MAX(BJ16:BJ18),"") -> 
C17: Power-Snatch | D17: Normal | E17: 2 | F17: 4 | G17: 7 | T17: Power-Snatch | U17: Normal | V17: 2 | W17: 4 | X17: 7.5-8 | AK17: Power-Snatch | AL17: Normal | AM17: 2 | AN17: 5 | AO17: 8 | BB17: Power-Snatch | BC17: Normal | BD17: 2 | BE17: 4 | BF17: 7
C18: Power-Snatch | D18: Normal | E18: 2 | F18: 4 | G18: 7 | T18: Power-Snatch | U18: Normal | V18: 2 | W18: 4 | X18: 7.5-8 | AK18: Power-Snatch | AL18: Normal | AM18: 2 | AN18: 5 | AO18: 8 | BB18: Power-Snatch | BC18: Normal | BD18: 2 | BE18: 4 | BF18: 7
C19: Power-Clean + Power-Jerk | D19: Normal | E19: 3 | F19: 2+1 | G19: 7 | O19: =IF(SUMPRODUCT(I19:I21,J19:J21,K19:K21), SUMPRODUCT(I19:I21,J19:J21,K19:K21), "") ->  | P19: =IFERROR(IF(SUM(K19:K21)/COUNT(I19:I21), ROUND(SUM(K19:K21)/COUNT(I19:I21),1), ""),"") ->  | Q19: =IF(MAX(K19:K21),MAX(K19:K21),"") ->  | T19: Power-Clean + Power-Jerk | U19: Normal | V19: 3 | W19: 2+1 | X19: 7.5-8 | AF19: =IF(SUMPRODUCT(Z19:Z21,AA19:AA21,AB19:AB21), SUMPRODUCT(Z19:Z21,AA19:AA21,AB19:AB21), "") ->  | AG19: =IFERROR(IF(SUM(AB19:AB21)/COUNT(Z19:Z21), ROUND(SUM(AB19:AB21)/COUNT(Z19:Z21),1), ""),"") ->  | AH19: =IF(MAX(AB19:AB21),MAX(AB19:AB21),"") ->  | AK19: Power-Clean + Power-Jerk | AL19: Normal | AM19: 4 | AN19: 2+1 | AO19: 8 | AW19: =IF(SUMPRODUCT(AQ19:AQ21,AR19:AR21,AS19:AS21), SUMPRODUCT(AQ19:AQ21,AR19:AR21,AS19:AS21), "") ->  | AX19: =IFERROR(IF(SUM(AS19:AS21)/COUNT(AQ19:AQ21), ROUND(SUM(AS19:AS21)/COUNT(AQ19:AQ21),1), ""),"") ->  | AY19: =IF(MAX(AS19:AS21),MAX(AS19:AS21),"") ->  | BB19: Power-Clean + Power-Jerk | BC19: Normal | BD19: 3 | BE19: 2+1 | BF19: 7 | BN19: =IF(SUMPRODUCT(BH19:BH21,BI19:BI21,BJ19:BJ21), SUMPRODUCT(BH19:BH21,BI19:BI21,BJ19:BJ21), "") ->  | BO19: =IFERROR(IF(SUM(BJ19:BJ21)/COUNT(BH19:BH21), ROUND(SUM(BJ19:BJ21)/COUNT(BH19:BH21),1), ""),"") ->  | BP19: =IF(MAX(BJ19:BJ21),MAX(BJ19:BJ21),"") -> 
C20: Power-Clean + Power-Jerk | D20: Normal | E20: 3 | F20: 2+1 | G20: 7 | T20: Power-Clean + Power-Jerk | U20: Normal | V20: 3 | W20: 2+1 | X20: 7.5-8 | AK20: Power-Clean + Power-Jerk | AL20: Normal | AM20: 4 | AN20: 2+1 | AO20: 8 | BB20: Power-Clean + Power-Jerk | BC20: Normal | BD20: 3 | BE20: 2+1 | BF20: 7
C21: Power-Clean + Power-Jerk | D21: Normal | E21: 3 | F21: 2+1 | G21: 7 | T21: Power-Clean + Power-Jerk | U21: Normal | V21: 3 | W21: 2+1 | X21: 7.5-8 | AK21: Power-Clean + Power-Jerk | AL21: Normal | AM21: 4 | AN21: 2+1 | AO21: 8 | BB21: Power-Clean + Power-Jerk | BC21: Normal | BD21: 3 | BE21: 2+1 | BF21: 7
C22: Clean-Pull | D22: 1-0-2 | E22: 3 | F22: 3 | G22: 7 | O22: =IF(SUMPRODUCT(I22:I24,J22:J24,K22:K24), SUMPRODUCT(I22:I24,J22:J24,K22:K24), "") ->  | P22: =IFERROR(IF(SUM(K22:K24)/COUNT(I22:I24), ROUND(SUM(K22:K24)/COUNT(I22:I24),1), ""),"") ->  | Q22: =IF(MAX(K22:K24),MAX(K22:K24),"") ->  | T22: Clean-Pull | U22: 1-0-2 | V22: 3 | W22: 4 | X22: 7.5-8 | AF22: =IF(SUMPRODUCT(Z22:Z24,AA22:AA24,AB22:AB24), SUMPRODUCT(Z22:Z24,AA22:AA24,AB22:AB24), "") ->  | AG22: =IFERROR(IF(SUM(AB22:AB24)/COUNT(Z22:Z24), ROUND(SUM(AB22:AB24)/COUNT(Z22:Z24),1), ""),"") ->  | AH22: =IF(MAX(AB22:AB24),MAX(AB22:AB24),"") ->  | AK22: Clean-Pull | AL22: 1-0-2 | AM22: 2 | AN22: 4 | AO22: 8-8.5 | AW22: =IF(SUMPRODUCT(AQ22:AQ24,AR22:AR24,AS22:AS24), SUMPRODUCT(AQ22:AQ24,AR22:AR24,AS22:AS24), "") ->  | AX22: =IFERROR(IF(SUM(AS22:AS24)/COUNT(AQ22:AQ24), ROUND(SUM(AS22:AS24)/COUNT(AQ22:AQ24),1), ""),"") ->  | AY22: =IF(MAX(AS22:AS24),MAX(AS22:AS24),"") ->  | BB22: Clean-Pull | BC22: 1-0-2 | BD22: 3 | BE22: 3 | BF22: 7 | BN22: =IF(SUMPRODUCT(BH22:BH24,BI22:BI24,BJ22:BJ24), SUMPRODUCT(BH22:BH24,BI22:BI24,BJ22:BJ24), "") ->  | BO22: =IFERROR(IF(SUM(BJ22:BJ24)/COUNT(BH22:BH24), ROUND(SUM(BJ22:BJ24)/COUNT(BH22:BH24),1), ""),"") ->  | BP22: =IF(MAX(BJ22:BJ24),MAX(BJ22:BJ24),"") -> 
C23: Clean-Pull | D23: 1-0-2 | E23: 3 | F23: 3 | G23: 7 | T23: Clean-Pull | U23: 1-0-2 | V23: 3 | W23: 4 | X23: 7.5-8 | AK23: Clean-Pull | AL23: 1-0-2 | AM23: 2 | AN23: 4 | AO23: 8-8.5 | BB23: Clean-Pull | BC23: 1-0-2 | BD23: 3 | BE23: 3 | BF23: 7
C24: Clean-Pull | D24: 1-0-2 | E24: 3 | F24: 3 | G24: 7 | T24: Clean-Pull | U24: 1-0-2 | V24: 3 | W24: 4 | X24: 7.5-8 | AK24: Clean-Pull | AL24: 1-0-2 | AM24: 2 | AN24: 4 | AO24: 8-8.5 | BB24: Clean-Pull | BC24: 1-0-2 | BD24: 3 | BE24: 3 | BF24: 7
B25: Session RPE: | D25: Session Duration: | F25: Session Score: | J25: =IFERROR(IF(SUBSTITUTE(C25,"RPE ","")*E25, CONCATENATE(SUBSTITUTE(C25,"RPE ","")*E25, " AU"),0),0) -> 0 | N25: Daily Totals: | O25: =IF(SUM(O16:O23)<1,"",SUM(O16:O23)) ->  | P25: =IFERROR(IF(SUM(K16:K24)/COUNT(I16:I24), ROUND(SUM(K16:K24)/COUNT(I16:I24),1),""),"") ->  | Q25: =IF(MAX(Q16:Q24)>0,MAX(Q16:Q24),"") ->  | S25: Session RPE: | U25: Session Duration: | W25: Session Score: | AA25: =IFERROR(IF(SUBSTITUTE(T25,"RPE ","")*V25, CONCATENATE(SUBSTITUTE(T25,"RPE ","")*V25, " AU"),0),0) -> 0 | AE25: Daily Totals: | AF25: =IF(SUM(AF16:AF23)<1,"",SUM(AF16:AF23)) ->  | AG25: =IFERROR(IF(SUM(AB16:AB24)/COUNT(Z16:Z24), ROUND(SUM(AB16:AB24)/COUNT(Z16:Z24),1),""),"") ->  | AH25: =IF(MAX(AH16:AH24)>0,MAX(AH16:AH24),"") ->  | AJ25: Session RPE: | AL25: Session Duration: | AN25: Session Score: | AR25: =IFERROR(IF(SUBSTITUTE(AK25,"RPE ","")*AM25, CONCATENATE(SUBSTITUTE(AK25,"RPE ","")*AM25, " AU"),0),0) -> 0 | AV25: Daily Totals: | AW25: =IF(SUM(AW16:AW23)<1,"",SUM(AW16:AW23)) ->  | AX25: =IFERROR(IF(SUM(AS16:AS24)/COUNT(AQ16:AQ24), ROUND(SUM(AS16:AS24)/COUNT(AQ16:AQ24),1),""),"") ->  | AY25: =IF(MAX(AY16:AY24)>0,MAX(AY16:AY24),"") ->  | BA25: Session RPE: | BC25: Session Duration: | BE25: Session Score: | BI25: =IFERROR(IF(SUBSTITUTE(BB25,"RPE ","")*BD25, CONCATENATE(SUBSTITUTE(BB25,"RPE ","")*BD25, " AU"),0),0) -> 0 | BM25: Daily Totals: | BN25: =IF(SUM(BN16:BN23)<1,"",SUM(BN16:BN23)) ->  | BO25: =IFERROR(IF(SUM(BJ16:BJ24)/COUNT(BH16:BH24), ROUND(SUM(BJ16:BJ24)/COUNT(BH16:BH24),1),""),"") ->  | BP25: =IF(MAX(BP16:BP24)>0,MAX(BP16:BP24),"") -> 
B26: Day | C26: Weightlifting Movement | D26: Tempo | E26: Sets | F26: Reps | G26: RPE | H26: Rest | I26: Score | L26: Feedback | O26: Exercise Tonnage | P26: Average Intensity | Q26: Absolute Intensity | S26: Day | T26: Weightlifting Movement | U26: Tempo | V26: Sets | W26: Reps | X26: RPE | Y26: Rest | Z26: Score | AC26: Feedback | AF26: Exercise Tonnage | AG26: Average Intensity | AH26: Absolute Intensity | AJ26: Day | AK26: Weightlifting Movement | AL26: Tempo | AM26: Sets | AN26: Reps | AO26: RPE | AP26: Rest | AQ26: Score | AT26: Feedback | AW26: Exercise Tonnage | AX26: Average Intensity | AY26: Absolute Intensity | BA26: Day | BB26: Weightlifting Movement | BC26: Tempo | BD26: Sets | BE26: Reps | BF26: RPE | BG26: Rest | BH26: Score | BK26: Feedback | BN26: Exercise Tonnage | BO26: Average Intensity | BP26: Absolute Intensity
I27: Sets | J27: Reps | K27: Weight | Z27: Sets | AA27: Reps | AB27: Weight | AQ27: Sets | AR27: Reps | AS27: Weight | BH27: Sets | BI27: Reps | BJ27: Weight
B28: Day 3 | C28: Dip-snatch | D28: Normal | E28: 3 | F28: 3 | G28: 7 | O28: =IF(SUMPRODUCT(I28:I30,J28:J30,K28:K30), SUMPRODUCT(I28:I30,J28:J30,K28:K30), "") ->  | P28: =IFERROR(IF(SUM(K28:K30)/COUNT(I28:I30), ROUND(SUM(K28:K30)/COUNT(I28:I30),1), ""),"") ->  | Q28: =IF(MAX(K28:K30),MAX(K28:K30),"") ->  | S28: Day 3 | T28: Dip-snatch | U28: Normal | V28: 3 | W28: 3 | X28: 7.5-8 | AF28: =IF(SUMPRODUCT(Z28:Z30,AA28:AA30,AB28:AB30), SUMPRODUCT(Z28:Z30,AA28:AA30,AB28:AB30), "") ->  | AG28: =IFERROR(IF(SUM(AB28:AB30)/COUNT(Z28:Z30), ROUND(SUM(AB28:AB30)/COUNT(Z28:Z30),1), ""),"") ->  | AH28: =IF(MAX(AB28:AB30),MAX(AB28:AB30),"") ->  | AJ28: Day 3 | AK28: Dip-snatch | AL28: Normal | AM28: 2 | AN28: 4 | AO28: 8 | AW28: =IF(SUMPRODUCT(AQ28:AQ30,AR28:AR30,AS28:AS30), SUMPRODUCT(AQ28:AQ30,AR28:AR30,AS28:AS30), "") ->  | AX28: =IFERROR(IF(SUM(AS28:AS30)/COUNT(AQ28:AQ30), ROUND(SUM(AS28:AS30)/COUNT(AQ28:AQ30),1), ""),"") ->  | AY28: =IF(MAX(AS28:AS30),MAX(AS28:AS30),"") ->  | BA28: Day 3 | BB28: Dip-snatch | BC28: Normal | BD28: 3 | BE28: 3 | BF28: 7 | BN28: =IF(SUMPRODUCT(BH28:BH30,BI28:BI30,BJ28:BJ30), SUMPRODUCT(BH28:BH30,BI28:BI30,BJ28:BJ30), "") ->  | BO28: =IFERROR(IF(SUM(BJ28:BJ30)/COUNT(BH28:BH30), ROUND(SUM(BJ28:BJ30)/COUNT(BH28:BH30),1), ""),"") ->  | BP28: =IF(MAX(BJ28:BJ30),MAX(BJ28:BJ30),"") -> 
C29: Dip-snatch | D29: Normal | E29: 3 | F29: 3 | G29: 7 | T29: Dip-snatch | U29: Normal | AK29: Dip-snatch | AL29: Normal | AM29: 2 | AN29: 4 | AO29: 8 | BB29: Dip-snatch | BC29: Normal | BD29: 3 | BE29: 3 | BF29: 7
C30: Dip-snatch | D30: Normal | E30: 3 | F30: 3 | G30: 7 | T30: Dip-snatch | U30: Normal | AK30: Dip-snatch | AL30: Normal | AM30: 2 | AN30: 4 | AO30: 8 | BB30: Dip-snatch | BC30: Normal | BD30: 3 | BE30: 3 | BF30: 7
C31: Push-Press | D31: Normal | E31: 4 | F31: 3 | G31: 7 | O31: =IF(SUMPRODUCT(I31:I33,J31:J33,K31:K33), SUMPRODUCT(I31:I33,J31:J33,K31:K33), "") ->  | P31: =IFERROR(IF(SUM(K31:K33)/COUNT(I31:I33), ROUND(SUM(K31:K33)/COUNT(I31:I33),1), ""),"") ->  | Q31: =IF(MAX(K31:K33),MAX(K31:K33),"") ->  | T31: Push-Press | U31: Normal | AF31: =IF(SUMPRODUCT(Z31:Z33,AA31:AA33,AB31:AB33), SUMPRODUCT(Z31:Z33,AA31:AA33,AB31:AB33), "") ->  | AG31: =IFERROR(IF(SUM(AB31:AB33)/COUNT(Z31:Z33), ROUND(SUM(AB31:AB33)/COUNT(Z31:Z33),1), ""),"") ->  | AH31: =IF(MAX(AB31:AB33),MAX(AB31:AB33),"") ->  | AK31: Push-Press | AL31: Normal | AM31: 4 | AN31: 4 | AO31: 8-8.5 | AW31: =IF(SUMPRODUCT(AQ31:AQ33,AR31:AR33,AS31:AS33), SUMPRODUCT(AQ31:AQ33,AR31:AR33,AS31:AS33), "") ->  | AX31: =IFERROR(IF(SUM(AS31:AS33)/COUNT(AQ31:AQ33), ROUND(SUM(AS31:AS33)/COUNT(AQ31:AQ33),1), ""),"") ->  | AY31: =IF(MAX(AS31:AS33),MAX(AS31:AS33),"") ->  | BB31: Push-Press | BC31: Normal | BD31: 4 | BE31: 3 | BF31: 7 | BN31: =IF(SUMPRODUCT(BH31:BH33,BI31:BI33,BJ31:BJ33), SUMPRODUCT(BH31:BH33,BI31:BI33,BJ31:BJ33), "") ->  | BO31: =IFERROR(IF(SUM(BJ31:BJ33)/COUNT(BH31:BH33), ROUND(SUM(BJ31:BJ33)/COUNT(BH31:BH33),1), ""),"") ->  | BP31: =IF(MAX(BJ31:BJ33),MAX(BJ31:BJ33),"") -> 
C32: Push-Press | D32: Normal | E32: 4 | F32: 3 | G32: 7 | T32: Push-Press | U32: Normal | AK32: Push-Press | AL32: Normal | AM32: 4 | AN32: 4 | AO32: 8-8.5 | BB32: Push-Press | BC32: Normal | BD32: 4 | BE32: 3 | BF32: 7
C33: Push-Press | D33: Normal | E33: 4 | F33: 3 | G33: 7 | T33: Push-Press | U33: Normal | AK33: Push-Press | AL33: Normal | AM33: 4 | AN33: 4 | AO33: 8-8.5 | BB33: Push-Press | BC33: Normal | BD33: 4 | BE33: 3 | BF33: 7
C34: Front-Squat | D34: 2-0-1 | E34: 4 | F34: 4 | G34: 7 | O34: =IF(SUMPRODUCT(I34:I36,J34:J36,K34:K36), SUMPRODUCT(I34:I36,J34:J36,K34:K36), "") ->  | P34: =IFERROR(IF(SUM(K34:K36)/COUNT(I34:I36), ROUND(SUM(K34:K36)/COUNT(I34:I36),1), ""),"") ->  | Q34: =IF(MAX(K34:K36),MAX(K34:K36),"") ->  | T34: Front-Squat | U34: 2-0-1 | AF34: =IF(SUMPRODUCT(Z34:Z36,AA34:AA36,AB34:AB36), SUMPRODUCT(Z34:Z36,AA34:AA36,AB34:AB36), "") ->  | AG34: =IFERROR(IF(SUM(AB34:AB36)/COUNT(Z34:Z36), ROUND(SUM(AB34:AB36)/COUNT(Z34:Z36),1), ""),"") ->  | AH34: =IF(MAX(AB34:AB36),MAX(AB34:AB36),"") ->  | AK34: Front-Squat | AL34: 2-0-1 | AM34: 4 | AN34: 4 | AO34: 8-8.5 | AW34: =IF(SUMPRODUCT(AQ34:AQ36,AR34:AR36,AS34:AS36), SUMPRODUCT(AQ34:AQ36,AR34:AR36,AS34:AS36), "") ->  | AX34: =IFERROR(IF(SUM(AS34:AS36)/COUNT(AQ34:AQ36), ROUND(SUM(AS34:AS36)/COUNT(AQ34:AQ36),1), ""),"") ->  | AY34: =IF(MAX(AS34:AS36),MAX(AS34:AS36),"") ->  | BB34: Front-Squat | BC34: 2-0-1 | BD34: 4 | BE34: 3 | BF34: 7 | BN34: =IF(SUMPRODUCT(BH34:BH36,BI34:BI36,BJ34:BJ36), SUMPRODUCT(BH34:BH36,BI34:BI36,BJ34:BJ36), "") ->  | BO34: =IFERROR(IF(SUM(BJ34:BJ36)/COUNT(BH34:BH36), ROUND(SUM(BJ34:BJ36)/COUNT(BH34:BH36),1), ""),"") ->  | BP34: =IF(MAX(BJ34:BJ36),MAX(BJ34:BJ36),"") -> 
C35: Front-Squat | D35: 2-0-1 | E35: 4 | F35: 4 | G35: 7 | T35: Front-Squat | U35: 2-0-1 | V35: 4 | W35: 4 | X35: 7.5-8 | AK35: Front-Squat | AL35: 2-0-1 | AM35: 4 | AN35: 4 | AO35: 8-8.5 | BB35: Front-Squat | BC35: 2-0-1 | BD35: 4 | BE35: 3 | BF35: 7
C36: Front-Squat | D36: 2-0-1 | E36: 4 | F36: 4 | G36: 7 | T36: Front-Squat | U36: 2-0-1 | V36: 4 | W36: 4 | X36: 7.5-8 | AK36: Front-Squat | AL36: 2-0-1 | AM36: 4 | AN36: 4 | AO36: 8-8.5 | BB36: Front-Squat | BC36: 2-0-1 | BD36: 4 | BE36: 4 | BF36: 7
B37: Session RPE: | D37: Session Duration: | F37: Session Score: | J37: =IFERROR(IF(SUBSTITUTE(C37,"RPE ","")*E37, CONCATENATE(SUBSTITUTE(C37,"RPE ","")*E37, " AU"),0),0) -> 0 | N37: Daily Totals: | O37: =IF(SUM(O28:O35)<1,"",SUM(O28:O35)) ->  | P37: =IFERROR(IF(SUM(K28:K36)/COUNT(I28:I36), ROUND(SUM(K28:K36)/COUNT(I28:I36),1),""),"") ->  | Q37: =IF(MAX(Q28:Q36)>0,MAX(Q28:Q36),"") ->  | S37: Session RPE: | U37: Session Duration: | W37: Session Score: | AA37: =IFERROR(IF(SUBSTITUTE(T37,"RPE ","")*V37, CONCATENATE(SUBSTITUTE(T37,"RPE ","")*V37, " AU"),0),0) -> 0 | AE37: Daily Totals: | AF37: =IF(SUM(AF28:AF35)<1,"",SUM(AF28:AF35)) ->  | AG37: =IFERROR(IF(SUM(AB28:AB36)/COUNT(Z28:Z36), ROUND(SUM(AB28:AB36)/COUNT(Z28:Z36),1),""),"") ->  | AH37: =IF(MAX(AH28:AH36)>0,MAX(AH28:AH36),"") ->  | AJ37: Session RPE: | AL37: Session Duration: | AN37: Session Score: | AR37: =IFERROR(IF(SUBSTITUTE(AK37,"RPE ","")*AM37, CONCATENATE(SUBSTITUTE(AK37,"RPE ","")*AM37, " AU"),0),0) -> 0 | AV37: Daily Totals: | AW37: =IF(SUM(AW28:AW35)<1,"",SUM(AW28:AW35)) ->  | AX37: =IFERROR(IF(SUM(AS28:AS36)/COUNT(AQ28:AQ36), ROUND(SUM(AS28:AS36)/COUNT(AQ28:AQ36),1),""),"") ->  | AY37: =IF(MAX(AY28:AY36)>0,MAX(AY28:AY36),"") ->  | BA37: Session RPE: | BC37: Session Duration: | BE37: Session Score: | BI37: =IFERROR(IF(SUBSTITUTE(BB37,"RPE ","")*BD37, CONCATENATE(SUBSTITUTE(BB37,"RPE ","")*BD37, " AU"),0),0) -> 0 | BM37: Daily Totals: | BN37: =IF(SUM(BN28:BN35)<1,"",SUM(BN28:BN35)) ->  | BO37: =IFERROR(IF(SUM(BJ28:BJ36)/COUNT(BH28:BH36), ROUND(SUM(BJ28:BJ36)/COUNT(BH28:BH36),1),""),"") ->  | BP37: =IF(MAX(BP28:BP36)>0,MAX(BP28:BP36),"") -> 
B38: Day | C38: Weightlifting Movement | D38: Tempo | E38: Sets | F38: Reps | G38: RPE | H38: Rest | I38: Score | L38: Feedback | O38: Exercise Tonnage | P38: Average Intensity | Q38: Absolute Intensity | S38: Day | T38: Weightlifting Movement | U38: Tempo | V38: Sets | W38: Reps | X38: RPE | Y38: Rest | Z38: Score | AC38: Feedback | AF38: Exercise Tonnage | AG38: Average Intensity | AH38: Absolute Intensity | AJ38: Day | AK38: Weightlifting Movement | AL38: Tempo | AM38: Sets | AN38: Reps | AO38: RPE | AP38: Rest | AQ38: Score | AT38: Feedback | AW38: Exercise Tonnage | AX38: Average Intensity | AY38: Absolute Intensity | BA38: Day | BB38: Weightlifting Movement | BC38: Tempo | BD38: Sets | BE38: Reps | BF38: RPE | BG38: Rest | BH38: Score | BK38: Feedback | BN38: Exercise Tonnage | BO38: Average Intensity | BP38: Absolute Intensity
I39: Sets | J39: Reps | K39: Weight | Z39: Sets | AA39: Reps | AB39: Weight | AQ39: Sets | AR39: Reps | AS39: Weight | BH39: Sets | BI39: Reps | BJ39: Weight
B40: Day 4 | C40: Snatch | D40: Normal | E40: 2 | F40: 3 | G40: 7 | O40: =IF(SUMPRODUCT(I40:I42,J40:J42,K40:K42), SUMPRODUCT(I40:I42,J40:J42,K40:K42), "") ->  | P40: =IFERROR(IF(SUM(K40:K42)/COUNT(I40:I42), ROUND(SUM(K40:K42)/COUNT(I40:I42),1), ""),"") ->  | Q40: =IF(MAX(K40:K42),MAX(K40:K42),"") ->  | S40: Day 4 | T40: Snatch | U40: Normal | V40: 2 | W40: 4 | X40: 7.5-8 | AF40: =IF(SUMPRODUCT(Z40:Z42,AA40:AA42,AB40:AB42), SUMPRODUCT(Z40:Z42,AA40:AA42,AB40:AB42), "") ->  | AG40: =IFERROR(IF(SUM(AB40:AB42)/COUNT(Z40:Z42), ROUND(SUM(AB40:AB42)/COUNT(Z40:Z42),1), ""),"") ->  | AH40: =IF(MAX(AB40:AB42),MAX(AB40:AB42),"") ->  | AJ40: Day 4 | AK40: Snatch | AL40: Normal | AM40: 1 | AN40: 5 | AO40: 8 | AW40: =IF(SUMPRODUCT(AQ40:AQ42,AR40:AR42,AS40:AS42), SUMPRODUCT(AQ40:AQ42,AR40:AR42,AS40:AS42), "") ->  | AX40: =IFERROR(IF(SUM(AS40:AS42)/COUNT(AQ40:AQ42), ROUND(SUM(AS40:AS42)/COUNT(AQ40:AQ42),1), ""),"") ->  | AY40: =IF(MAX(AS40:AS42),MAX(AS40:AS42),"") ->  | BA40: Day 4 | BB40: Snatch | BC40: Normal | BD40: 2 | BE40: 3 | BF40: 7 | BN40: =IF(SUMPRODUCT(BH40:BH42,BI40:BI42,BJ40:BJ42), SUMPRODUCT(BH40:BH42,BI40:BI42,BJ40:BJ42), "") ->  | BO40: =IFERROR(IF(SUM(BJ40:BJ42)/COUNT(BH40:BH42), ROUND(SUM(BJ40:BJ42)/COUNT(BH40:BH42),1), ""),"") ->  | BP40: =IF(MAX(BJ40:BJ42),MAX(BJ40:BJ42),"") -> 
C41: Snatch | D41: Normal | E41: 2 | F41: 3 | G41: 7 | T41: Snatch | U41: Normal | V41: 2 | W41: 4 | X41: 7.5-8 | AK41: Snatch | AL41: Normal | BB41: Snatch | BC41: Normal | BD41: 2 | BE41: 3 | BF41: 7
C42: Snatch | D42: Normal | E42: 2 | F42: 3 | G42: 7 | T42: Snatch | U42: Normal | V42: 2 | W42: 4 | X42: 7.5-8 | AK42: Snatch | AL42: Normal | BB42: Snatch | BC42: Normal | BD42: 2 | BE42: 3 | BF42: 7
C43: Clean & Jerk | D43: Normal | E43: 1 | F43: 2+1 | G43: 7 | O43: =IF(SUMPRODUCT(I43:I45,J43:J45,K43:K45), SUMPRODUCT(I43:I45,J43:J45,K43:K45), "") ->  | P43: =IFERROR(IF(SUM(K43:K45)/COUNT(I43:I45), ROUND(SUM(K43:K45)/COUNT(I43:I45),1), ""),"") ->  | Q43: =IF(MAX(K43:K45),MAX(K43:K45),"") ->  | T43: Clean & Jerk | U43: Normal | V43: 1 | W43: 2+1 | X43: 7.5-8 | AF43: =IF(SUMPRODUCT(Z43:Z45,AA43:AA45,AB43:AB45), SUMPRODUCT(Z43:Z45,AA43:AA45,AB43:AB45), "") ->  | AG43: =IFERROR(IF(SUM(AB43:AB45)/COUNT(Z43:Z45), ROUND(SUM(AB43:AB45)/COUNT(Z43:Z45),1), ""),"") ->  | AH43: =IF(MAX(AB43:AB45),MAX(AB43:AB45),"") ->  | AK43: Clean & Jerk | AL43: Normal | AW43: =IF(SUMPRODUCT(AQ43:AQ45,AR43:AR45,AS43:AS45), SUMPRODUCT(AQ43:AQ45,AR43:AR45,AS43:AS45), "") ->  | AX43: =IFERROR(IF(SUM(AS43:AS45)/COUNT(AQ43:AQ45), ROUND(SUM(AS43:AS45)/COUNT(AQ43:AQ45),1), ""),"") ->  | AY43: =IF(MAX(AS43:AS45),MAX(AS43:AS45),"") ->  | BB43: Clean & Jerk | BC43: Normal | BD43: 1 | BE43: 2+1 | BF43: 7 | BN43: =IF(SUMPRODUCT(BH43:BH45,BI43:BI45,BJ43:BJ45), SUMPRODUCT(BH43:BH45,BI43:BI45,BJ43:BJ45), "") ->  | BO43: =IFERROR(IF(SUM(BJ43:BJ45)/COUNT(BH43:BH45), ROUND(SUM(BJ43:BJ45)/COUNT(BH43:BH45),1), ""),"") ->  | BP43: =IF(MAX(BJ43:BJ45),MAX(BJ43:BJ45),"") -> 
C44: Clean & Jerk | D44: Normal | E44: 1 | F44: 2+1 | G44: 7 | T44: Clean & Jerk | U44: Normal | V44: 1 | W44: 2+1 | X44: 7.5-8 | AK44: Clean & Jerk | AL44: Normal | BB44: Clean & Jerk | BC44: Normal | BD44: 1 | BE44: 2+1 | BF44: 7
C45: Clean & Jerk | D45: Normal | E45: 1 | F45: 2+1 | G45: 7 | T45: Clean & Jerk | U45: Normal | V45: 1 | W45: 2+1 | X45: 7.5-8 | AK45: Clean & Jerk | AL45: Normal | BB45: Clean & Jerk | BC45: Normal | BD45: 1 | BE45: 2+1 | BF45: 7
C46: Snatch-Pull + Snatch | D46: 1-0-2 | E46: 3 | F46: 3 | G46: 7 | O46: =IF(SUMPRODUCT(I46:I48,J46:J48,K46:K48), SUMPRODUCT(I46:I48,J46:J48,K46:K48), "") ->  | P46: =IFERROR(IF(SUM(K46:K48)/COUNT(I46:I48), ROUND(SUM(K46:K48)/COUNT(I46:I48),1), ""),"") ->  | Q46: =IF(MAX(K46:K48),MAX(K46:K48),"") ->  | T46: Snatch-Pull + Snatch | U46: 1-0-2 | V46: 3 | W46: 3 | X46: 7.5-8 | AF46: =IF(SUMPRODUCT(Z46:Z48,AA46:AA48,AB46:AB48), SUMPRODUCT(Z46:Z48,AA46:AA48,AB46:AB48), "") ->  | AG46: =IFERROR(IF(SUM(AB46:AB48)/COUNT(Z46:Z48), ROUND(SUM(AB46:AB48)/COUNT(Z46:Z48),1), ""),"") ->  | AH46: =IF(MAX(AB46:AB48),MAX(AB46:AB48),"") ->  | AK46: Snatch-Pull + Snatch | AL46: 1-0-2 | AW46: =IF(SUMPRODUCT(AQ46:AQ48,AR46:AR48,AS46:AS48), SUMPRODUCT(AQ46:AQ48,AR46:AR48,AS46:AS48), "") ->  | AX46: =IFERROR(IF(SUM(AS46:AS48)/COUNT(AQ46:AQ48), ROUND(SUM(AS46:AS48)/COUNT(AQ46:AQ48),1), ""),"") ->  | AY46: =IF(MAX(AS46:AS48),MAX(AS46:AS48),"") ->  | BB46: Snatch-Pull + Snatch | BC46: 1-0-2 | BD46: 3 | BE46: 3 | BF46: 7 | BN46: =IF(SUMPRODUCT(BH46:BH48,BI46:BI48,BJ46:BJ48), SUMPRODUCT(BH46:BH48,BI46:BI48,BJ46:BJ48), "") ->  | BO46: =IFERROR(IF(SUM(BJ46:BJ48)/COUNT(BH46:BH48), ROUND(SUM(BJ46:BJ48)/COUNT(BH46:BH48),1), ""),"") ->  | BP46: =IF(MAX(BJ46:BJ48),MAX(BJ46:BJ48),"") -> 
C47: Snatch-Pull + Snatch | D47: 1-0-2 | E47: 3 | F47: 3 | G47: 7 | T47: Snatch-Pull + Snatch | U47: 1-0-2 | V47: 3 | W47: 3 | X47: 7.5-8 | AK47: Snatch-Pull + Snatch | AL47: 1-0-2 | AM47: 1 | AN47: 1 | AO47: 8 | BB47: Snatch-Pull + Snatch | BC47: 1-0-2 | BD47: 3 | BE47: 3 | BF47: 7
C48: Snatch-Pull + Snatch | D48: 1-0-2 | E48: 3 | F48: 3 | G48: 7 | T48: Snatch-Pull + Snatch | U48: 1-0-2 | V48: 3 | W48: 3 | X48: 7.5-8 | AK48: Snatch-Pull + Snatch | AL48: 1-0-2 | AM48: 2 | AN48: 4 | AO48: 8-8.5 | BB48: Snatch-Pull + Snatch | BC48: 1-0-2 | BD48: 3 | BE48: 3 | BF48: 7
B49: Session RPE: | D49: Session Duration: | F49: Session Score: | J49: =IFERROR(IF(SUBSTITUTE(C49,"RPE ","")*E49, CONCATENATE(SUBSTITUTE(C49,"RPE ","")*E49, " AU"),0),0) -> 0 | N49: Daily Totals: | O49: =IF(SUM(O40:O47)<1,"",SUM(O40:O47)) ->  | P49: =IFERROR(IF(SUM(K40:K48)/COUNT(I40:I48), ROUND(SUM(K40:K48)/COUNT(I40:I48),1),""),"") ->  | Q49: =IF(MAX(Q40:Q48)>0,MAX(Q40:Q48),"") ->  | S49: Session RPE: | U49: Session Duration: | W49: Session Score: | AA49: =IFERROR(IF(SUBSTITUTE(T49,"RPE ","")*V49, CONCATENATE(SUBSTITUTE(T49,"RPE ","")*V49, " AU"),0),0) -> 0 | AE49: Daily Totals: | AF49: =IF(SUM(AF40:AF47)<1,"",SUM(AF40:AF47)) ->  | AG49: =IFERROR(IF(SUM(AB40:AB48)/COUNT(Z40:Z48), ROUND(SUM(AB40:AB48)/COUNT(Z40:Z48),1),""),"") ->  | AH49: =IF(MAX(AH40:AH48)>0,MAX(AH40:AH48),"") ->  | AJ49: Session RPE: | AL49: Session Duration: | AN49: Session Score: | AR49: =IFERROR(IF(SUBSTITUTE(AK49,"RPE ","")*AM49, CONCATENATE(SUBSTITUTE(AK49,"RPE ","")*AM49, " AU"),0),0) -> 0 | AV49: Daily Totals: | AW49: =IF(SUM(AW40:AW47)<1,"",SUM(AW40:AW47)) ->  | AX49: =IFERROR(IF(SUM(AS40:AS48)/COUNT(AQ40:AQ48), ROUND(SUM(AS40:AS48)/COUNT(AQ40:AQ48),1),""),"") ->  | AY49: =IF(MAX(AY40:AY48)>0,MAX(AY40:AY48),"") ->  | BA49: Session RPE: | BC49: Session Duration: | BE49: Session Score: | BI49: =IFERROR(IF(SUBSTITUTE(BB49,"RPE ","")*BD49, CONCATENATE(SUBSTITUTE(BB49,"RPE ","")*BD49, " AU"),0),0) -> 0 | BM49: Daily Totals: | BN49: =IF(SUM(BN40:BN47)<1,"",SUM(BN40:BN47)) ->  | BO49: =IFERROR(IF(SUM(BJ40:BJ48)/COUNT(BH40:BH48), ROUND(SUM(BJ40:BJ48)/COUNT(BH40:BH48),1),""),"") ->  | BP49: =IF(MAX(BP40:BP48)>0,MAX(BP40:BP48),"") -> 
B50: Day | C50: Weightlifting Movement | D50: Tempo | E50: Sets | F50: Reps | G50: RPE | H50: Rest | I50: Score | L50: Feedback | O50: Exercise Tonnage | P50: Average Intensity | Q50: Absolute Intensity | S50: Day | T50: Weightlifting Movement | U50: Tempo | V50: Sets | W50: Reps | X50: RPE | Y50: Rest | Z50: Score | AC50: Feedback | AF50: Exercise Tonnage | AG50: Average Intensity | AH50: Absolute Intensity | AJ50: Day | AK50: Weightlifting Movement | AL50: Tempo | AM50: Sets | AN50: Reps | AO50: RPE | AP50: Rest | AQ50: Score | AT50: Feedback | AW50: Exercise Tonnage | AX50: Average Intensity | AY50: Absolute Intensity | BA50: Day | BB50: Weightlifting Movement | BC50: Tempo | BD50: Sets | BE50: Reps | BF50: RPE | BG50: Rest | BH50: Score | BK50: Feedback | BN50: Exercise Tonnage | BO50: Average Intensity | BP50: Absolute Intensity
I51: Sets | J51: Reps | K51: Weight | Z51: Sets | AA51: Reps | AB51: Weight | AQ51: Sets | AR51: Reps | AS51: Weight | BH51: Sets | BI51: Reps | BJ51: Weight
B52: Day 5 | C52: Snatch-Grip Push-Press | D52: Normal | E52: 5 | F52: 3 | G52: 7 | O52: =IF(SUMPRODUCT(I52:I54,J52:J54,K52:K54), SUMPRODUCT(I52:I54,J52:J54,K52:K54), "") ->  | P52: =IFERROR(IF(SUM(K52:K54)/COUNT(I52:I54), ROUND(SUM(K52:K54)/COUNT(I52:I54),1), ""),"") ->  | Q52: =IF(MAX(K52:K54),MAX(K52:K54),"") ->  | S52: Day 5 | T52: Snatch-Grip Push-Press | U52: Normal | V52: 5 | W52: 4 | X52: 7.5-8 | AF52: =IF(SUMPRODUCT(Z52:Z54,AA52:AA54,AB52:AB54), SUMPRODUCT(Z52:Z54,AA52:AA54,AB52:AB54), "") ->  | AG52: =IFERROR(IF(SUM(AB52:AB54)/COUNT(Z52:Z54), ROUND(SUM(AB52:AB54)/COUNT(Z52:Z54),1), ""),"") ->  | AH52: =IF(MAX(AB52:AB54),MAX(AB52:AB54),"") ->  | AJ52: Day 5 | AK52: Snatch-Grip Push-Press | AL52: Normal | AM52: 5 | AN52: 4 | AO52: 7.5-8 | AW52: =IF(SUMPRODUCT(AQ52:AQ54,AR52:AR54,AS52:AS54), SUMPRODUCT(AQ52:AQ54,AR52:AR54,AS52:AS54), "") ->  | AX52: =IFERROR(IF(SUM(AS52:AS54)/COUNT(AQ52:AQ54), ROUND(SUM(AS52:AS54)/COUNT(AQ52:AQ54),1), ""),"") ->  | AY52: =IF(MAX(AS52:AS54),MAX(AS52:AS54),"") ->  | BA52: Day 5 | BB52: Snatch-Grip Push-Press | BC52: Normal | BD52: 5 | BE52: 3 | BF52: 7 | BN52: =IF(SUMPRODUCT(BH52:BH54,BI52:BI54,BJ52:BJ54), SUMPRODUCT(BH52:BH54,BI52:BI54,BJ52:BJ54), "") ->  | BO52: =IFERROR(IF(SUM(BJ52:BJ54)/COUNT(BH52:BH54), ROUND(SUM(BJ52:BJ54)/COUNT(BH52:BH54),1), ""),"") ->  | BP52: =IF(MAX(BJ52:BJ54),MAX(BJ52:BJ54),"") -> 
C53: Snatch-Grip Push-Press | D53: Normal | E53: 5 | F53: 3 | G53: 7 | T53: Snatch-Grip Push-Press | U53: Normal | V53: 5 | W53: 4 | X53: 7.5-8 | AK53: Snatch-Grip Push-Press | AL53: Normal | AM53: 5 | AN53: 4 | AO53: 7.5-8 | BB53: Snatch-Grip Push-Press | BC53: Normal | BD53: 5 | BE53: 3 | BF53: 7
C54: Snatch-Grip Push-Press | D54: Normal | E54: 5 | F54: 3 | G54: 7 | T54: Snatch-Grip Push-Press | U54: Normal | V54: 5 | W54: 4 | X54: 7.5-8 | AK54: Snatch-Grip Push-Press | AL54: Normal | AM54: 5 | AN54: 4 | AO54: 7.5-8 | BB54: Snatch-Grip Push-Press | BC54: Normal | BD54: 5 | BE54: 3 | BF54: 7
C55: Back-Squat | D55: 2-0-1 | E55: 3 | F55: 4 | G55: 8 | O55: =IF(SUMPRODUCT(I55:I57,J55:J57,K55:K57), SUMPRODUCT(I55:I57,J55:J57,K55:K57), "") ->  | P55: =IFERROR(IF(SUM(K55:K57)/COUNT(I55:I57), ROUND(SUM(K55:K57)/COUNT(I55:I57),1), ""),"") ->  | Q55: =IF(MAX(K55:K57),MAX(K55:K57),"") ->  | T55: Back-Squat | U55: 2-0-1 | V55: 3 | W55: 4 | X55: 8.5-9 | AF55: =IF(SUMPRODUCT(Z55:Z57,AA55:AA57,AB55:AB57), SUMPRODUCT(Z55:Z57,AA55:AA57,AB55:AB57), "") ->  | AG55: =IFERROR(IF(SUM(AB55:AB57)/COUNT(Z55:Z57), ROUND(SUM(AB55:AB57)/COUNT(Z55:Z57),1), ""),"") ->  | AH55: =IF(MAX(AB55:AB57),MAX(AB55:AB57),"") ->  | AK55: Back-Squat | AL55: 2-0-1 | AM55: 3 | AN55: 4 | AO55: top set at 9.5-10 | AW55: =IF(SUMPRODUCT(AQ55:AQ57,AR55:AR57,AS55:AS57), SUMPRODUCT(AQ55:AQ57,AR55:AR57,AS55:AS57), "") ->  | AX55: =IFERROR(IF(SUM(AS55:AS57)/COUNT(AQ55:AQ57), ROUND(SUM(AS55:AS57)/COUNT(AQ55:AQ57),1), ""),"") ->  | AY55: =IF(MAX(AS55:AS57),MAX(AS55:AS57),"") ->  | BB55: Back-Squat | BC55: 2-0-1 | BD55: 3 | BE55: 4 | BF55: 8 | BN55: =IF(SUMPRODUCT(BH55:BH57,BI55:BI57,BJ55:BJ57), SUMPRODUCT(BH55:BH57,BI55:BI57,BJ55:BJ57), "") ->  | BO55: =IFERROR(IF(SUM(BJ55:BJ57)/COUNT(BH55:BH57), ROUND(SUM(BJ55:BJ57)/COUNT(BH55:BH57),1), ""),"") ->  | BP55: =IF(MAX(BJ55:BJ57),MAX(BJ55:BJ57),"") -> 
C56: Back-Squat | D56: 2-0-1 | E56: 3 | F56: 4 | G56: 8 | T56: Back-Squat | U56: 2-0-1 | V56: 3 | W56: 4 | X56: 8.5-9 | AK56: Back-Squat | AL56: 2-0-1 | AM56: 3 | AN56: 4 | AO56: top set at 9.5-10 | BB56: Back-Squat | BC56: 2-0-1 | BD56: 3 | BE56: 4 | BF56: 8
C57: Back-Squat | D57: 2-0-1 | E57: 3 | F57: 4 | G57: 8 | T57: Back-Squat | U57: 2-0-1 | V57: 3 | W57: 4 | X57: 8.5-9 | AK57: Back-Squat | AL57: 2-0-1 | AM57: 3 | AN57: 4 | AO57: top set at 9.5-10 | BB57: Back-Squat | BC57: 2-0-1 | BD57: 3 | BE57: 4 | BF57: 8
C58: RDL | D58: 2-0-1 | E58: 6 | F58: 3 | G58: 7 | O58: =IF(SUMPRODUCT(I58:I60,J58:J60,K58:K60), SUMPRODUCT(I58:I60,J58:J60,K58:K60), "") ->  | P58: =IFERROR(IF(SUM(K58:K60)/COUNT(I58:I60), ROUND(SUM(K58:K60)/COUNT(I58:I60),1), ""),"") ->  | Q58: =IF(MAX(K58:K60),MAX(K58:K60),"") ->  | T58: RDL | U58: 2-0-1 | V58: 5 | W58: 4 | X58: 7.5-8 | AF58: =IF(SUMPRODUCT(Z58:Z60,AA58:AA60,AB58:AB60), SUMPRODUCT(Z58:Z60,AA58:AA60,AB58:AB60), "") ->  | AG58: =IFERROR(IF(SUM(AB58:AB60)/COUNT(Z58:Z60), ROUND(SUM(AB58:AB60)/COUNT(Z58:Z60),1), ""),"") ->  | AH58: =IF(MAX(AB58:AB60),MAX(AB58:AB60),"") ->  | AK58: RDL | AL58: 2-0-1 | AM58: 5 | AN58: 4 | AO58: 8 | AW58: =IF(SUMPRODUCT(AQ58:AQ60,AR58:AR60,AS58:AS60), SUMPRODUCT(AQ58:AQ60,AR58:AR60,AS58:AS60), "") ->  | AX58: =IFERROR(IF(SUM(AS58:AS60)/COUNT(AQ58:AQ60), ROUND(SUM(AS58:AS60)/COUNT(AQ58:AQ60),1), ""),"") ->  | AY58: =IF(MAX(AS58:AS60),MAX(AS58:AS60),"") ->  | BB58: RDL | BC58: 2-0-1 | BD58: 6 | BE58: 3 | BF58: 7 | BN58: =IF(SUMPRODUCT(BH58:BH60,BI58:BI60,BJ58:BJ60), SUMPRODUCT(BH58:BH60,BI58:BI60,BJ58:BJ60), "") ->  | BO58: =IFERROR(IF(SUM(BJ58:BJ60)/COUNT(BH58:BH60), ROUND(SUM(BJ58:BJ60)/COUNT(BH58:BH60),1), ""),"") ->  | BP58: =IF(MAX(BJ58:BJ60),MAX(BJ58:BJ60),"") -> 
C59: RDL | D59: 2-0-1 | E59: 6 | F59: 3 | G59: 7 | T59: RDL | U59: 2-0-1 | V59: 5 | W59: 4 | X59: 7.5-8 | AK59: RDL | AL59: 2-0-1 | AM59: 5 | AN59: 4 | AO59: 8 | BB59: RDL | BC59: 2-0-1 | BD59: 6 | BE59: 3 | BF59: 7
C60: RDL | D60: 2-0-1 | E60: 6 | F60: 3 | G60: 7 | T60: RDL | U60: 2-0-1 | V60: 5 | W60: 4 | X60: 7.5-8 | AK60: RDL | AL60: 2-0-1 | AM60: 5 | AN60: 4 | AO60: 8 | BB60: RDL | BC60: 2-0-1 | BD60: 6 | BE60: 3 | BF60: 7
B61: Session RPE: | D61: Session Duration: | F61: Session Score: | J61: =IFERROR(IF(SUBSTITUTE(C61,"RPE ","")*E61, CONCATENATE(SUBSTITUTE(C61,"RPE ","")*E61, " AU"),0),0) -> 0 | N61: Daily Totals: | O61: =IF(SUM(O52:O59)<1,"",SUM(O52:O59)) ->  | P61: =IFERROR(IF(SUM(K52:K60)/COUNT(I52:I60), ROUND(SUM(K52:K60)/COUNT(I52:I60),1),""),"") ->  | Q61: =IF(MAX(Q52:Q60)>0,MAX(Q52:Q60),"") ->  | S61: Session RPE: | U61: Session Duration: | W61: Session Score: | AA61: =IFERROR(IF(SUBSTITUTE(T61,"RPE ","")*V61, CONCATENATE(SUBSTITUTE(T61,"RPE ","")*V61, " AU"),0),0) -> 0 | AE61: Daily Totals: | AF61: =IF(SUM(AF52:AF59)<1,"",SUM(AF52:AF59)) ->  | AG61: =IFERROR(IF(SUM(AB52:AB60)/COUNT(Z52:Z60), ROUND(SUM(AB52:AB60)/COUNT(Z52:Z60),1),""),"") ->  | AH61: =IF(MAX(AH52:AH60)>0,MAX(AH52:AH60),"") ->  | AJ61: Session RPE: | AL61: Session Duration: | AN61: Session Score: | AR61: =IFERROR(IF(SUBSTITUTE(AK61,"RPE ","")*AM61, CONCATENATE(SUBSTITUTE(AK61,"RPE ","")*AM61, " AU"),0),0) -> 0 | AV61: Daily Totals: | AW61: =IF(SUM(AW52:AW59)<1,"",SUM(AW52:AW59)) ->  | AX61: =IFERROR(IF(SUM(AS52:AS60)/COUNT(AQ52:AQ60), ROUND(SUM(AS52:AS60)/COUNT(AQ52:AQ60),1),""),"") ->  | AY61: =IF(MAX(AY52:AY60)>0,MAX(AY52:AY60),"") ->  | BA61: Session RPE: | BC61: Session Duration: | BE61: Session Score: | BI61: =IFERROR(IF(SUBSTITUTE(BB61,"RPE ","")*BD61, CONCATENATE(SUBSTITUTE(BB61,"RPE ","")*BD61, " AU"),0),0) -> 0 | BM61: Daily Totals: | BN61: =IF(SUM(BN52:BN59)<1,"",SUM(BN52:BN59)) ->  | BO61: =IFERROR(IF(SUM(BJ52:BJ60)/COUNT(BH52:BH60), ROUND(SUM(BJ52:BJ60)/COUNT(BH52:BH60),1),""),"") ->  | BP61: =IF(MAX(BP52:BP60)>0,MAX(BP52:BP60),"") -> 
A62: WEEKLY TOTALS | B62: Tonnage: | D62: =IF(SUM(O61,O37,O13,O25,O49)>0, SUM(O61,O37,O13,O25,O49),"") ->  | F62: Average Intensity: | J62: =IFERROR(IF(SUM(K4:K12,K16:K24,K28:K36,K40:K48,K52:K60)/COUNT(I4:I12,I16:I24,I28:I36,I40:I48,I52:I60)>0,ROUND(SUM(K4:K12,K16:K24,K28:K36,K40:K48,K52:K60)/COUNT(I4:I12,I16:I24,I28:I36,I40:I48,I52:I60),1),""),"") ->  | L62: Absolute Intensity: | O62: =IF(MAX(Q13,Q25,Q37,Q49,Q61) > 0, MAX(Q13,Q25,Q37,Q49,Q61),"") ->  | P62: Total AUs: | Q62: =IFERROR(IF(SUBSTITUTE(J13, " AU", "") + SUBSTITUTE(J25, " AU", "") + SUBSTITUTE(J37, " AU", "") + SUBSTITUTE(J49, " AU", "") + SUBSTITUTE(J61, " AU", "") > 0, CONCATENATE(SUBSTITUTE(J13, " AU", "") + SUBSTITUTE(J25, " AU", "") + SUBSTITUTE(J37, " AU", "") + SUBSTITUTE(J49, " AU", "") + SUBSTITUTE(J61, " AU", ""), " AU"), ""),"") ->  | S62: Tonnage: | U62: =IF(SUM(AF61,AF37,AF13,AF25,AF49)>0, SUM(AF61,AF37,AF13,AF25,AF49),"") ->  | W62: Average Intensity: | AA62: =IFERROR(IF(SUM(AB4:AB12,AB16:AB24,AB28:AB36,AB40:AB48,AB52:AB60)/COUNT(Z4:Z12,Z16:Z24,Z28:Z36,Z40:Z48,Z52:Z60)>0,ROUND(SUM(AB4:AB12,AB16:AB24,AB28:AB36,AB40:AB48,AB52:AB60)/COUNT(Z4:Z12,Z16:Z24,Z28:Z36,Z40:Z48,Z52:Z60),1),""),"") ->  | AC62: Absolute Intensity: | AF62: =IF(MAX(AH13,AH25,AH37,AH49,AH61) > 0, MAX(AH13,AH25,AH37,AH49,AH61),"") ->  | AG62: Total AUs: | AH62: =IFERROR(IF(SUBSTITUTE(AA13, " AU", "") + SUBSTITUTE(AA25, " AU", "") + SUBSTITUTE(AA37, " AU", "") + SUBSTITUTE(AA49, " AU", "") + SUBSTITUTE(AA61, " AU", "") > 0, CONCATENATE(SUBSTITUTE(AA13, " AU", "") + SUBSTITUTE(AA25, " AU", "") + SUBSTITUTE(AA37, " AU", "") + SUBSTITUTE(AA49, " AU", "") + SUBSTITUTE(AA61, " AU", ""), " AU"), ""),"") ->  | AJ62: Tonnage: | AL62: =IF(SUM(AW61,AW37,AW13,AW25,AW49)>0, SUM(AW61,AW37,AW13,AW25,AW49),"") ->  | AN62: Average Intensity: | AR62: =IFERROR(IF(SUM(AS4:AS12,AS16:AS24,AS28:AS36,AS40:AS48,AS52:AS60)/COUNT(AQ4:AQ12,AQ16:AQ24,AQ28:AQ36,AQ40:AQ48,AQ52:AQ60)>0,ROUND(SUM(AS4:AS12,AS16:AS24,AS28:AS36,AS40:AS48,AS52:AS60)/COUNT(AQ4:AQ12,AQ16:AQ24,AQ28:AQ36,AQ40:AQ48,AQ52:AQ60),1),""),"") ->  | AT62: Absolute Intensity: | AW62: =IF(MAX(AY13,AY25,AY37,AY49,AY61) > 0, MAX(AY13,AY25,AY37,AY49,AY61),"") ->  | AX62: Total AUs: | AY62: =IFERROR(IF(SUBSTITUTE(AR13, " AU", "") + SUBSTITUTE(AR25, " AU", "") + SUBSTITUTE(AR37, " AU", "") + SUBSTITUTE(AR49, " AU", "") + SUBSTITUTE(AR61, " AU", "") > 0, CONCATENATE(SUBSTITUTE(AR13, " AU", "") + SUBSTITUTE(AR25, " AU", "") + SUBSTITUTE(AR37, " AU", "") + SUBSTITUTE(AR49, " AU", "") + SUBSTITUTE(AR61, " AU", ""), " AU"), ""),"") ->  | BA62: Tonnage: | BC62: =IF(SUM(BN61,BN37,BN13,BN25,BN49)>0, SUM(BN61,BN37,BN13,BN25,BN49),"") ->  | BE62: Average Intensity: | BI62: =IFERROR(IF(SUM(BJ4:BJ12,BJ16:BJ24,BJ28:BJ36,BJ40:BJ48,BJ52:BJ60)/COUNT(BH4:BH12,BH16:BH24,BH28:BH36,BH40:BH48,BH52:BH60)>0,ROUND(SUM(BJ4:BJ12,BJ16:BJ24,BJ28:BJ36,BJ40:BJ48,BJ52:BJ60)/COUNT(BH4:BH12,BH16:BH24,BH28:BH36,BH40:BH48,BH52:BH60),1),""),"") ->  | BK62: Absolute Intensity: | BN62: =IF(MAX(BP13,BP25,BP37,BP49,BP61) > 0, MAX(BP13,BP25,BP37,BP49,BP61),"") ->  | BO62: Total AUs: | BP62: =IFERROR(IF(SUBSTITUTE(BI13, " AU", "") + SUBSTITUTE(BI25, " AU", "") + SUBSTITUTE(BI37, " AU", "") + SUBSTITUTE(BI49, " AU", "") + SUBSTITUTE(BI61, " AU", "") > 0, CONCATENATE(SUBSTITUTE(BI13, " AU", "") + SUBSTITUTE(BI25, " AU", "") + SUBSTITUTE(BI37, " AU", "") + SUBSTITUTE(BI49, " AU", "") + SUBSTITUTE(BI61, " AU", ""), " AU"), ""),"") -> 
S63: Weekly % Difference | U63: =IF( U62 <> "", (IF(U62<>"",U62, 0) - IF(D62<>"",D62, 0))/IF(D62<>"",D62, 1), "") ->  | AA63: =IF( AA62 <> "", (IF(AA62<>"",AA62, 0) - IF(J62<>"",J62, 0))/IF(J62<>"",J62, 1), "") ->  | AF63: =IF(AF62 <> "", (IF(AF62<>"",AF62, 0) - IF(O62<>"",O62, 0))/IF(O62<>"",O62,1), "") ->  | AH63: =IF(AH62 <> "", (IF(AH62<>"",SUBSTITUTE(AH62," AU",""), 0) - IF(Q62<>"",SUBSTITUTE(Q62," AU",""), 0))/IF(Q62<>"",SUBSTITUTE(Q62," AU",""), 1), "") ->  | AJ63: Weekly % Difference | AL63: =IF( AL62 <> "", (IF(AL62<>"",AL62, 0) - IF(U62<>"",U62, 0))/IF(U62<>"",U62, 1), "") ->  | AR63: =IF( AR62 <> "", (IF(AR62<>"",AR62, 0) - IF(AA62<>"",AA62, 0))/IF(AA62<>"",AA62, 1), "") ->  | AW63: =IF(AW62 <> "", (IF(AW62<>"",AW62, 0) - IF(AF62<>"",AF62, 0))/IF(AF62<>"",AF62,1), "") ->  | AY63: =IF(AY62 <> "", (IF(AY62<>"",SUBSTITUTE(AY62," AU",""), 0) - IF(AH62<>"",SUBSTITUTE(AH62," AU",""), 0))/IF(AH62<>"",SUBSTITUTE(AH62," AU",""), 1), "") ->  | BA63: Weekly % Difference | BC63: =IF( BC62 <> "", (IF(BC62<>"",BC62, 0) - IF(AL62<>"",AL62, 0))/IF(AL62<>"",AL62, 1), "") ->  | BI63: =IF( BI62 <> "", (IF(BI62<>"",BI62, 0) - IF(AR62<>"",AR62, 0))/IF(AR62<>"",AR62, 1), "") ->  | BN63: =IF(BN62 <> "", (IF(BN62<>"",BN62, 0) - IF(AW62<>"",AW62, 0))/IF(AW62<>"",AW62,1), "") ->  | BP63: =IF(BP62 <> "", (IF(BP62<>"",SUBSTITUTE(BP62," AU",""), 0) - IF(AY62<>"",SUBSTITUTE(AY62," AU",""), 0))/IF(AY62<>"",SUBSTITUTE(AY62," AU",""), 1), "") -> 

Sheet Data Analysis(DEMO)
B2: Week | C2: Tonnage | D2: Average Intensity | E2: Absolute Intensity | F2: Arbitrary Units | G2: sRPE | H2: AC Ratio
B3: Week 2 | C3: =RANDBETWEEN(10,40)*100 -> 3000 | D3: =RANDBETWEEN(10,40) -> 27 | E3: =RANDBETWEEN(100,200) -> 133 | F3: =RANDBETWEEN(10,30)*100 -> 1700 | G3: =RANDBETWEEN(40,70)/10 -> 5.8
B4: Week 3 | C4: =RANDBETWEEN(10,40)*100 -> 1800 | D4: =RANDBETWEEN(10,40) -> 11 | E4: =RANDBETWEEN(100,200) -> 163 | F4: =RANDBETWEEN(10,30)*100 -> 2600 | G4: =RANDBETWEEN(40,70)/10 -> 5.5
B5: Week 4 | C5: 3900 | D5: 16 | E5: 164 | F5: 1500 | G5: 5
B6: Week 5 | C6: 1900 | D6: 18 | E6: 153 | F6: 2800 | G6: 6.7
B7: Week 6 | C7: =RANDBETWEEN(30,70)*100 -> 6200 | D7: =RANDBETWEEN(30,60) -> 46 | E7: =RANDBETWEEN(150,250) -> 198 | F7: =RANDBETWEEN(25,35)*100 -> 2500 | G7: =RANDBETWEEN(50,75)/10 -> 5.9 | H7: =Table3[[#This Row],[Arbitrary Units]]/AVERAGE(F3:F6) -> 1.1628
B8: Week 7 | C8: =RANDBETWEEN(30,70)*100 -> 6000 | D8: =RANDBETWEEN(30,60) -> 40 | E8: =RANDBETWEEN(150,250) -> 230 | F8: =RANDBETWEEN(25,35)*100 -> 2800 | G8: =RANDBETWEEN(50,75)/10 -> 6.6 | H8: =Table3[[#This Row],[Arbitrary Units]]/AVERAGE(F4:F7) -> 1.1915
B9: Week 8 | C9: 6500 | D9: 30 | E9: 206 | F9: 2700 | G9: 7 | H9: =Table3[[#This Row],[Arbitrary Units]]/AVERAGE(F5:F8) -> 1.1250
B10: Week 9 | C10: 3100 | D10: 34 | E10: 199 | F10: 2600 | G10: 6.3 | H10: =Table3[[#This Row],[Arbitrary Units]]/AVERAGE(F6:F9) -> 0.9630
B11: Week 10 | C11: =RANDBETWEEN(50,80)*100 -> 6000 | D11: =RANDBETWEEN(40,70) -> 56 | E11: =RANDBETWEEN(200,300) -> 268 | F11: =RANDBETWEEN(30,40)*100 -> 3200 | G11: =RANDBETWEEN(60,80)/10 -> 6 | H11: =Table3[[#This Row],[Arbitrary Units]]/AVERAGE(F7:F10) -> 1.2075
B12: Week 11 | C12: =RANDBETWEEN(50,80)*100 -> 8000 | D12: =RANDBETWEEN(40,70) -> 45 | E12: =RANDBETWEEN(200,300) -> 245 | F12: =RANDBETWEEN(30,40)*100 -> 3300 | G12: =RANDBETWEEN(60,80)/10 -> 7.2 | H12: =Table3[[#This Row],[Arbitrary Units]]/AVERAGE(F8:F11) -> 1.1681
B13: Week 12 | C13: 5000 | D13: 46 | E13: 275 | F13: 3100 | G13: 7.6 | H13: =Table3[[#This Row],[Arbitrary Units]]/AVERAGE(F9:F12) -> 1.0508
B14: Week 13 | C14: 5700 | D14: 69 | E14: 292 | F14: 3400 | G14: 6 | H14: =Table3[[#This Row],[Arbitrary Units]]/AVERAGE(F10:F13) -> 1.1148
B15: Week 14 | C15: =RANDBETWEEN(60,90)*100 -> 6700 | D15: =RANDBETWEEN(60,90) -> 83 | E15: =RANDBETWEEN(250,350) -> 350 | F15: =RANDBETWEEN(38,45)*100 -> 3900 | G15: =RANDBETWEEN(70,88)/10 -> 8.4 | H15: =Table3[[#This Row],[Arbitrary Units]]/AVERAGE(F11:F14) -> 1.2000
B16: Week 15 | C16: =RANDBETWEEN(60,90)*100 -> 8200 | D16: =RANDBETWEEN(60,90) -> 87 | E16: =RANDBETWEEN(250,350) -> 343 | F16: =RANDBETWEEN(38,45)*100 -> 3900 | G16: =RANDBETWEEN(70,88)/10 -> 7.3 | H16: =Table3[[#This Row],[Arbitrary Units]]/AVERAGE(F12:F15) -> 1.1387
B17: Week 16 | C17: 7300 | D17: 61 | E17: 274 | F17: 4100 | G17: 7.7 | H17: =Table3[[#This Row],[Arbitrary Units]]/AVERAGE(F13:F16) -> 1.1469
B18: Week 17 | C18: 8900 | D18: 87 | E18: 281 | F18: 4500 | G18: 7.8 | H18: =Table3[[#This Row],[Arbitrary Units]]/AVERAGE(F14:F17) -> 1.1765
B19: Week 18 | C19: =RANDBETWEEN(80,100)*100 -> 8100 | D19: =RANDBETWEEN(80,100) -> 91 | E19: =RANDBETWEEN(325,400) -> 398 | F19: =RANDBETWEEN(44,50)*100 -> 4500 | G19: =RANDBETWEEN(85,99)/10 -> 9.6 | H19: =Table3[[#This Row],[Arbitrary Units]]/AVERAGE(F15:F18) -> 1.0976
B20: Week 19 | C20: =RANDBETWEEN(80,100)*100 -> 8300 | D20: =RANDBETWEEN(80,100) -> 96 | E20: =RANDBETWEEN(325,400) -> 325 | F20: =RANDBETWEEN(44,50)*100 -> 5000 | G20: =RANDBETWEEN(85,99)/10 -> 9.8 | H20: =Table3[[#This Row],[Arbitrary Units]]/AVERAGE(F16:F19) -> 1.1765
B21: Week 20 | C21: =RANDBETWEEN(90,100)*100 -> 9400 | D21: =RANDBETWEEN(90,100) -> 99 | E21: =RANDBETWEEN(350,400) -> 379 | F21: =RANDBETWEEN(48,50)*100 -> 4900 | G21: =RANDBETWEEN(90,99)/10 -> 9.6 | H21: =Table3[[#This Row],[Arbitrary Units]]/AVERAGE(F17:F20) -> 1.0829

Sheet Data Analysis
C2: Tonnage | D2: Average Intensity | E2: Absolute Intensity | F2: Arbitrary Units | G2: sRPE | H2: AC Ratio
B3: Week 1 | F3: =IFERROR(ROUND(SUBSTITUTE('Phase I'!N81," AU",""),0),"") ->  | G3: =IFERROR(ROUND(AVERAGE('Phase I'!D80,'Phase I'!D69,'Phase I'!D58,'Phase I'!D47,'Phase I'!D36,'Phase I'!D25,'Phase I'!D14),1),"") -> 
B4: Week 2 | C4: ='Phase II '!$D$95 ->  | D4: ='Phase II '!$H$95 ->  | E4: ='Phase II '!$N$95 ->  | F4: =IFERROR(ROUND(SUBSTITUTE('Phase II '!R95," AU",""),0),"") ->  | G4: =IFERROR(ROUND(AVERAGE('Phase II '!$D$50,'Phase II '!$D$81,'Phase II '!$D$32,'Phase II '!$D$19,'Phase II '!$D$63,'Phase II '!$D$94),1),"") -> 
B5: Week 3 | C5: ='Phase II '!$W$95 ->  | D5: ='Phase II '!$AA$95 ->  | E5: ='Phase II '!$AG$95 ->  | F5: =IFERROR(ROUND(SUBSTITUTE('Phase II '!AK95," AU",""),0),"") ->  | G5: =IFERROR(ROUND(AVERAGE('Phase II '!W19,'Phase II '!W32,'Phase II '!W50,'Phase II '!W63,'Phase II '!W81,'Phase II '!W94),1),"") -> 
B6: Week 4 | C6: ='Phase II '!$AP$95 ->  | D6: ='Phase II '!$AT$95 ->  | E6: ='Phase II '!$AZ$95 ->  | F6: =IFERROR(ROUND(SUBSTITUTE('Phase II '!BD95," AU",""),0),"") ->  | G6: =IFERROR(ROUND(AVERAGE('Phase II '!AP94,'Phase II '!AP81,'Phase II '!AP63,'Phase II '!AP50,'Phase II '!AP32,'Phase II '!AP19),1),"") -> 
B7: Week 5 | C7: ='Phase II '!$BI$95 ->  | D7: ='Phase II '!$BM$95 ->  | E7: ='Phase II '!$BS$95 ->  | F7: =IFERROR(ROUND(SUBSTITUTE('Phase II '!BW95," AU",""),0),"") ->  | G7: =IFERROR(ROUND(AVERAGE('Phase II '!BI19,'Phase II '!BI32,'Phase II '!BI50,'Phase II '!BI63,'Phase II '!BI81,'Phase II '!BI94),1),"") ->  | H7: =IFERROR(Table2[[#This Row],[Arbitrary Units]]/AVERAGE(F3:F6),"") -> 
B8: Week 6 | C8: ='Phase III'!$D$132 ->  | D8: ='Phase III'!$H$132 ->  | E8: ='Phase III'!$N$132 ->  | F8: =IFERROR(ROUND(SUBSTITUTE('Phase III'!R132," AU",""),0),"") ->  | G8: =IFERROR(ROUND(AVERAGE('Phase III'!D131,'Phase III'!D113,'Phase III'!D84,'Phase III'!D66,'Phase III'!D48,'Phase III'!D30),1),"") ->  | H8: =IFERROR(Table2[[#This Row],[Arbitrary Units]]/AVERAGE(F4:F7),"") -> 
B9: Week 7 | C9: ='Phase III'!$W$132 ->  | D9: ='Phase III'!$AA$132 ->  | E9: ='Phase III'!$AG$132 ->  | F9: =IFERROR(ROUND(SUBSTITUTE('Phase III'!AK132," AU",""),0),"") ->  | G9: =IFERROR(ROUND(AVERAGE('Phase III'!W30,'Phase III'!W48,'Phase III'!W66,'Phase III'!W84,'Phase III'!W113,'Phase III'!W131),1),"") ->  | H9: =IFERROR(Table2[[#This Row],[Arbitrary Units]]/AVERAGE(F5:F8),"") -> 
B10: Week 8 | C10: ='Phase III'!$AP$132 ->  | D10: ='Phase III'!$AT$132 ->  | E10: ='Phase III'!$AZ$132 ->  | F10: =IFERROR(ROUND(SUBSTITUTE('Phase III'!BD132," AU",""),0),"") ->  | G10: =IFERROR(ROUND(AVERAGE('Phase III'!AP30,'Phase III'!AP66,'Phase III'!AP48,'Phase III'!AP84,'Phase III'!AP113,'Phase III'!AP131),1),"") ->  | H10: =IFERROR(Table2[[#This Row],[Arbitrary Units]]/AVERAGE(F6:F9),"") -> 
B11: Week 9 | C11: ='Phase III'!$BI$132 ->  | D11: ='Phase III'!$BM$132 ->  | E11: ='Phase III'!$BS$132 ->  | F11: =IFERROR(ROUND(SUBSTITUTE('Phase III'!BW132," AU",""),0),"") ->  | G11: =IFERROR(ROUND(AVERAGE('Phase III'!BI30,'Phase III'!BI48,'Phase III'!BI66,'Phase III'!BI84,'Phase III'!BI113,'Phase III'!BI131),1),"") ->  | H11: =IFERROR(Table2[[#This Row],[Arbitrary Units]]/AVERAGE(F7:F10),"") -> 
B12: Week 10 | C12: ='Phase III'!$CB$132 ->  | D12: ='Phase III'!$CF$132 ->  | E12: ='Phase III'!$CL$132 ->  | F12: =IFERROR(ROUND(SUBSTITUTE('Phase III'!CP132," AU",""),0),"") ->  | G12: =IFERROR(ROUND(AVERAGE('Phase III'!CB30,'Phase III'!CB48,'Phase III'!CB66,'Phase III'!CB84,'Phase III'!CB113,'Phase III'!CB131),1),"") ->  | H12: =IFERROR(Table2[[#This Row],[Arbitrary Units]]/AVERAGE(F8:F11),"") -> 
B13: Week 11 | C13: ='Phase III'!$CU$132 ->  | D13: ='Phase III'!$CY$132 ->  | E13: ='Phase III'!$DE$132 ->  | F13: =IFERROR(ROUND(SUBSTITUTE('Phase III'!DI132," AU",""),0),"") ->  | G13: =IFERROR(ROUND(AVERAGE('Phase III'!CU30,'Phase III'!CU48,'Phase III'!CU66,'Phase III'!CU84,'Phase III'!CU113,'Phase III'!CU131),1),"") ->  | H13: =IFERROR(Table2[[#This Row],[Arbitrary Units]]/AVERAGE(F9:F12),"") -> 
B14: Week 12 | C14: ='Phase III'!$DN$132 ->  | D14: ='Phase III'!$DR$132 ->  | E14: ='Phase III'!$DX$132 ->  | F14: =IFERROR(ROUND(SUBSTITUTE('Phase III'!EB132," AU",""),0),"") ->  | G14: =IFERROR(ROUND(AVERAGE('Phase III'!DN30,'Phase III'!DN48,'Phase III'!DN66,'Phase III'!DN84,'Phase III'!DN113,'Phase III'!DN131),1),"") ->  | H14: =IFERROR(Table2[[#This Row],[Arbitrary Units]]/AVERAGE(F10:F13),"") -> 
B15: Week 13 | C15: ='Phase III'!$EG$132 ->  | D15: ='Phase III'!$EK$132 ->  | E15: ='Phase III'!$EQ$132 ->  | F15: =IFERROR(ROUND(SUBSTITUTE('Phase III'!EU132," AU",""),0),"") ->  | G15: =IFERROR(ROUND(AVERAGE('Phase III'!EG30,'Phase III'!EG48,'Phase III'!EG66,'Phase III'!EG84,'Phase III'!EG113,'Phase III'!EG131),1),"") ->  | H15: =IFERROR(Table2[[#This Row],[Arbitrary Units]]/AVERAGE(F11:F14),"") -> 
B16: Week 14 | C16: ='Phase III'!$EZ$132 ->  | D16: ='Phase III'!$FD$132 ->  | E16: ='Phase III'!$FJ$132 ->  | F16: =IFERROR(ROUND(SUBSTITUTE('Phase III'!FN132," AU",""),0),"") ->  | G16: =IFERROR(ROUND(AVERAGE('Phase III'!EZ30,'Phase III'!EZ48,'Phase III'!EZ66,'Phase III'!EZ84,'Phase III'!EZ113,'Phase III'!EZ131),1),"") ->  | H16: =IFERROR(Table2[[#This Row],[Arbitrary Units]]/AVERAGE(F12:F15),"") -> 
B17: Week 15 | C17: ='Phase III'!$FS$132 ->  | D17: ='Phase III'!$FW$132 ->  | E17: ='Phase III'!$GC$132 ->  | F17: =IFERROR(ROUND(SUBSTITUTE('Phase III'!GG132," AU",""),0),"") ->  | G17: =IFERROR(ROUND(AVERAGE('Phase III'!FS30,'Phase III'!FS48,'Phase III'!FS66,'Phase III'!FS84,'Phase III'!FS113,'Phase III'!FS131),1),"") ->  | H17: =IFERROR(Table2[[#This Row],[Arbitrary Units]]/AVERAGE(F13:F16),"") -> 
B18: Week 16 | C18: ='Phase III'!$GL$132 ->  | D18: ='Phase III'!$GP$132 ->  | E18: ='Phase III'!$GV$132 ->  | F18: =IFERROR(ROUND(SUBSTITUTE('Phase III'!GZ132," AU",""),0),"") ->  | G18: =IFERROR(ROUND(AVERAGE('Phase III'!GL131,'Phase III'!GL113,'Phase III'!GL84,'Phase III'!GL66,'Phase III'!GL48,'Phase III'!GL30),1),"") ->  | H18: =IFERROR(Table2[[#This Row],[Arbitrary Units]]/AVERAGE(F14:F17),"") -> 
B19: Week 17 | C19: ='Phase IV'!$D$62 ->  | D19: ='Phase IV'!$J$62 ->  | E19: ='Phase IV'!$O$62 ->  | F19: =IFERROR(ROUND(SUBSTITUTE('Phase IV'!Q62," AU",""),0),"") ->  | G19: =IFERROR(ROUND(AVERAGE('Phase IV'!C13,'Phase IV'!C25,'Phase IV'!C37,'Phase IV'!C49,'Phase IV'!C61),1),"") ->  | H19: =IFERROR(Table2[[#This Row],[Arbitrary Units]]/AVERAGE(F15:F18),"") -> 
B20: Week 18 | C20: ='Phase IV'!$U$62 ->  | D20: ='Phase IV'!$AA$62 ->  | E20: ='Phase IV'!$AF$62 ->  | F20: =IFERROR(ROUND(SUBSTITUTE('Phase IV'!AH62," AU",""),0),"") ->  | G20: =IFERROR(ROUND(AVERAGE('Phase IV'!T13,'Phase IV'!T25,'Phase IV'!T37,'Phase IV'!T49,'Phase IV'!T61),1),"") ->  | H20: =IFERROR(Table2[[#This Row],[Arbitrary Units]]/AVERAGE(F16:F19),"") -> 
B21: Week 19 | C21: ='Phase IV'!$AL$62 ->  | D21: ='Phase IV'!$AR$62 ->  | E21: ='Phase IV'!$AW$62 ->  | F21: =IFERROR(ROUND(SUBSTITUTE('Phase IV'!AY62," AU",""),0),"") ->  | G21: =IFERROR(ROUND(AVERAGE('Phase IV'!AK13,'Phase IV'!AK25,'Phase IV'!AK37,'Phase IV'!AK49,'Phase IV'!AK61),1),"") ->  | H21: =IFERROR(Table2[[#This Row],[Arbitrary Units]]/AVERAGE(F17:F20),"") -> 
B22: Week 20 | C22: ='Phase IV'!$BC$62 ->  | D22: ='Phase IV'!$BI$62 ->  | E22: ='Phase IV'!$BN$62 ->  | F22: =IFERROR(ROUND(SUBSTITUTE('Phase IV'!BP62," AU",""),0),"") ->  | G22: =IFERROR(ROUND(AVERAGE('Phase IV'!BB13,'Phase IV'!BB25,'Phase IV'!BB37,'Phase IV'!BB49,'Phase IV'!BB61),1),"") ->  | H22: =IFERROR(Table2[[#This Row],[Arbitrary Units]]/AVERAGE(F18:F21),"") -> 

Sheet Exercise Selection (hidden)
N1: Blue | O1: #2C479E | P1: rgb(44,71,158)
N2: Red | O2: #A51F2A | P2: rgb(165,31,42)
A3: Isometric Exercises Selection | E3: Clusters
A4: Unilateral | B4: Bilateral | E4: Clean | G4: Snatch | I4: Jerk
A5: Split Squat | B5: Wall-Sit | E5: Clean Cluster 1 | F5: Lift-Off to Knee | G5: Snatch Cluster 1 | H5: Lift-Off to Knee | I5: Jerk Cluster 1 | J5: Push-Press (w/Tempo Dip & Pause)
A6: Knee Extension (60º Degrees) | B6: Spanish Squat | F6: Lift-Off to Hip | H6: Lift-Off to Hip | J6: Push-Press (w/Tempo Dip)
B7: Counter Balance Squat | F7: Pull/Extension | H7: Pull/Extension | J7: Push-Press
E8: Clean Cluster 2 | F8: Muscle-Clean (No Feet, No Hook) | G8: Snatch Cluster 2 | H8: Muscle Snatch (No Feet,No Hook) | I8: Jerk Cluster 2 | J8: Push-Jerk (w/Tempo Dip & Pause)
F9: Power-Clean (No Feet, w/ Pause iin Catch) | H9: Snatch Push-Press (w/ Tempo Dip & Pause) | J9: Push-Jerk (w/Tempo Dip)
F10: Power-Clean (No Feet) + Front-Squat (Tempo) | G10: Snatch Cluster 3 | H10: Snatch Push-Press to Tempo Overhead-Squat | J10: Push-Jerk
E11: Clean Cluster 3 | F11: Power-Clean (w/ Pause in Catch) | H11: Power-Snatch (No Feet, w/ Pause at Catch) | I11: Jerk Cluster 3 | J11: Power-Jerk (w/Tempo Dip & Pause)
F12: Power-Clean + Front-Squat (Tempo) | G12: Snatch Cluster 4 | H12: Snatch-Balance (No Feet, w/ Tempo Dip & Pause) | J12: Power-Jerk (w/Tempo Dip)
E13: Clean Cluster 4 | F13: Tall-Clean (No Feet) | H13: Snatch-Balance (No Feet, w/ Tempo Dip) | J13: Power-Jerk
A14: Tempo-Strength Training | F14: Dip-Clean (No Feet) | H14: Snatch-Balance (No Feet) | I14: Jerk Cluster 4 | J14: Press in Split
A15: Unilateral | B15: Bilateral | F15: Full-Clean (No Feet) | H15: Drop-Snatch (No Feet) | J15: Jerk-Balance (w/ Pause in Split)
A16: Single Leg Squat (Pistol) | B16: Counterbalance Squat | F16: Tall-Clean | G16: Snatch Cluster 5 | H16: Power-Snatch (No Feet) + Overhead-Squat (Tempo) | J16: Tall-Jerk (w/ Pause in Split)
A17: Split Squat | B17: Belt Squat | F17: Dip-Clean | H17: Power-Snatch (w/ Pause in Catch) | I17: Jerk Cluster 5 | J17: Jerk (w/ Pause in Split)
A18: Front-Foot Elevated Split Squat | B18: Bilateral Leg Press | F18: Full-Clean | H18: Power-Snatch + Overrhead-Squat (Tempo) | J18: Split-Jerk
A19: Bulgarian Split Squat | B19: Hack Squat | G19: Snatch Cluster 6 | H19: Snatch-Balance
A20: Unilateral Leg Press | B20: Safety Bar Squat | H20: Snatch (No Feet)
A21: Leg Extension | B21: High Bar Back Squat | H21: Drop-Snatch
A22: Step-Ups (Hip at 90 degrees of | B22: Front Squat | G22: Snatch Cluster 7 | H22: Tall-Snatch
A23: flexion) | B23: Overhead Squat | H23: Dip-Snatch
B24: Lift-Offs | H24: Snatch
B25: Snatch-Grip Deadlift
B26: bla exercise
B27: Clean-Grip Deadlift
A30: Test #1 | B30: Test #2
A31: Pass | B31: Pass
A32: Fail | B32: Fail

Sheet RPE Chart (hidden)
A1: Effort/Reps Chart | M1: RPE Scale
A2: REPS | B2: 1 | C2: 2 | D2: 3 | E2: 4 | F2: 5 | G2: 6 | H2: 7 | I2: 8 | J2: 9 | K2: 10 | M2: 10 | N2: You could not have done 1 more rep.
A3: RPE 10 | B3: 100.00% | C3: 95.90% | D3: 93.00% | E3: 90.20% | F3: 87.60% | G3: 85.20% | H3: 82.80% | I3: 80.50% | J3: 78.30% | K3: 76.20% | M3: 9.5 | N3: You could have maybe done 1 more rep.
A4: RPE 9.5 | B4: 98.00% | C4: 94.50% | D4: 91.60% | E4: 88.90% | F4: 86.40% | G4: 84.00% | H4: 81.70% | I4: 79.40% | J4: 77.30% | K4: 74.70% | M4: 9 | N4: You could have definitely done 1 more rep.
A5: RPE 9 | B5: 95.90% | C5: 93.00% | D5: 90.20% | E5: 87.60% | F5: 85.20% | G5: 82.80% | H5: 80.50% | I5: 78.30% | J5: 76.20% | K5: 73.20% | M5: 8.5 | N5: You could have maybe done 2 more reps.
A6: RPE 8.5 | B6: 94.50% | C6: 91.60% | D6: 88.90% | E6: 86.40% | F6: 84.00% | G6: 81.70% | H6: 79.40% | I6: 77.30% | J6: 74.70% | K6: 72.00% | M6: 8 | N6: You could have definitely done 2 more reps.
A7: RPE 8 | B7: 93.00% | C7: 90.20% | D7: 87.60% | E7: 85.20% | F7: 82.80% | G7: 80.50% | H7: 78.30% | I7: 76.20% | J7: 73.20% | K7: 70.70% | M7: 7.5 | N7: You could have maybe done 3 more reps.
A8: RPE 7.5 | B8: 91.60% | C8: 88.90% | D8: 86.40% | E8: 84.00% | F8: 81.70% | G8: 79.40% | H8: 77.30% | I8: 74.70% | J8: 72.00% | K8: 69.50% | M8: 7 | N8: You could have definitely done 3 more reps.
A9: RPE 7 | B9: 90.20% | C9: 87.60% | D9: 85.20% | E9: 82.80% | F9: 80.50% | G9: 78.30% | H9: 76.20% | I9: 73.20% | J9: 70.70% | K9: 68.10% | M9: 6.5 | N9: You could have maybe done 4 more reps.
A10: RPE 6.5 | B10: 88.90% | C10: 86.40% | D10: 84.00% | E10: 81.70% | F10: 79.40% | G10: 77.30% | H10: 74.70% | I10: 72.00% | J10: 69.50% | K10: 66.90% | M10: 6
M11: 5.5
M12: 5
M13: 4.5
M14: 4
M15: 3.5
M16: 3
M17: 2.5
M18: 2
M19: 1.5
M20: 1
